Workbook

Sheet LTMS_old
A1: Transport
A3: Road Transport (source: 17 except hybrids and SUVs) | C3: where does this come from, because too much fuel is used and the intensity seems low | G3: nb have changed this from e6 to f6 | L3: this should be average?
B4: Number of vehicles | C4: Annual milage | D4: Total milage | E4: New vehicle fuel efficiency | F4: Fuel efficiency (is this for existing fleet?) | G4: Total fuel use | H4: Nominal price | I4: Real price | K4: Occupancy | L4: NEW vehicle energy intensity | M4: existing vehicle energy intensity | N4: fuel use of new fleet | O4: fuel use of existing fleet | Q4: km/l of existing fleet | T4: =+M4 -> existing vehicle energy intensity | U4: =+L4 -> NEW vehicle energy intensity
A5: Year = 2001 | C5: [km/vehicle] | D5: [billion vehicle-km] | E5: [MJ/veh-Km] | F5: [MJ/Km] | G5: [PJ] | H5: [kZAR/Vehicle] | I5: [2001 kZAR/Vehicle] | J5: [2003 kZAR/Vehicle] | K5: [persons/vehicle] | L5: [MJ/pass-km) | M5: [MJ/pass-km) | N5: l/100km | O5: l/100km | T5: =+M5 -> [MJ/pass-km) | U5: =+L5 -> [MJ/pass-km)
A6: Diesel buses | B6: 31820 | C6: 28912.63356 | D6: =+B6*C6/1000000000 -> 0.92 | E6: =F6*0.9 -> 12.384 | F6: 13.76 | G6: =D6*F6 -> 12.6592 | H6: 360 | I6: 262.9656684 | J6: 306.8755079 | K6: 35 | L6: =E6*(1/$K6) -> 0.3538285714 | M6: =F6*(1/$K6) -> 0.3931428571 | N6: =+E6/38.1*100 -> 32.50393701 | O6: =+F6/38.1*100 -> 36.11548556 | P6: =1/N6*100 -> 3.076550388 | Q6: =1/O6*100 -> 2.768895349 | S6: =+A6 -> Diesel buses | T6: 0.3931428571 | U6: 0.3538285714
A7: Petrol taxis (minibus) | B7: 126000 | C7: 70000 | D7: =+B7*C7/1000000000 -> 8.82 | E7: =F7*0.9 -> 3.924 | F7: 4.36 | G7: =D7*F7 -> 38.4552 | H7: 200 | I7: 146.092038 | J7: 170.4863933 | K7: 10 | L7: =E7*(1/$K7) -> 0.3924 | M7: 0.436 | N7: =+E7/34.2*100 -> 11.47368421 | O7: 12.74853801 | P7: =1/N7*100 -> 8.71559633 | Q7: 7.844036697 | S7: Petrol taxis (minibus) | T7: 0.436 | U7: 0.3924
A8: Diesel Taxis (minibus) | B8: 0 | C8: 70000 | D8: 0 | E8: 3.8475 | F8: 4.275 | G8: =D8*F8 -> 0 | H8: 250 | I8: 182.6150475 | J8: 213.1079916 | K8: 15 | L8: 0.2565 | M8: 0.285 | N8: =+E8/38.1*100 -> 10.0984252 | O8: =+F8/38.1*100 -> 11.22047244 | P8: 9.902534113 | Q8: 8.912280702 | S8: Diesel Taxis (minibus) | T8: 0.285 | U8: 0.2565
A9: Petrol Cars | B9: =4269600-B12-B14 -> 4253991 | C9: 14575 | D9: 62.00191882 | E9: 2.8629 | F9: 3.181 | G9: 197.2281038 | H9: 118 | I9: 86.19430241 | J9: 100.586972 | K9: 2.1 | L9: 1.363285714 | M9: 1.514761905 | N9: 8.371052632 | O9: 9.301169591 | P9: 11.94592895 | Q9: 10.75133606 | S9: Petrol Cars | T9: 1.514761905 | U9: 1.363285714
A10: Diesel cars | B10: =135320-B11-B13 -> 121527 | C10: 15000 | D10: 1.822905 | E10: 2.646 | F10: 2.94 | G10: =D10*F10 -> 5.3593407 | H10: 135.7 | I10: 99.12344777 | J10: 115.6750179 | K10: 2.1 | L10: 1.26 | M10: 1.4 | N10: =+E10/38.1*100 -> 6.94488189 | O10: =+F10/38.1*100 -> 7.716535433 | P10: 14.39909297 | Q10: 12.95918367 | S10: Diesel cars | T10: 1.4 | U10: 1.26
A11: Hybrid cars (diesel) | B11: 0 | C11: NO DIESEL HYBRIDS INCLUDED IN MODEL | E11: 1.119011865 | F11: 1.243346517 | K11: 2.1 | L11: 0.5328627929 | M11: 0.5920697699 | N11: 3.271964518 | O11: 3.635516131 | P11: 30.56267862 | Q11: 27.50641075 | S11: Hybrid cars (diesel) | T11: 0.5920697699 | U11: 0.5328627929
A12: Hybrid cars (petrol) | B12: 106 | C12: =C9 -> 14575 | D12: 0.00154495 | E12: 1.316484547 | F12: 1.462760608 | G12: 0.002259892001 | J12: 230.3069511 | K12: 2.1 | L12: 0.6268974034 | M12: 0.6965526704 | N12: 3.849370021 | O12: 4.277077801 | P12: 25.97827682 | Q12: 23.38044914 | S12: Hybrid cars (petrol) | T12: 0.6965526704 | U12: 0.6268974034
A13: SUV's diesel | B13: 13793 | C13: =C10 -> 15000 | D13: 0.206895 | E13: 3.846603286 | F13: 4.274003651 | G13: 0.8842699854 | J13: 342.3761115 | K13: 2.1 | L13: 1.831715851 | M13: 2.035239834 | N13: =+E13/38.1*100 -> 10.09607162 | O13: =+F13/38.1*100 -> 11.21785735 | P13: 9.904842575 | Q13: 8.914358318 | S13: SUV's diesel | T13: 2.035239834 | U13: 1.831715851
A14: SUV's petrol | B14: 15503 | C14: =C9 -> 14575 | D14: 0.225956225 | E14: 4.525415631 | F14: 5.02823959 | G14: 1.136162036 | J14: 330.3363661 | K14: 2.1 | L14: 2.154959824 | M14: 2.394399805 | N14: 13.23220945 | O14: 14.70245494 | P14: 7.557316894 | Q14: 6.801585205 | S14: SUV's petrol | T14: 2.394399805 | U14: 2.154959824
A15: Motorcycles | B15: 157827.3333 | C15: 10000 | D15: 1.578273333 | E15: 1.62 | F15: 1.8 | G15: 2.840892 | H15: 40 | I15: 29.2184076 | J15: 34.09727866 | K15: 1 | L15: 1.62 | M15: 1.8 | N15: 4.736842105 | O15: 5.263157895 | P15: 21.11111111 | Q15: 19 | S15: Motorcycles | T15: 1.8 | U15: 1.62
B16: =B9+B10+B11+B13+B14+B15 -> 4562641.333 | G16: =+G7+G9+G12+G14+G15 -> 239.6626177
A17: Commercial vehicles
A18: Diesel | C18: Annual milage | D18: Number of vehicles | E18: Total milage | F18: New vehicle fuel efficiency [MJ/km] | G18: Fuel consumption | H18: Fuel efficiency | I18: Fuel efficiency | J18: Nominal price | K18: Real price | L18: Load | M18: Energy intensity
C19: [km/vehicle] | E19: [billion vehicle kms] | F19: [MJ/veh-km] | G19: [PJ] | H19: [MJ/veh-km] | I19: [l/100km] | J19: [kZAR/Vehicle] | K19: [kZAR/Vehicle] | L19: [ton/vehicle] | M19: [MJ/tonne-km]
A20: LCV < 3500 | C20: 30000 | D20: 377964 | E20: 11.33892 | F20: 3.888941804 | G20: 48.996 | H20: 4.321046449 | I20: 11.28210561 | J20: 100 | K20: 73.04601899 | N20: =13.61*3.6/38.1/377964*1000000000/30000*100 -> 11.34132926
A21: 3501-7500 | C21: 39909 | D21: 53184 | E21: 2.122520256 | F21: 4.732110316 | G21: 11.16 | H21: 5.257900351 | I21: 13.72819935 | J21: 263.25 | K21: 192.293645
A22: 7501-10 000 | C22: 39909 | D22: 28804 | E22: 1.149538836 | F22: 6.200747445 | G22: 7.92 | H22: 6.889719383 | I22: 17.98882345 | J22: 300 | K22: 219.138057
A23: 10 001-12 500 | C23: 39909 | D23: 49456 | E23: 1.973739504 | F23: 6.566216045 | G23: 14.4 | H23: 7.295795606 | I23: 19.04907469 | J23: 382 | K23: 279.0357925
A24: 12 501-15 000 | C24: 38662 | D24: 65398 | E24: 2.528417476 | F24: 7.432316925 | G24: 20.88 | H24: 8.258129917 | I24: 21.56169691 | J24: 451.6666667 | K24: 329.9245191
A25: 15 001-17 500 | C25: 51718 | D25: 11768 | E25: 0.608617424 | F25: 11.17943676 | G25: 7.56 | H25: 12.4215964 | I25: 32.43236657 | J25: 602 | K25: 439.7370343
A26: 17 501-20000 | C26: 63527 | D26: 6448 | E26: 0.409622096 | F26: 11.86459434 | G26: 5.4 | H26: 13.1828826 | I26: 34.420059 | J26: 566 | K26: 413.4404675
A27: Over 20 000 | C27: 87145 | D27: 53097 | E27: 4.627138065 | F27: 11.41353451 | G27: 58.68 | H27: 12.68170501 | I27: 33.11150134 | J27: 697 | K27: 509.1307524
A28: Total LVC | C28: 30000 | D28: =D20 -> 377964 | E28: =C28*D28/1000000000 -> 11.33892 | F28: =I28*38.1/100 -> 4.7625 | G28: =F28*E28 -> 54.0016065 | H28: 4.321046449 | I28: 12.5 | J28: 100 | K28: 73.04601899 | L28: 3 | M28: =F28*(1/L28) -> 1.5875
A29: Total MCV | C29: 35000 | D29: =SUM(D21:D24) -> 196842 | E29: =C29*D29/1000000000 -> 6.88947 | F29: =I29*38.1/100 -> 6.955831336 | G29: =F29*E29 -> 47.92199132 | H29: 6.992344887 | I29: 18.25677516 | J29: 361.0620532 | K29: 263.7414559 | L29: 10 | M29: =F29*(1/L29) -> 0.6955831336
A30: Total HCV | C30: 74000 | D30: =SUM(D25:D27) -> 71313 | E30: =C30*D30/1000000000 -> 5.277162 | F30: =I30*38.1/100 -> 12.6237616 | G30: =F30*E30 -> 66.61763502 | H30: 12.69002807 | I30: 33.13323255 | J30: 669.478398 | K30: 489.0273178 | L30: 15 | M30: =F30*(1/L30) -> 0.8415841068
A31: Total | C31: =SUM(C28:C30) -> 139000 | D31: =SUM(D28:D30) -> 646119 | E31: =C31*D31/1000000000 -> 89.810541 | F31: =I31*38.1/100 -> 6.74334346 | G31: =F31*E31 -> 605.6233243 | H31: 6.778741588 | I31: 17.6990642
F32: =F29*100/38.1 -> 18.25677516
B33: Source: Stone, A ."A BULK MODEL OF EMISSIONS FROM SOUTH AFRICAN DIESEL COMMERCIAL VEHICLES", 2001
A35: Petrol | C35: Annual milage [km/vehicle] | D35: Number of vehicles | E35: Total milage [billion vehicle kms] | F35: New vehicle fuel efficiency [MJ/km] | G35: Fuel consumption [PJ] | H35: Fuel efficiency [MJ/km] | I35: Fuel efficiency [l/100km] | J35: Price [kZAR/Vehicle] | K35: Real [kZAR/Vehicle]
A36: LCV < 3500 | C36: 25000 | D36: 959504 | E36: =+C36*D36/1000000000 -> 23.9876 | F36: =I36*34.2/100 -> 4.547494426 | G36: =F36*E36 -> 109.0834773 | H36: 5.092661886 | I36: 13.29676733 | J36: 85 | K36: 62.08911614 | L36: 3 | M36: =F36*(1/L36) -> 1.515831475
F37: TOTAL petrol | G37: =+G16+G36 -> 348.746095
F38: TOTAL diesel | G38: =G6+G8+G10+G13+G28+G29+G30 -> 187.4440435
A40: Demand per year | C40: 2001 | G40: shares 2001 | H40: 2008 | I40: 2015 | J40: 2030 | K40: 2060
A41: Passenger: public | B41: Busses | C41: [million vehicle-km] | D41: =D6*1000 -> 920 | E41: [million passenger-km] | F41: =D41*K6 -> 32200 | G41: =F41/$F$45 -> 0.2198585316 | H41: =$G$41 -> 0.2198585316 | I41: =$G$41 -> 0.2198585316 | J41: 0.18 | K41: 0.18
B42: Taxis - petrol | C42: [million vehicle-km] | D42: =D7*1000 -> 8820 | E42: [million passenger-km] | F42: =((D42*K7)) -> 88200 | G42: =F42/$F$45 -> 0.6022211953 | H42: =$G$42 -> 0.6022211953 | I42: =$G$42 -> 0.6022211953 | J42: 0.718 | K42: =1-(K41+K43+K44) -> 0.706
B43: Taxis - diesel | C43: [million vehicle-km] | D43: =D8*1000 -> 0 | E43: [million passenger-km] | F43: =D43*K8 -> 0 | G43: =F43/$F$45 -> 0 | H43: =$G$43 -> 0 | I43: =$G$43 -> 0 | J43: 0.012 | K43: 0.024
B44: Rail Passenger (elc) | C44: [million pass-km] | D44: =E155*1000 -> 26057.81431 | E44: [million pass-km] | F44: =D44 -> 26057.81431 | G44: =F44/$F$45 -> 0.177920273 | H44: =$G$44 -> 0.177920273 | I44: =$G$44 -> 0.177920273 | J44: 0.09 | K44: 0.09
E45: TOTAL Public passenger | F45: =SUM(F41:F44) -> 146457.8143 | G45: 1 | H45: 1 | I45: 1 | J45: 1 | K45: 1
A46: Passenger: private | B46: Cars - diesel | C46: [million vehicle-km] | D46: =D10*1000 -> 1822.905 | E46: [million passenger-km] | F46: =D46*K10 -> 3828.1005 | G46: =F46/$F$52 -> 0.02804004252 | H46: =$G$46 -> 0.02804004252 | I46: =$G$46 -> 0.02804004252 | J46: 0.05 | K46: 0.1
B47: Cars - petrol | C47: [million vehicle-km] | D47: =D9*1000 -> 62001.91883 | E47: [million passenger-km] | F47: =D47*K9 -> 130204.0295 | G47: 0.9537175225 | H47: =$G$47 -> 0.9537175225 | I47: =$G$47 -> 0.9537175225 | J47: 0.9041 | K47: 0.8541
B48: hybrids - petrol | C48: [million vehicle-km] | D48: =D12*1000 -> 1.54495 | E48: [million passenger-km] | F48: =D48*K12 -> 3.244395 | G48: 2.376452075e-05 | H48: =$G$48 -> 2.376452075e-05 | I48: =$G$48 -> 2.376452075e-05 | J48: 0.001 | K48: 0.001
B49: SUVs - diesel | C49: [million vehicle-km] | D49: =D13*1000 -> 206.895 | E49: [million passenger-km] | F49: =D49*K13 -> 434.4795 | G49: 0.003182472261 | H49: =$G$49 -> 0.003182472261 | I49: =$G$49 -> 0.003182472261 | J49: 0.017 | K49: 0.017
B50: SUVs - petrol | C50: [million vehicle-km] | D50: =D14*1000 -> 225.956225 | E50: [million passenger-km] | F50: =D50*K14 -> 474.5080725 | G50: 0.003475673256 | H50: =$G$50 -> 0.003475673256 | I50: =$G$50 -> 0.003475673256 | J50: 0.023 | K50: 0.023
B51: Motorcycles | C51: [million vehicle-km] | D51: =D15*1000 -> 1578.273333 | E51: [million passenger-km] | F51: =D51*K15 -> 1578.273333 | G51: 0.01156052496 | H51: =$G$51 -> 0.01156052496 | I51: =$G$51 -> 0.01156052496 | J51: 0.0049 | K51: 0.0049
F52: =SUM(F46:F51) -> 136522.6353 | G52: =SUM(G46:G51) -> 1
F53: TOTAL Passenger-km | G53: =F45+F52 -> 282980.4496
F54: share public | G54: =F45/G53 -> 0.5175545325 | H54: =$G$54 -> 0.5175545325 | I54: =$G$54 -> 0.5175545325 | J54: =$G$54 -> 0.5175545325 | K54: =$G$54 -> 0.5175545325
F55: share private | G55: =F52/G53 -> 0.4824454675 | H55: =$G$55 -> 0.4824454675 | I55: =$G$55 -> 0.4824454675 | J55: =$G$55 -> 0.4824454675 | K55: =$G$55 -> 0.4824454675
E56: TOTAL Private passenger
A57: Freight | B57: Heavy trucks | C57: [million vehicle-km] | D57: =E30*1000 -> 5277.162 | E57: [million tonne-km] | F57: =D57*(L30) -> 79157.43 | G57: =F57/$F$63 -> 0.2233143123 | H57: =1-SUM(H58:H62) -> 0.2231962769 | I57: =1-SUM(I58:I62) -> 0.2231962769 | J57: =1-SUM(J58:J62) -> 0.22 | K57: =1-SUM(K58:K62) -> 0.22
B58: Medium trucks | C58: [million vehicle-km] | D58: =E29*1000 -> 6889.47 | E58: [million tonne-km] | F58: =D58*(L29) -> 68894.7 | G58: 0.1943616986 | H58: =$G$58 -> 0.1943616986 | I58: =$G$58 -> 0.1943616986 | J58: 0.2024418211 | K58: 0.2024418211
B59: Light trucks - diesel | C59: [million vehicle-km] | D59: =E28*1000 -> 11338.92 | E59: [million tonne-km] | F59: =D59*(L28) -> 34016.76 | G59: 0.09596609398 | H59: =$G$59 -> 0.09596609398 | I59: =$G$59 -> 0.09596609398 | J59: 0.07410642593 | K59: 0.07410642593
B60: Light trucks - petrol | C60: [million vehicle-km] | D60: =E36*1000 -> 23987.6 | E60: [million tonne-km] | F60: =D60*(L36) -> 71962.8 | G60: 0.2030172429 | H60: =$G$60 -> 0.2030172429 | I60: =$G$60 -> 0.2030172429 | J60: 0.18 | K60: 0.18
B61: Rail freight Diesel | C61: [billion tonne-km] | D61: =E129 -> 26.03863972 | E61: [million tonne-km] | F61: =D61*1000 -> 26038.63972 | G61: 0.07345868761 | H61: =$G$61 -> 0.07345868761 | I61: =$G$61 -> 0.07345868761 | J61: 0.1134517529 | K61: 0.1134517529
B62: Rail frieght Electric | C62: [billion tonne-km] | D62: =E130 -> 74.39611348 | E62: [million tonne-km] | F62: =D62*1000 -> 74396.11348 | G62: 0.2098819646 | H62: 0.21 | I62: 0.21 | J62: 0.21 | K62: 0.21
E63: TOTAL freight | F63: =SUM(F57:F62) -> 354466.4432 | G63: 1 | H63: 1 | I63: 1 | J63: 1 | K63: 1
A64: Pipeline
B65: Pipeline gas | C65: [kt] | D65: =C168 -> 227.12 | E65: [kt] | F65: =D65 -> 227.12 | G65: =F65/$F$67 -> 0.01642569096 | H65: =$G$65 -> 0.01642569096 | I65: =$G$65 -> 0.01642569096 | J65: =$G$65 -> 0.01642569096 | K65: =$G$65 -> 0.01642569096
B66: Pipeline liquids | C66: [kt] | D66: =C169 -> 13600 | E66: [kt] | F66: =D66 -> 13600 | G66: =F66/$F$67 -> 0.983574309 | H66: =$G$66 -> 0.983574309 | I66: =$G$66 -> 0.983574309 | J66: =$G$66 -> 0.983574309 | K66: =$G$66 -> 0.983574309
A67: Aviation | E67: TOTAL pipeline | F67: =SUM(F65:F66) -> 13827.12 | G67: =SUM(G65:G66) -> 1
B68: Aviation jetfuel | C68: [PJ] | D68: 65.93822183 | E68: [PJ] | F68: =D68 -> 65.93822183 | G68: =F68/$F$70 -> 0.9868255436 | H68: =$G$68 -> 0.9868255436 | I68: =$G$68 -> 0.9868255436 | J68: =$G$68 -> 0.9868255436 | K68: =$G$68 -> 0.9868255436
B69: Aviation AvGas | C69: [PJ] | D69: 0.8802976737 | E69: [PJ] | F69: =D69 -> 0.8802976737 | G69: =F69/$F$70 -> 0.01317445643 | H69: =$G$69 -> 0.01317445643 | I69: =$G$69 -> 0.01317445643 | J69: =$G$69 -> 0.01317445643 | K69: =$G$69 -> 0.01317445643
E70: TOTAL aviation | F70: =SUM(F68:F69) -> 66.81851951 | G70: =SUM(G68:G69) -> 1
A72: Life time [years]
A73: Aviation jetfuel | B73: 25
A74: Aviation AvGas | B74: 25
A75: Bus - Diesel | B75: 19.95772932
A76: Cars Diesel | B76: 19.1991088
A77: Cars Petrol | B77: 19.1991088
A78: Road freight - heavy commerical vehicle (Diesel) | B78: 19.95772932
A79: Hybrid diesel | B79: 19
A80: Hybrid petrol | B80: 19
A81: Light commercial vehicle (Diesel) | B81: 19.2071088
A82: Light commercial vehicle (Petrol) | B82: 19.2071088
A83: Road freight - medium commercial vehicle (Diesel) | B83: 19.95772932
A84: Road passenger - motorcycles | B84: 19.1991088
A85: Gas pipeline - electric compressors | B85: 1
A86: Liquid pipeline - electric pumps | B86: 1
A87: Rail - Freight (Diesel) | B87: 1
A88: Rail - Freight (Electric) | B88: 1
A89: Rail - passenger intercity electric train | B89: 1
A90: Rail - Passenger Metro electric | B90: 1
A91: SUV - diesel | B91: 19
A92: SUV - petrol | B92: 19
A93: Diesel taxis | B93: 19.2071088
A94: Petrol taxis | B94: 19.2071088
A99: RAIL
A101: Fuel use [TJ]
C102: 1996 | D102: 1997 | E102: 1998 | F102: 1999 | G102: 2000 | H102: 2001
A103: Diesel | C103: 7481.885557 | D103: 7497.525112 | E103: 7917.408181 | F103: 8885.182699 | G103: 8282.598967 | H103: 7914.480158
A104: Electricity | C104: 12406.30085 | D104: 12185.1 | E104: 12860.9028 | F104: 12009.798 | G104: 12359.376 | H104: 12534.66
A105: Total | C105: 19888.1864 | D105: 19682.62511 | E105: 20778.31098 | F105: 20894.9807 | G105: 20641.97497 | H105: 20449.14016
A108: Source: DME
A110: Freight
C112: 2001
A113: Freight [Million tonnes] | C113: 180.5
A114: Freight [billion tonne-km] | C114: 100.4
A115: Average trip length [km] | C115: 556.232687
D117: 1997 | E117: 1998 | F117: 1999 | G117: 2000 | H117: 2001
A118: Volume [Mt] | D118: 180 | E118: 187 | F118: 182.7 | G118: 178.8 | H118: 180.5
A119: Energy intensity [MJ/Tonne-km] | D119: 0.1965866441 | E119: 0.1997616556 | F119: 0.2056112723 | G119: 0.207552145 | H119: 0.2036766948
A121: Source: Spoornet annual report
E124: 2001
A125: Diesel fuel use [TJ] | E125: 7914.480158
A126: Electricity fuel use [TJ] | E126: 7914.480158
A127: Diesel energy intensity [tonne-km/MJ] | E127: 3.29
A128: Electricity energy intensity [tonne-km/MJ | E128: 9.4
A129: Diesel transport [billion tonne-km] | E129: 26.03863972
A130: Electricity transport [billion tonne-km] | E130: 74.39611348
A131: Total transport [Billion tonne-km] | E131: 100.4347532
A135: Passenger
C137: 2001
A138: Passengers [Million passengers] | C138: 575
A139: Passengers [billion pass-km] | C139: 26.05781431
A140: Average trip length [km] | C140: 45.31793793
D142: 1997 | E142: 1998 | F142: 1999 | G142: 2000 | H142: 2001
A143: Volume [mPassengers] | D143: 526.7 | E143: 571.55 | F143: 557.75 | G143: 575 | H143: 575
A144: Energy intensity [MJ/Passenger] | D144: 0.1935643718 | E144: 0.1783752158 | F144: 0.1827886232 | G144: 0.1773049645 | H144: 0.1773049645
A146: Source: Spoornet annual report
E149: 2001
A150: Diesel fuel use [TJ] | E150: 0
A151: Electricity fuel use [TJ] | E151: 4620.179842
A152: Diesel energy intensity [pass-km/MJ] | E152: 1.974
A153: Electricity energy intensity [pass-km/MJ | E153: 5.64
A154: Diesel transport [billion pass-km] | E154: 0
A155: Electricity transport [Billion pass-km] | E155: 26.05781431
A156: Total transport [Billion pass-km] | E156: 26.05781431
A157: Energy intensity [MJ/Pass-km] | E157: =(E151/E156)/1000 -> 0.1773049645
A161: PIPELINE
C163: 2001
A164: Gas transport [million m3/a] | C164: 334
A165: Liquid fuels transport [bn litres/annum] | C165: 16
A166: Gas Density [kg/m3] | C166: 0.68
A167: Liquid Density [kg/m3] | C167: 850
A168: Gas transport [kt/a] | C168: 227.12
A169: Liquid fuels transport [kt/a] | C169: 13600
A171: Electricity consumption [PJ] | C171: 0.182052
A173: Total liquid equivalent [kt] | C173: 14281.36
A174: Energy intensity gas [GJ/t] | C174: 0.03824257634
A175: Energy intensity liquid [GJ/t] | C175: 0.01274752545
A178: AVIATION
L189: 2001 | M189: =L189+1 -> 2002 | N189: =M189+1 -> 2003 | O189: 2004 | P189: 2005 | Q189: 2006 | R189: 2007 | S189: 2008 | T189: 2009 | U189: 2010
A190: BASE | B190: FUELUSE.TCH | C190: 2 | D190: REGION1 | E190: - | F190: TBUSDSL | G190: TRADBS | H190: - | I190: - | J190: - | K190: - | L190: 12.66 | M190: 13.06 | N190: 13.49 | O190: 13.94 | P190: 14.43 | Q190: 14.94 | R190: 15.5 | S190: 16.09 | T190: 16.72 | U190: 17.39
A191: BASE | B191: FUELUSE.TCH | C191: 2 | D191: REGION1 | E191: - | F191: TCARDSL | G191: TRADBS | H191: - | I191: - | J191: - | K191: - | L191: 5.36 | M191: 5.53 | N191: 5.71 | O191: 5.9 | P191: 6.11 | Q191: 6.33 | R191: 6.56 | S191: 6.8 | T191: 7.06 | U191: 7.33
A192: BASE | B192: FUELUSE.TCH | C192: 2 | D192: REGION1 | E192: - | F192: THCVDSL | G192: TRADBS | H192: - | I192: - | J192: - | K192: - | L192: 66.62 | M192: 68.87 | N192: 71.26 | O192: 73.8 | P192: 76.5 | Q192: 79.37 | R192: 82.43 | S192: 85.7 | T192: 89.21 | U192: 92.97
A193: BASE | B193: FUELUSE.TCH | C193: 2 | D193: REGION1 | E193: - | F193: TLCVDSL | G193: TRADBS | H193: - | I193: - | J193: - | K193: - | L193: 54 | M193: 55.83 | N193: 57.78 | O193: 59.84 | P193: 62.03 | Q193: 64.36 | R193: 66.85 | S193: 69.51 | T193: 72.35 | U193: 75.38
A194: BASE | B194: FUELUSE.TCH | C194: 2 | D194: REGION1 | E194: - | F194: TMCVDSL | G194: TRADBS | H194: - | I194: - | J194: - | K194: - | L194: 47.92 | M194: 49.55 | N194: 51.27 | O194: 53.1 | P194: 55.05 | Q194: 57.12 | R194: 59.33 | S194: 61.68 | T194: 64.21 | U194: 66.9
A195: BASE | B195: FUELUSE.TCH | C195: 2 | D195: REGION1 | E195: - | F195: TRFRDSL | G195: TRADBS | H195: - | I195: - | J195: - | K195: - | L195: 7.91 | M195: 8.18 | N195: 8.47 | O195: 8.78 | P195: 9.1 | Q195: 9.45 | R195: 9.83 | S195: 10.23 | T195: 10.66 | U195: 11.13
A196: BASE | B196: FUELUSE.TCH | C196: 2 | D196: REGION1 | E196: - | F196: TSUVDSL | G196: TRADBS | H196: - | I196: - | J196: - | K196: - | L196: 0.88 | M196: 0.91 | N196: 0.94 | O196: 0.97 | P196: 1.01 | Q196: 1.04 | R196: 1.08 | S196: 1.12 | T196: 1.16 | U196: 1.21
A197: BASE | B197: FUELUSE.TCH | C197: 2 | D197: REGION1 | E197: - | F197: TTAXDSL | G197: TRADBS | H197: - | I197: - | J197: - | K197: - | L197: 0 | M197: 0 | N197: 0 | O197: 0 | P197: 0 | Q197: 0 | R197: 0 | S197: 0 | T197: 0 | U197: 0
A198: BASE | B198: FUELUSE.TOT | C198: 2 | D198: REGION1 | E198: - | F198: TOTAL_TECH | G198: TRADBS | H198: - | I198: - | J198: - | K198: - | L198: 195.36 | M198: 201.94 | N198: 208.92 | O198: 216.34 | P198: 224.22 | Q198: 232.62 | R198: 241.58 | S198: 251.14 | T198: 261.37 | U198: 272.31

Sheet EB_2006
A1: RSA 2006 (Version 1)
A2: (TJ) | B2: Hard | C2: Brown | D2: Coking | E2: Bituminous | F2: Sub- | G2: Lignite | H2: Peat | I2: Patent | J2: Coke oven | K2: Gas Coke | L2: BKB | M2: Gasworks | N2: Coke oven | O2: Blast | P2: Oxygen | Q2: Renewables | R2: SBIOMASS | S2: Industrial | T2: Muncipal | U2: GLBIO | V2: Natural | W2: Crude + NGLs | X2: Crude Oil | Y2: NGLs | Z2: Refinery | AA2: Additives | AB2: Non- | AC2: Refinery | AD2: Ethane | AE2: LPG | AF2: Motor | AG2: Aviation | AH2: Jet | AI2: Jet | AJ2: Other | AK2: Gas Diesel | AL2: Residual | AM2: Naphtha | AN2: White | AO2: Lubricants | AP2: Bitumen | AQ2: Parrafin | AR2: Petroleum | AS2: Non-specified | AT2: NONSPEC | AU2: Nuclear | AV2: Hydro | AW2: Geothermal | AX2: Solar | AY2: Tide | AZ2: Wind | BA2: Heatpumps | BB2: Boilers | BC2: Other | BD2: Electricity | BE2: Heat
B3: Coal | C3: Coal | D3: Coal | E3: Coal | F3: Bituminous | I3: Fuel | J3: coke | M3: Gas | N3: Gas | O3: Furnace Gas | P3: Furnace Gas | Q3: & Waste | S3: Waste | T3: Waste | V3: Gas | W3: + Feedstocks | Z3: Feedstocks | AB3: Conventional | AC3: Gas | AF3: Gasoline | AG3: Gasoline | AH3: Gasoline | AI3: Kerosene | AJ3: Kerosene | AL3: Fuel | AN3: Spirit | AQ3: Wax | AR3: Coke | AS3: oil products
A4: VERSION: | F4: Coal | AB4: Crude
A5: 1
A6: Indigenous Production | B6: 5788410.796 | C6: 0 | D6: 49117.144 | E6: 5739293.652 | F6: 0 | G6: 0 | H6: 0 | Q6: 428396 | R6: 0 | S6: 0 | T6: 0 | U6: 0 | V6: 72313.5975 | W6: 0 | X6: 0 | Y6: 0 | Z6: 0 | AA6: 0 | AB6: 0 | AT6: 0 | AU6: 109374.5455 | AV6: 9894.654 | AW6: 0 | AX6: 1915.2 | AY6: 0 | AZ6: 116.0208 | BA6: 0 | BB6: 0 | BC6: 0 | BD6: 844563.024 | BE6: 0
A7: From Other Sources | B7: 0 | C7: 0 | D7: 0 | E7: 0 | F7: 0 | G7: 0 | H7: 0 | Q7: 0 | R7: 0 | S7: 0 | T7: 0 | U7: 0 | V7: 35802.4 | W7: 308603.5673 | X7: 0 | Y7: 0 | AA7: 0 | AB7: 308603.5673 | AT7: 0 | BA7: 0 | BB7: 0 | BC7: 0 | BD7: 0 | BE7: 0
A8: Import | B8: 57428.12 | C8: 0 | D8: 57428.12 | E8: 0 | F8: 0 | G8: 0 | H8: 0 | I8: 0 | J8: 0 | K8: 0 | L8: 0 | M8: 0 | N8: 0 | O8: 0 | P8: 0 | Q8: 0 | R8: 0 | S8: 0 | T8: 0 | U8: 0 | V8: 52201.61 | W8: 926356.3264 | X8: 926356.3264 | Y8: 0 | Z8: 0 | AA8: 0 | AB8: 0 | AC8: 0 | AD8: 0 | AE8: 105.1317444 | AF8: 14986.75547 | AG8: 1394.321535 | AH8: 0 | AI8: 9321.347462 | AJ8: 1.848583951 | AK8: 74844.06992 | AL8: 4206.396918 | AM8: 0 | AN8: 215.032083 | AO8: 9424.215935 | AP8: 6.149247115 | AQ8: 1466.819107 | AR8: 0 | AS8: 19291.43129 | AT8: 0 | BA8: 0 | BB8: 0 | BC8: 0 | BD8: 38246.4 | BE8: 0
A9: Export | B9: -1926941.687 | C9: 0 | D9: -20834.015 | E9: -1906107.672 | F9: 0 | G9: 0 | H9: 0 | I9: 0 | J9: 0 | K9: 0 | L9: 0 | M9: 0 | N9: 0 | O9: 0 | P9: 0 | Q9: 0 | R9: 0 | S9: 0 | T9: 0 | U9: 0 | V9: 0 | W9: -20838.03413 | X9: -20838.03413 | Y9: 0 | Z9: 0 | AA9: 0 | AB9: 0 | AC9: 0 | AD9: 0 | AE9: -549.9352522 | AF9: -3548.845866 | AG9: -225.6428116 | AH9: 0 | AI9: -4821.559808 | AJ9: -205.7962383 | AK9: -28736.59252 | AL9: -61887.3551 | AM9: 0 | AN9: -793.9362526 | AO9: -4708.94291 | AP9: -8587.635594 | AQ9: -5299.048676 | AR9: 0 | AS9: -6507.477355 | AT9: 0 | BA9: 0 | BB9: 0 | BC9: 0 | BD9: -48920.4 | BE9: 0
A10: Intl. Marine Bunkers | B10: 0 | C10: 0 | D10: 0 | E10: 0 | F10: 0 | G10: 0 | H10: 0 | I10: 0 | J10: 0 | K10: 0 | L10: 0 | M10: 0 | N10: 0 | O10: 0 | P10: 0 | Q10: 0 | R10: 0 | S10: 0 | T10: 0 | U10: 0 | V10: 0 | W10: 0 | X10: 0 | Y10: 0 | Z10: 0 | AA10: 0 | AB10: 0 | AC10: 0 | AD10: 0 | AE10: 0 | AF10: 0 | AG10: 0 | AH10: 0 | AI10: 0 | AJ10: 0 | AK10: -9921.773933 | AL10: -97592.86405 | AM10: 0 | AN10: 0 | AO10: 0 | AP10: 0 | AQ10: 0 | AR10: 0 | AS10: 0 | AT10: 0 | BA10: 0 | BB10: 0 | BC10: 0 | BD10: 0 | BE10: 0
A11: Stock Changes | B11: -197740.926 | C11: 0 | D11: 0 | E11: -197740.926 | F11: 0 | G11: 0 | H11: 0 | I11: 0 | J11: 0 | K11: 0 | L11: 0 | M11: 0 | N11: 0 | O11: 0 | P11: 0 | Q11: 0 | R11: 0 | S11: 0 | T11: 0 | U11: 0 | V11: 0 | W11: 0 | X11: 0 | Y11: 0 | Z11: 0 | AA11: 0 | AB11: 0 | AC11: 0 | AD11: 0 | AE11: 0 | AF11: 0 | AG11: -423.9324712 | AH11: 0 | AI11: 0 | AJ11: 0 | AK11: 0 | AL11: 0 | AM11: 0 | AN11: 0 | AO11: 0 | AP11: 0 | AQ11: 0 | AR11: 0 | AS11: 0 | AT11: 0 | BA11: 0 | BB11: 0 | BC11: 0 | BD11: 0 | BE11: 0
A12: Domestic Supply | B12: 3721156.303 | C12: 0 | D12: 85711.249 | E12: 3635445.054 | F12: 0 | G12: 0 | H12: 0 | I12: 0 | J12: 0 | K12: 0 | L12: 0 | M12: 0 | N12: 0 | O12: 0 | P12: 0 | Q12: 428396 | R12: 0 | S12: 0 | T12: 0 | U12: 0 | V12: 160317.6075 | W12: 1214121.86 | X12: 905518.2923 | Y12: 0 | Z12: 0 | AA12: 0 | AB12: 308603.5673 | AC12: 0 | AD12: 0 | AE12: -444.8035078 | AF12: 11437.90961 | AG12: 744.7462524 | AH12: 0 | AI12: 4499.787654 | AJ12: -203.9476543 | AK12: 36185.70346 | AL12: -155273.8222 | AM12: 0 | AN12: -578.9041696 | AO12: 4715.273025 | AP12: -8581.486347 | AQ12: -3832.229569 | AR12: 0 | AS12: 12783.95394 | AT12: 0 | AU12: 109374.5455 | AV12: 9894.654 | AW12: 0 | AX12: 1915.2 | AY12: 0 | AZ12: 116.0208 | BA12: 0 | BB12: 0 | BC12: 0 | BD12: 833889.024 | BE12: 0
A14: Transfers | B14: 0 | D14: 0 | E14: 0 | F14: 0 | G14: 0 | H14: 0 | I14: 0 | J14: 0 | K14: 0 | L14: 0 | M14: 0 | N14: 0 | O14: 0 | P14: 0 | Q14: 0 | R14: 0 | S14: 0 | T14: 0 | U14: 0 | V14: 0 | W14: 0 | X14: 0 | Y14: 0 | Z14: 0 | AA14: 0 | AB14: 0 | AC14: 0 | AD14: 0 | AE14: 0 | AF14: 0 | AG14: 0 | AH14: 0 | AI14: 0 | AJ14: 0 | AK14: 0 | AL14: 0 | AM14: 0 | AN14: 0 | AO14: 0 | AP14: 0 | AQ14: 0 | AR14: 0 | AS14: 0 | AT14: 0 | BA14: 0 | BB14: 0 | BC14: 0 | BD14: 0 | BE14: 0
A15: Statistical Differences | B15: 164306.0415 | D15: 7822.075 | E15: 156483.9665 | F15: 0 | G15: 0 | H15: 0 | I15: 0 | J15: 0 | K15: 0 | L15: 0 | M15: 88004.01 | N15: 0 | O15: -3309 | P15: 0 | Q15: 0 | R15: 0 | S15: 0 | T15: 0 | U15: 0 | V15: -88004.01 | W15: -308603.5673 | X15: 0 | Y15: 0 | Z15: 0 | AA15: 0 | AB15: -308603.5673 | AC15: -0.00302758 | AD15: 0 | AE15: 1.818989404e-12 | AF15: 1.164153218e-10 | AG15: -1.136868377e-13 | AH15: 0 | AI15: 0 | AJ15: 0 | AK15: -5.820766091e-11 | AL15: 3.637978807e-12 | AM15: 0 | AN15: 4253.995477 | AO15: 17195.36661 | AP15: -1.818989404e-12 | AQ15: 2.842170943e-13 | AR15: 0 | AS15: -0.0001767032973 | AT15: 0 | AU15: 0 | AV15: 0 | AW15: 0 | AX15: 0 | AY15: 0 | AZ15: 0 | BA15: 0 | BB15: 0 | BC15: 0 | BD15: 14760831.4 | BE15: 0
A17: Transformation Sector | B17: -3221727.626 | C17: 0 | D17: -68315.692 | E17: -3153411.934 | F17: 0 | G17: 0 | H17: 0 | I17: 0 | J17: 50250.3831 | K17: 0 | L17: 0 | M17: 17680.58 | N17: 0 | O17: 19054 | P17: 0 | Q17: -237996 | R17: 0 | S17: 0 | T17: 0 | U17: 0 | V17: -72313.5975 | W17: -905518.2923 | X17: -905518.2923 | Y17: 0 | Z17: 0 | AA17: 0 | AB17: 0 | AC17: 0.02 | AD17: 0 | AE17: 13823.28782 | AF17: 374654.6587 | AG17: 0 | AH17: 0 | AI17: 73443.15395 | AJ17: 27522.87834 | AK17: 284146.8322 | AL17: 175074.8699 | AM17: 0 | AN17: 4832.899646 | AO17: 12480.09358 | AP17: 20868.56151 | AQ17: 4156.635609 | AR17: 0 | AS17: 0 | AT17: 0 | AU17: -109374.5455 | AV17: -9894.654 | AW17: 0 | AX17: -1915.2 | AY17: 0 | AZ17: -116.0208 | BA17: 0 | BB17: 0 | BC17: 0 | BD17: -844563.024 | BE17: 0
A18: Public Electricity Plant | B18: -2155476.544 | C18: 0 | D18: 0 | E18: -2155476.544 | F18: 0 | G18: 0 | H18: 0 | I18: 0 | J18: 0 | K18: 0 | L18: 0 | M18: 0 | N18: 0 | O18: 0 | P18: 0 | Q18: 0 | R18: 0 | S18: 0 | T18: 0 | U18: 0 | V18: 0 | W18: 0 | X18: 0 | Y18: 0 | Z18: 0 | AA18: 0 | AB18: 0 | AC18: 0 | AD18: 0 | AE18: 0 | AF18: 0 | AG18: 0 | AH18: 0 | AI18: 0 | AJ18: 0 | AK18: 0 | AL18: 0 | AM18: 0 | AN18: 0 | AO18: 0 | AP18: 0 | AQ18: 0 | AR18: 0 | AS18: 0 | AT18: 0 | AU18: -109374.5455 | AV18: -9255.222 | AW18: 0 | AX18: -1915.2 | AY18: 0 | AZ18: -116.0208 | BA18: 0 | BB18: 0 | BC18: 0 | BD18: -819169.6428
A19: Autoproducer Electricity Plant | B19: -39627.306 | C19: 0 | D19: 0 | E19: -39627.306 | F19: 0 | G19: 0 | H19: 0 | I19: 0 | J19: 0 | K19: 0 | L19: 0 | M19: 0 | N19: 0 | O19: 0 | P19: 0 | Q19: 0 | R19: 0 | S19: 0 | T19: 0 | U19: 0 | V19: 0 | W19: 0 | X19: 0 | Y19: 0 | Z19: 0 | AA19: 0 | AB19: 0 | AC19: 0 | AD19: 0 | AE19: 0 | AF19: 0 | AG19: 0 | AH19: 0 | AI19: 0 | AJ19: 0 | AK19: 0 | AL19: 0 | AM19: 0 | AN19: 0 | AO19: 0 | AP19: 0 | AQ19: 0 | AR19: 0 | AS19: 0 | AT19: 0 | AU19: 0 | AV19: -639.432 | AW19: 0 | AX19: 0 | AY19: 0 | AZ19: 0 | BA19: 0 | BB19: 0 | BC19: 0 | BD19: -24659.0496
A20: Public CHP Plant | B20: 0 | C20: 0 | D20: 0 | E20: 0 | F20: 0 | G20: 0 | H20: 0 | I20: 0 | J20: 0 | K20: 0 | L20: 0 | M20: 0 | N20: 0 | O20: 0 | P20: 0 | Q20: 0 | R20: 0 | S20: 0 | T20: 0 | U20: 0 | V20: 0 | W20: 0 | X20: 0 | Y20: 0 | Z20: 0 | AA20: 0 | AB20: 0 | AC20: 0 | AD20: 0 | AE20: 0 | AF20: 0 | AG20: 0 | AH20: 0 | AI20: 0 | AJ20: 0 | AK20: 0 | AL20: 0 | AM20: 0 | AN20: 0 | AO20: 0 | AP20: 0 | AQ20: 0 | AR20: 0 | AS20: 0 | AT20: 0 | AU20: 0 | AV20: 0 | AW20: 0 | AX20: 0 | AY20: 0 | AZ20: 0 | BA20: 0 | BB20: 0 | BC20: 0 | BD20: 0 | BE20: 0
A21: Autoproducer CHP Plant | B21: 0 | C21: 0 | D21: 0 | E21: 0 | F21: 0 | G21: 0 | H21: 0 | I21: 0 | J21: 0 | K21: 0 | L21: 0 | M21: 0 | N21: 0 | O21: 0 | P21: 0 | Q21: -237996 | R21: 0 | S21: 0 | T21: 0 | U21: 0 | V21: 0 | W21: 0 | X21: 0 | Y21: 0 | Z21: 0 | AA21: 0 | AB21: 0 | AC21: 0 | AD21: 0 | AE21: 0 | AF21: 0 | AG21: 0 | AH21: 0 | AI21: 0 | AJ21: 0 | AK21: 0 | AL21: 0 | AM21: 0 | AN21: 0 | AO21: 0 | AP21: 0 | AQ21: 0 | AR21: 0 | AS21: 0 | AT21: 0 | AU21: 0 | AV21: 0 | AW21: 0 | AX21: 0 | AY21: 0 | AZ21: 0 | BA21: 0 | BB21: 0 | BC21: 0 | BD21: -734.3316 | BE21: 0
A22: Public Heat Plant | B22: 0 | C22: 0 | D22: 0 | E22: 0 | F22: 0 | G22: 0 | H22: 0 | I22: 0 | J22: 0 | K22: 0 | L22: 0 | M22: 0 | N22: 0 | O22: 0 | P22: 0 | Q22: 0 | R22: 0 | S22: 0 | T22: 0 | U22: 0 | V22: 0 | W22: 0 | X22: 0 | Y22: 0 | Z22: 0 | AA22: 0 | AB22: 0 | AC22: 0 | AD22: 0 | AE22: 0 | AF22: 0 | AG22: 0 | AH22: 0 | AI22: 0 | AJ22: 0 | AK22: 0 | AL22: 0 | AM22: 0 | AN22: 0 | AO22: 0 | AP22: 0 | AQ22: 0 | AR22: 0 | AS22: 0 | AT22: 0 | BA22: 0 | BB22: 0 | BC22: 0 | BD22: 0 | BE22: 0
A23: Autoproducer Heat Plant | B23: 0 | C23: 0 | D23: 0 | E23: 0 | F23: 0 | G23: 0 | H23: 0 | I23: 0 | J23: 0 | K23: 0 | L23: 0 | M23: 0 | N23: 0 | O23: 0 | P23: 0 | Q23: 0 | R23: 0 | S23: 0 | T23: 0 | U23: 0 | V23: 0 | W23: 0 | X23: 0 | Y23: 0 | Z23: 0 | AA23: 0 | AB23: 0 | AC23: 0 | AD23: 0 | AE23: 0 | AF23: 0 | AG23: 0 | AH23: 0 | AI23: 0 | AJ23: 0 | AK23: 0 | AL23: 0 | AM23: 0 | AN23: 0 | AO23: 0 | AP23: 0 | AQ23: 0 | AR23: 0 | AS23: 0 | AT23: 0 | BA23: 0 | BB23: 0 | BC23: 0 | BD23: 0 | BE23: 0
A24: Heat pumps | B24: 0 | C24: 0 | D24: 0 | E24: 0 | F24: 0 | G24: 0 | H24: 0 | I24: 0 | J24: 0 | K24: 0 | L24: 0 | M24: 0 | N24: 0 | O24: 0 | P24: 0 | Q24: 0 | R24: 0 | S24: 0 | T24: 0 | U24: 0 | V24: 0 | W24: 0 | X24: 0 | Y24: 0 | Z24: 0 | AA24: 0 | AB24: 0 | AC24: 0 | AD24: 0 | AE24: 0 | AF24: 0 | AG24: 0 | AH24: 0 | AI24: 0 | AJ24: 0 | AK24: 0 | AL24: 0 | AM24: 0 | AN24: 0 | AO24: 0 | AP24: 0 | AQ24: 0 | AR24: 0 | AS24: 0 | AT24: 0 | BA24: 0 | BB24: 0 | BC24: 0 | BD24: 0 | BE24: 0
A25: Electric Boilers | B25: 0 | C25: 0 | D25: 0 | E25: 0 | F25: 0 | G25: 0 | H25: 0 | I25: 0 | J25: 0 | K25: 0 | L25: 0 | M25: 0 | N25: 0 | O25: 0 | P25: 0 | Q25: 0 | R25: 0 | S25: 0 | T25: 0 | U25: 0 | V25: 0 | W25: 0 | X25: 0 | Y25: 0 | Z25: 0 | AA25: 0 | AB25: 0 | AC25: 0 | AD25: 0 | AE25: 0 | AF25: 0 | AG25: 0 | AH25: 0 | AI25: 0 | AJ25: 0 | AK25: 0 | AL25: 0 | AM25: 0 | AN25: 0 | AO25: 0 | AP25: 0 | AQ25: 0 | AR25: 0 | AS25: 0 | AT25: 0 | BA25: 0 | BB25: 0 | BC25: 0 | BD25: 0 | BE25: 0
A26: Patent Fuel Plants | B26: 0 | C26: 0 | D26: 0 | E26: 0 | F26: 0 | G26: 0 | H26: 0 | I26: 0 | J26: 0 | K26: 0 | L26: 0 | M26: 0 | N26: 0 | O26: 0 | P26: 0 | Q26: 0 | R26: 0 | S26: 0 | T26: 0 | U26: 0 | V26: 0 | W26: 0 | X26: 0 | Y26: 0 | Z26: 0 | AA26: 0 | AB26: 0 | AC26: 0 | AD26: 0 | AE26: 0 | AF26: 0 | AG26: 0 | AH26: 0 | AI26: 0 | AJ26: 0 | AK26: 0 | AL26: 0 | AM26: 0 | AN26: 0 | AO26: 0 | AP26: 0 | AQ26: 0 | AR26: 0 | AS26: 0 | AT26: 0 | BA26: 0 | BB26: 0 | BC26: 0 | BD26: 0 | BE26: 0
A27: Coke Ovens | B27: -68315.692 | C27: 0 | D27: -68315.692 | E27: 0 | F27: 0 | G27: 0 | H27: 0 | I27: 0 | J27: 59823.7938 | K27: 0 | L27: 0 | M27: 0 | N27: 0 | O27: 0 | P27: 0 | Q27: 0 | R27: 0 | S27: 0 | T27: 0 | U27: 0 | V27: 0 | W27: 0 | X27: 0 | Y27: 0 | Z27: 0 | AA27: 0 | AB27: 0 | AC27: 0 | AD27: 0 | AE27: 0 | AF27: 0 | AG27: 0 | AH27: 0 | AI27: 0 | AJ27: 0 | AK27: 0 | AL27: 0 | AM27: 0 | AN27: 0 | AO27: 0 | AP27: 0 | AQ27: 0 | AR27: 0 | AS27: 0 | AT27: 0 | BA27: 0 | BB27: 0 | BC27: 0 | BD27: 0 | BE27: 0
A28: Gas Works | B28: 0 | C28: 0 | D28: 0 | E28: 0 | F28: 0 | G28: 0 | H28: 0 | I28: 0 | J28: 0 | K28: 0 | L28: 0 | M28: 17680.58 | N28: 0 | O28: 0 | P28: 0 | Q28: 0 | R28: 0 | S28: 0 | T28: 0 | U28: 0 | V28: 0 | W28: 0 | X28: 0 | Y28: 0 | Z28: 0 | AA28: 0 | AB28: 0 | AC28: 0 | AD28: 0 | AE28: 0 | AF28: 0 | AG28: 0 | AH28: 0 | AI28: 0 | AJ28: 0 | AK28: 0 | AL28: 0 | AM28: 0 | AN28: 0 | AO28: 0 | AP28: 0 | AQ28: 0 | AR28: 0 | AS28: 0 | AT28: 0 | BA28: 0 | BB28: 0 | BC28: 0 | BD28: 0 | BE28: 0
A29: For Blast Furnace Gas | B29: 0 | C29: 0 | D29: 0 | E29: 0 | F29: 0 | G29: 0 | H29: 0 | I29: 0 | J29: -9573.4107 | K29: 0 | L29: 0 | M29: 0 | N29: 0 | O29: 19054 | P29: 0 | Q29: 0 | R29: 0 | S29: 0 | T29: 0 | U29: 0 | V29: 0 | W29: 0 | X29: 0 | Y29: 0 | Z29: 0 | AA29: 0 | AB29: 0 | AC29: 0 | AD29: 0 | AE29: 0 | AF29: 0 | AG29: 0 | AH29: 0 | AI29: 0 | AJ29: 0 | AK29: 0 | AL29: 0 | AM29: 0 | AN29: 0 | AO29: 0 | AP29: 0 | AQ29: 0 | AR29: 0 | AS29: 0 | AT29: 0 | BA29: 0 | BB29: 0 | BC29: 0 | BD29: 0 | BE29: 0
A30: Petrochemical Industry | B30: 0 | C30: 0 | D30: 0 | E30: 0 | F30: 0 | G30: 0 | H30: 0 | I30: 0 | J30: 0 | K30: 0 | L30: 0 | M30: 0 | N30: 0 | O30: 0 | P30: 0 | Q30: 0 | R30: 0 | S30: 0 | T30: 0 | U30: 0 | V30: 0 | W30: 0 | X30: 0 | Y30: 0 | Z30: 0 | AA30: 0 | AB30: 0 | AC30: 0 | AD30: 0 | AE30: 0 | AF30: 0 | AG30: 0 | AH30: 0 | AI30: 0 | AJ30: 0 | AK30: 0 | AL30: 0 | AM30: 0 | AN30: 0 | AO30: 0 | AP30: 0 | AQ30: 0 | AR30: 0 | AS30: 0 | AT30: 0 | BA30: 0 | BB30: 0 | BC30: 0 | BD30: 0 | BE30: 0
A31: For BKB | B31: 0 | C31: 0 | D31: 0 | E31: 0 | F31: 0 | G31: 0 | H31: 0 | I31: 0 | J31: 0 | K31: 0 | L31: 0 | M31: 0 | N31: 0 | O31: 0 | P31: 0 | Q31: 0 | R31: 0 | S31: 0 | T31: 0 | U31: 0 | V31: 0 | W31: 0 | X31: 0 | Y31: 0 | Z31: 0 | AA31: 0 | AB31: 0 | AC31: 0 | AD31: 0 | AE31: 0 | AF31: 0 | AG31: 0 | AH31: 0 | AI31: 0 | AJ31: 0 | AK31: 0 | AL31: 0 | AM31: 0 | AN31: 0 | AO31: 0 | AP31: 0 | AQ31: 0 | AR31: 0 | AS31: 0 | AT31: 0 | BA31: 0 | BB31: 0 | BC31: 0 | BD31: 0 | BE31: 0
A32: Oil Refineries | B32: 0 | C32: 0 | D32: 0 | E32: 0 | F32: 0 | G32: 0 | H32: 0 | I32: 0 | J32: 0 | K32: 0 | L32: 0 | M32: 0 | N32: 0 | O32: 0 | P32: 0 | Q32: 0 | R32: 0 | S32: 0 | T32: 0 | U32: 0 | V32: 0 | W32: -905518.2923 | X32: -905518.2923 | Y32: 0 | Z32: 0 | AA32: 0 | AB32: 0 | AC32: 0.02 | AD32: 0 | AE32: 13823.28782 | AF32: 374654.6587 | AG32: 0 | AH32: 0 | AI32: 73443.15395 | AJ32: 27522.87834 | AK32: 284146.8322 | AL32: 175074.8699 | AM32: 0 | AN32: 4832.899646 | AO32: 12480.09358 | AP32: 20868.56151 | AQ32: 4156.635609 | AR32: 0 | AS32: 0 | AT32: 0 | BA32: 0 | BB32: 0 | BC32: 0 | BD32: 0 | BE32: 0
A33: Liquefaction | B33: -958308.084 | C33: 0 | D33: 0 | E33: -958308.084 | F33: 0 | G33: 0 | H33: 0 | I33: 0 | J33: 0 | K33: 0 | L33: 0 | M33: 0 | N33: 0 | O33: 0 | P33: 0 | Q33: 0 | R33: 0 | S33: 0 | T33: 0 | U33: 0 | V33: -72313.5975 | W33: 0 | X33: 0 | Y33: 0 | Z33: 0 | AA33: 0 | AB33: 0 | AC33: 0 | AD33: 0 | AE33: 0 | AF33: 0 | AG33: 0 | AH33: 0 | AI33: 0 | AJ33: 0 | AK33: 0 | AL33: 0 | AM33: 0 | AN33: 0 | AO33: 0 | AP33: 0 | AQ33: 0 | AR33: 0 | AS33: 0 | AT33: 0 | BA33: 0 | BB33: 0 | BC33: 0 | BD33: 0 | BE33: 0
A34: Non-specified (Transformation) | B34: 0 | C34: 0 | D34: 0 | E34: 0 | F34: 0 | G34: 0 | H34: 0 | I34: 0 | J34: 0 | K34: 0 | L34: 0 | M34: 0 | N34: 0 | O34: 0 | P34: 0 | Q34: 0 | R34: 0 | S34: 0 | T34: 0 | U34: 0 | V34: 0 | W34: 0 | X34: 0 | Y34: 0 | Z34: 0 | AA34: 0 | AB34: 0 | AC34: 0 | AD34: 0 | AE34: 0 | AF34: 0 | AG34: 0 | AH34: 0 | AI34: 0 | AJ34: 0 | AK34: 0 | AL34: 0 | AM34: 0 | AN34: 0 | AO34: 0 | AP34: 0 | AQ34: 0 | AR34: 0 | AS34: 0 | AT34: 0 | BA34: 0 | BB34: 0 | BC34: 0 | BD34: 0 | BE34: 0
A36: Energy Sector | B36: 0 | C36: 0 | D36: 0 | E36: 0 | F36: 0 | G36: 0 | H36: 0 | I36: 0 | J36: 0 | K36: 0 | L36: 0 | M36: 0 | N36: 0 | O36: 0 | P36: 0 | Q36: 0 | R36: 0 | S36: 0 | T36: 0 | U36: 0 | V36: 0 | W36: 0 | X36: 0 | Y36: 0 | Z36: 0 | AA36: 0 | AB36: 0 | AC36: 0 | AD36: 0 | AE36: 0 | AF36: 0 | AG36: 0 | AH36: 0 | AI36: 0 | AJ36: 0 | AK36: 0 | AL36: 0 | AM36: 0 | AN36: 0 | AO36: 0 | AP36: 0 | AQ36: 0 | AR36: 0 | AS36: 0 | AT36: 0 | BA36: 0 | BB36: 0 | BC36: 0 | BD36: -14784414.02 | BE36: 0
A37: Coal Mines | B37: 0 | C37: 0 | D37: 0 | E37: 0 | F37: 0 | G37: 0 | H37: 0 | I37: 0 | J37: 0 | K37: 0 | L37: 0 | M37: 0 | N37: 0 | O37: 0 | P37: 0 | Q37: 0 | R37: 0 | S37: 0 | T37: 0 | U37: 0 | V37: 0 | W37: 0 | X37: 0 | Y37: 0 | Z37: 0 | AA37: 0 | AB37: 0 | AC37: 0 | AD37: 0 | AE37: 0 | AF37: 0 | AG37: 0 | AH37: 0 | AI37: 0 | AJ37: 0 | AK37: 0 | AL37: 0 | AM37: 0 | AN37: 0 | AO37: 0 | AP37: 0 | AQ37: 0 | AR37: 0 | AS37: 0 | AT37: 0 | BA37: 0 | BB37: 0 | BC37: 0 | BD37: 0 | BE37: 0
A38: Oil and Gas Extraction | B38: 0 | C38: 0 | D38: 0 | E38: 0 | F38: 0 | G38: 0 | H38: 0 | I38: 0 | J38: 0 | K38: 0 | L38: 0 | M38: 0 | N38: 0 | O38: 0 | P38: 0 | Q38: 0 | R38: 0 | S38: 0 | T38: 0 | U38: 0 | V38: 0 | W38: 0 | X38: 0 | Y38: 0 | Z38: 0 | AA38: 0 | AB38: 0 | AC38: 0 | AD38: 0 | AE38: 0 | AF38: 0 | AG38: 0 | AH38: 0 | AI38: 0 | AJ38: 0 | AK38: 0 | AL38: 0 | AM38: 0 | AN38: 0 | AO38: 0 | AP38: 0 | AQ38: 0 | AR38: 0 | AS38: 0 | AT38: 0 | BA38: 0 | BB38: 0 | BC38: 0 | BD38: 0 | BE38: 0
A39: Patent Fuel Plants | B39: 0 | C39: 0 | D39: 0 | E39: 0 | F39: 0 | G39: 0 | H39: 0 | I39: 0 | J39: 0 | K39: 0 | L39: 0 | M39: 0 | N39: 0 | O39: 0 | P39: 0 | Q39: 0 | R39: 0 | S39: 0 | T39: 0 | U39: 0 | V39: 0 | W39: 0 | X39: 0 | Y39: 0 | Z39: 0 | AA39: 0 | AB39: 0 | AC39: 0 | AD39: 0 | AE39: 0 | AF39: 0 | AG39: 0 | AH39: 0 | AI39: 0 | AJ39: 0 | AK39: 0 | AL39: 0 | AM39: 0 | AN39: 0 | AO39: 0 | AP39: 0 | AQ39: 0 | AR39: 0 | AS39: 0 | AT39: 0 | BA39: 0 | BB39: 0 | BC39: 0 | BD39: 0 | BE39: 0
A40: Coke Ovens | B40: 0 | C40: 0 | D40: 0 | E40: 0 | F40: 0 | G40: 0 | H40: 0 | I40: 0 | J40: 0 | K40: 0 | L40: 0 | M40: 0 | N40: 0 | O40: 0 | P40: 0 | Q40: 0 | R40: 0 | S40: 0 | T40: 0 | U40: 0 | V40: 0 | W40: 0 | X40: 0 | Y40: 0 | Z40: 0 | AA40: 0 | AB40: 0 | AC40: 0 | AD40: 0 | AE40: 0 | AF40: 0 | AG40: 0 | AH40: 0 | AI40: 0 | AJ40: 0 | AK40: 0 | AL40: 0 | AM40: 0 | AN40: 0 | AO40: 0 | AP40: 0 | AQ40: 0 | AR40: 0 | AS40: 0 | AT40: 0 | BA40: 0 | BB40: 0 | BC40: 0 | BD40: 0 | BE40: 0
A41: Gas Works | B41: 0 | C41: 0 | D41: 0 | E41: 0 | F41: 0 | G41: 0 | H41: 0 | I41: 0 | J41: 0 | K41: 0 | L41: 0 | M41: 0 | N41: 0 | O41: 0 | P41: 0 | Q41: 0 | R41: 0 | S41: 0 | T41: 0 | U41: 0 | V41: 0 | W41: 0 | X41: 0 | Y41: 0 | Z41: 0 | AA41: 0 | AB41: 0 | AC41: 0 | AD41: 0 | AE41: 0 | AF41: 0 | AG41: 0 | AH41: 0 | AI41: 0 | AJ41: 0 | AK41: 0 | AL41: 0 | AM41: 0 | AN41: 0 | AO41: 0 | AP41: 0 | AQ41: 0 | AR41: 0 | AS41: 0 | AT41: 0 | BA41: 0 | BB41: 0 | BC41: 0 | BD41: 0 | BE41: 0
A42: BKB | B42: 0 | C42: 0 | D42: 0 | E42: 0 | F42: 0 | G42: 0 | H42: 0 | I42: 0 | J42: 0 | K42: 0 | L42: 0 | M42: 0 | N42: 0 | O42: 0 | P42: 0 | Q42: 0 | R42: 0 | S42: 0 | T42: 0 | U42: 0 | V42: 0 | W42: 0 | X42: 0 | Y42: 0 | Z42: 0 | AA42: 0 | AB42: 0 | AC42: 0 | AD42: 0 | AE42: 0 | AF42: 0 | AG42: 0 | AH42: 0 | AI42: 0 | AJ42: 0 | AK42: 0 | AL42: 0 | AM42: 0 | AN42: 0 | AO42: 0 | AP42: 0 | AQ42: 0 | AR42: 0 | AS42: 0 | AT42: 0 | BA42: 0 | BB42: 0 | BC42: 0 | BD42: 0 | BE42: 0
A43: Oil Refineries | B43: 0 | C43: 0 | D43: 0 | E43: 0 | F43: 0 | G43: 0 | H43: 0 | I43: 0 | J43: 0 | K43: 0 | L43: 0 | M43: 0 | N43: 0 | O43: 0 | P43: 0 | Q43: 0 | R43: 0 | S43: 0 | T43: 0 | U43: 0 | V43: 0 | W43: 0 | X43: 0 | Y43: 0 | Z43: 0 | AA43: 0 | AB43: 0 | AC43: 0 | AD43: 0 | AE43: 0 | AF43: 0 | AG43: 0 | AH43: 0 | AI43: 0 | AJ43: 0 | AK43: 0 | AL43: 0 | AM43: 0 | AN43: 0 | AO43: 0 | AP43: 0 | AQ43: 0 | AR43: 0 | AS43: 0 | AT43: 0 | BA43: 0 | BB43: 0 | BC43: 0 | BD43: -29226.3372 | BE43: 0
A44: Ownuse in Elec., CHP and Heat plant | B44: 0 | C44: 0 | D44: 0 | E44: 0 | F44: 0 | G44: 0 | H44: 0 | I44: 0 | J44: 0 | K44: 0 | L44: 0 | M44: 0 | N44: 0 | O44: 0 | P44: 0 | Q44: 0 | R44: 0 | S44: 0 | T44: 0 | U44: 0 | V44: 0 | W44: 0 | X44: 0 | Y44: 0 | Z44: 0 | AA44: 0 | AB44: 0 | AC44: 0 | AD44: 0 | AE44: 0 | AF44: 0 | AG44: 0 | AH44: 0 | AI44: 0 | AJ44: 0 | AK44: 0 | AL44: 0 | AM44: 0 | AN44: 0 | AO44: 0 | AP44: 0 | AQ44: 0 | AR44: 0 | AS44: 0 | AT44: 0 | BA44: 0 | BB44: 0 | BC44: 0 | BD44: -1.2636 | BE44: 0
A45: Used for Pump Storage | B45: 0 | C45: 0 | D45: 0 | E45: 0 | F45: 0 | G45: 0 | H45: 0 | I45: 0 | J45: 0 | K45: 0 | L45: 0 | M45: 0 | N45: 0 | O45: 0 | P45: 0 | Q45: 0 | R45: 0 | S45: 0 | T45: 0 | U45: 0 | V45: 0 | W45: 0 | X45: 0 | Y45: 0 | Z45: 0 | AA45: 0 | AB45: 0 | AC45: 0 | AD45: 0 | AE45: 0 | AF45: 0 | AG45: 0 | AH45: 0 | AI45: 0 | AJ45: 0 | AK45: 0 | AL45: 0 | AM45: 0 | AN45: 0 | AO45: 0 | AP45: 0 | AQ45: 0 | AR45: 0 | AS45: 0 | AT45: 0 | BA45: 0 | BB45: 0 | BC45: 0 | BD45: -14755186.42 | BE45: 0
A46: Nuclear Industry | B46: 0 | C46: 0 | D46: 0 | E46: 0 | F46: 0 | G46: 0 | H46: 0 | I46: 0 | J46: 0 | K46: 0 | L46: 0 | M46: 0 | N46: 0 | O46: 0 | P46: 0 | Q46: 0 | R46: 0 | S46: 0 | T46: 0 | U46: 0 | V46: 0 | W46: 0 | X46: 0 | Y46: 0 | Z46: 0 | AA46: 0 | AB46: 0 | AC46: 0 | AD46: 0 | AE46: 0 | AF46: 0 | AG46: 0 | AH46: 0 | AI46: 0 | AJ46: 0 | AK46: 0 | AL46: 0 | AM46: 0 | AN46: 0 | AO46: 0 | AP46: 0 | AQ46: 0 | AR46: 0 | AS46: 0 | AT46: 0 | BA46: 0 | BB46: 0 | BC46: 0 | BD46: 0 | BE46: 0
A47: Non-specified (Energy) | B47: 0 | C47: 0 | D47: 0 | E47: 0 | F47: 0 | G47: 0 | H47: 0 | I47: 0 | J47: 0 | K47: 0 | L47: 0 | M47: 0 | N47: 0 | O47: 0 | P47: 0 | Q47: 0 | R47: 0 | S47: 0 | T47: 0 | U47: 0 | V47: 0 | W47: 0 | X47: 0 | Y47: 0 | Z47: 0 | AA47: 0 | AB47: 0 | AC47: 0 | AD47: 0 | AE47: 0 | AF47: 0 | AG47: 0 | AH47: 0 | AI47: 0 | AJ47: 0 | AK47: 0 | AL47: 0 | AM47: 0 | AN47: 0 | AO47: 0 | AP47: 0 | AQ47: 0 | AR47: 0 | AS47: 0 | AT47: 0 | BA47: 0 | BB47: 0 | BC47: 0 | BD47: 0 | BE47: 0
A49: Distribution Losses | B49: 0 | C49: 0 | D49: 0 | E49: 0 | F49: 0 | G49: 0 | H49: 0 | I49: 0 | J49: 0 | K49: 0 | L49: 0 | M49: 0 | N49: 0 | O49: 0 | P49: 0 | Q49: 0 | R49: 0 | S49: 0 | T49: 0 | U49: 0 | V49: 0 | W49: 0 | X49: 0 | Y49: 0 | Z49: 0 | AA49: 0 | AB49: 0 | AC49: 0 | AD49: 0 | AE49: 0 | AF49: 0 | AG49: 0 | AH49: 0 | AI49: 0 | AJ49: 0 | AK49: 0 | AL49: 0 | AM49: 0 | AN49: 0 | AO49: 0 | AP49: 0 | AQ49: 0 | AR49: 0 | AS49: 0 | AT49: 0 | BA49: 0 | BB49: 0 | BC49: 0 | BD49: -33645.6 | BE49: 0
A51: Final Consumption | B51: 663734.719 | C51: 0 | D51: 25217.632 | E51: 638517.087 | F51: 0 | G51: 0 | H51: 0 | I51: 0 | J51: 50250.3831 | K51: 0 | L51: 0 | M51: 105684.59 | N51: 0 | O51: 15745 | P51: 0 | Q51: 190400 | R51: 0 | S51: 0 | T51: 0 | U51: 0 | V51: 0 | W51: 0 | X51: 0 | Y51: 0 | Z51: 0 | AA51: 0 | AB51: 0 | AC51: 0.01697242 | AD51: 0 | AE51: 13378.48431 | AF51: 386092.5683 | AG51: 744.7462524 | AH51: 0 | AI51: 77942.9416 | AJ51: 27318.93069 | AK51: 320332.5357 | AL51: 19801.04764 | AM51: 0 | AN51: 8507.990953 | AO51: 34390.73322 | AP51: 12287.07517 | AQ51: 324.4060404 | AR51: 0 | AS51: 12783.95376 | AT51: 0 | BA51: 0 | BB51: 0 | BC51: 0 | BD51: 776660.7973 | BE51: 0
A53: Industry Sector | B53: 433968.5 | C53: 0 | D53: 20677.961 | E53: 413290.539 | F53: 0 | G53: 0 | H53: 0 | I53: 0 | J53: 50250.3831 | K53: 0 | L53: 0 | M53: 104820.36 | N53: 0 | O53: 15745 | P53: 0 | Q53: 0 | R53: 0 | S53: 0 | T53: 0 | U53: 0 | V53: 0 | W53: 0 | X53: 0 | Y53: 0 | Z53: 0 | AA53: 0 | AB53: 0 | AC53: 0 | AD53: 0 | AE53: 3.8634099 | AF53: 529.1931528 | AG53: 0 | AH53: 0 | AI53: 0 | AJ53: 598.826389 | AK53: 36014.97628 | AL53: 167.0164704 | AM53: 0 | AN53: 27.6729162 | AO53: 3461.809292 | AP53: 7051.777068 | AQ53: 2.64315 | AR53: 0 | AS53: 0 | AT53: 0 | BA53: 0 | BB53: 0 | BC53: 0 | BD53: 419871.1464 | BE53: 0
A54: Iron and Steel | B54: 128621.873 | C54: 0 | D54: 11227.115 | E54: 117394.758 | F54: 0 | G54: 0 | H54: 0 | I54: 0 | J54: 50250.3831 | K54: 0 | L54: 0 | M54: 21976.1 | N54: 0 | O54: 15745 | P54: 0 | Q54: 0 | R54: 0 | S54: 0 | T54: 0 | U54: 0 | V54: 0 | W54: 0 | X54: 0 | Y54: 0 | Z54: 0 | AA54: 0 | AB54: 0 | AC54: 0 | AD54: 0 | AE54: 0 | AF54: 0 | AG54: 0 | AH54: 0 | AI54: 0 | AJ54: 0 | AK54: 0 | AL54: 0 | AM54: 0 | AN54: 0 | AO54: 0 | AP54: 0 | AQ54: 0 | AR54: 0 | AS54: 0 | AT54: 0 | BA54: 0 | BB54: 0 | BC54: 0 | BD54: 76832.352 | BE54: 0
A55: Chemical and Petrochemical | B55: 52210.51 | C55: 0 | D55: 1368.619 | E55: 50841.891 | F55: 0 | G55: 0 | H55: 0 | I55: 0 | J55: 0 | K55: 0 | L55: 0 | M55: 59121.91 | N55: 0 | O55: 0 | P55: 0 | Q55: 0 | R55: 0 | S55: 0 | T55: 0 | U55: 0 | V55: 0 | W55: 0 | X55: 0 | Y55: 0 | Z55: 0 | AA55: 0 | AB55: 0 | AC55: 0 | AD55: 0 | AE55: 0 | AF55: 0 | AG55: 0 | AH55: 0 | AI55: 0 | AJ55: 0 | AK55: 0 | AL55: 0 | AM55: 0 | AN55: 0 | AO55: 0 | AP55: 0 | AQ55: 0 | AR55: 0 | AS55: 0 | AT55: 0 | BA55: 0 | BB55: 0 | BC55: 0 | BD55: 36292.392 | BE55: 0
A56: Non-Ferrous Metals | B56: 0 | C56: 0 | D56: 0 | E56: 0 | F56: 0 | G56: 0 | H56: 0 | I56: 0 | J56: 0 | K56: 0 | L56: 0 | M56: 0 | N56: 0 | O56: 0 | P56: 0 | Q56: 0 | R56: 0 | S56: 0 | T56: 0 | U56: 0 | V56: 0 | W56: 0 | X56: 0 | Y56: 0 | Z56: 0 | AA56: 0 | AB56: 0 | AC56: 0 | AD56: 0 | AE56: 0 | AF56: 0 | AG56: 0 | AH56: 0 | AI56: 0 | AJ56: 0 | AK56: 0 | AL56: 0 | AM56: 0 | AN56: 0 | AO56: 0 | AP56: 0 | AQ56: 0 | AR56: 0 | AS56: 0 | AT56: 0 | BA56: 0 | BB56: 0 | BC56: 0 | BD56: 67105.584 | BE56: 0
A57: Non-Metallic Minerals | B57: 27617.46 | C57: 0 | D57: 7354.905 | E57: 20262.555 | F57: 0 | G57: 0 | H57: 0 | I57: 0 | J57: 0 | K57: 0 | L57: 0 | M57: 7868.5 | N57: 0 | O57: 0 | P57: 0 | Q57: 0 | R57: 0 | S57: 0 | T57: 0 | U57: 0 | V57: 0 | W57: 0 | X57: 0 | Y57: 0 | Z57: 0 | AA57: 0 | AB57: 0 | AC57: 0 | AD57: 0 | AE57: 0 | AF57: 0 | AG57: 0 | AH57: 0 | AI57: 0 | AJ57: 0 | AK57: 0 | AL57: 0 | AM57: 0 | AN57: 0 | AO57: 0 | AP57: 0 | AQ57: 0 | AR57: 0 | AS57: 0 | AT57: 0 | BA57: 0 | BB57: 0 | BC57: 0 | BD57: 9380.664 | BE57: 0
A58: Transport Equipment | B58: 0 | C58: 0 | D58: 0 | E58: 0 | F58: 0 | G58: 0 | H58: 0 | I58: 0 | J58: 0 | K58: 0 | L58: 0 | M58: 0 | N58: 0 | O58: 0 | P58: 0 | Q58: 0 | R58: 0 | S58: 0 | T58: 0 | U58: 0 | V58: 0 | W58: 0 | X58: 0 | Y58: 0 | Z58: 0 | AA58: 0 | AB58: 0 | AC58: 0 | AD58: 0 | AE58: 0 | AF58: 0 | AG58: 0 | AH58: 0 | AI58: 0 | AJ58: 0 | AK58: 0 | AL58: 0 | AM58: 0 | AN58: 0 | AO58: 0 | AP58: 0 | AQ58: 0 | AR58: 0 | AS58: 0 | AT58: 0 | BA58: 0 | BB58: 0 | BC58: 0 | BD58: 329.364 | BE58: 0
A59: Machinery | B59: 0 | C59: 0 | D59: 0 | E59: 0 | F59: 0 | G59: 0 | H59: 0 | I59: 0 | J59: 0 | K59: 0 | L59: 0 | M59: 2328.61 | N59: 0 | O59: 0 | P59: 0 | Q59: 0 | R59: 0 | S59: 0 | T59: 0 | U59: 0 | V59: 0 | W59: 0 | X59: 0 | Y59: 0 | Z59: 0 | AA59: 0 | AB59: 0 | AC59: 0 | AD59: 0 | AE59: 0 | AF59: 0 | AG59: 0 | AH59: 0 | AI59: 0 | AJ59: 0 | AK59: 0 | AL59: 0 | AM59: 0 | AN59: 0 | AO59: 0 | AP59: 0 | AQ59: 0 | AR59: 0 | AS59: 0 | AT59: 0 | BA59: 0 | BB59: 0 | BC59: 0 | BD59: 150.048 | BE59: 0
A60: Mining and Quarrying | B60: 53282.367 | C60: 0 | D60: 0 | E60: 53282.367 | F60: 0 | G60: 0 | H60: 0 | I60: 0 | J60: 0 | K60: 0 | L60: 0 | M60: 2899.94 | N60: 0 | O60: 0 | P60: 0 | Q60: 0 | R60: 0 | S60: 0 | T60: 0 | U60: 0 | V60: 0 | W60: 0 | X60: 0 | Y60: 0 | Z60: 0 | AA60: 0 | AB60: 0 | AC60: 0 | AD60: 0 | AE60: 0.0615702 | AF60: 464.7447918 | AG60: 0 | AH60: 0 | AI60: 0 | AJ60: 496.516172 | AK60: 28149.15592 | AL60: 77.2669248 | AM60: 0 | AN60: 27.2508966 | AO60: 3172.513369 | AP60: 0 | AQ60: 0 | AR60: 0 | AS60: 0 | AT60: 0 | BA60: 0 | BB60: 0 | BC60: 0 | BD60: 113412.492 | BE60: 0
A61: Food and Tobacco | B61: 0 | C61: 0 | D61: 0 | E61: 0 | F61: 0 | G61: 0 | H61: 0 | I61: 0 | J61: 0 | K61: 0 | L61: 0 | M61: 1396.7 | N61: 0 | O61: 0 | P61: 0 | Q61: 0 | R61: 0 | S61: 0 | T61: 0 | U61: 0 | V61: 0 | W61: 0 | X61: 0 | Y61: 0 | Z61: 0 | AA61: 0 | AB61: 0 | AC61: 0 | AD61: 0 | AE61: 0 | AF61: 0 | AG61: 0 | AH61: 0 | AI61: 0 | AJ61: 0 | AK61: 0 | AL61: 0 | AM61: 0 | AN61: 0 | AO61: 0 | AP61: 0 | AQ61: 0 | AR61: 0 | AS61: 0 | AT61: 0 | BA61: 0 | BB61: 0 | BC61: 0 | BD61: 2738.412 | BE61: 0
A62: Paper Pulp and Print | B62: 0 | C62: 0 | D62: 0 | E62: 0 | F62: 0 | G62: 0 | H62: 0 | I62: 0 | J62: 0 | K62: 0 | L62: 0 | M62: 3120.7 | N62: 0 | O62: 0 | P62: 0 | Q62: 0 | R62: 0 | S62: 0 | T62: 0 | U62: 0 | V62: 0 | W62: 0 | X62: 0 | Y62: 0 | Z62: 0 | AA62: 0 | AB62: 0 | AC62: 0 | AD62: 0 | AE62: 0 | AF62: 0 | AG62: 0 | AH62: 0 | AI62: 0 | AJ62: 0 | AK62: 0 | AL62: 0 | AM62: 0 | AN62: 0 | AO62: 0 | AP62: 0 | AQ62: 0 | AR62: 0 | AS62: 0 | AT62: 0 | BA62: 0 | BB62: 0 | BC62: 0 | BD62: 6320.556 | BE62: 0
A63: Wood and Wood Products | B63: 0 | C63: 0 | D63: 0 | E63: 0 | F63: 0 | G63: 0 | H63: 0 | I63: 0 | J63: 0 | K63: 0 | L63: 0 | M63: 0 | N63: 0 | O63: 0 | P63: 0 | Q63: 0 | R63: 0 | S63: 0 | T63: 0 | U63: 0 | V63: 0 | W63: 0 | X63: 0 | Y63: 0 | Z63: 0 | AA63: 0 | AB63: 0 | AC63: 0 | AD63: 0 | AE63: 0 | AF63: 0 | AG63: 0 | AH63: 0 | AI63: 0 | AJ63: 0 | AK63: 0 | AL63: 0 | AM63: 0 | AN63: 0 | AO63: 0 | AP63: 0 | AQ63: 0 | AR63: 0 | AS63: 0 | AT63: 0 | BA63: 0 | BB63: 0 | BC63: 0 | BD63: 1068.804 | BE63: 0
A64: Construction | B64: 0 | C64: 0 | D64: 0 | E64: 0 | F64: 0 | G64: 0 | H64: 0 | I64: 0 | J64: 0 | K64: 0 | L64: 0 | M64: 0 | N64: 0 | O64: 0 | P64: 0 | Q64: 0 | R64: 0 | S64: 0 | T64: 0 | U64: 0 | V64: 0 | W64: 0 | X64: 0 | Y64: 0 | Z64: 0 | AA64: 0 | AB64: 0 | AC64: 0 | AD64: 0 | AE64: 3.8018397 | AF64: 64.448361 | AG64: 0 | AH64: 0 | AI64: 0 | AJ64: 102.310217 | AK64: 7865.820362 | AL64: 89.7495456 | AM64: 0 | AN64: 0.4220196 | AO64: 289.2959232 | AP64: 7051.777068 | AQ64: 2.64315 | AR64: 0 | AS64: 0 | AT64: 0 | BA64: 0 | BB64: 0 | BC64: 0 | BD64: 194.328 | BE64: 0
A65: Textile and Leather | B65: 0 | C65: 0 | D65: 0 | E65: 0 | F65: 0 | G65: 0 | H65: 0 | I65: 0 | J65: 0 | K65: 0 | L65: 0 | M65: 0 | N65: 0 | O65: 0 | P65: 0 | Q65: 0 | R65: 0 | S65: 0 | T65: 0 | U65: 0 | V65: 0 | W65: 0 | X65: 0 | Y65: 0 | Z65: 0 | AA65: 0 | AB65: 0 | AC65: 0 | AD65: 0 | AE65: 0 | AF65: 0 | AG65: 0 | AH65: 0 | AI65: 0 | AJ65: 0 | AK65: 0 | AL65: 0 | AM65: 0 | AN65: 0 | AO65: 0 | AP65: 0 | AQ65: 0 | AR65: 0 | AS65: 0 | AT65: 0 | BA65: 0 | BB65: 0 | BC65: 0 | BD65: 1868.22 | BE65: 0
A66: Non-specified (Industry) | B66: 172236.29 | C66: 0 | D66: 727.322 | E66: 171508.968 | F66: 0 | G66: 0 | H66: 0 | I66: 0 | J66: 0 | K66: 0 | L66: 0 | M66: 6107.9 | N66: 0 | O66: 0 | P66: 0 | Q66: 0 | R66: 0 | S66: 0 | T66: 0 | U66: 0 | V66: 0 | W66: 0 | X66: 0 | Y66: 0 | Z66: 0 | AA66: 0 | AB66: 0 | AC66: 0 | AD66: 0 | AE66: 0 | AF66: 0 | AG66: 0 | AH66: 0 | AI66: 0 | AJ66: 0 | AK66: 0 | AL66: 0 | AM66: 0 | AN66: 0 | AO66: 0 | AP66: 0 | AQ66: 0 | AR66: 0 | AS66: 0 | AT66: 0 | BA66: 0 | BB66: 0 | BC66: 0 | BD66: 104177.9304 | BE66: 0
A68: Transport Sector | B68: 0 | C68: 0 | D68: 0 | E68: 0 | F68: 0 | G68: 0 | H68: 0 | I68: 0 | J68: 0 | K68: 0 | L68: 0 | M68: 0 | N68: 0 | O68: 0 | P68: 0 | Q68: 0 | R68: 0 | S68: 0 | T68: 0 | U68: 0 | V68: 0 | W68: 0 | X68: 0 | Y68: 0 | Z68: 0 | AA68: 0 | AB68: 0 | AC68: 0 | AD68: 0 | AE68: 0 | AF68: 379689.1133 | AG68: 744.7462524 | AH68: 0 | AI68: 77942.9416 | AJ68: 272.055672 | AK68: 242573.1094 | AL68: 102.4485696 | AM68: 0 | AN68: 3.2357784 | AO68: 12741.15415 | AP68: 0 | AQ68: 0 | AR68: 0 | AS68: 0 | AT68: 0 | BA68: 0 | BB68: 0 | BC68: 0 | BD68: 12526.9573 | BE68: 0
A69: International Civil Aviation | B69: 0 | C69: 0 | D69: 0 | E69: 0 | F69: 0 | G69: 0 | H69: 0 | I69: 0 | J69: 0 | K69: 0 | L69: 0 | M69: 0 | N69: 0 | O69: 0 | P69: 0 | Q69: 0 | R69: 0 | S69: 0 | T69: 0 | U69: 0 | V69: 0 | W69: 0 | X69: 0 | Y69: 0 | Z69: 0 | AA69: 0 | AB69: 0 | AC69: 0 | AD69: 0 | AE69: 0 | AF69: 0 | AG69: 0 | AH69: 0 | AI69: 35178.03284 | AJ69: 0 | AK69: 0 | AL69: 0 | AM69: 0 | AN69: 0 | AO69: 0 | AP69: 0 | AQ69: 0 | AR69: 0 | AS69: 0 | AT69: 0 | BA69: 0 | BB69: 0 | BC69: 0 | BD69: 0 | BE69: 0
A70: Domestic Air Transport | B70: 0 | C70: 0 | D70: 0 | E70: 0 | F70: 0 | G70: 0 | H70: 0 | I70: 0 | J70: 0 | K70: 0 | L70: 0 | M70: 0 | N70: 0 | O70: 0 | P70: 0 | Q70: 0 | R70: 0 | S70: 0 | T70: 0 | U70: 0 | V70: 0 | W70: 0 | X70: 0 | Y70: 0 | Z70: 0 | AA70: 0 | AB70: 0 | AC70: 0 | AD70: 0 | AE70: 0 | AF70: 0 | AG70: 744.7462524 | AH70: 0 | AI70: 42764.90876 | AJ70: 0 | AK70: 0 | AL70: 0 | AM70: 0 | AN70: 0 | AO70: 0 | AP70: 0 | AQ70: 0 | AR70: 0 | AS70: 0 | AT70: 0 | BA70: 0 | BB70: 0 | BC70: 0 | BD70: 180.18 | BE70: 0
A71: Road | B71: 0 | C71: 0 | D71: 0 | E71: 0 | F71: 0 | G71: 0 | H71: 0 | I71: 0 | J71: 0 | K71: 0 | L71: 0 | M71: 0 | N71: 0 | O71: 0 | P71: 0 | Q71: 0 | R71: 0 | S71: 0 | T71: 0 | U71: 0 | V71: 0 | W71: 0 | X71: 0 | Y71: 0 | Z71: 0 | AA71: 0 | AB71: 0 | AC71: 0 | AD71: 0 | AE71: 0 | AF71: 379688.8397 | AG71: 0 | AH71: 0 | AI71: 0 | AJ71: 271.163232 | AK71: 239807.8881 | AL71: 102.4485696 | AM71: 0 | AN71: 2.9455344 | AO71: 12615.64705 | AP71: 0 | AQ71: 0 | AR71: 0 | AS71: 0 | AT71: 0 | BA71: 0 | BB71: 0 | BC71: 0 | BD71: 71.064 | BE71: 0
A72: Passenger
A73: LCV
A74: Car
A75: MBT
A76: Bus
A77: BRT
A78: Freight
A79: Corridor (HCV)
A80: Urban/Rural (MCV)
A81: Rail | B81: 0 | C81: 0 | D81: 0 | E81: 0 | F81: 0 | G81: 0 | H81: 0 | I81: 0 | J81: 0 | K81: 0 | L81: 0 | M81: 0 | N81: 0 | O81: 0 | P81: 0 | Q81: 0 | R81: 0 | S81: 0 | T81: 0 | U81: 0 | V81: 0 | W81: 0 | X81: 0 | Y81: 0 | Z81: 0 | AA81: 0 | AB81: 0 | AC81: 0 | AD81: 0 | AE81: 0 | AF81: 0.2736 | AG81: 0 | AH81: 0 | AI81: 0 | AJ81: 0.89244 | AK81: 2765.221267 | AL81: 0 | AM81: 0 | AN81: 0.290244 | AO81: 125.5070934 | AP81: 0 | AQ81: 0 | AR81: 0 | AS81: 0 | AT81: 0 | BA81: 0 | BB81: 0 | BC81: 0 | BD81: 11809.512 | BE81: 0
A82: Passenger | BD82: =BD81-BD85 -> 2370.312
A83: inter-city
A84: metro
A85: Freight | AK85: =AK81 -> 2765.221267 | BD85: 9439.2
A86: Pipeline Transport | B86: 0 | C86: 0 | D86: 0 | E86: 0 | F86: 0 | G86: 0 | H86: 0 | I86: 0 | J86: 0 | K86: 0 | L86: 0 | M86: 0 | N86: 0 | O86: 0 | P86: 0 | Q86: 0 | R86: 0 | S86: 0 | T86: 0 | U86: 0 | V86: 0 | W86: 0 | X86: 0 | Y86: 0 | Z86: 0 | AA86: 0 | AB86: 0 | AC86: 0 | AD86: 0 | AE86: 0 | AF86: 0 | AG86: 0 | AH86: 0 | AI86: 0 | AJ86: 0 | AK86: 0 | AL86: 0 | AM86: 0 | AN86: 0 | AO86: 0 | AP86: 0 | AQ86: 0 | AR86: 0 | AS86: 0 | AT86: 0 | BA86: 0 | BB86: 0 | BC86: 0 | BD86: 284.004 | BE86: 0
A87: Internal Navigation | B87: 0 | C87: 0 | D87: 0 | E87: 0 | F87: 0 | G87: 0 | H87: 0 | I87: 0 | J87: 0 | K87: 0 | L87: 0 | M87: 0 | N87: 0 | O87: 0 | P87: 0 | Q87: 0 | R87: 0 | S87: 0 | T87: 0 | U87: 0 | V87: 0 | W87: 0 | X87: 0 | Y87: 0 | Z87: 0 | AA87: 0 | AB87: 0 | AC87: 0 | AD87: 0 | AE87: 0 | AF87: 0 | AG87: 0 | AH87: 0 | AI87: 0 | AJ87: 0 | AK87: 0 | AL87: 0 | AM87: 0 | AN87: 0 | AO87: 0 | AP87: 0 | AQ87: 0 | AR87: 0 | AS87: 0 | AT87: 0 | BA87: 0 | BB87: 0 | BC87: 0 | BD87: 181.44 | BE87: 0
A88: Non-specified (Transport) | B88: 0 | C88: 0 | D88: 0 | E88: 0 | F88: 0 | G88: 0 | H88: 0 | I88: 0 | J88: 0 | K88: 0 | L88: 0 | M88: 0 | N88: 0 | O88: 0 | P88: 0 | Q88: 0 | R88: 0 | S88: 0 | T88: 0 | U88: 0 | V88: 0 | W88: 0 | X88: 0 | Y88: 0 | Z88: 0 | AA88: 0 | AB88: 0 | AC88: 0 | AD88: 0 | AE88: 0 | AF88: 0 | AG88: 0 | AH88: 0 | AI88: 0 | AJ88: 0 | AK88: 0 | AL88: 0 | AM88: 0 | AN88: 0 | AO88: 0 | AP88: 0 | AQ88: 0 | AR88: 0 | AS88: 0 | AT88: 0 | BA88: 0 | BB88: 0 | BC88: 0 | BD88: 0.7573032 | BE88: 0
A90: Other Sectors | B90: 229766.219 | C90: 0 | D90: 4539.671 | E90: 225226.548 | F90: 0 | G90: 0 | H90: 0 | I90: 0 | J90: 0 | K90: 0 | L90: 0 | M90: 864.23 | N90: 0 | O90: 0 | P90: 0 | Q90: 190400 | R90: 0 | S90: 0 | T90: 0 | U90: 0 | V90: 0 | W90: 0 | X90: 0 | Y90: 0 | Z90: 0 | AA90: 0 | AB90: 0 | AC90: 0.01697242 | AD90: 0 | AE90: 13374.6209 | AF90: 5874.261905 | AG90: 0 | AH90: 0 | AI90: 0 | AJ90: 26448.04862 | AK90: 41744.45001 | AL90: 19531.5826 | AM90: 0 | AN90: 4223.086782 | AO90: 992.4031692 | AP90: 5235.298099 | AQ90: 321.7628904 | AR90: 0 | AS90: 12783.95376 | AT90: 0 | BA90: 0 | BB90: 0 | BC90: 0 | BD90: 344262.6936 | BE90: 0
A91: Agriculture | B91: 763.263 | C91: 0 | D91: 0 | E91: 763.263 | F91: 0 | G91: 0 | H91: 0 | I91: 0 | J91: 0 | K91: 0 | L91: 0 | M91: 0 | N91: 0 | O91: 0 | P91: 0 | Q91: 0 | R91: 0 | S91: 0 | T91: 0 | U91: 0 | V91: 0 | W91: 0 | X91: 0 | Y91: 0 | Z91: 0 | AA91: 0 | AB91: 0 | AC91: 0.00181336 | AD91: 0 | AE91: 1.3529157 | AF91: 4964.196109 | AG91: 0 | AH91: 0 | AI91: 0 | AJ91: 2509.77586 | AK91: 38226.11908 | AL91: 1763.813043 | AM91: 0 | AN91: 186.533829 | AO91: 940.0889394 | AP91: 0 | AQ91: 0 | AR91: 0 | AS91: 0 | AT91: 0 | BA91: 0 | BB91: 0 | BC91: 0 | BD91: 21029.3928 | BE91: 0
A92: Commerce and Public Services | B92: 76301.75667 | C92: 0 | D92: 1513.223667 | E92: 74788.533 | F92: 0 | G92: 0 | H92: 0 | I92: 0 | J92: 0 | K92: 0 | L92: 0 | M92: 864.23 | N92: 0 | O92: 0 | P92: 0 | Q92: 0 | R92: 0 | S92: 0 | T92: 0 | U92: 0 | V92: 0 | W92: 0 | X92: 0 | Y92: 0 | Z92: 0 | AA92: 0 | AB92: 0 | AC92: 0.01515906 | AD92: 0 | AE92: 0 | AF92: 237.1015548 | AG92: 0 | AH92: 0 | AI92: 0 | AJ92: 1007.333806 | AK92: 1742.024659 | AL92: 17766.61336 | AM92: 0 | AN92: 4036.552953 | AO92: 52.2298098 | AP92: 5123.292739 | AQ92: 321.7628904 | AR92: 0 | AS92: 0 | AT92: 0 | BA92: 0 | BB92: 0 | BC92: 0 | BD92: 103798.062 | BE92: 0
A93: Residential | B93: 152603.5133 | C93: 0 | D93: 3026.447333 | E93: 149577.066 | F93: 0 | G93: 0 | H93: 0 | I93: 0 | J93: 0 | K93: 0 | L93: 0 | M93: 0 | N93: 0 | O93: 0 | P93: 0 | Q93: 190400 | R93: 0 | S93: 0 | T93: 0 | U93: 0 | V93: 0 | W93: 0 | X93: 0 | Y93: 0 | Z93: 0 | AA93: 0 | AB93: 0 | AC93: 0 | AD93: 0 | AE93: 13373.26798 | AF93: 672.9642414 | AG93: 0 | AH93: 0 | AI93: 0 | AJ93: 22930.93896 | AK93: 1776.306277 | AL93: 1.1561888 | AM93: 0 | AN93: 0 | AO93: 0.08442 | AP93: 112.0053606 | AQ93: 0 | AR93: 0 | AS93: 0 | AT93: 0 | BA93: 0 | BB93: 0 | BC93: 0 | BD93: 142815.294 | BE93: 0
A94: Non-specified (Other) | B94: 97.686 | C94: 0 | D94: 0 | E94: 97.686 | F94: 0 | G94: 0 | H94: 0 | I94: 0 | J94: 0 | K94: 0 | L94: 0 | M94: 0 | N94: 0 | O94: 0 | P94: 0 | Q94: 0 | R94: 0 | S94: 0 | T94: 0 | U94: 0 | V94: 0 | W94: 0 | X94: 0 | Y94: 0 | Z94: 0 | AA94: 0 | AB94: 0 | AC94: 0 | AD94: 0 | AE94: 0 | AF94: 0 | AG94: 0 | AH94: 0 | AI94: 0 | AJ94: 0 | AK94: 0 | AL94: 0 | AM94: 0 | AN94: 0 | AO94: 0 | AP94: 0 | AQ94: 0 | AR94: 0 | AS94: 12783.95376 | AT94: 0 | BA94: 0 | BB94: 0 | BC94: 0 | BD94: 76619.9448 | BE94: 0
A96: Non-Energy Use | B96: 0 | C96: 0 | D96: 0 | E96: 0 | F96: 0 | G96: 0 | H96: 0 | I96: 0 | J96: 0 | K96: 0 | L96: 0 | M96: 0 | N96: 0 | O96: 0 | P96: 0 | Q96: 0 | R96: 0 | S96: 0 | T96: 0 | U96: 0 | V96: 0 | W96: 0 | X96: 0 | Y96: 0 | Z96: 0 | AA96: 0 | AB96: 0 | AC96: 0 | AD96: 0 | AE96: 0 | AF96: 0 | AG96: 0 | AH96: 0 | AI96: 0 | AJ96: 0 | AK96: 0 | AL96: 0 | AM96: 0 | AN96: 4253.995477 | AO96: 17195.36661 | AP96: 0 | AQ96: 0 | AR96: 0 | AS96: 0 | AT96: 0 | BA96: 0 | BB96: 0 | BC96: 0 | BD96: 0 | BE96: 0
A97: Memo:Non-Energy Use Ind/Transf/Ener | B97: 0 | C97: 0 | D97: 0 | E97: 0 | F97: 0 | G97: 0 | H97: 0 | I97: 0 | J97: 0 | K97: 0 | L97: 0 | M97: 0 | N97: 0 | O97: 0 | P97: 0 | Q97: 0 | R97: 0 | S97: 0 | T97: 0 | U97: 0 | V97: 0 | W97: 0 | X97: 0 | Y97: 0 | Z97: 0 | AA97: 0 | AB97: 0 | AC97: 0 | AD97: 0 | AE97: 0 | AF97: 0 | AG97: 0 | AH97: 0 | AI97: 0 | AJ97: 0 | AK97: 0 | AL97: 0 | AM97: 0 | AN97: 4253.995477 | AO97: 17195.36661 | AP97: 0 | AQ97: 0 | AR97: 0 | AS97: 0 | AT97: 0 | BA97: 0 | BB97: 0 | BC97: 0 | BD97: 0 | BE97: 0
A98: Memo:Non-Energy Use in Transport | B98: 0 | C98: 0 | D98: 0 | E98: 0 | F98: 0 | G98: 0 | H98: 0 | I98: 0 | J98: 0 | K98: 0 | L98: 0 | M98: 0 | N98: 0 | O98: 0 | P98: 0 | Q98: 0 | R98: 0 | S98: 0 | T98: 0 | U98: 0 | V98: 0 | W98: 0 | X98: 0 | Y98: 0 | Z98: 0 | AA98: 0 | AB98: 0 | AC98: 0 | AD98: 0 | AE98: 0 | AF98: 0 | AG98: 0 | AH98: 0 | AI98: 0 | AJ98: 0 | AK98: 0 | AL98: 0 | AM98: 0 | AN98: 0 | AO98: 0 | AP98: 0 | AQ98: 0 | AR98: 0 | AS98: 0 | AT98: 0 | BA98: 0 | BB98: 0 | BC98: 0 | BD98: 0 | BE98: 0
A99: Memo:Non-Energy Use in Oth.Sect. | B99: 0 | C99: 0 | D99: 0 | E99: 0 | F99: 0 | G99: 0 | H99: 0 | I99: 0 | J99: 0 | K99: 0 | L99: 0 | M99: 0 | N99: 0 | O99: 0 | P99: 0 | Q99: 0 | R99: 0 | S99: 0 | T99: 0 | U99: 0 | V99: 0 | W99: 0 | X99: 0 | Y99: 0 | Z99: 0 | AA99: 0 | AB99: 0 | AC99: 0 | AD99: 0 | AE99: 0 | AF99: 0 | AG99: 0 | AH99: 0 | AI99: 0 | AJ99: 0 | AK99: 0 | AL99: 0 | AM99: 0 | AN99: 0 | AO99: 0 | AP99: 0 | AQ99: 0 | AR99: 0 | AS99: 0 | AT99: 0 | BA99: 0 | BB99: 0 | BC99: 0 | BD99: 0 | BE99: 0
A100: Memo:Feedst.Use in Petchem. Ind. | B100: 52210.51 | C100: 0 | D100: 1368.619 | E100: 50841.891 | F100: 0 | G100: 0 | H100: 0 | I100: 0 | J100: 0 | K100: 0 | L100: 0 | M100: 0 | N100: 0 | O100: 0 | P100: 0 | Q100: 0 | R100: 0 | S100: 0 | T100: 0 | U100: 0 | V100: 0 | W100: 0 | X100: 0 | Y100: 0 | Z100: 0 | AA100: 0 | AB100: 0 | AC100: 0 | AD100: 0 | AE100: 0 | AF100: 0 | AG100: 0 | AH100: 0 | AI100: 0 | AJ100: 0 | AK100: 0 | AL100: 0 | AM100: 0 | AN100: 0 | AO100: 0 | AP100: 0 | AQ100: 0 | AR100: 0 | AS100: 0 | AT100: 0 | BA100: 0 | BB100: 0 | BC100: 0 | BD100: 0 | BE100: 0
A102: Elect.Output in GWh | B102: 220991.025 | C102: 0 | D102: 0 | E102: 220991.025 | F102: 0 | G102: 0 | H102: 0 | I102: 0 | J102: 0 | K102: 0 | L102: 0 | M102: 0 | N102: 0 | O102: 0 | P102: 0 | Q102: 203.981 | R102: 0 | S102: 0 | T102: 203.981 | U102: 0 | V102: 67.091 | W102: 0 | X102: 0 | Y102: 0 | Z102: 0 | AA102: 0 | AB102: 0 | AC102: 0 | AD102: 0 | AE102: 0 | AF102: 0 | AG102: 0 | AH102: 0 | AI102: 0 | AJ102: 0 | AK102: 0 | AL102: 0 | AM102: 0 | AN102: 0 | AO102: 0 | AP102: 0 | AQ102: 0 | AR102: 0 | AS102: 0 | AT102: 0 | AU102: 10026 | AV102: 2748.515 | AW102: 0 | AX102: 532 | AY102: 0 | AZ102: 32.228 | BA102: 0 | BB102: 0 | BC102: 0 | BD102: 234600.84 | BE102: 0
A103: Elect.Output-public elec. plant | B103: 214328 | C103: 0 | D103: 0 | E103: 214328 | F103: 0 | G103: 0 | H103: 0 | I103: 0 | J103: 0 | K103: 0 | L103: 0 | M103: 0 | N103: 0 | O103: 0 | P103: 0 | Q103: 0 | R103: 0 | S103: 0 | T103: 0 | U103: 0 | V103: 58 | W103: 0 | X103: 0 | Y103: 0 | Z103: 0 | AA103: 0 | AB103: 0 | AC103: 0 | AD103: 0 | AE103: 0 | AF103: 0 | AG103: 0 | AH103: 0 | AI103: 0 | AJ103: 0 | AK103: 0 | AL103: 0 | AM103: 0 | AN103: 0 | AO103: 0 | AP103: 0 | AQ103: 0 | AR103: 0 | AS103: 0 | AT103: 0 | AU103: 10026 | AV103: 2570.895 | AW103: 0 | AX103: 532 | AY103: 0 | AZ103: 32.228 | BA103: 0 | BB103: 0 | BC103: 0 | BD103: 227547.123 | BE103: 0
A104: Elect.Output-autoprod. elec. plant | B104: 6663.025 | C104: 0 | D104: 0 | E104: 6663.025 | F104: 0 | G104: 0 | H104: 0 | I104: 0 | J104: 0 | K104: 0 | L104: 0 | M104: 0 | N104: 0 | O104: 0 | P104: 0 | Q104: 0 | R104: 0 | S104: 0 | T104: 0 | U104: 0 | V104: 9.091 | W104: 0 | X104: 0 | Y104: 0 | Z104: 0 | AA104: 0 | AB104: 0 | AC104: 0 | AD104: 0 | AE104: 0 | AF104: 0 | AG104: 0 | AH104: 0 | AI104: 0 | AJ104: 0 | AK104: 0 | AL104: 0 | AM104: 0 | AN104: 0 | AO104: 0 | AP104: 0 | AQ104: 0 | AR104: 0 | AS104: 0 | AT104: 0 | AU104: 0 | AV104: 177.62 | AW104: 0 | AX104: 0 | AY104: 0 | AZ104: 0 | BA104: 0 | BB104: 0 | BC104: 0 | BD104: 6849.736 | BE104: 0
A105: Elect.Output-public CHP plant | B105: 0 | C105: 0 | D105: 0 | E105: 0 | F105: 0 | G105: 0 | H105: 0 | I105: 0 | J105: 0 | K105: 0 | L105: 0 | M105: 0 | N105: 0 | O105: 0 | P105: 0 | Q105: 0 | R105: 0 | S105: 0 | T105: 0 | U105: 0 | V105: 0 | W105: 0 | X105: 0 | Y105: 0 | Z105: 0 | AA105: 0 | AB105: 0 | AC105: 0 | AD105: 0 | AE105: 0 | AF105: 0 | AG105: 0 | AH105: 0 | AI105: 0 | AJ105: 0 | AK105: 0 | AL105: 0 | AM105: 0 | AN105: 0 | AO105: 0 | AP105: 0 | AQ105: 0 | AR105: 0 | AS105: 0 | AT105: 0 | AU105: 0 | AV105: 0 | AW105: 0 | AX105: 0 | AY105: 0 | AZ105: 0 | BA105: 0 | BB105: 0 | BC105: 0 | BD105: 0 | BE105: 0
A106: Elect.Output-autoprod. CHP plant | B106: 0 | C106: 0 | D106: 0 | E106: 0 | F106: 0 | G106: 0 | H106: 0 | I106: 0 | J106: 0 | K106: 0 | L106: 0 | M106: 0 | N106: 0 | O106: 0 | P106: 0 | Q106: 203.981 | R106: 0 | S106: 0 | T106: 203.981 | U106: 0 | V106: 0 | W106: 0 | X106: 0 | Y106: 0 | Z106: 0 | AA106: 0 | AB106: 0 | AC106: 0 | AD106: 0 | AE106: 0 | AF106: 0 | AG106: 0 | AH106: 0 | AI106: 0 | AJ106: 0 | AK106: 0 | AL106: 0 | AM106: 0 | AN106: 0 | AO106: 0 | AP106: 0 | AQ106: 0 | AR106: 0 | AS106: 0 | AT106: 0 | AU106: 0 | AV106: 0 | AW106: 0 | AX106: 0 | AY106: 0 | AZ106: 0 | BA106: 0 | BB106: 0 | BC106: 0 | BD106: 203.981 | BE106: 0
BD107: 0
A108: Heat Output-public CHP plant | B108: 0 | C108: 0 | D108: 0 | E108: 0 | F108: 0 | G108: 0 | H108: 0 | I108: 0 | J108: 0 | K108: 0 | L108: 0 | M108: 0 | N108: 0 | O108: 0 | P108: 0 | Q108: 0 | R108: 0 | S108: 0 | T108: 0 | U108: 0 | V108: 0 | W108: 0 | X108: 0 | Y108: 0 | Z108: 0 | AA108: 0 | AB108: 0 | AC108: 0 | AD108: 0 | AE108: 0 | AF108: 0 | AG108: 0 | AH108: 0 | AI108: 0 | AJ108: 0 | AK108: 0 | AL108: 0 | AM108: 0 | AN108: 0 | AO108: 0 | AP108: 0 | AQ108: 0 | AR108: 0 | AS108: 0 | AT108: 0 | AU108: 0 | AV108: 0 | AW108: 0 | AX108: 0 | AY108: 0 | AZ108: 0 | BA108: 0 | BB108: 0 | BC108: 0 | BD108: 0 | BE108: 0
A109: Heat Output-autoproducer CHP plant | B109: 0 | C109: 0 | D109: 0 | E109: 0 | F109: 0 | G109: 0 | H109: 0 | I109: 0 | J109: 0 | K109: 0 | L109: 0 | M109: 0 | N109: 0 | O109: 0 | P109: 0 | Q109: 0 | R109: 0 | S109: 0 | T109: 0 | U109: 0 | V109: 0 | W109: 0 | X109: 0 | Y109: 0 | Z109: 0 | AA109: 0 | AB109: 0 | AC109: 0 | AD109: 0 | AE109: 0 | AF109: 0 | AG109: 0 | AH109: 0 | AI109: 0 | AJ109: 0 | AK109: 0 | AL109: 0 | AM109: 0 | AN109: 0 | AO109: 0 | AP109: 0 | AQ109: 0 | AR109: 0 | AS109: 0 | AT109: 0 | AU109: 0 | AV109: 0 | AW109: 0 | AX109: 0 | AY109: 0 | AZ109: 0 | BA109: 0 | BB109: 0 | BC109: 0 | BD109: 0 | BE109: 0
A110: Heat Output-public heat plant | B110: 0 | C110: 0 | D110: 0 | E110: 0 | F110: 0 | G110: 0 | H110: 0 | I110: 0 | J110: 0 | K110: 0 | L110: 0 | M110: 0 | N110: 0 | O110: 0 | P110: 0 | Q110: 0 | R110: 0 | S110: 0 | T110: 0 | U110: 0 | V110: 0 | W110: 0 | X110: 0 | Y110: 0 | Z110: 0 | AA110: 0 | AB110: 0 | AC110: 0 | AD110: 0 | AE110: 0 | AF110: 0 | AG110: 0 | AH110: 0 | AI110: 0 | AJ110: 0 | AK110: 0 | AL110: 0 | AM110: 0 | AN110: 0 | AO110: 0 | AP110: 0 | AQ110: 0 | AR110: 0 | AS110: 0 | AT110: 0 | AU110: 0 | AV110: 0 | AW110: 0 | AX110: 0 | AY110: 0 | AZ110: 0 | BA110: 0 | BB110: 0 | BC110: 0 | BD110: 0 | BE110: 0
A111: Heat Output-autoprod. heat plant | B111: 0 | C111: 0 | D111: 0 | E111: 0 | F111: 0 | G111: 0 | H111: 0 | I111: 0 | J111: 0 | K111: 0 | L111: 0 | M111: 0 | N111: 0 | O111: 0 | P111: 0 | Q111: 0 | R111: 0 | S111: 0 | T111: 0 | U111: 0 | V111: 0 | W111: 0 | X111: 0 | Y111: 0 | Z111: 0 | AA111: 0 | AB111: 0 | AC111: 0 | AD111: 0 | AE111: 0 | AF111: 0 | AG111: 0 | AH111: 0 | AI111: 0 | AJ111: 0 | AK111: 0 | AL111: 0 | AM111: 0 | AN111: 0 | AO111: 0 | AP111: 0 | AQ111: 0 | AR111: 0 | AS111: 0 | AT111: 0 | AU111: 0 | AV111: 0 | AW111: 0 | AX111: 0 | AY111: 0 | AZ111: 0 | BA111: 0 | BB111: 0 | BC111: 0 | BD111: 0 | BE111: 0
A112: Heat Output in TJ | B112: 0 | C112: 0 | D112: 0 | E112: 0 | F112: 0 | G112: 0 | H112: 0 | I112: 0 | J112: 0 | K112: 0 | L112: 0 | M112: 0 | N112: 0 | O112: 0 | P112: 0 | Q112: 0 | R112: 0 | S112: 0 | T112: 0 | U112: 0 | V112: 0 | W112: 0 | X112: 0 | Y112: 0 | Z112: 0 | AA112: 0 | AB112: 0 | AC112: 0 | AD112: 0 | AE112: 0 | AF112: 0 | AG112: 0 | AH112: 0 | AI112: 0 | AJ112: 0 | AK112: 0 | AL112: 0 | AM112: 0 | AN112: 0 | AO112: 0 | AP112: 0 | AQ112: 0 | AR112: 0 | AS112: 0 | AT112: 0 | AU112: 0 | AV112: 0 | AW112: 0 | AX112: 0 | AY112: 0 | AZ112: 0 | BA112: 0 | BB112: 0 | BC112: 0 | BD112: 3096.105 | BE112: 0
A114: Pumped Hydro Production | B114: 0 | C114: 0 | D114: 0 | E114: 0 | F114: 0 | G114: 0 | H114: 0 | I114: 0 | J114: 0 | K114: 0 | L114: 0 | M114: 0 | N114: 0 | O114: 0 | P114: 0 | Q114: 0 | R114: 0 | S114: 0 | T114: 0 | U114: 0 | V114: 0 | W114: 0 | X114: 0 | Y114: 0 | Z114: 0 | AA114: 0 | AB114: 0 | AC114: 0 | AD114: 0 | AE114: 0 | AF114: 0 | AG114: 0 | AH114: 0 | AI114: 0 | AJ114: 0 | AK114: 0 | AL114: 0 | AM114: 0 | AN114: 0 | AO114: 0 | AP114: 0 | AQ114: 0 | AR114: 0 | AS114: 0 | AT114: 0 | AU114: 0 | AV114: 3096.105 | AW114: 0 | AX114: 0 | AY114: 0 | AZ114: 0 | BA114: 0 | BB114: 0 | BC114: 0 | BD114: 3096.105 | BE114: 0
A116: Memo: Gas vented | B116: 0 | C116: 0 | D116: 0 | E116: 0 | F116: 0 | G116: 0 | H116: 0 | I116: 0 | J116: 0 | K116: 0 | L116: 0 | M116: 0 | N116: 0 | O116: 0 | P116: 0 | Q116: 0 | R116: 0 | S116: 0 | T116: 0 | U116: 0 | V116: 0 | W116: 0 | X116: 0 | Y116: 0 | Z116: 0 | AA116: 0 | AB116: 0 | AC116: 0 | AD116: 0 | AE116: 0 | AF116: 0 | AG116: 0 | AH116: 0 | AI116: 0 | AJ116: 0 | AK116: 0 | AL116: 0 | AM116: 0 | AN116: 0 | AO116: 0 | AP116: 0 | AQ116: 0 | AR116: 0 | AS116: 0 | AT116: 0 | AU116: 0 | AV116: 0 | AW116: 0 | AX116: 0 | AY116: 0 | AZ116: 0 | BA116: 0 | BB116: 0 | BC116: 0 | BD116: 0 | BE116: 0
A117: Memo: Gas flared | B117: 0 | C117: 0 | D117: 0 | E117: 0 | F117: 0 | G117: 0 | H117: 0 | I117: 0 | J117: 0 | K117: 0 | L117: 0 | M117: 0 | N117: 0 | O117: 0 | P117: 0 | Q117: 0 | R117: 0 | S117: 0 | T117: 0 | U117: 0 | V117: 0 | W117: 0 | X117: 0 | Y117: 0 | Z117: 0 | AA117: 0 | AB117: 0 | AC117: 0 | AD117: 0 | AE117: 0 | AF117: 0 | AG117: 0 | AH117: 0 | AI117: 0 | AJ117: 0 | AK117: 0 | AL117: 0 | AM117: 0 | AN117: 0 | AO117: 0 | AP117: 0 | AQ117: 0 | AR117: 0 | AS117: 0 | AT117: 0 | AU117: 0 | AV117: 0 | AW117: 0 | AX117: 0 | AY117: 0 | AZ117: 0 | BA117: 0 | BB117: 0 | BC117: 0 | BD117: 0 | BE117: 0
A118: Memo: Energy use for Gold Mining | B118: 0 | C118: 0 | D118: 0 | E118: 0 | F118: 0 | G118: 0 | H118: 0 | I118: 0 | J118: 0 | K118: 0 | L118: 0 | M118: 0 | N118: 0 | O118: 0 | P118: 0 | Q118: 0 | R118: 0 | S118: 0 | T118: 0 | U118: 0 | V118: 0 | W118: 0 | X118: 0 | Y118: 0 | Z118: 0 | AA118: 0 | AB118: 0 | AC118: 0 | AD118: 0 | AE118: 0 | AF118: 0 | AG118: 0 | AH118: 0 | AI118: 0 | AJ118: 0 | AK118: 0 | AL118: 0 | AM118: 0 | AN118: 0 | AO118: 0 | AP118: 0 | AQ118: 0 | AR118: 0 | AS118: 0 | AT118: 0 | AU118: 0 | AV118: 0 | AW118: 0 | AX118: 0 | AY118: 0 | AZ118: 0 | BA118: 0 | BB118: 0 | BC118: 0 | BD118: 0 | BE118: 0
A119: Memo: Energy use for Other Mining | B119: 0 | C119: 0 | D119: 0 | E119: 0 | F119: 0 | G119: 0 | H119: 0 | I119: 0 | J119: 0 | K119: 0 | L119: 0 | M119: 0 | N119: 0 | O119: 0 | P119: 0 | Q119: 0 | R119: 0 | S119: 0 | T119: 0 | U119: 0 | V119: 0 | W119: 0 | X119: 0 | Y119: 0 | Z119: 0 | AA119: 0 | AB119: 0 | AC119: 0 | AD119: 0 | AE119: 0 | AF119: 0 | AG119: 0 | AH119: 0 | AI119: 0 | AJ119: 0 | AK119: 0 | AL119: 0 | AM119: 0 | AN119: 0 | AO119: 0 | AP119: 0 | AQ119: 0 | AR119: 0 | AS119: 0 | AT119: 0 | AU119: 0 | AV119: 0 | AW119: 0 | AX119: 0 | AY119: 0 | AZ119: 0 | BA119: 0 | BB119: 0 | BC119: 0 | BD119: 0 | BE119: 0

Sheet DME_EB_TS
A2: TJ | B2: 1992 | C2: 1993 | D2: 1994 | E2: 1995 | F2: 1996 | G2: 1997 | H2: 1998 | I2: 1999 | J2: 2000 | K2: 2001 | L2: 2002 | M2: 2003 | N2: 2004 | O2: 2005 | P2: 2006
A3: Transport | B3: 68
A4: Butimous Coal | B4: 239.733 | C4: 2531.196 | D4: 1120.608 | E4: 0 | F4: 631.854 | G4: 0 | H4: 631.449 | I4: 0 | J4: 0 | K4: 69.60156 | L4: 0 | M4: 0 | N4: 0 | O4: 0 | P4: 0
A5: Gasworks Gas | B5: 4.69 | C5: 4.332 | D5: 0 | E5: 0 | F5: 13.91 | G5: 0 | H5: 13.413 | I5: 24.649 | J5: 28.908 | K5: 30.15783964 | L5: 31.47923562 | M5: 0 | N5: 0 | O5: 0 | P5: 0
A6: LPG | B6: 30.0723435 | C6: 23.436993 | D6: 30.9193209 | E6: 0 | F6: 12.726288 | G6: 0 | H6: 14.2240512 | I6: 12.3235986 | J6: 53.8599075 | K6: 6.6509166 | L6: 1.0630071 | M6: 18.1100493 | N6: 0.026166 | O6: 0 | P6: 0
A7: Motor Gasoline | B7: 309904.4673 | C7: 311262.6912 | D7: 325851.8563 | E7: 0 | F7: 357996.492 | G7: 0 | H7: 368786.5317 | I7: 367883.8816 | J7: 352259.388 | K7: 348806.4267 | L7: 348307.0428 | M7: 357240.7577 | N7: 378933.9911 | O7: 374594.7204 | P7: 379689.1133
A8: Aviation Gasoline | B8: 924.2565495 | C8: 841.5549909 | D8: 894.7241916 | E8: 0 | F8: 852.820266 | G8: 0 | H8: 897.8902143 | I8: 906.7168251 | J8: 835.2294543 | K8: 880.2976737 | L8: 842.5345314 | M8: 763.7674407 | N8: 760.1848887 | O8: 802.3382844 | P8: 744.7462524
A9: Jet Gasoline | B9: 0 | C9: 0 | D9: 0 | E9: 0 | F9: 0 | G9: 0 | H9: 0 | I9: 0 | J9: 0 | K9: 0 | L9: 0 | M9: 0 | N9: 0 | O9: 0 | P9: 0
A10: Jet Kerosene | B10: 34298.285 | C10: 41547.4185 | D10: 40903.89161 | E10: 0 | F10: 54914.51163 | G10: 0 | H10: 64367.40535 | I10: 68456.63732 | J10: 67744.69074 | K10: 65938.22183 | L10: 67478.12908 | M10: 71520.12165 | N10: 71226.69311 | O10: 74767.95373 | P10: 77942.9416
A11: Other Kerosene | B11: 119.497716 | C11: 205.187866 | D11: 393.345002 | E11: 0 | F11: 588.662267 | G11: 0 | H11: 634.787984 | I11: 431.766061 | J11: 241.797479 | K11: 182.672256 | L11: 130.57226 | M11: 282.703125 | N11: 214.112377 | O11: 303.813882 | P11: 272.055672
A12: Gas Diesel | B12: 113159.4818 | C12: 113759.6459 | D12: 117802.482 | E12: 0 | F12: 133796.743 | G12: 0 | H12: 147718.562 | I12: 152131.6855 | J12: 163341.4396 | K12: 172480.2776 | L12: 183612.284 | M12: 194043.972 | N12: 212000.2129 | O12: 229085.7319 | P12: 242573.1094
A13: Residual Fuel | B13: 0 | C13: 0 | D13: 0 | E13: 0 | F13: 0 | G13: 0 | H13: 0 | I13: 0 | J13: 0 | K13: 17.0911936 | L13: 92.4566656 | M13: 139.6442528 | N13: 123.979232 | O13: 119.6218816 | P13: 102.4485696
A14: White Spirit | B14: 0 | C14: 0 | D14: 0 | E14: 0 | F14: 0 | G14: 0 | H14: 0 | I14: 0 | J14: 0 | K14: 7.2949734 | L14: 7.3471128 | M14: 5.4775314 | N14: 4.0777674 | O14: 3.6556272 | P14: 3.2357784
A15: Lubricants | B15: 0 | C15: 0 | D15: 0 | E15: 0 | F15: 0 | G15: 0 | H15: 0 | I15: 0 | J15: 0 | K15: 12092.80306 | L15: 13344.60526 | M15: 12471.27856 | N15: 12599.29285 | O15: 11304.6253 | P15: 12741.15415
A16: Bitumen | B16: 0 | C16: 0 | D16: 0 | E16: 0 | F16: 0 | G16: 0 | H16: 0 | I16: 0 | J16: 0 | K16: 379.8221681 | L16: 0 | M16: 0.0663702 | N16: 0.0081204 | O16: 0 | P16: 0
A17: Electricity | B17: 16664.60952 | C17: 14460.12478 | D17: 15800.0328 | E17: 0 | F17: 15387.60146 | G17: 0 | H17: 16701.9768 | I17: 15942.762 | J17: 19479.6324 | K17: 20024.964 | L17: 22484.628 | M17: 20034.0396 | N17: 22688.9748 | O17: 19960.6392 | P17: 12526.9573
A19: International Aviation | B19: 69
A20: Butimous Coal | B20: 0 | C20: 0 | D20: 0 | E20: 0 | F20: 0 | G20: 0 | H20: 0 | I20: 0 | J20: 0 | K20: 0 | L20: 0 | M20: 0 | N20: 0 | O20: 0 | P20: 0
A21: Gasworks Gas | B21: 0 | C21: 0 | D21: 0 | E21: 0 | F21: 0 | G21: 0 | H21: 0 | I21: 0 | J21: 0 | K21: 0 | L21: 0 | M21: 0 | N21: 0 | O21: 0 | P21: 0
A22: LPG | B22: 0 | C22: 0 | D22: 0 | E22: 0 | F22: 0 | G22: 0 | H22: 0 | I22: 0 | J22: 0 | K22: 0 | L22: 0 | M22: 0 | N22: 0 | O22: 0 | P22: 0
A23: Motor Gasoline | B23: 0 | C23: 0 | D23: 0 | E23: 0 | F23: 0 | G23: 0 | H23: 0 | I23: 0 | J23: 0 | K23: 0 | L23: 0 | M23: 0 | N23: 0 | O23: 0 | P23: 0
A24: Aviation Gasoline | B24: 0 | C24: 0 | D24: 0 | E24: 0 | F24: 0 | G24: 0 | H24: 0 | I24: 0 | J24: 0 | K24: 0 | L24: 0 | M24: 0 | N24: 0 | O24: 0 | P24: 0
A25: Jet Gasoline | B25: 0 | C25: 0 | D25: 0 | E25: 0 | F25: 0 | G25: 0 | H25: 0 | I25: 0 | J25: 0 | K25: 0 | L25: 0 | M25: 0 | N25: 0 | O25: 0 | P25: 0
A26: Jet Kerosene | B26: 0 | C26: 0 | D26: 0 | E26: 0 | F26: 29350.94904 | G26: 0 | H26: 38620.44309 | I26: 41073.98246 | J26: 40646.81441 | K26: 37840.44377 | L26: 37538.45254 | M26: 36883.85186 | N26: 32419.70264 | O26: 31738.65944 | P26: 35178.03284
A27: Other Kerosene | B27: 0 | C27: 0 | D27: 0 | E27: 0 | F27: 0 | G27: 0 | H27: 0 | I27: 0 | J27: 0 | K27: 0 | L27: 0 | M27: 0 | N27: 0 | O27: 0 | P27: 0
A28: Gas Diesel | B28: 0 | C28: 0 | D28: 0 | E28: 0 | F28: 0 | G28: 0 | H28: 0 | I28: 0 | J28: 0 | K28: 0 | L28: 0 | M28: 0 | N28: 0 | O28: 0 | P28: 0
A29: Residual Fuel | B29: 0 | C29: 0 | D29: 0 | E29: 0 | F29: 0 | G29: 0 | H29: 0 | I29: 0 | J29: 0 | K29: 0 | L29: 0 | M29: 0 | N29: 0 | O29: 0 | P29: 0
A30: White Spirit | B30: 0 | C30: 0 | D30: 0 | E30: 0 | F30: 0 | G30: 0 | H30: 0 | I30: 0 | J30: 0 | K30: 0 | L30: 0 | M30: 0 | N30: 0 | O30: 0 | P30: 0
A31: Lubricants | B31: 0 | C31: 0 | D31: 0 | E31: 0 | F31: 0 | G31: 0 | H31: 0 | I31: 0 | J31: 0 | K31: 0 | L31: 0 | M31: 0 | N31: 0 | O31: 0 | P31: 0
A32: Bitumen | B32: 0 | C32: 0 | D32: 0 | E32: 0 | F32: 0 | G32: 0 | H32: 0 | I32: 0 | J32: 0 | K32: 0 | L32: 0 | M32: 0 | N32: 0 | O32: 0 | P32: 0
A33: Electricity | B33: 0 | C33: 0 | D33: 0 | E33: 0 | F33: 0 | G33: 0 | H33: 0 | I33: 0 | J33: 0 | K33: 0 | L33: 0 | M33: 0 | N33: 0 | O33: 0 | P33: 0
A35: Domestic Air Transport | B35: 70
A36: Butimous Coal | B36: 0 | C36: 0 | D36: 0 | E36: 174721 | F36: 0 | G36: 192705 | H36: 0 | I36: 0 | J36: 0 | K36: 0 | L36: 0 | M36: 0 | N36: 0 | O36: 0 | P36: 0
A37: Gasworks Gas | B37: 4.69 | C37: 4.332 | D37: 0 | E37: 0 | F37: 13.91 | G37: 207744 | H37: 13.413 | I37: 24.649 | J37: 28.908 | K37: 30.15783964 | L37: 31.47923562 | M37: 0 | N37: 0 | O37: 0 | P37: 0
A38: LPG | B38: 0 | C38: 0 | D38: 0 | E38: 0 | F38: 0 | G38: 0 | H38: 0 | I38: 0 | J38: 0 | K38: 0 | L38: 0 | M38: 0 | N38: 0 | O38: 0 | P38: 0
A39: Motor Gasoline | B39: 0 | C39: 0 | D39: 0 | E39: 0 | F39: 0 | G39: 0 | H39: 0 | I39: 0 | J39: 0 | K39: 0 | L39: 0 | M39: 0 | N39: 0 | O39: 0 | P39: 0
A40: Aviation Gasoline | B40: 924.2565495 | C40: 841.5549909 | D40: 894.7241916 | E40: 0 | F40: 852.820266 | G40: 0 | H40: 897.8902143 | I40: 906.7168251 | J40: 835.2294543 | K40: 880.2976737 | L40: 842.5345314 | M40: 763.7674407 | N40: 760.1848887 | O40: 802.3382844 | P40: 744.7462524
A41: Jet Gasoline | B41: 0 | C41: 0 | D41: 0 | E41: 0 | F41: 0 | G41: 0 | H41: 0 | I41: 0 | J41: 0 | K41: 0 | L41: 0 | M41: 0 | N41: 0 | O41: 0 | P41: 0
A42: Jet Kerosene | B42: 34298.285 | C42: 41547.4185 | D42: 40903.89161 | E42: 0 | F42: 25563.56259 | G42: 0 | H42: 25746.96226 | I42: 27382.65486 | J42: 27097.87633 | K42: 28097.77806 | L42: 29939.67654 | M42: 34636.26979 | N42: 38806.99047 | O42: 43029.2943 | P42: 42764.90876
A43: Other Kerosene | B43: 0 | C43: 0 | D43: 0 | E43: 0 | F43: 0 | G43: 0 | H43: 0 | I43: 0 | J43: 0 | K43: 0 | L43: 0 | M43: 0 | N43: 0 | O43: 0 | P43: 0
A44: Gas Diesel | B44: 0 | C44: 0 | D44: 0 | E44: 0 | F44: 0 | G44: 0 | H44: 0 | I44: 0 | J44: 0 | K44: 0 | L44: 0 | M44: 0 | N44: 0 | O44: 0 | P44: 0
A45: Residual Fuel | B45: 0 | C45: 0 | D45: 0 | E45: 0 | F45: 0 | G45: 0 | H45: 0 | I45: 0 | J45: 0 | K45: 0 | L45: 0 | M45: 0 | N45: 0 | O45: 0 | P45: 0
A46: White Spirit | B46: 0 | C46: 0 | D46: 0 | E46: 0 | F46: 0 | G46: 0 | H46: 0 | I46: 0 | J46: 0 | K46: 0 | L46: 0 | M46: 0 | N46: 0 | O46: 0 | P46: 0
A47: Lubricants | B47: 0 | C47: 0 | D47: 0 | E47: 0 | F47: 0 | G47: 0 | H47: 0 | I47: 0 | J47: 0 | K47: 0 | L47: 0 | M47: 0 | N47: 0 | O47: 0 | P47: 0
A48: Bitumen | B48: 0 | C48: 0 | D48: 0 | E48: 0 | F48: 0 | G48: 0 | H48: 0 | I48: 0 | J48: 0 | K48: 0 | L48: 0 | M48: 0 | N48: 0 | O48: 0 | P48: 0
A49: Electricity | B49: 0.921456 | C49: 0 | D49: 1.2636 | E49: 0 | F49: 46.404576 | G49: 0 | H49: 90.198 | I49: 95.0868 | J49: 112.608 | K49: 133.2 | L49: 137.844 | M49: 153.558 | N49: 155.16 | O49: 179.892 | P49: 180.18
A51: Road | B51: 71
A52: Butimous Coal | B52: 0 | C52: 0 | D52: 0 | E52: 168823 | F52: 0 | G52: 187154 | H52: 0 | I52: 0 | J52: 0 | K52: 0 | L52: 0 | M52: 0 | N52: 0 | O52: 0 | P52: 0
A53: Gasworks Gas | B53: 0 | C53: 0 | D53: 0 | E53: 0 | F53: 0 | G53: 201893 | H53: 0 | I53: 0 | J53: 0 | K53: 0 | L53: 0 | M53: 0 | N53: 0 | O53: 0 | P53: 0
A54: LPG | B54: 0 | C54: 0 | D54: 0 | E54: 0 | F54: 0 | G54: 0 | H54: 0 | I54: 0 | J54: 0 | K54: 6.6509166 | L54: 1.0630071 | M54: 18.1100493 | N54: 0.026166 | O54: 0 | P54: 0
A55: Motor Gasoline | B55: 309904.4673 | C55: 311262.6912 | D55: 319342.2418 | E55: 0 | F55: 357996.492 | G55: 0 | H55: 368786.5317 | I55: 367883.8816 | J55: 352259.388 | K55: 348747.2777 | L55: 348248.4533 | M55: 357205.2488 | N55: 378929.1526 | O55: 374594.647 | P55: 379688.8397
A56: Aviation Gasoline | B56: 0 | C56: 0 | D56: 0 | E56: 0 | F56: 0 | G56: 0 | H56: 0 | I56: 0 | J56: 0 | K56: 0 | L56: 0 | M56: 0 | N56: 0 | O56: 0 | P56: 0
A57: Jet Gasoline | B57: 0 | C57: 0 | D57: 0 | E57: 0 | F57: 0 | G57: 0 | H57: 0 | I57: 0 | J57: 0 | K57: 0 | L57: 0 | M57: 0 | N57: 0 | O57: 0 | P57: 0
A58: Jet Kerosene | B58: 0 | C58: 0 | D58: 0 | E58: 0 | F58: 0 | G58: 0 | H58: 0 | I58: 0 | J58: 0 | K58: 0 | L58: 0 | M58: 0 | N58: 0 | O58: 0 | P58: 0
A59: Other Kerosene | B59: 0 | C59: 0 | D59: 0 | E59: 0 | F59: 0 | G59: 0 | H59: 0 | I59: 0 | J59: 0 | K59: 159.058005 | L59: 124.755194 | M59: 279.631089 | N59: 209.858561 | O59: 299.120691 | P59: 271.163232
A60: Gas Diesel | B60: 101640.7456 | C60: 103903.1167 | D60: 107832.3409 | E60: 0 | F60: 126314.8574 | G60: 0 | H60: 139801.1538 | I60: 143246.5028 | J60: 155058.8406 | K60: 164565.7975 | L60: 174359.739 | M60: 185337.9495 | N60: 204273.2688 | O60: 226314.2852 | P60: 239807.8881
A61: Residual Fuel | B61: 0 | C61: 0 | D61: 0 | E61: 0 | F61: 0 | G61: 0 | H61: 0 | I61: 0 | J61: 0 | K61: 17.0911936 | L61: 92.4566656 | M61: 139.6442528 | N61: 123.979232 | O61: 119.6218816 | P61: 102.4485696
A62: White Spirit | B62: 0 | C62: 0 | D62: 0 | E62: 0 | F62: 0 | G62: 0 | H62: 0 | I62: 0 | J62: 0 | K62: 4.0460094 | L62: 4.9528008 | M62: 4.0214874 | N62: 3.6990834 | O62: 3.3187512 | P62: 2.9455344
A63: Lubricants | B63: 0 | C63: 0 | D63: 0 | E63: 0 | F63: 0 | G63: 0 | H63: 0 | I63: 0 | J63: 0 | K63: 11933.18207 | L63: 13214.06275 | M63: 12307.0809 | N63: 12462.80979 | O63: 11163.57829 | P63: 12615.64705
A64: Bitumen | B64: 0 | C64: 0 | D64: 0 | E64: 0 | F64: 0 | G64: 0 | H64: 0 | I64: 0 | J64: 0 | K64: 379.8221681 | L64: 0 | M64: 0.0663702 | N64: 0.0081204 | O64: 0 | P64: 0
A65: Electricity | B65: 16.2987516 | C65: 14.8771764 | D65: 25.8696 | E65: 0 | F65: 27.138816 | G65: 0 | H65: 84.5496 | I65: 98.5716 | J65: 121.464 | K65: 79.452 | L65: 82.908 | M65: 71.496 | N65: 72.864 | O65: 69.156 | P65: 71.064
A67: Rail | B67: 72
A68: Butimous Coal | B68: 0 | C68: 0 | D68: 1120.608 | E68: 5898 | F68: 0 | G68: 5551 | H68: 0 | I68: 0 | J68: 0 | K68: 0 | L68: 0 | M68: 0 | N68: 0 | O68: 0 | P68: 0
A69: Gasworks Gas | B69: 0 | C69: 0 | D69: 0 | E69: 0 | F69: 0 | G69: 5551 | H69: 0 | I69: 0 | J69: 0 | K69: 0 | L69: 0 | M69: 0 | N69: 0 | O69: 0 | P69: 0
A70: LPG | B70: 0 | C70: 0 | D70: 0 | E70: 0 | F70: 0 | G70: 0 | H70: 0 | I70: 0 | J70: 0 | K70: 0 | L70: 0 | M70: 0 | N70: 0 | O70: 0 | P70: 0
A71: Motor Gasoline | B71: 0 | C71: 0 | D71: 6509.614491 | E71: 0 | F71: 0 | G71: 0 | H71: 0 | I71: 0 | J71: 0 | K71: 59.1489684 | L71: 58.5894564 | M71: 35.5088682 | N71: 4.838445 | O71: 0.0733248 | P71: 0.2736
A72: Aviation Gasoline | B72: 0 | C72: 0 | D72: 0 | E72: 0 | F72: 0 | G72: 0 | H72: 0 | I72: 0 | J72: 0 | K72: 0 | L72: 0 | M72: 0 | N72: 0 | O72: 0 | P72: 0
A73: Jet Gasoline | B73: 0 | C73: 0 | D73: 0 | E73: 0 | F73: 0 | G73: 0 | H73: 0 | I73: 0 | J73: 0 | K73: 0 | L73: 0 | M73: 0 | N73: 0 | O73: 0 | P73: 0
A74: Jet Kerosene | B74: 0 | C74: 0 | D74: 0 | E74: 0 | F74: 0 | G74: 0 | H74: 0 | I74: 0 | J74: 0 | K74: 0 | L74: 0 | M74: 0 | N74: 0 | O74: 0 | P74: 0
A75: Other Kerosene | B75: 0 | C75: 0 | D75: 0 | E75: 0 | F75: 0 | G75: 0 | H75: 0 | I75: 0 | J75: 0 | K75: 23.614251 | L75: 5.817066 | M75: 3.072036 | N75: 4.253816 | O75: 4.693191 | P75: 0.89244
A76: Gas Diesel | B76: 11518.73623 | C76: 9856.529169 | D76: 9970.141121 | E76: 0 | F76: 7481.885557 | G76: 0 | H76: 7917.408181 | I76: 8885.182699 | J76: 8282.598967 | K76: 7914.480158 | L76: 9252.544957 | M76: 8706.022441 | N76: 7726.944147 | O76: 2771.44673 | P76: 2765.221267
A77: Residual Fuel | B77: 0 | C77: 0 | D77: 0 | E77: 0 | F77: 0 | G77: 0 | H77: 0 | I77: 0 | J77: 0 | K77: 0 | L77: 0 | M77: 0 | N77: 0 | O77: 0 | P77: 0
A78: White Spirit | B78: 0 | C78: 0 | D78: 0 | E78: 0 | F78: 0 | G78: 0 | H78: 0 | I78: 0 | J78: 0 | K78: 3.248964 | L78: 2.394312 | M78: 1.456044 | N78: 0.378684 | O78: 0.336876 | P78: 0.290244
A79: Lubricants | B79: 0 | C79: 0 | D79: 0 | E79: 0 | F79: 0 | G79: 0 | H79: 0 | I79: 0 | J79: 0 | K79: 159.6209863 | L79: 130.5425052 | M79: 164.1976638 | N79: 136.4830602 | O79: 141.0470064 | P79: 125.5070934
A80: Bitumen | B80: 0 | C80: 0 | D80: 0 | E80: 0 | F80: 0 | G80: 0 | H80: 0 | I80: 0 | J80: 0 | K80: 0 | L80: 0 | M80: 0 | N80: 0 | O80: 0 | P80: 0
A81: Electricity | B81: 12572.89036 | C81: 11939.65573 | D81: 13328.6148 | E81: 0 | F81: 12406.30085 | G81: 0 | H81: 12860.9028 | I81: 12009.798 | J81: 12359.376 | K81: 12534.66 | L81: 11889.972 | M81: 11756.88 | N81: 11853.576 | O81: 11807.928 | P81: 11809.512
A83: Pipeline Transport | B83: 73
A84: Butimous Coal | B84: 0 | C84: 0 | D84: 0 | E84: 0 | F84: 0 | G84: 0 | H84: 0 | I84: 0 | J84: 0 | K84: 0 | L84: 0 | M84: 0 | N84: 0 | O84: 0 | P84: 0
A85: Gasworks Gas | B85: 0 | C85: 0 | D85: 0 | E85: 0 | F85: 0 | G85: 0 | H85: 0 | I85: 0 | J85: 0 | K85: 0 | L85: 0 | M85: 0 | N85: 0 | O85: 0 | P85: 0
A86: LPG | B86: 0 | C86: 0 | D86: 0 | E86: 0 | F86: 0 | G86: 0 | H86: 0 | I86: 0 | J86: 0 | K86: 0 | L86: 0 | M86: 0 | N86: 0 | O86: 0 | P86: 0
A87: Motor Gasoline | B87: 0 | C87: 0 | D87: 0 | E87: 0 | F87: 0 | G87: 0 | H87: 0 | I87: 0 | J87: 0 | K87: 0 | L87: 0 | M87: 0 | N87: 0 | O87: 0 | P87: 0
A88: Aviation Gasoline | B88: 0 | C88: 0 | D88: 0 | E88: 0 | F88: 0 | G88: 0 | H88: 0 | I88: 0 | J88: 0 | K88: 0 | L88: 0 | M88: 0 | N88: 0 | O88: 0 | P88: 0
A89: Jet Gasoline | B89: 0 | C89: 0 | D89: 0 | E89: 0 | F89: 0 | G89: 0 | H89: 0 | I89: 0 | J89: 0 | K89: 0 | L89: 0 | M89: 0 | N89: 0 | O89: 0 | P89: 0
A90: Jet Kerosene | B90: 0 | C90: 0 | D90: 0 | E90: 0 | F90: 0 | G90: 0 | H90: 0 | I90: 0 | J90: 0 | K90: 0 | L90: 0 | M90: 0 | N90: 0 | O90: 0 | P90: 0
A91: Other Kerosene | B91: 0 | C91: 0 | D91: 0 | E91: 0 | F91: 0 | G91: 0 | H91: 0 | I91: 0 | J91: 0 | K91: 0 | L91: 0 | M91: 0 | N91: 0 | O91: 0 | P91: 0
A92: Gas Diesel | B92: 0 | C92: 0 | D92: 0 | E92: 0 | F92: 0 | G92: 0 | H92: 0 | I92: 0 | J92: 0 | K92: 0 | L92: 0 | M92: 0 | N92: 0 | O92: 0 | P92: 0
A93: Residual Fuel | B93: 0 | C93: 0 | D93: 0 | E93: 0 | F93: 0 | G93: 0 | H93: 0 | I93: 0 | J93: 0 | K93: 0 | L93: 0 | M93: 0 | N93: 0 | O93: 0 | P93: 0
A94: White Spirit | B94: 0 | C94: 0 | D94: 0 | E94: 0 | F94: 0 | G94: 0 | H94: 0 | I94: 0 | J94: 0 | K94: 0 | L94: 0 | M94: 0 | N94: 0 | O94: 0 | P94: 0
A95: Lubricants | B95: 0 | C95: 0 | D95: 0 | E95: 0 | F95: 0 | G95: 0 | H95: 0 | I95: 0 | J95: 0 | K95: 0 | L95: 0 | M95: 0 | N95: 0 | O95: 0 | P95: 0
A96: Bitumen | B96: 0 | C96: 0 | D96: 0 | E96: 0 | F96: 0 | G96: 0 | H96: 0 | I96: 0 | J96: 0 | K96: 0 | L96: 0 | M96: 0 | N96: 0 | O96: 0 | P96: 0
A97: Electricity | B97: 233.5875732 | C97: 215.1480384 | D97: 222.1956 | E97: 0 | F97: 212.732676 | G97: 0 | H97: 239.5728 | I97: 208.7964 | J97: 224.136 | K97: 182.052 | L97: 221.148 | M97: 277.866 | N97: 290.088 | O97: 284.004 | P97: 284.004
A99: Internal Navigation | B99: 74
A100: Butimous Coal | B100: 0 | C100: 0 | D100: 0 | E100: 0 | F100: 0 | G100: 0 | H100: 0 | I100: 0 | J100: 0 | K100: 0 | L100: 0 | M100: 0 | N100: 0 | O100: 0 | P100: 0
A101: Gasworks Gas | B101: 0 | C101: 0 | D101: 0 | E101: 0 | F101: 0 | G101: 300 | H101: 0 | I101: 0 | J101: 0 | K101: 0 | L101: 0 | M101: 0 | N101: 0 | O101: 0 | P101: 0
A102: LPG | B102: 0 | C102: 0 | D102: 0 | E102: 0 | F102: 0 | G102: 0 | H102: 0 | I102: 0 | J102: 0 | K102: 0 | L102: 0 | M102: 0 | N102: 0 | O102: 0 | P102: 0
A103: Motor Gasoline | B103: 0 | C103: 0 | D103: 0 | E103: 0 | F103: 0 | G103: 0 | H103: 0 | I103: 0 | J103: 0 | K103: 0 | L103: 0 | M103: 0 | N103: 0 | O103: 0 | P103: 0
A104: Aviation Gasoline | B104: 0 | C104: 0 | D104: 0 | E104: 0 | F104: 0 | G104: 0 | H104: 0 | I104: 0 | J104: 0 | K104: 0 | L104: 0 | M104: 0 | N104: 0 | O104: 0 | P104: 0
A105: Jet Gasoline | B105: 0 | C105: 0 | D105: 0 | E105: 0 | F105: 0 | G105: 0 | H105: 0 | I105: 0 | J105: 0 | K105: 0 | L105: 0 | M105: 0 | N105: 0 | O105: 0 | P105: 0
A106: Jet Kerosene | B106: 0 | C106: 0 | D106: 0 | E106: 0 | F106: 0 | G106: 0 | H106: 0 | I106: 0 | J106: 0 | K106: 0 | L106: 0 | M106: 0 | N106: 0 | O106: 0 | P106: 0
A107: Other Kerosene | B107: 0 | C107: 0 | D107: 0 | E107: 0 | F107: 0 | G107: 0 | H107: 0 | I107: 0 | J107: 0 | K107: 0 | L107: 0 | M107: 0 | N107: 0 | O107: 0 | P107: 0
A108: Gas Diesel | B108: 0 | C108: 0 | D108: 0 | E108: 0 | F108: 0 | G108: 0 | H108: 0 | I108: 0 | J108: 0 | K108: 0 | L108: 0 | M108: 0 | N108: 0 | O108: 0 | P108: 0
A109: Residual Fuel | B109: 0 | C109: 0 | D109: 0 | E109: 0 | F109: 0 | G109: 0 | H109: 0 | I109: 0 | J109: 0 | K109: 0 | L109: 0 | M109: 0 | N109: 0 | O109: 0 | P109: 0
A110: White Spirit | B110: 0 | C110: 0 | D110: 0 | E110: 0 | F110: 0 | G110: 0 | H110: 0 | I110: 0 | J110: 0 | K110: 0 | L110: 0 | M110: 0 | N110: 0 | O110: 0 | P110: 0
A111: Lubricants | B111: 0 | C111: 0 | D111: 0 | E111: 0 | F111: 0 | G111: 0 | H111: 0 | I111: 0 | J111: 0 | K111: 0 | L111: 0 | M111: 0 | N111: 0 | O111: 0 | P111: 0
A112: Bitumen | B112: 0 | C112: 0 | D112: 0 | E112: 0 | F112: 0 | G112: 0 | H112: 0 | I112: 0 | J112: 0 | K112: 0 | L112: 0 | M112: 0 | N112: 0 | O112: 0 | P112: 0
A113: Electricity | B113: 0 | C113: 0 | D113: 0 | E113: 0 | F113: 0 | G113: 0 | H113: 23.5224 | I113: 22.2552 | J113: 22.284 | K113: 27.864 | L113: 26.748 | M113: 177.7716 | N113: 181.368 | O113: 180.792 | P113: 181.44
A115: Non-specified (Transport) | B115: 75
A116: Butimous Coal | B116: 239.733 | C116: 2531.196 | D116: 0 | E116: 0 | F116: 631.854 | G116: 0 | H116: 631.449 | I116: 0 | J116: 0 | K116: 69.60156 | L116: 0 | M116: 0 | N116: 0 | O116: 0 | P116: 0
A117: Gasworks Gas | B117: 0 | C117: 0 | D117: 0 | E117: 0 | F117: 0 | G117: 0 | H117: 0 | I117: 0 | J117: 0 | K117: 0 | L117: 0 | M117: 0 | N117: 0 | O117: 0 | P117: 0
A118: LPG | B118: 30.0723435 | C118: 23.436993 | D118: 30.9193209 | E118: 0 | F118: 12.726288 | G118: 0 | H118: 14.2240512 | I118: 12.3235986 | J118: 53.8599075 | K118: 0 | L118: 0 | M118: 0 | N118: 0 | O118: 0 | P118: 0
A119: Motor Gasoline | B119: 0 | C119: 0 | D119: 0 | E119: 0 | F119: 0 | G119: 0 | H119: 0 | I119: 0 | J119: 0 | K119: 0 | L119: 0 | M119: 0 | N119: 0 | O119: 0 | P119: 0
A120: Aviation Gasoline | B120: 0 | C120: 0 | D120: 0 | E120: 0 | F120: 0 | G120: 0 | H120: 0 | I120: 0 | J120: 0 | K120: 0 | L120: 0 | M120: 0 | N120: 0 | O120: 0 | P120: 0
A121: Jet Gasoline | B121: 0 | C121: 0 | D121: 0 | E121: 0 | F121: 0 | G121: 0 | H121: 0 | I121: 0 | J121: 0 | K121: 0 | L121: 0 | M121: 0 | N121: 0 | O121: 0 | P121: 0
A122: Jet Kerosene | B122: 0 | C122: 0 | D122: 0 | E122: 0 | F122: 0 | G122: 0 | H122: 0 | I122: 0 | J122: 0 | K122: 0 | L122: 0 | M122: 0 | N122: 0 | O122: 0 | P122: 0
A123: Other Kerosene | B123: 119.497716 | C123: 205.187866 | D123: 393.345002 | E123: 0 | F123: 588.662267 | G123: 0 | H123: 634.787984 | I123: 431.766061 | J123: 241.797479 | K123: 0 | L123: 0 | M123: 0 | N123: 0 | O123: 0 | P123: 0
A124: Gas Diesel | B124: 0 | C124: 0 | D124: 0 | E124: 0 | F124: 0 | G124: 0 | H124: 0 | I124: 0 | J124: 0 | K124: 0 | L124: 0 | M124: 0 | N124: 0 | O124: 0 | P124: 0
A125: Residual Fuel | B125: 0 | C125: 0 | D125: 0 | E125: 0 | F125: 0 | G125: 0 | H125: 0 | I125: 0 | J125: 0 | K125: 0 | L125: 0 | M125: 0 | N125: 0 | O125: 0 | P125: 0
A126: White Spirit | B126: 0 | C126: 0 | D126: 0 | E126: 0 | F126: 0 | G126: 0 | H126: 0 | I126: 0 | J126: 0 | K126: 0 | L126: 0 | M126: 0 | N126: 0 | O126: 0 | P126: 0
A127: Lubricants | B127: 0 | C127: 0 | D127: 0 | E127: 0 | F127: 0 | G127: 0 | H127: 0 | I127: 0 | J127: 0 | K127: 0 | L127: 0 | M127: 0 | N127: 0 | O127: 0 | P127: 0
A128: Bitumen | B128: 0 | C128: 0 | D128: 0 | E128: 0 | F128: 0 | G128: 0 | H128: 0 | I128: 0 | J128: 0 | K128: 0 | L128: 0 | M128: 0 | N128: 0 | O128: 0 | P128: 0
A129: Electricity | B129: 3840.911381 | C129: 2290.443844 | D129: 2222.0892 | E129: 0 | F129: 2695.024548 | G129: 0 | H129: 3403.2312 | I129: 3508.254 | J129: 6639.7644 | K129: 7067.736 | L129: 10126.008 | M129: 7596.468 | N129: 10135.9188 | O129: 7438.8672 | P129: 0.7573032

Sheet SAPIADiesel
C1: Diesel | F1: Raw Units | G1: SAPIA Categories | H1: 2003 | I1: =H1+1 -> 2004 | J1: =I1+1 -> 2005 | K1: =J1+1 -> 2006 | L1: 2007
G2: Agricultural Co-ops | H2: 998221248.1 | I2: 980872588.7 | J2: 947528321 | K2: 760998330 | L2: 773469076
G3: Construction | H3: 244063124 | I3: 223676701.9 | J3: 224328722 | K3: 212864373 | L3: 240771534
G4: Farmers | H4: 0 | I4: 0 | J4: 0 | K4: 190849149 | L4: 149873969
G5: General Dealers | H5: 1063316632 | I5: 1119440843 | J5: 1338617158 | K5: 1472784179 | L5: 1542417229
G6: Government | H6: 62205375 | I6: 46272359 | J6: 22099551 | K6: 45827476 | L6: 32916465
G7: Independant LPG Marketers | H7: 0 | I7: 0 | J7: 0 | K7: 36958428 | L7: 0
G8: Local Authorities | H8: 54372541.8 | I8: 53072251 | J8: 51961466 | K8: 47504562 | L8: 37084547
G9: Local marine fishing | H9: 106530194.2 | I9: 104312409.4 | J9: 103900733 | K9: 96117106 | L9: 123261102
G10: Mining | H10: 706133315.4 | I10: 709741294.9 | J10: 747196224 | K10: 765003098 | L10: 761815776
G11: Public Transport (by local Auth's) | H11: 206751735.5 | I11: 160236436.2 | J11: 169475011 | K11: 6102610 | L11: 5791632
G12: Public Transport (non local Auth's) | H12: 0 | I12: 0 | J12: 0 | K12: 174382959 | L12: 156469895
G13: Remainder of General Trade | H13: 593636289.7 | I13: 832326711.4 | J13: 961220308 | K13: 999038414 | L13: 1681802486
G14: Retail - garages | H14: 2058787393 | I14: 2331847768 | J14: 2617905234 | K14: 2979043909 | L14: 3337942753
G15: Road Haulage | H15: 940557426.4 | I15: 906631985.2 | J15: 859722578 | K15: 842106901 | L15: 812759666
G16: Transnet | H16: 228504582.8 | I16: 200298961.3 | J16: 72741384 | K16: 77200295 | L16: 86831741
G17: Total | H17: =SUM(H2:H16) -> 7263079857 | I17: =SUM(I2:I16) -> 7668730310 | J17: =SUM(J2:J16) -> 8116696690 | K17: =SUM(K2:K16) -> 8706781789 | L17: =SUM(L2:L16) -> 9743207871
G19: Diesel TJ | H19: 2003 | I19: 2004 | J19: 2005 | K19: 2006 | L19: 2007
A20: Stone cateogies | B20: Stone Coeff | C20: ERC categories | D20: ERC Coeff | E20: ERC remainder | F20: DME EB Categories | G20: Conversion | H20: 38.1 | I20: 38.1 | J20: 38.1 | K20: 38.1 | L20: 38.1
A21: CV | B21: 0.5 | C21: =$G$71 -> Transport (LCV+MCV+Cars+Bus) | D21: 0 | E21: =$G$68 -> Agriculture | F21: Agriculture | G21: Agricultural Co-ops | H21: =H2*H$20/1000000 -> 38032.22955 | I21: 37371.24563 | J21: 36100.82903 | K21: 28994.03637 | L21: 29469.1718
A22: CV | B22: 0.9 | C22: Transport (LCV+MCV+Cars+Bus) | D22: 0 | E22: =$G$69 -> Industry Other | F22: Construction | G22: Construction | H22: 9298.805026 | I22: 8522.08234 | J22: 8546.924308 | K22: 8110.132611 | L22: 9173.395445
A23: CV | B23: 0.5 | C23: Transport (LCV+MCV+Cars+Bus) | D23: 0 | E23: =$G$68 -> Agriculture | F23: Agriculture | G23: Farmers | H23: 0 | I23: 0 | J23: 0 | K23: 7271.352577 | L23: 5710.198219
A24: CV | B24: 1 | C24: Transport (LCV+MCV+Cars+Bus) | D24: =B24 -> 1 | F24: Road | G24: General Dealers | H24: 40512.36366 | I24: 42650.69611 | J24: 51001.31372 | K24: 56113.07722 | L24: 58766.09642
A25: CV | B25: 1 | C25: Transport (LCV+MCV+Cars+Bus) | D25: 0 | F25: Commerce and Public Services | G25: Government | H25: 2370.024788 | I25: 1762.976878 | J25: 841.9928931 | K25: 1746.026836 | L25: 1254.117317
A26: CV | B26: 0 | C26: Transport (LCV+MCV+Cars+Bus) | D26: 1 | F26: Road | G26: Independant LPG Marketers | H26: 0 | I26: 0 | J26: 0 | K26: 1408.116107 | L26: 0
A27: CV | B27: 1 | C27: Transport (LCV+MCV+Cars+Bus) | D27: =B27 -> 1 | F27: Residential | G27: Local Authorities | H27: 2071.593843 | I27: 2022.052763 | J27: 1979.731855 | K27: 1809.923812 | L27: 1412.921241
A28: CV | B28: 0.5 | C28: Transport (LCV+MCV+Cars+Bus) | D28: 0 | E28: =$G$68 -> Agriculture | F28: Agriculture | G28: Local marine fishing | H28: 4058.800399 | I28: 3974.302798 | J28: 3958.617927 | K28: 3662.061739 | L28: 4696.247986
A29: CV | B29: 0.7 | C29: Transport (LCV+MCV+Cars+Bus) | D29: 0 | E29: =$G$70 -> Industry Mining | F29: Mining and Quarrying | G29: Mining | H29: 26903.67931 | I29: 27041.14334 | J29: 28468.17613 | K29: 29146.61803 | L29: 29025.18107
A30: CV | B30: 1 | C30: =$G$72 -> Bus (inclomplete) | D30: 1 | F30: Road | G30: Public Transport (by local Auth's) | H30: 7877.241121 | I30: 6105.008219 | J30: 6456.997919 | K30: 232.509441 | L30: 220.6611792
A31: CV | B31: 1 | C31: =$G$72 -> Bus (inclomplete) | D31: 1 | F31: Road | G31: Public Transport (non local Auth's) | H31: 0 | I31: 0 | J31: 0 | K31: 6643.990738 | L31: 5961.503
A32: CV | B32: 1 | C32: =$G$71 -> Transport (LCV+MCV+Cars+Bus) | D32: =B32 -> 1 | F32: Road | G32: Remainder of General Trade | H32: 22617.54264 | I32: 31711.64771 | J32: 36622.49373 | K32: 38063.36357 | L32: 64076.67472
A33: CV | B33: 1 | C33: =$G$71 -> Transport (LCV+MCV+Cars+Bus) | D33: =B33 -> 1 | F33: Road | G33: Retail - garages | H33: 78439.79967 | I33: 88843.39996 | J33: 99742.18942 | K33: 113501.5729 | L33: 127175.6189
A34: CV | B34: 1 | C34: =$G$73 -> HCV Freight | D34: =B34 -> 1 | F34: Road | G34: Road Haulage | H34: 35835.23795 | I34: 34542.67864 | J34: 32755.43022 | K34: 32084.27293 | L34: 30966.14327
A35: CV | B35: 0 | C35: =$G$74 -> Rail Freight | D35: 1 | F35: Rail | G35: Transnet | H35: 8706.024605 | I35: 7631.390426 | J35: 2771.44673 | K35: 2941.331239 | L35: 3308.289332
G36: Total | H36: =SUM(H21:H35) -> 276723.3426 | I36: =SUM(I21:I35) -> 292178.6248 | J36: =SUM(J21:J35) -> 309246.1439 | K36: =SUM(K21:K35) -> 331728.3862 | L36: =SUM(L21:L35) -> 371216.2199
G38: SAPIA EB categories | H38: 2003 | I38: 2004 | J38: 2005 | K38: 2006 | L38: 2007
G39: Agriculture | H39: =SUMIF($F$21:$F$35,$G39,H$21:H$35) -> 42091.02995 | I39: 41345.54843 | J39: 40059.44696 | K39: 39927.45069 | L39: 39875.618
G40: Construction | H40: 9298.805026 | I40: 8522.08234 | J40: 8546.924308 | K40: 8110.132611 | L40: 9173.395445
G41: Road | H41: 185282.185 | I41: 203853.4306 | J41: 226578.425 | K41: 248046.9029 | L41: 287166.6975
G42: Commerce and Public Services | H42: 2370.024788 | I42: 1762.976878 | J42: 841.9928931 | K42: 1746.026836 | L42: 1254.117317
G43: Residential | H43: 2071.593843 | I43: 2022.052763 | J43: 1979.731855 | K43: 1809.923812 | L43: 1412.921241
G44: Mining and Quarrying | H44: 26903.67931 | I44: 27041.14334 | J44: 28468.17613 | K44: 29146.61803 | L44: 29025.18107
G45: Rail | H45: 8706.024605 | I45: 7631.390426 | J45: 2771.44673 | K45: 2941.331239 | L45: 3308.289332
G46: Total | H46: =SUM(H39:H45) -> 276723.3426 | I46: =SUM(I39:I45) -> 292178.6248 | J46: =SUM(J39:J45) -> 309246.1439 | K46: =SUM(K39:K45) -> 331728.3862 | L46: =SUM(L39:L45) -> 371216.2199
G48: DME Energy Balances | H48: 2003 | I48: 2004 | J48: 2005 | K48: 2006 | L48: 2007
G49: Agriculture | H49: 42091.0259 | I49: 41345.99694 | J49: 40054.47007 | K49: 38226.11908
G50: Construction | H50: 9299.413901 | I50: 8526.321124 | J50: 8545.760963 | K50: 7865.820362
G51: Road | H51: 185337.9495 | I51: 204273.2688 | J51: 226314.2852 | K51: 239807.8881
G52: Commerce and Public Services | H52: 2370.024788 | I52: 1766.785202 | J52: 841.9548312 | K52: 1742.024659
G53: Residential | H53: 2022.542158 | I53: 1979.818913 | J53: 1979.731855 | K53: 1776.306277
G54: Mining and Quarrying | H54: 26903.67865 | I54: 27077.50491 | J54: 28297.47057 | K54: 28149.15592
G55: Rail | H55: 8706.022441 | I55: 7726.944147 | J55: 2771.44673 | K55: 2765.221267
G56: Total | H56: =SUM(H49:H55) -> 276730.6574 | I56: =SUM(I49:I55) -> 292696.64 | J56: =SUM(J49:J55) -> 308805.1202 | K56: =SUM(K49:K55) -> 320332.5357
G58: % difference (EB-SAPIA)/SAPIA | H58: 2003 | I58: 2004 | J58: 2005 | K58: 2006
G59: Agriculture | H59: =H49/H39-1 -> -9.622073882e-08 | I59: 1.084781859e-05 | J59: -0.0001242375788 | K59: -0.04261057448
G60: Construction | H60: 6.547879801e-05 | I60: 0.0004973881905 | J60: -0.0001361127533 | K60: -0.0301243224
G61: Road | H61: 0.0003009706108 | I61: 0.002059509906 | J61: -0.00116577646 | K61: -0.03321555205
G62: Commerce and Public Services | H62: 0 | I62: 0.002160166505 | J62: -4.520453832e-05 | K62: -0.002292162021
G63: Residential | H63: -0.02367823459 | I63: -0.02088662115 | J63: 0 | K63: -0.01857400559
G64: Mining and Quarrying | H64: -2.457043136e-08 | I64: 0.001344675992 | J64: -0.005996364618 | K64: -0.03422222481
G65: Rail | H65: -2.48572695e-07 | I65: 0.01252114182 | J65: 0 | K65: -0.05987424012
G67: ERC Energy Balance | H67: 2003 | I67: 2004 | J67: 2005 | K67: 2006 | L67: 2007
G68: Agriculture | H68: =SUMPRODUCT(--($E$21:$E$35=$G68),(1-$D$21:$D$35),H$21:H$35) -> 42091.02995 | I68: =SUMPRODUCT(--($E$21:$E$35=$G68),(1-$D$21:$D$35),I$21:I$35) -> 41345.54843 | J68: =SUMPRODUCT(--($E$21:$E$35=$G68),(1-$D$21:$D$35),J$21:J$35) -> 40059.44696 | K68: =SUMPRODUCT(--($E$21:$E$35=$G68),(1-$D$21:$D$35),K$21:K$35) -> 39927.45069 | L68: =SUMPRODUCT(--($E$21:$E$35=$G68),(1-$D$21:$D$35),L$21:L$35) -> 39875.618
G69: Industry Other | H69: =SUMPRODUCT(--($E$21:$E$35=$G69),(1-$D$21:$D$35),H$21:H$35) -> 9298.805026 | I69: 8522.08234 | J69: 8546.924308 | K69: 8110.132611 | L69: 9173.395445
G70: Industry Mining | H70: 26903.67931 | I70: 27041.14334 | J70: 28468.17613 | K70: 29146.61803 | L70: 29025.18107
G71: Transport (LCV+MCV+Cars+Bus) | H71: =SUMPRODUCT(--($C$21:$C$35=$G71),$D$21:$D$35,H$21:H$35) -> 143641.2998 | I71: =SUMPRODUCT(--($C$21:$C$35=$G71),$D$21:$D$35,I$21:I$35) -> 165227.7965 | J71: =SUMPRODUCT(--($C$21:$C$35=$G71),$D$21:$D$35,J$21:J$35) -> 189345.7287 | K71: =SUMPRODUCT(--($C$21:$C$35=$G71),$D$21:$D$35,K$21:K$35) -> 210896.0536 | L71: =SUMPRODUCT(--($C$21:$C$35=$G71),$D$21:$D$35,L$21:L$35) -> 251431.3113
G72: Bus (inclomplete) | H72: =SUMPRODUCT(--($C$21:$C$35=$G72),$D$21:$D$35,H$21:H$35) -> 7877.241121 | I72: 6105.008219 | J72: 6456.997919 | K72: 6876.500179 | L72: 6182.164179
G73: HCV Freight | H73: 35835.23795 | I73: 34542.67864 | J73: 32755.43022 | K73: 32084.27293 | L73: 30966.14327
G74: Rail Freight | H74: 8706.024605 | I74: 7631.390426 | J74: 2771.44673 | K74: 2941.331239 | L74: 3308.289332
G75: Total | H75: =SUM(H68:H74) -> 274353.3178 | I75: =SUM(I68:I74) -> 290415.6479 | J75: =SUM(J68:J74) -> 308404.151 | K75: =SUM(K68:K74) -> 329982.3593 | L75: =SUM(L68:L74) -> 369962.1026
I76: =(SUM(I68:I70)+I74)/I75 -> 0.2911005834 | J76: =(SUM(J68:J70)+J74)/J75 -> 0.258900517 | K76: =(SUM(K68:K70)+K74)/K75 -> 0.2428176244 | L76: =(SUM(L68:L70)+L74)/L75 -> 0.2199751901

Sheet SAPIAGasoline
C1: Gasoline | F1: Raw Units | G1: SAPIA Categories | H1: 2003 | I1: =H1+1 -> 2004 | J1: =I1+1 -> 2005 | K1: =J1+1 -> 2006 | L1: 2007
G2: Agricultural Co-ops | H2: 148635168 | I2: 147404036 | J2: 154850189 | K2: 138043197 | L2: 108330472
G3: Construction | H3: 2869427 | I3: 2778675 | J3: 7880908 | K3: 1884455 | L3: 1713351
G4: Farmers | H4: 0 | I4: 0 | J4: 0 | K4: 6693159 | L4: 5559989
G5: General Dealers | H5: 404455140 | I5: 447992882 | J5: 455948848 | K5: 414044998 | L5: 491795868
G6: Government | H6: 23534446 | I6: 19131996 | J6: 7761580 | K6: 6932794 | L6: 6953896
G7: Independant LPG Marketers | H7: 0 | I7: 0 | J7: 0 | K7: 26279924 | L7: 0
G8: Local Authorities | H8: 31485725 | I8: 25679287 | J8: 24546765 | K8: 21394260 | L8: 15602025
G9: Local marine fishing | H9: 261955 | I9: 337834 | J9: 430936 | K9: 415577 | L9: 522192
G10: Mining | H10: 17404342 | I10: 16921086 | J10: 15428739 | K10: 13589028 | L10: 12518718
G11: Public Transport (by local Auth's) | H11: 9781234 | I11: 4937727 | J11: 6088069 | K11: 689790 | L11: 945291
G12: Public Transport (non local Auth's) | H12: 0 | I12: 0 | J12: 0 | K12: 1716027 | L12: 1157974
G13: Remainder of General Trade | H13: 91200002 | I13: 157143200 | J13: 173824009 | K13: 227053760 | L13: 421226881
G14: Retail - garages | H14: 9912650001 | I14: 10125383790 | J14: 10297975730 | K14: 10398005512 | L14: 10524882500
G15: Road Haulage | H15: 25172050 | I15: 32569460 | J15: 26032734 | K15: 19608100 | L15: 12079429
G16: Transnet | H16: 1038271 | I16: 93207 | J16: 2144 | K16: 8000 | L16: 1561
G17: Total | H17: =SUM(H2:H16) -> 10668487761 | I17: =SUM(I2:I16) -> 10980373180 | J17: =SUM(J2:J16) -> 11170770651 | K17: =SUM(K2:K16) -> 11276358581 | L17: =SUM(L2:L16) -> 11603290147
G19: Gasoline TJ | H19: 2003 | I19: 2004 | J19: 2005 | K19: 2006 | L19: 2007
C20: ERC categories | D20: ERC Coeff | E20: ERC remainder | F20: DME EB Categories | G20: Conversion | H20: 34.2 | I20: 34.2 | J20: 34.2 | K20: 34.2 | L20: 34.2
C21: =$G$71 -> Transport (LCV+MBT+Cars) | D21: 1 | F21: Agriculture | G21: Agricultural Co-ops | H21: =H2*H$20/1000000 -> 5083.322746 | I21: 5041.218031 | J21: 5295.876464 | K21: 4721.077337 | L21: 3704.902142
C22: Transport (LCV+MBT+Cars) | D22: 1 | F22: Construction | G22: Construction | H22: 98.1344034 | I22: 95.030685 | J22: 269.5270536 | K22: 64.448361 | L22: 58.5966042
C23: Transport (LCV+MBT+Cars) | D23: 1 | F23: Agriculture | G23: Farmers | H23: 0 | I23: 0 | J23: 0 | K23: 228.9060378 | L23: 190.1516238
C24: Transport (LCV+MBT+Cars) | D24: 1 | F24: Road | G24: General Dealers | H24: 13832.36579 | I24: 15321.35656 | J24: 15593.4506 | K24: 14160.33893 | L24: 16819.41869
C25: Transport (LCV+MBT+Cars) | D25: 1 | F25: Commerce and Public Services | G25: Government | H25: 804.8780532 | I25: 654.3142632 | J25: 265.446036 | K25: 237.1015548 | L25: 237.8232432
C26: Transport (LCV+MBT+Cars) | D26: 1 | F26: Road | G26: Independant LPG Marketers | H26: 0 | I26: 0 | J26: 0 | K26: 898.7734008 | L26: 0
C27: Transport (LCV+MBT+Cars) | D27: 1 | F27: Residential | G27: Local Authorities | H27: 1076.811795 | I27: 878.2316154 | J27: 839.499363 | K27: 731.683692 | L27: 533.589255
C28: Transport (LCV+MBT+Cars) | D28: 1 | F28: Agriculture | G28: Local marine fishing | H28: 8.958861 | I28: 11.5539228 | J28: 14.7380112 | K28: 14.2127334 | L28: 17.8589664
C29: Transport (LCV+MBT+Cars) | D29: 1 | F29: Mining and Quarrying | G29: Mining | H29: 595.2284964 | I29: 578.7011412 | J29: 527.6628738 | K29: 464.7447576 | L29: 428.1401556
C30: =$G$72 -> Bus (inclomplete) | D30: 1 | F30: Road | G30: Public Transport (by local Auth's) | H30: 334.5182028 | I30: 168.8702634 | J30: 208.2119598 | K30: 23.590818 | L30: 32.3289522
C31: =$G$72 -> Bus (inclomplete) | D31: 1 | F31: Road | G31: Public Transport (non local Auth's) | H31: 0 | I31: 0 | J31: 0 | K31: 58.6881234 | L31: 39.6027108
C32: =$G$71 -> Transport (LCV+MBT+Cars) | D32: 1 | F32: Road | G32: Remainder of General Trade | H32: 3119.040068 | I32: 5374.29744 | J32: 5944.781108 | K32: 7765.238592 | L32: 14405.95933
C33: =$G$71 -> Transport (LCV+MBT+Cars) | D33: 1 | F33: Road | G33: Retail - garages | H33: 339012.63 | I33: 346288.1256 | J33: 352190.77 | K33: 355611.7885 | L33: 359950.9815
C34: =$G$73 -> HCV Freight | D34: 1 | F34: Road | G34: Road Haulage | H34: 860.88411 | I34: 1113.875532 | J34: 890.3195028 | K34: 670.59702 | L34: 413.1164718
C35: =$G$74 -> Rail Freight | D35: 1 | F35: Rail | G35: Transnet | H35: 35.5088682 | I35: 3.1876794 | J35: 0.0733248 | K35: 0.2736 | L35: 0.0533862
G36: Total | H36: =SUM(H21:H35) -> 364862.2814 | I36: =SUM(I21:I35) -> 375528.7628 | J36: =SUM(J21:J35) -> 382040.3563 | K36: =SUM(K21:K35) -> 385651.4635 | L36: =SUM(L21:L35) -> 396832.523
G38: SAPIA EB categories | H38: 2003 | I38: 2004 | J38: 2005 | K38: 2006 | L38: 2007
G39: Agriculture | H39: =SUMIF($F$21:$F$35,$G39,H$21:H$35) -> 5092.281607 | I39: 5052.771954 | J39: 5310.614475 | K39: 4964.196109 | L39: 3912.912733
G40: Construction | H40: 98.1344034 | I40: 95.030685 | J40: 269.5270536 | K40: 64.448361 | L40: 58.5966042
G41: Road | H41: 357159.4382 | I41: 368266.5254 | J41: 374827.5331 | K41: 379189.0154 | L41: 391661.4077
G42: Commerce and Public Services | H42: 804.8780532 | I42: 654.3142632 | J42: 265.446036 | K42: 237.1015548 | L42: 237.8232432
G43: Residential | H43: 1076.811795 | I43: 878.2316154 | J43: 839.499363 | K43: 731.683692 | L43: 533.589255
G44: Mining and Quarrying | H44: 595.2284964 | I44: 578.7011412 | J44: 527.6628738 | K44: 464.7447576 | L44: 428.1401556
G45: Rail | H45: 35.5088682 | I45: 3.1876794 | J45: 0.0733248 | K45: 0.2736 | L45: 0.0533862
G48: DME Energy Balances | H48: 2003 | I48: 2004 | J48: 2005 | K48: 2006 | L48: 2007
G49: Agriculture | H49: 5092.281607 | I49: 5053.593643 | J49: 5310.614475 | K49: 4964.196109
G50: Construction | H50: 98.1344034 | I50: 95.030685 | J50: 269.5270536 | K50: 64.448361
G51: Road | H51: 357205.2488 | I51: 378929.1526 | J51: 374594.647 | K51: 379688.8397
G52: Commerce and Public Services | H52: 804.8780532 | I52: 658.1620368 | J52: 265.446036 | K52: 237.1015548
G53: Residential | H53: 1046.794147 | I53: 858.4596036 | J53: 836.618526 | K53: 672.9642414
G54: Mining and Quarrying | H54: 595.2284964 | I54: 578.7011412 | J54: 527.2182054 | K54: 464.7447918
G55: Rail | H55: 35.5088682 | I55: 4.838445 | J55: 0.0733248 | K55: 0.2736
G56: Total | H56: =SUM(H49:H55) -> 364878.0744 | I56: =SUM(I49:I55) -> 386177.9382 | J56: =SUM(J49:J55) -> 381804.1447 | K56: =SUM(K49:K55) -> 386092.5683
G58: % difference (EB-SAPIA)/SAPIA | H58: 2003 | I58: 2004 | J58: 2005 | K58: 2006
G59: Agriculture | H59: =H49/H39-1 -> 0 | I59: 0.0001626214695 | J59: 0 | K59: 0
G60: Construction | H60: 0 | I60: 0 | J60: 0 | K60: 0
G61: Road | H61: 0.000128263799 | I61: 0.02895356069 | J61: -0.0006213153422 | K61: 0.001318140185
G62: Commerce and Public Services | H62: 0 | I62: 0.005880620088 | J62: 0 | K62: 0
G63: Residential | H63: -0.02787641066 | I63: -0.02251343661 | J63: -0.003431613086 | K63: -0.08025250698
G64: Mining and Quarrying | H64: 0 | I64: 0 | J64: -0.0008427130694 | K64: 7.35887804e-08
G65: Rail | H65: 0 | I65: 0.5178581008 | J65: 0 | K65: 0
G67: ERC Energy Balance | H67: 2003 | I67: 2004 | J67: 2005 | K67: 2006 | L67: 2007
G68: Agriculture | H68: =SUMPRODUCT(--($E$21:$E$35=$G68),(1-$D$21:$D$35),H$21:H$35) -> 0 | I68: =SUMPRODUCT(--($E$21:$E$35=$G68),(1-$D$21:$D$35),I$21:I$35) -> 0 | J68: =SUMPRODUCT(--($E$21:$E$35=$G68),(1-$D$21:$D$35),J$21:J$35) -> 0 | K68: =SUMPRODUCT(--($E$21:$E$35=$G68),(1-$D$21:$D$35),K$21:K$35) -> 0 | L68: =SUMPRODUCT(--($E$21:$E$35=$G68),(1-$D$21:$D$35),L$21:L$35) -> 0
G69: Industry Other | H69: =SUMPRODUCT(--($E$21:$E$35=$G69),(1-$D$21:$D$35),H$21:H$35) -> 0 | I69: 0 | J69: 0 | K69: 0 | L69: 0
G70: Industry Mining | H70: 0 | I70: 0 | J70: 0 | K70: 0 | L70: 0
G71: Transport (LCV+MBT+Cars) | H71: =SUMPRODUCT(--($C$21:$C$35=$G71),$D$21:$D$35,H$21:H$35) -> 363631.3702 | I71: =SUMPRODUCT(--($C$21:$C$35=$G71),$D$21:$D$35,I$21:I$35) -> 374242.8293 | J71: =SUMPRODUCT(--($C$21:$C$35=$G71),$D$21:$D$35,J$21:J$35) -> 380941.7515 | K71: =SUMPRODUCT(--($C$21:$C$35=$G71),$D$21:$D$35,K$21:K$35) -> 384898.3139 | L71: =SUMPRODUCT(--($C$21:$C$35=$G71),$D$21:$D$35,L$21:L$35) -> 396347.4215
G72: Bus (inclomplete) | H72: =SUMPRODUCT(--($C$21:$C$35=$G72),$D$21:$D$35,H$21:H$35) -> 334.5182028 | I72: 168.8702634 | J72: 208.2119598 | K72: 82.2789414 | L72: 71.931663
G73: HCV Freight | H73: 860.88411 | I73: 1113.875532 | J73: 890.3195028 | K73: 670.59702 | L73: 413.1164718
G74: Rail Freight | H74: 35.5088682 | I74: 3.1876794 | J74: 0.0733248 | K74: 0.2736 | L74: 0.0533862
G75: Total | H75: =SUM(H68:H74) -> 364862.2814 | I75: =SUM(I68:I74) -> 375528.7628 | J75: =SUM(J68:J74) -> 382040.3563 | K75: =SUM(K68:K74) -> 385651.4635 | L75: =SUM(L68:L74) -> 396832.523

Sheet NAAMSANational
C1: Description
C2: Query Criteria
C3: Market(s): Passenger, Light CV < 3501kg, Medium CV 3501-8500kg, Heavy CV 8501-16500kg, Extra Heavy CV > 16500kg, Bus > 8500kg | E3: SALES
C4: Output by: Market, Bodyshape, Fuel Type
C5: Periods: 1995 Year, 1996 Year, 1997 Year, 1998 Year, 1999 Year, 2000 Year, 2001 Year, 2002 Year, 2003 Year, 2004 Year, 2005 Year, 2006 Year, 2007 YTD
C6: Channel(s):
C7: Main Channel: Dealer, Government, Rental, Single Units, Fleet
C9: Query Result
A10: Model Category | B10: Category&Fuel | C10: Market | D10: Bodyshape | E10: Fuel Type | F10: 1995 Year | G10: 1996 Year | H10: 1997 Year | I10: 1998 Year | J10: 1999 Year | K10: 2000 Year | L10: 2001 Year | M10: 2002 Year | N10: 2003 Year | O10: 2004 Year | P10: 2005 Year | Q10: 2006 Year | R10: 2007 YTD Aug
A11: =$A$63 -> BUS | B11: =A11&E11 -> BUSDiesel | C11: BUS | D11: Bus | E11: Diesel | F11: 362 | G11: 533 | H11: 405 | I11: 418 | J11: 445 | K11: 727 | L11: 836 | M11: 1077 | N11: 848 | O11: 955 | P11: 1034 | Q11: 1250 | R11: 714
A12: =$A$66 -> HCV | B12: =A12&E12 -> HCVDiesel | C12: HCV | D12: Freight Carrier | E12: Diesel | F12: 2957 | G12: 2765 | H12: 2581 | I12: 2681 | J12: 2306 | K12: 2385 | L12: 2423 | M12: 2351 | N12: 2802 | O12: 3444 | P12: 4754 | Q12: 6121 | R12: 4422
A13: =$A$67 -> XHV | B13: XHVDiesel | C13: HCV | D13: Other | E13: Diesel | F13: 1 | G13: 2 | H13: 3 | I13: 3 | K13: 7 | L13: 3 | M13: 2 | O13: 2 | P13: 6 | Q13: 3 | R13: 2
A14: =$A$66 -> HCV | B14: HCVDiesel | C14: HCV | D14: Tipper | E14: Diesel | F14: 231 | G14: 226 | H14: 182 | I14: 154 | J14: 140 | K14: 170 | L14: 181 | M14: 189 | N14: 287 | O14: 261 | P14: 374 | Q14: 530 | R14: 478
A15: =$A$67 -> XHV | B15: XHVDiesel | C15: HCV | D15: Truck-Tractor | E15: Diesel | F15: 93 | G15: 228 | H15: 167 | I15: 155 | J15: 89 | K15: 69 | L15: 28 | M15: 37 | N15: 10 | O15: 14 | P15: 42 | Q15: 40 | R15: 32
A16: =$A$64 -> LCV | B16: LCVDiesel | C16: LCV | D16: Double Cab Pick-Up | E16: Diesel | F16: 4272 | G16: 6727 | H16: 8237 | I16: 9507 | J16: 10856 | K16: 15314 | L16: 15611 | M16: 15102 | N16: 14599 | O16: 15644 | P16: 21980 | Q16: 23869 | R16: 18042
A17: =$A$64 -> LCV | B17: LCVPetrol | C17: LCV | D17: Double Cab Pick-Up | E17: Petrol | F17: 6157 | G17: 7244 | H17: 6933 | I17: 8516 | J17: 9303 | K17: 11139 | L17: 8778 | M17: 7096 | N17: 8251 | O17: 11579 | P17: 13026 | Q17: 13507 | R17: 8473
A18: =$A$64 -> LCV | B18: LCVDiesel | C18: LCV | D18: Extended Cab Pick-Up | E18: Diesel | L18: 862 | M18: 2329 | N18: 2471 | O18: 4701 | P18: 6409 | Q18: 6960 | R18: 4171
A19: =$A$64 -> LCV | B19: LCVPetrol | C19: LCV | D19: Extended Cab Pick-Up | E19: Petrol | L19: 407 | M19: 480 | N19: 451 | O19: 1511 | P19: 1881 | Q19: 1523 | R19: 1498
A20: =$A$62 -> MBT | B20: MBTDiesel | C20: LCV | D20: Minibus | E20: Diesel | F20: 99 | G20: 973 | H20: 490 | I20: 245 | J20: 110 | K20: 19 | P20: 874 | Q20: 1893 | R20: 2027
A21: =$A$62 -> MBT | B21: MBTPetrol | C21: LCV | D21: Minibus | E21: Petrol | F21: 16281 | G21: 12751 | H21: 9448 | I21: 10098 | J21: 7928 | K21: 5485 | L21: 6198 | M21: 7416 | N21: 5502 | O21: 7886 | P21: 10917 | Q21: 12436 | R21: 9820
A22: =$A$64 -> LCV | B22: LCVDiesel | C22: LCV | D22: Panel Van | E22: Diesel | F22: 145 | H22: 4 | M22: 336 | N22: 779 | O22: 1556 | P22: 2681 | Q22: 3693 | R22: 2453
A23: =$A$64 -> LCV | B23: LCVPetrol | C23: LCV | D23: Panel Van | E23: Petrol | F23: 3976 | G23: 3820 | H23: 2457 | I23: 3711 | J23: 2680 | K23: 2396 | L23: 3426 | M23: 3145 | N23: 2963 | O23: 2820 | P23: 3552 | Q23: 3357 | R23: 2713
A24: =$A$64 -> LCV | B24: LCVDiesel | C24: LCV | D24: Single Cab Pick-Up | E24: Diesel | F24: 28769 | G24: 31782 | H24: 29366 | I24: 23382 | J24: 22919 | K24: 24295 | L24: 26273 | M24: 25564 | N24: 25309 | O24: 26449 | P24: 31263 | Q24: 39350 | R24: 27353
A25: =$A$64 -> LCV | B25: LCVPetrol | C25: LCV | D25: Single Cab Pick-Up | E25: Petrol | F25: 55118 | G25: 50947 | H25: 42656 | I25: 43628 | J25: 42385 | K25: 46590 | L25: 53690 | M25: 43333 | N25: 44574 | O25: 55486 | P25: 68140 | Q25: 80076 | R25: 55619
A26: =$A$63 -> BUS | B26: BUSDiesel | C26: MCV | D26: Bus | E26: Diesel | F26: 53 | G26: 40 | H26: 10 | I26: 2 | J26: 18 | K26: 44 | L26: 101 | M26: 142 | N26: 85 | O26: 99 | P26: 402 | Q26: 691 | R26: 493
A27: =$A$65 -> MCV | B27: MCVDiesel | C27: MCV | D27: Freight Carrier | E27: Diesel | F27: 3399 | G27: 3801 | H27: 3389 | I27: 3401 | J27: 3415 | K27: 3945 | L27: 3712 | M27: 4030 | N27: 4663 | O27: 6196 | P27: 8935 | Q27: 9698 | R27: 6394
A28: =$A$65 -> MCV | B28: MCVPetrol | C28: MCV | D28: Freight Carrier | E28: Petrol | F28: 308 | G28: 213 | H28: 180 | I28: 107 | J28: 148 | K28: 92 | L28: 64 | M28: 21 | N28: 21
A29: =$A$65 -> MCV | B29: MCVDiesel | C29: MCV | D29: Panel Van | E29: Diesel | F29: 10 | G29: 931 | H29: 1524 | I29: 1608 | J29: 1304 | K29: 1338 | L29: 1724 | M29: 1527 | N29: 1603 | O29: 2341 | P29: 2906 | Q29: 3857 | R29: 3140
A30: =$A$65 -> MCV | B30: MCVPetrol | C30: MCV | D30: Panel Van | E30: Petrol | H30: 1
A31: =$A$65 -> MCV | B31: MCVDiesel | C31: MCV | D31: Tipper | E31: Diesel | R31: 20
A32: =$A$61 -> CAR | B32: CARDiesel | C32: PAS | D32: Cabriolet | E32: Diesel | P32: 193 | Q32: 92 | R32: 24
A33: =$A$61 -> CAR | B33: CARPetrol | C33: PAS | D33: Cabriolet | E33: Petrol | F33: 1998 | G33: 1153 | H33: 1505 | I33: 1390 | J33: 1089 | K33: 1369 | L33: 2571 | M33: 2409 | N33: 2801 | O33: 3784 | P33: 5587 | Q33: 5327 | R33: 3555
A34: CAR | B34: CARDiesel | C34: PAS | D34: Coupe | E34: Diesel | P34: 179 | Q34: 157 | R34: 47
A35: CAR | B35: CARPetrol | C35: PAS | D35: Coupe | E35: Petrol | F35: 2031 | G35: 922 | H35: 458 | I35: 435 | J35: 370 | K35: 1665 | L35: 2377 | M35: 4329 | N35: 3593 | O35: 3574 | P35: 2684 | Q35: 2717 | R35: 2911
A36: CAR | B36: CARDiesel | C36: PAS | D36: Estate | E36: Diesel | I36: 3 | J36: 7 | K36: 2 | L36: 3 | M36: 355 | N36: 616 | O36: 566 | P36: 629 | Q36: 646 | R36: 431
A37: CAR | B37: CARPetrol | C37: PAS | D37: Estate | E37: Petrol | F37: 3152 | G37: 3561 | H37: 3399 | I37: 3006 | J37: 2437 | K37: 2634 | L37: 4263 | M37: 3610 | N37: 3094 | O37: 2632 | P37: 3223 | Q37: 2623 | R37: 1193
A38: CAR | B38: CARDiesel | C38: PAS | D38: Hatch (3-dr) | E38: Diesel | N38: 512 | O38: 3121 | P38: 2376 | Q38: 3290 | R38: 1408
A39: CAR | B39: CARPetrol | C39: PAS | D39: Hatch (3-dr) | E39: Petrol | F39: 7747 | G39: 10503 | H39: 20009 | I39: 16930 | J39: 17004 | K39: 19257 | L39: 17060 | M39: 16542 | N39: 14110 | O39: 18202 | P39: 23255 | Q39: 28016 | R39: 19317
A40: CAR | B40: CARDiesel | C40: PAS | D40: Hatch (5-dr) | E40: Diesel | J40: 79 | K40: 885 | L40: 1538 | M40: 2080 | N40: 3126 | O40: 4938 | P40: 8018 | Q40: 9493 | R40: 5903
A41: CAR | B41: CARPetrol | C41: PAS | D41: Hatch (5-dr) | E41: Petrol | F41: 71993 | G41: 81447 | H41: 67224 | I41: 62669 | J41: 63756 | K41: 69513 | L41: 77786 | M41: 72056 | N41: 83309 | O41: 110980 | P41: 154432 | Q41: 175832 | R41: 98205
A42: CAR | B42: CARDiesel | C42: PAS | D42: Leisure | E42: Diesel | F42: 813 | G42: 1986 | H42: 2275 | I42: 5125 | J42: 4639 | K42: 6721 | L42: 5778 | M42: 7685 | N42: 7983 | O42: 8228 | P42: 12003 | Q42: 16651 | R42: 14874
A43: CAR | B43: CARPetrol | C43: PAS | D43: Leisure | E43: Petrol | F43: 3561 | G43: 4397 | H43: 5230 | I43: 7950 | J43: 8080 | K43: 7154 | L43: 7386 | M43: 7706 | N43: 8640 | O43: 12984 | P43: 18710 | Q43: 20882 | R43: 13878
A44: CAR | B44: CARPetrol | C44: PAS | D44: Minibus | E44: Petrol | G44: 48 | H44: 97 | I44: 44 | J44: 1
A45: =$A$61 -> CAR | B45: CARDiesel | C45: PAS | D45: MPV | E45: Diesel | J45: 31 | K45: 1011 | L45: 1037 | M45: 1144 | N45: 3301 | O45: 5198 | P45: 7868 | Q45: 7560 | R45: 4260
A46: =$A$61 -> CAR | B46: CARPetrol | C46: PAS | D46: MPV | E46: Petrol | F46: 271 | G46: 94 | H46: 599 | I46: 803 | J46: 1104 | K46: 9203 | L46: 13275 | M46: 11622 | N46: 10386 | O46: 15140 | P46: 15892 | Q46: 17244 | R46: 16408
A47: =$A$61 -> CAR | B47: CARDiesel | C47: PAS | D47: Sedan | E47: Diesel | F47: 763 | G47: 1531 | H47: 1536 | I47: 1035 | J47: 524 | K47: 2513 | L47: 7638 | M47: 10782 | N47: 12686 | O47: 11138 | P47: 12964 | Q47: 14125 | R47: 8838
A48: =$A$61 -> CAR | B48: CARPetrol | C48: PAS | D48: Sedan | E48: Petrol | F48: 133949 | G48: 118131 | H48: 107937 | I48: 104432 | J48: 90249 | K48: 102195 | L48: 98348 | M48: 91282 | N48: 93102 | O48: 100681 | P48: 108832 | Q48: 122157 | R48: 70868
A49: =$A$66 -> HCV | B49: HCVDiesel | C49: XHV | D49: Freight Carrier | E49: Diesel | F49: 253 | G49: 355 | H49: 320 | I49: 315 | J49: 320 | K49: 349 | L49: 538 | M49: 620 | N49: 945 | O49: 1219 | P49: 1528 | Q49: 1964 | R49: 1434
A50: =$A$66 -> HCV | B50: HCVDiesel | C50: XHV | D50: Mixer | E50: Diesel | F50: 65 | G50: 70 | H50: 57 | I50: 49 | J50: 18 | K50: 72 | L50: 102 | M50: 107 | N50: 219 | O50: 363 | P50: 594 | Q50: 713 | R50: 570
A51: =$A$67 -> XHV | B51: XHVDiesel | C51: XHV | D51: Other | E51: Diesel | G51: 1 | H51: 1 | I51: 10 | J51: 15 | L51: 1 | O51: 1 | P51: 3 | Q51: 2 | R51: 5
A52: =$A$66 -> HCV | B52: HCVDiesel | C52: XHV | D52: Tipper | E52: Diesel | F52: 129 | G52: 138 | H52: 85 | I52: 143 | J52: 90 | K52: 109 | L52: 161 | M52: 230 | N52: 277 | O52: 368 | P52: 683 | Q52: 1181 | R52: 1133
A53: =$A$67 -> XHV | B53: XHVDiesel | C53: XHV | D53: Truck-Tractor | E53: Diesel | F53: 2719 | G53: 3062 | H53: 2380 | I53: 2465 | J53: 1928 | K53: 2418 | L53: 2819 | M53: 3372 | N53: 4567 | O53: 5551 | P53: 6145 | Q53: 7030 | R53: 5530
C54: Total | F54: 351675 | G54: 350382 | H54: 321145 | I54: 314420 | J54: 295787 | K54: 341085 | L54: 366998 | M54: 350108 | N54: 368485 | O54: 449612 | P54: 564974 | Q54: 646556 | R54: 418656
F55: =SUM(F61:F62,F64) -> 341095 | G55: 338017 | H55: 309860 | I55: 302909 | J55: 285551 | K55: 329360
F56: =SUM(F57:F59) -> 370758 | G56: 384272 | H56: 358773 | I56: 307231 | J56: 289253 | K56: 332546
C57: © NAAMSA and Response Group Trendline | E57: taxis | F57: 5779 | G57: 4860 | H57: 4657 | I57: 4333 | J57: 3712 | K57: 3189
E58: lcv | F58: 128397 | G58: 129575 | H58: 114354 | I58: 99078 | J58: 96168 | K58: 105235
E59: car | F59: 236582 | G59: 249837 | H59: 239762 | I59: 203820 | J59: 189373 | K59: 224122
A60: Model Categories | F60: 1995 | G60: =F60+1 -> 1996 | H60: =G60+1 -> 1997 | I60: 1998 | J60: 1999 | K60: 2000 | L60: 2001 | M60: 2002 | N60: 2003 | O60: 2004 | P60: 2005 | Q60: 2006 | R60: 2007
A61: CAR | C61: Private Car | F61: =SUMIF($A$11:$A$53,$A61,F$11:F$53) -> 226278 | G61: =SUMIF($A$11:$A$53,$A61,G$11:G$53) -> 223773 | H61: 210269 | I61: 203822 | J61: 189370 | K61: 224122 | L61: 239060 | M61: 231602 | N61: 247259 | O61: 301166 | P61: 376845 | Q61: 426812 | R61: =SUMIF($A$11:$A$53,$A61,R$11:R$53)*13/8 -> 425945
A62: MBT | C62: Minibus Taxi | F62: =SUMIF($A$11:$A$53,$A62,F$11:F$53) -> 16380 | G62: 13724 | H62: 9938 | I62: 10343 | J62: 8038 | K62: 5504 | L62: 6198 | M62: 7416 | N62: 5502 | O62: 7886 | P62: 11791 | Q62: 14329 | R62: =SUMIF($A$11:$A$53,$A62,R$11:R$53)*13/8 -> 19251.375
A63: BUS | C63: Bus | F63: 415 | G63: 573 | H63: 415 | I63: 420 | J63: 463 | K63: 771 | L63: 937 | M63: 1219 | N63: 933 | O63: 1054 | P63: 1436 | Q63: 1941 | R63: 1961.375
A64: LCV | C64: Light Commercial Vehicles (Pickups, MPV's SUV's) | F64: 98437 | G64: 100520 | H64: 89653 | I64: 88744 | J64: 88143 | K64: 99734 | L64: 109047 | M64: 97385 | N64: 99397 | O64: 119746 | P64: 148932 | Q64: 172335 | R64: 195523.25
A65: MCV | C65: Medium Commercial Vehicles | F65: 3717 | G65: 4945 | H65: 5094 | I65: 5116 | J65: 4867 | K65: 5375 | L65: 5500 | M65: 5578 | N65: 6287 | O65: 8537 | P65: 11841 | Q65: 13555 | R65: 15525.25
A66: HCV | C66: Heavy Commercial Vehicles | F66: 3635 | G66: 3554 | H66: 3225 | I66: 3342 | J66: 2874 | K66: 3085 | L66: 3405 | M66: 3497 | N66: 4530 | O66: 5655 | P66: 7933 | Q66: 10509 | R66: 13060.125
A67: XHV | C67: Special vehicles | F67: 2813 | G67: 3293 | H67: 2551 | I67: 2633 | J67: 2032 | K67: 2494 | L67: 2851 | M67: 3411 | N67: 4577 | O67: 5568 | P67: 6196 | Q67: =SUMIF($A$11:$A$53,$A67,Q$11:Q$53) -> 7075 | R67: 9049.625
A69: Model Categories | B69: Petrol | F69: =F60 -> 1995 | G69: =G60 -> 1996 | H69: 1997 | I69: 1998 | J69: 1999 | K69: 2000 | L69: 2001 | M69: 2002 | N69: 2003 | O69: 2004 | P69: 2005 | Q69: 2006 | R69: 2007 | T69: 1995 | U69: 1996 | V69: 1997 | W69: 1998 | X69: 1999 | Y69: 2000 | Z69: 2001 | AA69: 2002 | AB69: 2003 | AC69: 2004 | AD69: 2005 | AE69: 2006
A70: =A61 -> CAR | B70: =A70&$B$69 -> CARPetrol | C70: =C61 -> Private Car | F70: =SUMIF($B$11:$B$53,$B70,F$11:F$53) -> 224702 | G70: =SUMIF($B$11:$B$53,$B70,G$11:G$53) -> 220256 | H70: 206458 | I70: 197659 | J70: 184090 | K70: 212990 | L70: 223066 | M70: 209556 | N70: 219035 | O70: 267977 | P70: 332615 | Q70: 374798 | R70: =SUMIF($B$11:$B$53,$B70,R$11:R$53)*13/8 -> 367794.375 | U70: =G70/F70-1 -> -0.01978620573 | V70: =H70/G70-1 -> -0.06264528549 | W70: -0.04261883773 | X70: -0.06864853106 | Y70: 0.1569884296 | Z70: 0.04730738532 | AA70: -0.06056503456 | AB70: 0.04523373227 | AC70: 0.2234437419 | AD70: 0.2412072678 | AE70: 0.1268223021
A71: =A62 -> MBT | B71: =A71&$B$69 -> MBTPetrol | C71: =C62 -> Minibus Taxi | F71: =SUMIF($B$11:$B$53,$B71,F$11:F$53) -> 16281 | G71: 12751 | H71: 9448 | I71: 10098 | J71: 7928 | K71: 5485 | L71: 6198 | M71: 7416 | N71: 5502 | O71: 7886 | P71: 10917 | Q71: 12436 | R71: =SUMIF($B$11:$B$53,$B71,R$11:R$53)*13/8 -> 15957.5 | U71: =G71/F71-1 -> -0.2168171488 | V71: -0.2590385068 | W71: 0.06879762913 | X71: -0.2148940384 | Y71: -0.308148335 | Z71: 0.1299908842 | AA71: 0.1965150048 | AB71: -0.2580906149 | AC71: 0.4332969829 | AD71: 0.3843520162 | AE71: 0.1391407896
A72: BUS | B72: BUSPetrol | C72: Bus | F72: 0 | G72: 0 | H72: 0 | I72: 0 | J72: 0 | K72: 0 | L72: 0 | M72: 0 | N72: 0 | O72: 0 | P72: 0 | Q72: 0 | R72: =SUMIF($B$11:$B$53,$B72,R$11:R$53)*13/8 -> 0
A73: LCV | B73: LCVPetrol | C73: Light Commercial Vehicles (Pickups, MPV's SUV's) | F73: 65251 | G73: 62011 | H73: 52046 | I73: 55855 | J73: 54368 | K73: 60125 | L73: 66301 | M73: 54054 | N73: 56239 | O73: 71396 | P73: 86599 | Q73: 98463 | R73: =SUMIF($B$11:$B$53,$B73,R$11:R$53)*13/8 -> 110992.375 | U73: -0.04965441143 | V73: -0.1606972956 | W73: 0.07318525919 | X73: -0.0266225047 | Y73: 0.1058894938 | Z73: 0.1027193347 | AA73: -0.1847181792 | AB73: 0.04042254042 | AC73: 0.269510482 | AD73: 0.2129391002 | AE73: 0.1369992725
A74: MCV | B74: MCVPetrol | C74: Medium Commercial Vehicles | F74: 308 | G74: 213 | H74: 181 | I74: 107 | J74: 148 | K74: 92 | L74: 64 | M74: 21 | N74: 21 | O74: 0 | P74: 0 | Q74: 0 | R74: 0 | U74: -0.3084415584 | V74: -0.1502347418 | W74: -0.408839779 | X74: 0.3831775701 | Y74: -0.3783783784 | Z74: -0.3043478261 | AA74: -0.671875 | AB74: 0 | AC74: -1
A75: HCV | B75: HCVPetrol | C75: Heavy Commercial Vehicles | F75: 0 | G75: 0 | H75: 0 | I75: 0 | J75: 0 | K75: 0 | L75: 0 | M75: 0 | N75: 0 | O75: 0 | P75: 0 | Q75: 0 | R75: 0
A76: XHV | B76: XHVPetrol | C76: Special vehicles | F76: 0 | G76: 0 | H76: 0 | I76: 0 | J76: 0 | K76: 0 | L76: 0 | M76: 0 | N76: 0 | O76: 0 | P76: 0 | Q76: 0 | R76: 0
C77: Total | F77: =SUM(F70:F76) -> 306542 | G77: =SUM(G70:G76) -> 295231 | H77: 268133 | I77: 263719 | J77: 246534 | K77: 278692 | L77: 295629 | M77: 271047 | N77: 280797 | O77: 347259 | P77: 430131 | Q77: 485697 | R77: 494744.25 | S77: sales 2000-2006 | U77: -0.03689869577 | V77: -0.09178575421 | W77: -0.01646197969 | X77: -0.0651640572 | Y77: 0.1304404261 | Z77: 0.0607731833 | AA77: -0.08315151761 | AB77: 0.03597162116 | AC77: 0.2366905629 | AD77: 0.2386460826 | AE77: 0.1291838998
A78: Model Categories | B78: Diesel | F78: =F69 -> 1995 | G78: =G69 -> 1996 | H78: 1997 | I78: 1998 | J78: 1999 | K78: 2000 | L78: 2001 | M78: 2002 | N78: 2003 | O78: 2004 | P78: 2005 | Q78: 2006 | R78: 2007
A79: =A70 -> CAR | B79: =A79&$B$78 -> CARDiesel | C79: =C70 -> Private Car | F79: =SUMIF($B$11:$B$53,$B79,F$11:F$53) -> 1576 | G79: =SUMIF($B$11:$B$53,$B79,G$11:G$53) -> 3517 | H79: 3811 | I79: 6163 | J79: 5280 | K79: 11132 | L79: 15994 | M79: 22046 | N79: 28224 | O79: 33189 | P79: 44230 | Q79: 52014 | R79: =SUMIF($B$11:$B$53,$B79,R$11:R$53)*13/8 -> 58150.625
A80: =A71 -> MBT | B80: =A80&$B$78 -> MBTDiesel | C80: =C71 -> Minibus Taxi | F80: =SUMIF($B$11:$B$53,$B80,F$11:F$53) -> 99 | G80: 973 | H80: 490 | I80: 245 | J80: 110 | K80: 19 | L80: 0 | M80: 0 | N80: 0 | O80: 0 | P80: 874 | Q80: 1893 | R80: =SUMIF($B$11:$B$53,$B80,R$11:R$53)*13/8 -> 3293.875
A81: BUS | B81: BUSDiesel | C81: Bus | F81: 415 | G81: 573 | H81: 415 | I81: 420 | J81: 463 | K81: 771 | L81: 937 | M81: 1219 | N81: 933 | O81: 1054 | P81: 1436 | Q81: 1941 | R81: 1961.375
A82: LCV | B82: LCVDiesel | C82: Light Commercial Vehicles (Pickups, MPV's SUV's) | F82: 33186 | G82: 38509 | H82: 37607 | I82: 32889 | J82: 33775 | K82: 39609 | L82: 42746 | M82: 43331 | N82: 43158 | O82: 48350 | P82: 62333 | Q82: 73872 | R82: 84530.875
A83: MCV | B83: MCVDiesel | C83: Medium Commercial Vehicles | F83: 3409 | G83: 4732 | H83: 4913 | I83: 5009 | J83: 4719 | K83: 5283 | L83: 5436 | M83: 5557 | N83: 6266 | O83: 8537 | P83: 11841 | Q83: 13555 | R83: 15525.25 | T83: =SUM(L83:Q83) -> 51192
A84: HCV | B84: HCVDiesel | C84: Heavy Commercial Vehicles | F84: 3635 | G84: 3554 | H84: 3225 | I84: 3342 | J84: 2874 | K84: 3085 | L84: 3405 | M84: 3497 | N84: 4530 | O84: 5655 | P84: 7933 | Q84: 10509 | R84: 13060.125 | T84: =SUM(L84:Q84) -> 35529 | U84: =T84+T85 -> 65207
A85: XHV | B85: XHVDiesel | C85: Special vehicles | F85: 2813 | G85: 3293 | H85: 2551 | I85: 2633 | J85: 2032 | K85: 2494 | L85: 2851 | M85: 3411 | N85: 4577 | O85: 5568 | P85: 6196 | Q85: 7075 | R85: 9049.625 | T85: =SUM(L85:Q85) -> 29678
C86: Total | F86: =SUM(F79:F85) -> 45133 | G86: 55151 | H86: 53012 | I86: 50701 | J86: 49253 | K86: 62393 | L86: 71369 | M86: 79061 | N86: 87688 | O86: 102353 | P86: 134843 | Q86: 160859 | R86: 185571.75
F88: =F70+F79+F73+F82 -> 324715 | G88: =G70+G79+G73+G82 -> 324293 | H88: =H70+H79+H73+H82 -> 299922 | I88: =I70+I79+I73+I82 -> 292566

Sheet NAAMSAProvincial81
E1: Description
E2: Query Criteria
E3: Market(s): Passenger, Light CV
E4: 3501kg, Medium CV 3501-8500kg, Heavy CV 8501-16500kg, Extra Heavy CV > 16500kg, Bus > 8500kg
E5: Output by: Province, Market, Bodyshape, Fuel Type
E6: Periods: 30 Yrs Old, 29 Yrs Old, 28 Yrs Old, 27 Yrs Old, 26 Yrs Old, 25 Yrs Old, 24 Yrs Old, 23 Yrs Old, 22 Yrs Old, 21 Yrs Old, 20 Yrs Old, 19 Yrs Old, 18 Yrs Old, 17 Yrs Old, 16 Yrs Old, 15 Yrs Old, 14 Yrs Old, 13 Yrs Old, 12 Yrs Old, 11 Yrs Old, 10 Yrs Old, 9 Yrs Old, 8 Yrs Old, 7 Yrs Old, 6 Yrs Old, 5 Yrs Old, 4 Yrs Old, 3 Yrs Old, 2 Yrs Old, 1 Yr Old
E7: Channel(s):
E8: Main Channel: Dealer, Government, Rental, Single Units, Fleet
E12: Query Result
D13: ENATIS check | E13: Province | F13: Market | G13: Bodyshape | H13: Fuel Type | I13: 1981 | J13: 1982 | K13: 1983 | L13: 1984 | M13: 1985 | N13: 1986 | O13: 1987 | P13: 1988 | Q13: 1989 | R13: 1990 | S13: 1991 | T13: 1992 | U13: 1993 | V13: 1994 | W13: 1995 | X13: 1996 | Y13: 1997 | Z13: 1998 | AA13: 1999 | AB13: 2000 | AC13: 2001 | AD13: 2002 | AE13: 2003 | AF13: 2004 | AG13: 2005 | AH13: 2006 | AI13: 2007 | AJ13: 2008 | AK13: 2009 | AL13: 2010
A14: =VLOOKUP(C14,NAAMSAdefs!$B$2:$C$43,2,FALSE)&E14&H14 -> BUSEastern CapeDiesel | B14: =VLOOKUP(C14,NAAMSAdefs!$B$2:$C$43,2,FALSE)&H14 -> BUSDiesel | C14: =F14&G14 -> BUSBus | D14: =VLOOKUP(C14,NAAMSAdefs!$B$2:$D$43,3,FALSE) -> BUS | E14: Eastern Cape | F14: BUS | G14: Bus | H14: Diesel | J14: 2 | K14: 1 | L14: 1 | M14: 9 | N14: 5 | O14: 6 | P14: 5 | Q14: 3 | R14: 9 | S14: 12 | T14: 5 | U14: 7 | V14: 9 | W14: 7 | X14: 26 | Y14: 64 | Z14: 7 | AA14: 3 | AB14: 6 | AC14: 24 | AD14: 51 | AE14: 17 | AF14: 28 | AG14: 5 | AH14: 54 | AI14: 59 | AJ14: 84 | AK14: 24 | AL14: 69
A15: =VLOOKUP(C15,NAAMSAdefs!$B$2:$C$43,2,FALSE)&E15&H15 -> HCVEastern CapeDiesel | B15: =VLOOKUP(C15,NAAMSAdefs!$B$2:$C$43,2,FALSE)&H15 -> HCVDiesel | C15: BUSTruck-Tractor | D15: =VLOOKUP(C15,NAAMSAdefs!$B$2:$D$43,3,FALSE) -> Other | E15: Eastern Cape | F15: BUS | G15: Truck-Tractor | H15: Diesel | R15: 1
A16: =VLOOKUP(C16,NAAMSAdefs!$B$2:$C$43,2,FALSE)&E16&H16 -> HCVEastern CapeDiesel | B16: =VLOOKUP(C16,NAAMSAdefs!$B$2:$C$43,2,FALSE)&H16 -> HCVDiesel | C16: HCVFreight Carrier | D16: =VLOOKUP(C16,NAAMSAdefs!$B$2:$D$43,3,FALSE) -> Truck | E16: Eastern Cape | F16: HCV | G16: Freight Carrier | H16: Diesel | L16: 3 | M16: 1 | N16: 1 | O16: 18 | P16: 51 | Q16: 70 | R16: 128 | S16: 56 | T16: 70 | U16: 98 | V16: 141 | W16: 196 | X16: 144 | Y16: 165 | Z16: 104 | AA16: 132 | AB16: 93 | AC16: 74 | AD16: 89 | AE16: 154 | AF16: 216 | AG16: 263 | AH16: 292 | AI16: 387 | AJ16: 366 | AK16: 155 | AL16: 271
A17: =VLOOKUP(C17,NAAMSAdefs!$B$2:$C$43,2,FALSE)&E17&H17 -> HCVEastern CapeDiesel | B17: =VLOOKUP(C17,NAAMSAdefs!$B$2:$C$43,2,FALSE)&H17 -> HCVDiesel | C17: HCVTipper | D17: =VLOOKUP(C17,NAAMSAdefs!$B$2:$D$43,3,FALSE) -> Truck | E17: Eastern Cape | F17: HCV | G17: Tipper | H17: Diesel | O17: 3 | P17: 12 | Q17: 11 | R17: 22 | S17: 7 | T17: 7 | U17: 9 | V17: 14 | W17: 6 | X17: 5 | Y17: 6 | Z17: 5 | AA17: 6 | AB17: 1 | AC17: 2 | AD17: 16 | AE17: 18 | AF17: 25 | AG17: 31 | AH17: 53 | AI17: 62 | AJ17: 60 | AK17: 18 | AL17: 38
A18: =VLOOKUP(C18,NAAMSAdefs!$B$2:$C$43,2,FALSE)&E18&H18 -> HCVEastern CapeDiesel | B18: =VLOOKUP(C18,NAAMSAdefs!$B$2:$C$43,2,FALSE)&H18 -> HCVDiesel | C18: HCVTruck-Tractor | D18: =VLOOKUP(C18,NAAMSAdefs!$B$2:$D$43,3,FALSE) -> Other | E18: Eastern Cape | F18: HCV | G18: Truck-Tractor | H18: Diesel | N18: 1 | O18: 3 | P18: 6 | Q18: 11 | R18: 12 | S18: 8 | T18: 8 | U18: 5 | V18: 1 | W18: 2 | X18: 6 | Y18: 3 | Z18: 6 | AA18: 1 | AB18: 2 | AD18: 4 | AE18: 1 | AG18: 3 | AH18: 4 | AI18: 5 | AJ18: 7 | AK18: 2 | AL18: 1
A19: =VLOOKUP(C19,NAAMSAdefs!$B$2:$C$43,2,FALSE)&E19&H19 -> SUVEastern CapeDiesel | B19: =VLOOKUP(C19,NAAMSAdefs!$B$2:$C$43,2,FALSE)&H19 -> SUVDiesel | C19: LCVCabriolet | D19: =VLOOKUP(C19,NAAMSAdefs!$B$2:$D$43,3,FALSE) -> LCV | E19: Eastern Cape | F19: LCV | G19: Cabriolet | H19: Diesel | AL19: 11
A20: =VLOOKUP(C20,NAAMSAdefs!$B$2:$C$43,2,FALSE)&E20&H20 -> LCVEastern CapeDiesel | B20: =VLOOKUP(C20,NAAMSAdefs!$B$2:$C$43,2,FALSE)&H20 -> LCVDiesel | C20: LCVDouble Cab Pick-Up | D20: =VLOOKUP(C20,NAAMSAdefs!$B$2:$D$43,3,FALSE) -> LCV | E20: Eastern Cape | F20: LCV | G20: Double Cab Pick-Up | H20: Diesel | U20: 19 | V20: 115 | W20: 290 | X20: 398 | Y20: 498 | Z20: 575 | AA20: 630 | AB20: 831 | AC20: 846 | AD20: 676 | AE20: 767 | AF20: 807 | AG20: 1166 | AH20: 1132 | AI20: 1225 | AJ20: 869 | AK20: 737 | AL20: 993
A21: =VLOOKUP(C21,NAAMSAdefs!$B$2:$C$43,2,FALSE)&E21&H21 -> LCVEastern CapePetrol | B21: =VLOOKUP(C21,NAAMSAdefs!$B$2:$C$43,2,FALSE)&H21 -> LCVPetrol | C21: LCVDouble Cab Pick-Up | D21: =VLOOKUP(C21,NAAMSAdefs!$B$2:$D$43,3,FALSE) -> LCV | E21: Eastern Cape | F21: LCV | G21: Double Cab Pick-Up | H21: Petrol | M21: 1 | N21: 4 | O21: 14 | P21: 22 | Q21: 32 | R21: 36 | S21: 33 | T21: 50 | U21: 133 | V21: 170 | W21: 295 | X21: 304 | Y21: 279 | Z21: 361 | AA21: 371 | AB21: 399 | AC21: 234 | AD21: 215 | AE21: 266 | AF21: 419 | AG21: 534 | AH21: 491 | AI21: 400 | AJ21: 293 | AK21: 129 | AL21: 195
A22: =VLOOKUP(C22,NAAMSAdefs!$B$2:$C$43,2,FALSE)&E22&H22 -> LCVEastern CapeDiesel | B22: =VLOOKUP(C22,NAAMSAdefs!$B$2:$C$43,2,FALSE)&H22 -> LCVDiesel | C22: LCVExtended Cab Pick-Up | D22: =VLOOKUP(C22,NAAMSAdefs!$B$2:$D$43,3,FALSE) -> LCV | E22: Eastern Cape | F22: LCV | G22: Extended Cab Pick-Up | H22: Diesel | AC22: 72 | AD22: 140 | AE22: 188 | AF22: 381 | AG22: 471 | AH22: 483 | AI22: 426 | AJ22: 494 | AK22: 398 | AL22: 357
A23: =VLOOKUP(C23,NAAMSAdefs!$B$2:$C$43,2,FALSE)&E23&H23 -> LCVEastern CapePetrol | B23: =VLOOKUP(C23,NAAMSAdefs!$B$2:$C$43,2,FALSE)&H23 -> LCVPetrol | C23: LCVExtended Cab Pick-Up | D23: =VLOOKUP(C23,NAAMSAdefs!$B$2:$D$43,3,FALSE) -> LCV | E23: Eastern Cape | F23: LCV | G23: Extended Cab Pick-Up | H23: Petrol | AC23: 28 | AD23: 35 | AE23: 33 | AF23: 68 | AG23: 98 | AH23: 63 | AI23: 102 | AJ23: 66 | AK23: 20 | AL23: 12
A24: =VLOOKUP(C24,NAAMSAdefs!$B$2:$C$43,2,FALSE)&E24&H24 -> SUVEastern CapePetrol | B24: =VLOOKUP(C24,NAAMSAdefs!$B$2:$C$43,2,FALSE)&H24 -> SUVPetrol | C24: LCVLeisure | D24: =VLOOKUP(C24,NAAMSAdefs!$B$2:$D$43,3,FALSE) -> LCV | E24: Eastern Cape | F24: LCV | G24: Leisure | H24: Petrol | K24: 1 | L24: 5
A25: =VLOOKUP(C25,NAAMSAdefs!$B$2:$C$43,2,FALSE)&E25&H25 -> MBTEastern CapeDiesel | B25: =VLOOKUP(C25,NAAMSAdefs!$B$2:$C$43,2,FALSE)&H25 -> MBTDiesel | C25: LCVMinibus | D25: =VLOOKUP(C25,NAAMSAdefs!$B$2:$D$43,3,FALSE) -> MBT | E25: Eastern Cape | F25: LCV | G25: Minibus | H25: Diesel | W25: 4 | X25: 64 | Y25: 17 | Z25: 10 | AA25: 9 | AB25: 1 | AG25: 71 | AH25: 180 | AI25: 186 | AJ25: 154 | AK25: 83 | AL25: 106
A26: =VLOOKUP(C26,NAAMSAdefs!$B$2:$C$43,2,FALSE)&E26&H26 -> MBTEastern CapePetrol | B26: =VLOOKUP(C26,NAAMSAdefs!$B$2:$C$43,2,FALSE)&H26 -> MBTPetrol | C26: LCVMinibus | D26: =VLOOKUP(C26,NAAMSAdefs!$B$2:$D$43,3,FALSE) -> MBT | E26: Eastern Cape | F26: LCV | G26: Minibus | H26: Petrol | I26: 1 | J26: 5 | K26: 12 | L26: 23 | M26: 13 | N26: 53 | O26: 162 | P26: 433 | Q26: 615 | R26: 863 | S26: 735 | T26: 669 | U26: 735 | V26: 718 | W26: 859 | X26: 574 | Y26: 509 | Z26: 415 | AA26: 308 | AB26: 198 | AC26: 190 | AD26: 264 | AE26: 273 | AF26: 359 | AG26: 424 | AH26: 419 | AI26: 478 | AJ26: 851 | AK26: 420 | AL26: 411
A27: =VLOOKUP(C27,NAAMSAdefs!$B$2:$C$43,2,FALSE)&E27&H27 -> LCVEastern CapeDiesel | B27: =VLOOKUP(C27,NAAMSAdefs!$B$2:$C$43,2,FALSE)&H27 -> LCVDiesel | C27: LCVMPV | D27: =VLOOKUP(C27,NAAMSAdefs!$B$2:$D$43,3,FALSE) -> LCV | E27: Eastern Cape | F27: LCV | G27: MPV | H27: Diesel | AI27: 30 | AJ27: 8 | AK27: 2 | AL27: 2
A28: =VLOOKUP(C28,NAAMSAdefs!$B$2:$C$43,2,FALSE)&E28&H28 -> LCVEastern CapeDiesel | B28: =VLOOKUP(C28,NAAMSAdefs!$B$2:$C$43,2,FALSE)&H28 -> LCVDiesel | C28: LCVPanel Van | D28: =VLOOKUP(C28,NAAMSAdefs!$B$2:$D$43,3,FALSE) -> LCV | E28: Eastern Cape | F28: LCV | G28: Panel Van | H28: Diesel | N28: 2 | O28: 4 | P28: 3 | W28: 3 | AD28: 35 | AE28: 34 | AF28: 77 | AG28: 126 | AH28: 183 | AI28: 192 | AJ28: 123 | AK28: 52 | AL28: 70
A29: =VLOOKUP(C29,NAAMSAdefs!$B$2:$C$43,2,FALSE)&E29&H29 -> LCVEastern CapePetrol | B29: =VLOOKUP(C29,NAAMSAdefs!$B$2:$C$43,2,FALSE)&H29 -> LCVPetrol | C29: LCVPanel Van | D29: =VLOOKUP(C29,NAAMSAdefs!$B$2:$D$43,3,FALSE) -> LCV | E29: Eastern Cape | F29: LCV | G29: Panel Van | H29: Petrol | I29: 5 | J29: 12 | K29: 17 | L29: 24 | M29: 14 | N29: 36 | O29: 92 | P29: 136 | Q29: 189 | R29: 253 | S29: 196 | T29: 98 | U29: 125 | V29: 129 | W29: 199 | X29: 184 | Y29: 83 | Z29: 95 | AA29: 100 | AB29: 64 | AC29: 94 | AD29: 93 | AE29: 118 | AF29: 105 | AG29: 180 | AH29: 223 | AI29: 200 | AJ29: 152 | AK29: 67 | AL29: 80
A30: =VLOOKUP(C30,NAAMSAdefs!$B$2:$C$43,2,FALSE)&E30&H30 -> LCVEastern CapeDiesel | B30: =VLOOKUP(C30,NAAMSAdefs!$B$2:$C$43,2,FALSE)&H30 -> LCVDiesel | C30: LCVSedan | D30: =VLOOKUP(C30,NAAMSAdefs!$B$2:$D$43,3,FALSE) -> LCV | E30: Eastern Cape | F30: LCV | G30: Sedan | H30: Diesel | AI30: 52 | AJ30: 46 | AK30: 29
A31: =VLOOKUP(C31,NAAMSAdefs!$B$2:$C$43,2,FALSE)&E31&H31 -> LCVEastern CapeDiesel | B31: =VLOOKUP(C31,NAAMSAdefs!$B$2:$C$43,2,FALSE)&H31 -> LCVDiesel | C31: LCVSingle Cab Pick-Up | D31: =VLOOKUP(C31,NAAMSAdefs!$B$2:$D$43,3,FALSE) -> LCV | E31: Eastern Cape | F31: LCV | G31: Single Cab Pick-Up | H31: Diesel | I31: 1 | J31: 8 | K31: 8 | L31: 16 | M31: 25 | N31: 69 | O31: 177 | P31: 383 | Q31: 461 | R31: 639 | S31: 550 | T31: 684 | U31: 899 | V31: 1382 | W31: 1974 | X31: 2060 | Y31: 2003 | Z31: 1494 | AA31: 1501 | AB31: 1497 | AC31: 1525 | AD31: 1489 | AE31: 1817 | AF31: 1917 | AG31: 1991 | AH31: 2527 | AI31: 2512 | AJ31: 1550 | AK31: 1036 | AL31: 1540
A32: =VLOOKUP(C32,NAAMSAdefs!$B$2:$C$43,2,FALSE)&E32&H32 -> LCVEastern CapePetrol | B32: =VLOOKUP(C32,NAAMSAdefs!$B$2:$C$43,2,FALSE)&H32 -> LCVPetrol | C32: LCVSingle Cab Pick-Up | D32: =VLOOKUP(C32,NAAMSAdefs!$B$2:$D$43,3,FALSE) -> LCV | E32: Eastern Cape | F32: LCV | G32: Single Cab Pick-Up | H32: Petrol | I32: 12 | J32: 44 | K32: 89 | L32: 128 | M32: 107 | N32: 219 | O32: 601 | P32: 1248 | Q32: 1605 | R32: 2322 | S32: 2262 | T32: 2385 | U32: 2407 | V32: 2868 | W32: 3088 | X32: 2693 | Y32: 2496 | Z32: 1842 | AA32: 1759 | AB32: 1720 | AC32: 1751 | AD32: 1749 | AE32: 2022 | AF32: 2762 | AG32: 3610 | AH32: 4361 | AI32: 4191 | AJ32: 2907 | AK32: 2077 | AL32: 2390
A33: =VLOOKUP(C33,NAAMSAdefs!$B$2:$C$43,2,FALSE)&E33&H33 -> BUSEastern CapeDiesel | B33: =VLOOKUP(C33,NAAMSAdefs!$B$2:$C$43,2,FALSE)&H33 -> BUSDiesel | C33: MCVBus | D33: =VLOOKUP(C33,NAAMSAdefs!$B$2:$D$43,3,FALSE) -> BUS | E33: Eastern Cape | F33: MCV | G33: Bus | H33: Diesel | R33: 1 | S33: 17 | T33: 4 | U33: 3 | V33: 5 | W33: 1 | X33: 5 | AC33: 4 | AD33: 6 | AE33: 13 | AF33: 17 | AG33: 12 | AH33: 27 | AI33: 39 | AJ33: 25 | AK33: 8 | AL33: 1
A34: =VLOOKUP(C34,NAAMSAdefs!$B$2:$C$43,2,FALSE)&E34&H34 -> MCVEastern CapeDiesel | B34: =VLOOKUP(C34,NAAMSAdefs!$B$2:$C$43,2,FALSE)&H34 -> MCVDiesel | C34: MCVFreight Carrier | D34: =VLOOKUP(C34,NAAMSAdefs!$B$2:$D$43,3,FALSE) -> Truck | E34: Eastern Cape | F34: MCV | G34: Freight Carrier | H34: Diesel | I34: 1 | J34: 2 | K34: 6 | L34: 13 | M34: 5 | N34: 6 | O34: 28 | P34: 67 | Q34: 87 | R34: 120 | S34: 127 | T34: 117 | U34: 137 | V34: 145 | W34: 195 | X34: 225 | Y34: 201 | Z34: 166 | AA34: 141 | AB34: 138 | AC34: 132 | AD34: 147 | AE34: 143 | AF34: 400 | AG34: 338 | AH34: 440 | AI34: 459 | AJ34: 318 | AK34: 149 | AL34: 202
A35: =VLOOKUP(C35,NAAMSAdefs!$B$2:$C$43,2,FALSE)&E35&H35 -> MCVEastern CapePetrol | B35: =VLOOKUP(C35,NAAMSAdefs!$B$2:$C$43,2,FALSE)&H35 -> MCVPetrol | C35: MCVFreight Carrier | D35: =VLOOKUP(C35,NAAMSAdefs!$B$2:$D$43,3,FALSE) -> Truck | E35: Eastern Cape | F35: MCV | G35: Freight Carrier | H35: Petrol | M35: 1 | N35: 1 | O35: 9 | P35: 20 | Q35: 14 | R35: 19 | S35: 8 | T35: 14 | U35: 11 | V35: 14 | W35: 17 | X35: 6 | Y35: 4 | Z35: 2 | AA35: 1 | AD35: 1
A36: =VLOOKUP(C36,NAAMSAdefs!$B$2:$C$43,2,FALSE)&E36&H36 -> MCVEastern CapeDiesel | B36: =VLOOKUP(C36,NAAMSAdefs!$B$2:$C$43,2,FALSE)&H36 -> MCVDiesel | C36: MCVPanel Van | D36: =VLOOKUP(C36,NAAMSAdefs!$B$2:$D$43,3,FALSE) -> Truck | E36: Eastern Cape | F36: MCV | G36: Panel Van | H36: Diesel | X36: 68 | Y36: 83 | Z36: 99 | AA36: 71 | AB36: 72 | AC36: 49 | AD36: 59 | AE36: 74 | AF36: 77 | AG36: 92 | AH36: 106 | AI36: 158 | AJ36: 195 | AK36: 79 | AL36: 96
A37: =VLOOKUP(C37,NAAMSAdefs!$B$2:$C$43,2,FALSE)&E37&H37 -> MCVEastern CapePetrol | B37: =VLOOKUP(C37,NAAMSAdefs!$B$2:$C$43,2,FALSE)&H37 -> MCVPetrol | C37: MCVPanel Van | D37: =VLOOKUP(C37,NAAMSAdefs!$B$2:$D$43,3,FALSE) -> Truck | E37: Eastern Cape | F37: MCV | G37: Panel Van | H37: Petrol | Y37: 1
A38: =VLOOKUP(C38,NAAMSAdefs!$B$2:$C$43,2,FALSE)&E38&H38 -> MCVEastern CapeDiesel | B38: =VLOOKUP(C38,NAAMSAdefs!$B$2:$C$43,2,FALSE)&H38 -> MCVDiesel | C38: MCVTipper | D38: =VLOOKUP(C38,NAAMSAdefs!$B$2:$D$43,3,FALSE) -> Truck | E38: Eastern Cape | F38: MCV | G38: Tipper | H38: Diesel | AI38: 2 | AJ38: 13 | AK38: 2 | AL38: 1
A39: =VLOOKUP(C39,NAAMSAdefs!$B$2:$C$43,2,FALSE)&E39&H39 -> CAREastern CapeDiesel | B39: =VLOOKUP(C39,NAAMSAdefs!$B$2:$C$43,2,FALSE)&H39 -> CARDiesel | C39: PASCabriolet | D39: =VLOOKUP(C39,NAAMSAdefs!$B$2:$D$43,3,FALSE) -> CAR | E39: Eastern Cape | F39: PAS | G39: Cabriolet | H39: Diesel | AG39: 5 | AI39: 1 | AL39: 7
A40: =VLOOKUP(C40,NAAMSAdefs!$B$2:$C$43,2,FALSE)&E40&H40 -> CAREastern CapePetrol | B40: =VLOOKUP(C40,NAAMSAdefs!$B$2:$C$43,2,FALSE)&H40 -> CARPetrol | C40: PASCabriolet | D40: =VLOOKUP(C40,NAAMSAdefs!$B$2:$D$43,3,FALSE) -> CAR | E40: Eastern Cape | F40: PAS | G40: Cabriolet | H40: Petrol | P40: 2 | Q40: 4 | R40: 7 | S40: 3 | T40: 1 | V40: 9 | W40: 56 | X40: 36 | Y40: 54 | Z40: 27 | AA40: 20 | AB40: 21 | AC40: 63 | AD40: 56 | AE40: 68 | AF40: 79 | AG40: 160 | AH40: 144 | AI40: 129 | AJ40: 74 | AK40: 68 | AL40: 94
A41: =VLOOKUP(C41,NAAMSAdefs!$B$2:$C$43,2,FALSE)&E41&H41 -> CAREastern CapeDiesel | B41: =VLOOKUP(C41,NAAMSAdefs!$B$2:$C$43,2,FALSE)&H41 -> CARDiesel | C41: PASCoupe | D41: =VLOOKUP(C41,NAAMSAdefs!$B$2:$D$43,3,FALSE) -> CAR | E41: Eastern Cape | F41: PAS | G41: Coupe | H41: Diesel | AG41: 3 | AH41: 10 | AI41: 1 | AJ41: 3 | AK41: 4 | AL41: 5
A42: =VLOOKUP(C42,NAAMSAdefs!$B$2:$C$43,2,FALSE)&E42&H42 -> CAREastern CapePetrol | B42: =VLOOKUP(C42,NAAMSAdefs!$B$2:$C$43,2,FALSE)&H42 -> CARPetrol | C42: PASCoupe | D42: =VLOOKUP(C42,NAAMSAdefs!$B$2:$D$43,3,FALSE) -> CAR | E42: Eastern Cape | F42: PAS | G42: Coupe | H42: Petrol | I42: 1 | L42: 8 | M42: 6 | N42: 11 | O42: 31 | P42: 92 | Q42: 90 | R42: 104 | S42: 114 | T42: 59 | U42: 67 | V42: 69 | W42: 52 | X42: 28 | Y42: 8 | Z42: 9 | AA42: 8 | AB42: 40 | AC42: 48 | AD42: 120 | AE42: 81 | AF42: 91 | AG42: 73 | AH42: 65 | AI42: 92 | AJ42: 91 | AK42: 87 | AL42: 97
A43: =VLOOKUP(C43,NAAMSAdefs!$B$2:$C$43,2,FALSE)&E43&H43 -> SUVEastern CapePetrol | B43: =VLOOKUP(C43,NAAMSAdefs!$B$2:$C$43,2,FALSE)&H43 -> SUVPetrol | C43: PASDouble Cab Pick-Up | D43: =VLOOKUP(C43,NAAMSAdefs!$B$2:$D$43,3,FALSE) -> CAR | E43: Eastern Cape | F43: PAS | G43: Double Cab Pick-Up | H43: Petrol | AK43: 7
A44: =VLOOKUP(C44,NAAMSAdefs!$B$2:$C$43,2,FALSE)&E44&H44 -> CAREastern CapeDiesel | B44: =VLOOKUP(C44,NAAMSAdefs!$B$2:$C$43,2,FALSE)&H44 -> CARDiesel | C44: PASEstate | D44: =VLOOKUP(C44,NAAMSAdefs!$B$2:$D$43,3,FALSE) -> CAR | E44: Eastern Cape | F44: PAS | G44: Estate | H44: Diesel | AD44: 20 | AE44: 16 | AF44: 23 | AG44: 29 | AH44: 22 | AI44: 38 | AJ44: 15 | AK44: 9 | AL44: 10
A45: =VLOOKUP(C45,NAAMSAdefs!$B$2:$C$43,2,FALSE)&E45&H45 -> CAREastern CapePetrol | B45: =VLOOKUP(C45,NAAMSAdefs!$B$2:$C$43,2,FALSE)&H45 -> CARPetrol | C45: PASEstate | D45: =VLOOKUP(C45,NAAMSAdefs!$B$2:$D$43,3,FALSE) -> CAR | E45: Eastern Cape | F45: PAS | G45: Estate | H45: Petrol | I45: 1 | J45: 5 | K45: 12 | L45: 15 | M45: 5 | N45: 10 | O45: 35 | P45: 67 | Q45: 40 | R45: 58 | S45: 56 | T45: 42 | U45: 11 | V45: 37 | W45: 164 | X45: 156 | Y45: 143 | Z45: 143 | AA45: 102 | AB45: 90 | AC45: 204 | AD45: 149 | AE45: 93 | AF45: 101 | AG45: 176 | AH45: 158 | AI45: 77 | AJ45: 39 | AK45: 176 | AL45: 204
A46: =VLOOKUP(C46,NAAMSAdefs!$B$2:$C$43,2,FALSE)&E46&H46 -> CAREastern CapeDiesel | B46: =VLOOKUP(C46,NAAMSAdefs!$B$2:$C$43,2,FALSE)&H46 -> CARDiesel | C46: PASHatch (3-dr) | D46: =VLOOKUP(C46,NAAMSAdefs!$B$2:$D$43,3,FALSE) -> CAR | E46: Eastern Cape | F46: PAS | G46: Hatch (3-dr) | H46: Diesel | AE46: 12 | AF46: 89 | AG46: 62 | AH46: 75 | AI46: 29 | AJ46: 13 | AK46: 6 | AL46: 30
A47: =VLOOKUP(C47,NAAMSAdefs!$B$2:$C$43,2,FALSE)&E47&H47 -> CAREastern CapeHybrid Petrol | B47: =VLOOKUP(C47,NAAMSAdefs!$B$2:$C$43,2,FALSE)&H47 -> CARHybrid Petrol | C47: PASHatch (3-dr) | D47: =VLOOKUP(C47,NAAMSAdefs!$B$2:$D$43,3,FALSE) -> CAR | E47: Eastern Cape | F47: PAS | G47: Hatch (3-dr) | H47: Hybrid Petrol | AL47: 4
A48: =VLOOKUP(C48,NAAMSAdefs!$B$2:$C$43,2,FALSE)&E48&H48 -> CAREastern CapePetrol | B48: =VLOOKUP(C48,NAAMSAdefs!$B$2:$C$43,2,FALSE)&H48 -> CARPetrol | C48: PASHatch (3-dr) | D48: =VLOOKUP(C48,NAAMSAdefs!$B$2:$D$43,3,FALSE) -> CAR | E48: Eastern Cape | F48: PAS | G48: Hatch (3-dr) | H48: Petrol | I48: 5 | J48: 12 | K48: 10 | L48: 5 | M48: 3 | N48: 1 | O48: 6 | P48: 2 | Q48: 24 | R48: 54 | S48: 121 | T48: 164 | U48: 188 | V48: 214 | W48: 344 | X48: 488 | Y48: 988 | Z48: 628 | AA48: 528 | AB48: 580 | AC48: 517 | AD48: 444 | AE48: 515 | AF48: 633 | AG48: 888 | AH48: 1360 | AI48: 1034 | AJ48: 522 | AK48: 243 | AL48: 249
A49: =VLOOKUP(C49,NAAMSAdefs!$B$2:$C$43,2,FALSE)&E49&H49 -> CAREastern CapeDiesel | B49: =VLOOKUP(C49,NAAMSAdefs!$B$2:$C$43,2,FALSE)&H49 -> CARDiesel | C49: PASHatch (5-dr) | D49: =VLOOKUP(C49,NAAMSAdefs!$B$2:$D$43,3,FALSE) -> CAR | E49: Eastern Cape | F49: PAS | G49: Hatch (5-dr) | H49: Diesel | AA49: 4 | AB49: 29 | AC49: 49 | AD49: 64 | AE49: 88 | AF49: 132 | AG49: 264 | AH49: 265 | AI49: 262 | AJ49: 150 | AK49: 93 | AL49: 177
A50: =VLOOKUP(C50,NAAMSAdefs!$B$2:$C$43,2,FALSE)&E50&H50 -> CAREastern CapeHybrid Petrol | B50: =VLOOKUP(C50,NAAMSAdefs!$B$2:$C$43,2,FALSE)&H50 -> CARHybrid Petrol | C50: PASHatch (5-dr) | D50: =VLOOKUP(C50,NAAMSAdefs!$B$2:$D$43,3,FALSE) -> CAR | E50: Eastern Cape | F50: PAS | G50: Hatch (5-dr) | H50: Hybrid Petrol | AK50: 4 | AL50: 2
A51: =VLOOKUP(C51,NAAMSAdefs!$B$2:$C$43,2,FALSE)&E51&H51 -> CAREastern CapePetrol | B51: =VLOOKUP(C51,NAAMSAdefs!$B$2:$C$43,2,FALSE)&H51 -> CARPetrol | C51: PASHatch (5-dr) | D51: =VLOOKUP(C51,NAAMSAdefs!$B$2:$D$43,3,FALSE) -> CAR | E51: Eastern Cape | F51: PAS | G51: Hatch (5-dr) | H51: Petrol | I51: 37 | J51: 64 | K51: 85 | L51: 101 | M51: 133 | N51: 247 | O51: 544 | P51: 1019 | Q51: 1453 | R51: 2047 | S51: 2125 | T51: 2169 | U51: 2140 | V51: 2535 | W51: 3428 | X51: 3897 | Y51: 3403 | Z51: 2619 | AA51: 2462 | AB51: 2616 | AC51: 2612 | AD51: 2356 | AE51: 2806 | AF51: 4333 | AG51: 6830 | AH51: 7653 | AI51: 5970 | AJ51: 4532 | AK51: 3050 | AL51: 4766
A52: =VLOOKUP(C52,NAAMSAdefs!$B$2:$C$43,2,FALSE)&E52&H52 -> SUVEastern CapeDiesel | B52: =VLOOKUP(C52,NAAMSAdefs!$B$2:$C$43,2,FALSE)&H52 -> SUVDiesel | C52: PASLeisure | D52: =VLOOKUP(C52,NAAMSAdefs!$B$2:$D$43,3,FALSE) -> CAR | E52: Eastern Cape | F52: PAS | G52: Leisure | H52: Diesel | U52: 3 | V52: 9 | W52: 35 | X52: 61 | Y52: 56 | Z52: 199 | AA52: 133 | AB52: 185 | AC52: 138 | AD52: 156 | AE52: 133 | AF52: 227 | AG52: 340 | AH52: 574 | AI52: 732 | AJ52: 642 | AK52: 401 | AL52: 275
A53: =VLOOKUP(C53,NAAMSAdefs!$B$2:$C$43,2,FALSE)&E53&H53 -> SUVEastern CapePetrol | B53: =VLOOKUP(C53,NAAMSAdefs!$B$2:$C$43,2,FALSE)&H53 -> SUVPetrol | C53: PASLeisure | D53: =VLOOKUP(C53,NAAMSAdefs!$B$2:$D$43,3,FALSE) -> CAR | E53: Eastern Cape | F53: PAS | G53: Leisure | H53: Petrol | P53: 4 | Q53: 7 | R53: 4 | S53: 2 | T53: 32 | U53: 44 | V53: 64 | W53: 144 | X53: 114 | Y53: 142 | Z53: 228 | AA53: 241 | AB53: 171 | AC53: 134 | AD53: 113 | AE53: 125 | AF53: 311 | AG53: 525 | AH53: 604 | AI53: 739 | AJ53: 665 | AK53: 466 | AL53: 409
A54: =VLOOKUP(C54,NAAMSAdefs!$B$2:$C$43,2,FALSE)&E54&H54 -> MBTEastern CapeDiesel | B54: =VLOOKUP(C54,NAAMSAdefs!$B$2:$C$43,2,FALSE)&H54 -> MBTDiesel | C54: PASMinibus | D54: =VLOOKUP(C54,NAAMSAdefs!$B$2:$D$43,3,FALSE) -> MBT | E54: Eastern Cape | F54: PAS | G54: Minibus | H54: Diesel | AH54: 1
A55: =VLOOKUP(C55,NAAMSAdefs!$B$2:$C$43,2,FALSE)&E55&H55 -> MBTEastern CapePetrol | B55: =VLOOKUP(C55,NAAMSAdefs!$B$2:$C$43,2,FALSE)&H55 -> MBTPetrol | C55: PASMinibus | D55: =VLOOKUP(C55,NAAMSAdefs!$B$2:$D$43,3,FALSE) -> MBT | E55: Eastern Cape | F55: PAS | G55: Minibus | H55: Petrol | X55: 4 | Y55: 8 | Z55: 3
A56: =VLOOKUP(C56,NAAMSAdefs!$B$2:$C$43,2,FALSE)&E56&H56 -> SUVEastern CapeDiesel | B56: =VLOOKUP(C56,NAAMSAdefs!$B$2:$C$43,2,FALSE)&H56 -> SUVDiesel | C56: PASMPV | D56: =VLOOKUP(C56,NAAMSAdefs!$B$2:$D$43,3,FALSE) -> CAR | E56: Eastern Cape | F56: PAS | G56: MPV | H56: Diesel | AA56: 2 | AB56: 43 | AC56: 54 | AD56: 61 | AE56: 122 | AF56: 213 | AG56: 291 | AH56: 247 | AI56: 185 | AJ56: 129 | AK56: 124 | AL56: 201
A57: =VLOOKUP(C57,NAAMSAdefs!$B$2:$C$43,2,FALSE)&E57&H57 -> SUVEastern CapePetrol | B57: =VLOOKUP(C57,NAAMSAdefs!$B$2:$C$43,2,FALSE)&H57 -> SUVPetrol | C57: PASMPV | D57: =VLOOKUP(C57,NAAMSAdefs!$B$2:$D$43,3,FALSE) -> CAR | E57: Eastern Cape | F57: PAS | G57: MPV | H57: Petrol | V57: 2 | W57: 6 | X57: 3 | Y57: 13 | Z57: 8 | AA57: 32 | AB57: 251 | AC57: 358 | AD57: 338 | AE57: 283 | AF57: 546 | AG57: 595 | AH57: 710 | AI57: 1354 | AJ57: 1214 | AK57: 659 | AL57: 558
A58: =VLOOKUP(C58,NAAMSAdefs!$B$2:$C$43,2,FALSE)&E58&H58 -> SUVEastern CapePetrol | B58: =VLOOKUP(C58,NAAMSAdefs!$B$2:$C$43,2,FALSE)&H58 -> SUVPetrol | C58: PASPanel Van | D58: =VLOOKUP(C58,NAAMSAdefs!$B$2:$D$43,3,FALSE) -> CAR | E58: Eastern Cape | F58: PAS | G58: Panel Van | H58: Petrol | L58: 3 | O58: 1 | P58: 1
A59: =VLOOKUP(C59,NAAMSAdefs!$B$2:$C$43,2,FALSE)&E59&H59 -> CAREastern CapeDiesel | B59: =VLOOKUP(C59,NAAMSAdefs!$B$2:$C$43,2,FALSE)&H59 -> CARDiesel | C59: PASSedan | D59: =VLOOKUP(C59,NAAMSAdefs!$B$2:$D$43,3,FALSE) -> CAR | E59: Eastern Cape | F59: PAS | G59: Sedan | H59: Diesel | O59: 1 | W59: 43 | X59: 51 | Y59: 69 | Z59: 29 | AA59: 19 | AB59: 89 | AC59: 230 | AD59: 336 | AE59: 426 | AF59: 378 | AG59: 404 | AH59: 400 | AI59: 451 | AJ59: 360 | AK59: 228 | AL59: 258
A60: =VLOOKUP(C60,NAAMSAdefs!$B$2:$C$43,2,FALSE)&E60&H60 -> CAREastern CapeHybrid Petrol | B60: =VLOOKUP(C60,NAAMSAdefs!$B$2:$C$43,2,FALSE)&H60 -> CARHybrid Petrol | C60: PASSedan | D60: =VLOOKUP(C60,NAAMSAdefs!$B$2:$D$43,3,FALSE) -> CAR | E60: Eastern Cape | F60: PAS | G60: Sedan | H60: Hybrid Petrol | AH60: 8 | AI60: 3 | AJ60: 2 | AK60: 3
A61: =VLOOKUP(C61,NAAMSAdefs!$B$2:$C$43,2,FALSE)&E61&H61 -> CAREastern CapePetrol | B61: =VLOOKUP(C61,NAAMSAdefs!$B$2:$C$43,2,FALSE)&H61 -> CARPetrol | C61: PASSedan | D61: =VLOOKUP(C61,NAAMSAdefs!$B$2:$D$43,3,FALSE) -> CAR | E61: Eastern Cape | F61: PAS | G61: Sedan | H61: Petrol | I61: 29 | J61: 88 | K61: 185 | L61: 258 | M61: 203 | N61: 428 | O61: 1438 | P61: 2525 | Q61: 2807 | R61: 3865 | S61: 3549 | T61: 3930 | U61: 4681 | V61: 5057 | W61: 5733 | X61: 5069 | Y61: 4978 | Z61: 3569 | AA61: 3022 | AB61: 3585 | AC61: 3224 | AD61: 2741 | AE61: 2971 | AF61: 3920 | AG61: 4222 | AH61: 4579 | AI61: 3784 | AJ61: 3025 | AK61: 1924 | AL61: 3249
A62: =VLOOKUP(C62,NAAMSAdefs!$B$2:$C$43,2,FALSE)&E62&H62 -> SUVEastern CapePetrol | B62: =VLOOKUP(C62,NAAMSAdefs!$B$2:$C$43,2,FALSE)&H62 -> SUVPetrol | C62: PASSingle Cab Pick-Up | D62: =VLOOKUP(C62,NAAMSAdefs!$B$2:$D$43,3,FALSE) -> CAR | E62: Eastern Cape | F62: PAS | G62: Single Cab Pick-Up | H62: Petrol | AI62: 1 | AJ62: 6 | AK62: 1
A63: =VLOOKUP(C63,NAAMSAdefs!$B$2:$C$43,2,FALSE)&E63&H63 -> SUVEastern CapeDiesel | B63: =VLOOKUP(C63,NAAMSAdefs!$B$2:$C$43,2,FALSE)&H63 -> SUVDiesel | C63: PASSUV | D63: =VLOOKUP(C63,NAAMSAdefs!$B$2:$D$43,3,FALSE) -> CAR | E63: Eastern Cape | F63: PAS | G63: SUV | H63: Diesel | AA63: 19 | AB63: 19 | AC63: 54 | AD63: 106 | AE63: 131 | AF63: 111 | AG63: 113 | AH63: 151 | AI63: 282 | AJ63: 167 | AK63: 372 | AL63: 820
A64: =VLOOKUP(C64,NAAMSAdefs!$B$2:$C$43,2,FALSE)&E64&H64 -> SUVEastern CapeHybrid Petrol | B64: =VLOOKUP(C64,NAAMSAdefs!$B$2:$C$43,2,FALSE)&H64 -> SUVHybrid Petrol | C64: PASSUV | D64: =VLOOKUP(C64,NAAMSAdefs!$B$2:$D$43,3,FALSE) -> CAR | E64: Eastern Cape | F64: PAS | G64: SUV | H64: Hybrid Petrol | AK64: 1
A65: =VLOOKUP(C65,NAAMSAdefs!$B$2:$C$43,2,FALSE)&E65&H65 -> SUVEastern CapePetrol | B65: =VLOOKUP(C65,NAAMSAdefs!$B$2:$C$43,2,FALSE)&H65 -> SUVPetrol | C65: PASSUV | D65: =VLOOKUP(C65,NAAMSAdefs!$B$2:$D$43,3,FALSE) -> CAR | E65: Eastern Cape | F65: PAS | G65: SUV | H65: Petrol | Z65: 32 | AA65: 24 | AB65: 49 | AC65: 58 | AD65: 145 | AE65: 182 | AF65: 149 | AG65: 145 | AH65: 198 | AI65: 132 | AJ65: 75 | AK65: 237 | AL65: 460
A66: =VLOOKUP(C66,NAAMSAdefs!$B$2:$C$43,2,FALSE)&E66&H66 -> HCVEastern CapeDiesel | B66: =VLOOKUP(C66,NAAMSAdefs!$B$2:$C$43,2,FALSE)&H66 -> HCVDiesel | C66: XHVFreight Carrier | D66: =VLOOKUP(C66,NAAMSAdefs!$B$2:$D$43,3,FALSE) -> Other | E66: Eastern Cape | F66: XHV | G66: Freight Carrier | H66: Diesel | O66: 2 | P66: 4 | Q66: 10 | R66: 4 | S66: 6 | T66: 9 | U66: 11 | V66: 8 | W66: 9 | X66: 21 | Y66: 18 | Z66: 17 | AA66: 6 | AB66: 14 | AC66: 11 | AD66: 18 | AE66: 26 | AF66: 36 | AG66: 86 | AH66: 80 | AI66: 141 | AJ66: 111 | AK66: 77 | AL66: 93
A67: =VLOOKUP(C67,NAAMSAdefs!$B$2:$C$43,2,FALSE)&E67&H67 -> HCVEastern CapeDiesel | B67: =VLOOKUP(C67,NAAMSAdefs!$B$2:$C$43,2,FALSE)&H67 -> HCVDiesel | C67: XHVMixer | D67: =VLOOKUP(C67,NAAMSAdefs!$B$2:$D$43,3,FALSE) -> Other | E67: Eastern Cape | F67: XHV | G67: Mixer | H67: Diesel | O67: 1 | P67: 3 | Q67: 4 | R67: 6 | S67: 3 | T67: 1 | V67: 1 | X67: 1 | Y67: 2 | Z67: 1 | AA67: 2 | AB67: 1 | AC67: 7 | AD67: 4 | AE67: 13 | AF67: 37 | AG67: 21 | AH67: 27 | AI67: 54 | AJ67: 38 | AK67: 12 | AL67: 18
A68: =VLOOKUP(C68,NAAMSAdefs!$B$2:$C$43,2,FALSE)&E68&H68 -> HCVEastern CapeDiesel | B68: =VLOOKUP(C68,NAAMSAdefs!$B$2:$C$43,2,FALSE)&H68 -> HCVDiesel | C68: XHVTipper | D68: =VLOOKUP(C68,NAAMSAdefs!$B$2:$D$43,3,FALSE) -> Truck | E68: Eastern Cape | F68: XHV | G68: Tipper | H68: Diesel | P68: 2 | Q68: 4 | R68: 5 | S68: 3 | T68: 6 | U68: 9 | V68: 1 | W68: 15 | X68: 9 | Y68: 3 | AA68: 1 | AB68: 1 | AD68: 10 | AE68: 43 | AF68: 20 | AG68: 40 | AH68: 83 | AI68: 147 | AJ68: 68 | AK68: 26 | AL68: 31
A69: =VLOOKUP(C69,NAAMSAdefs!$B$2:$C$43,2,FALSE)&E69&H69 -> HCVEastern CapeDiesel | B69: =VLOOKUP(C69,NAAMSAdefs!$B$2:$C$43,2,FALSE)&H69 -> HCVDiesel | C69: XHVTruck-Tractor | D69: =VLOOKUP(C69,NAAMSAdefs!$B$2:$D$43,3,FALSE) -> Other | E69: Eastern Cape | F69: XHV | G69: Truck-Tractor | H69: Diesel | L69: 1 | O69: 1 | P69: 12 | Q69: 18 | R69: 26 | S69: 27 | T69: 22 | U69: 31 | V69: 44 | W69: 46 | X69: 67 | Y69: 69 | Z69: 71 | AA69: 30 | AB69: 81 | AC69: 75 | AD69: 114 | AE69: 140 | AF69: 183 | AG69: 207 | AH69: 152 | AI69: 233 | AJ69: 263 | AK69: 156 | AL69: 215
A70: =VLOOKUP(C70,NAAMSAdefs!$B$2:$C$43,2,FALSE)&E70&H70 -> BUSFreestateDiesel | B70: =VLOOKUP(C70,NAAMSAdefs!$B$2:$C$43,2,FALSE)&H70 -> BUSDiesel | C70: BUSBus | D70: =VLOOKUP(C70,NAAMSAdefs!$B$2:$D$43,3,FALSE) -> BUS | E70: Freestate | F70: BUS | G70: Bus | H70: Diesel | I70: 1 | L70: 1 | M70: 2 | O70: 2 | P70: 6 | Q70: 5 | R70: 5 | S70: 14 | T70: 8 | U70: 4 | V70: 8 | W70: 9 | X70: 11 | Y70: 31 | Z70: 27 | AA70: 1 | AB70: 32 | AC70: 46 | AD70: 20 | AE70: 7 | AF70: 56 | AG70: 4 | AH70: 24 | AI70: 19 | AJ70: 9 | AK70: 8 | AL70: 29
A71: =VLOOKUP(C71,NAAMSAdefs!$B$2:$C$43,2,FALSE)&E71&H71 -> HCVFreestateDiesel | B71: =VLOOKUP(C71,NAAMSAdefs!$B$2:$C$43,2,FALSE)&H71 -> HCVDiesel | C71: BUSTruck-Tractor | D71: =VLOOKUP(C71,NAAMSAdefs!$B$2:$D$43,3,FALSE) -> Other | E71: Freestate | F71: BUS | G71: Truck-Tractor | H71: Diesel | Q71: 1
A72: =VLOOKUP(C72,NAAMSAdefs!$B$2:$C$43,2,FALSE)&E72&H72 -> HCVFreestateDiesel | B72: =VLOOKUP(C72,NAAMSAdefs!$B$2:$C$43,2,FALSE)&H72 -> HCVDiesel | C72: HCVFreight Carrier | D72: =VLOOKUP(C72,NAAMSAdefs!$B$2:$D$43,3,FALSE) -> Truck | E72: Freestate | F72: HCV | G72: Freight Carrier | H72: Diesel | L72: 1 | O72: 13 | P72: 39 | Q72: 57 | R72: 90 | S72: 47 | T72: 45 | U72: 51 | V72: 105 | W72: 182 | X72: 162 | Y72: 102 | Z72: 112 | AA72: 92 | AB72: 81 | AC72: 64 | AD72: 82 | AE72: 109 | AF72: 130 | AG72: 196 | AH72: 207 | AI72: 302 | AJ72: 299 | AK72: 87 | AL72: 155
A73: =VLOOKUP(C73,NAAMSAdefs!$B$2:$C$43,2,FALSE)&E73&H73 -> HCVFreestateDiesel | B73: =VLOOKUP(C73,NAAMSAdefs!$B$2:$C$43,2,FALSE)&H73 -> HCVDiesel | C73: HCVTipper | D73: =VLOOKUP(C73,NAAMSAdefs!$B$2:$D$43,3,FALSE) -> Truck | E73: Freestate | F73: HCV | G73: Tipper | H73: Diesel | K73: 1 | O73: 2 | P73: 10 | Q73: 11 | R73: 31 | S73: 14 | T73: 12 | U73: 15 | V73: 21 | W73: 9 | X73: 19 | Y73: 8 | Z73: 6 | AB73: 2 | AD73: 4 | AE73: 10 | AF73: 15 | AG73: 10 | AH73: 14 | AI73: 21 | AJ73: 44 | AK73: 29 | AL73: 23
A74: =VLOOKUP(C74,NAAMSAdefs!$B$2:$C$43,2,FALSE)&E74&H74 -> HCVFreestateDiesel | B74: =VLOOKUP(C74,NAAMSAdefs!$B$2:$C$43,2,FALSE)&H74 -> HCVDiesel | C74: HCVTruck-Tractor | D74: =VLOOKUP(C74,NAAMSAdefs!$B$2:$D$43,3,FALSE) -> Other | E74: Freestate | F74: HCV | G74: Truck-Tractor | H74: Diesel | N74: 1 | O74: 2 | P74: 5 | Q74: 14 | R74: 14 | S74: 11 | T74: 4 | U74: 4 | V74: 5 | W74: 2 | X74: 7 | Y74: 4 | Z74: 3 | AA74: 7 | AB74: 6 | AD74: 2 | AE74: 8 | AF74: 5 | AH74: 3 | AI74: 2 | AJ74: 6 | AL74: 2
A75: =VLOOKUP(C75,NAAMSAdefs!$B$2:$C$43,2,FALSE)&E75&H75 -> SUVFreestateDiesel | B75: =VLOOKUP(C75,NAAMSAdefs!$B$2:$C$43,2,FALSE)&H75 -> SUVDiesel | C75: LCVCabriolet | D75: =VLOOKUP(C75,NAAMSAdefs!$B$2:$D$43,3,FALSE) -> LCV | E75: Freestate | F75: LCV | G75: Cabriolet | H75: Diesel | AL75: 1
A76: =VLOOKUP(C76,NAAMSAdefs!$B$2:$C$43,2,FALSE)&E76&H76 -> LCVFreestateDiesel | B76: =VLOOKUP(C76,NAAMSAdefs!$B$2:$C$43,2,FALSE)&H76 -> LCVDiesel | C76: LCVDouble Cab Pick-Up | D76: =VLOOKUP(C76,NAAMSAdefs!$B$2:$D$43,3,FALSE) -> LCV | E76: Freestate | F76: LCV | G76: Double Cab Pick-Up | H76: Diesel | U76: 15 | V76: 126 | W76: 293 | X76: 480 | Y76: 497 | Z76: 503 | AA76: 530 | AB76: 732 | AC76: 755 | AD76: 680 | AE76: 587 | AF76: 525 | AG76: 793 | AH76: 877 | AI76: 1017 | AJ76: 773 | AK76: 696 | AL76: 836
A77: =VLOOKUP(C77,NAAMSAdefs!$B$2:$C$43,2,FALSE)&E77&H77 -> LCVFreestatePetrol | B77: =VLOOKUP(C77,NAAMSAdefs!$B$2:$C$43,2,FALSE)&H77 -> LCVPetrol | C77: LCVDouble Cab Pick-Up | D77: =VLOOKUP(C77,NAAMSAdefs!$B$2:$D$43,3,FALSE) -> LCV | E77: Freestate | F77: LCV | G77: Double Cab Pick-Up | H77: Petrol | N77: 1 | O77: 13 | P77: 30 | Q77: 39 | R77: 40 | S77: 42 | T77: 54 | U77: 161 | V77: 243 | W77: 271 | X77: 312 | Y77: 274 | Z77: 333 | AA77: 363 | AB77: 394 | AC77: 228 | AD77: 221 | AE77: 234 | AF77: 377 | AG77: 384 | AH77: 357 | AI77: 302 | AJ77: 272 | AK77: 83 | AL77: 151
A78: =VLOOKUP(C78,NAAMSAdefs!$B$2:$C$43,2,FALSE)&E78&H78 -> LCVFreestateDiesel | B78: =VLOOKUP(C78,NAAMSAdefs!$B$2:$C$43,2,FALSE)&H78 -> LCVDiesel | C78: =F78&G78 -> LCVExtended Cab Pick-Up | D78: =VLOOKUP(C78,NAAMSAdefs!$B$2:$D$43,3,FALSE) -> LCV | E78: Freestate | F78: LCV | G78: Extended Cab Pick-Up | H78: Diesel | AC78: 44 | AD78: 124 | AE78: 128 | AF78: 235 | AG78: 288 | AH78: 345 | AI78: 397 | AJ78: 438 | AK78: 394 | AL78: 473
A79: =VLOOKUP(C79,NAAMSAdefs!$B$2:$C$43,2,FALSE)&E79&H79 -> LCVFreestatePetrol | B79: =VLOOKUP(C79,NAAMSAdefs!$B$2:$C$43,2,FALSE)&H79 -> LCVPetrol | C79: LCVExtended Cab Pick-Up | D79: =VLOOKUP(C79,NAAMSAdefs!$B$2:$D$43,3,FALSE) -> LCV | E79: Freestate | F79: LCV | G79: Extended Cab Pick-Up | H79: Petrol | AC79: 13 | AD79: 20 | AE79: 15 | AF79: 106 | AG79: 84 | AH79: 89 | AI79: 77 | AJ79: 70 | AK79: 11 | AL79: 7
A80: =VLOOKUP(C80,NAAMSAdefs!$B$2:$C$43,2,FALSE)&E80&H80 -> SUVFreestatePetrol | B80: =VLOOKUP(C80,NAAMSAdefs!$B$2:$C$43,2,FALSE)&H80 -> SUVPetrol | C80: LCVLeisure | D80: =VLOOKUP(C80,NAAMSAdefs!$B$2:$D$43,3,FALSE) -> LCV | E80: Freestate | F80: LCV | G80: Leisure | H80: Petrol | L80: 1
A81: =VLOOKUP(C81,NAAMSAdefs!$B$2:$C$43,2,FALSE)&E81&H81 -> MBTFreestateDiesel | B81: =VLOOKUP(C81,NAAMSAdefs!$B$2:$C$43,2,FALSE)&H81 -> MBTDiesel | C81: LCVMinibus | D81: =VLOOKUP(C81,NAAMSAdefs!$B$2:$D$43,3,FALSE) -> MBT | E81: Freestate | F81: LCV | G81: Minibus | H81: Diesel | W81: 7 | X81: 63 | Y81: 27 | Z81: 14 | AA81: 3 | AG81: 13 | AH81: 60 | AI81: 55 | AJ81: 54 | AK81: 35 | AL81: 66
A82: =VLOOKUP(C82,NAAMSAdefs!$B$2:$C$43,2,FALSE)&E82&H82 -> MBTFreestatePetrol | B82: =VLOOKUP(C82,NAAMSAdefs!$B$2:$C$43,2,FALSE)&H82 -> MBTPetrol | C82: LCVMinibus | D82: =VLOOKUP(C82,NAAMSAdefs!$B$2:$D$43,3,FALSE) -> MBT | E82: Freestate | F82: LCV | G82: Minibus | H82: Petrol | I82: 1 | J82: 9 | K82: 11 | L82: 31 | M82: 27 | N82: 68 | O82: 203 | P82: 408 | Q82: 449 | R82: 563 | S82: 540 | T82: 476 | U82: 439 | V82: 471 | W82: 594 | X82: 503 | Y82: 344 | Z82: 291 | AA82: 144 | AB82: 88 | AC82: 88 | AD82: 96 | AE82: 87 | AF82: 125 | AG82: 137 | AH82: 176 | AI82: 280 | AJ82: 471 | AK82: 256 | AL82: 353
A83: =VLOOKUP(C83,NAAMSAdefs!$B$2:$C$43,2,FALSE)&E83&H83 -> LCVFreestateDiesel | B83: =VLOOKUP(C83,NAAMSAdefs!$B$2:$C$43,2,FALSE)&H83 -> LCVDiesel | C83: LCVMPV | D83: =VLOOKUP(C83,NAAMSAdefs!$B$2:$D$43,3,FALSE) -> LCV | E83: Freestate | F83: LCV | G83: MPV | H83: Diesel | AI83: 11 | AJ83: 1 | AL83: 2
A84: =VLOOKUP(C84,NAAMSAdefs!$B$2:$C$43,2,FALSE)&E84&H84 -> LCVFreestateDiesel | B84: =VLOOKUP(C84,NAAMSAdefs!$B$2:$C$43,2,FALSE)&H84 -> LCVDiesel | C84: LCVPanel Van | D84: =VLOOKUP(C84,NAAMSAdefs!$B$2:$D$43,3,FALSE) -> LCV | E84: Freestate | F84: LCV | G84: Panel Van | H84: Diesel | K84: 2 | L84: 3 | M84: 4 | N84: 4 | O84: 7 | P84: 9 | W84: 8 | AD84: 11 | AE84: 23 | AF84: 66 | AG84: 74 | AH84: 117 | AI84: 88 | AJ84: 65 | AK84: 37 | AL84: 32
A85: =VLOOKUP(C85,NAAMSAdefs!$B$2:$C$43,2,FALSE)&E85&H85 -> LCVFreestatePetrol | B85: =VLOOKUP(C85,NAAMSAdefs!$B$2:$C$43,2,FALSE)&H85 -> LCVPetrol | C85: LCVPanel Van | D85: =VLOOKUP(C85,NAAMSAdefs!$B$2:$D$43,3,FALSE) -> LCV | E85: Freestate | F85: LCV | G85: Panel Van | H85: Petrol | I85: 1 | J85: 5 | K85: 11 | L85: 16 | M85: 11 | N85: 27 | O85: 77 | P85: 78 | Q85: 118 | R85: 98 | S85: 61 | T85: 41 | U85: 79 | V85: 84 | W85: 131 | X85: 109 | Y85: 95 | Z85: 57 | AA85: 54 | AB85: 51 | AC85: 60 | AD85: 66 | AE85: 53 | AF85: 50 | AG85: 152 | AH85: 139 | AI85: 137 | AJ85: 119 | AK85: 28 | AL85: 43
A86: =VLOOKUP(C86,NAAMSAdefs!$B$2:$C$43,2,FALSE)&E86&H86 -> LCVFreestateDiesel | B86: =VLOOKUP(C86,NAAMSAdefs!$B$2:$C$43,2,FALSE)&H86 -> LCVDiesel | C86: LCVSedan | D86: =VLOOKUP(C86,NAAMSAdefs!$B$2:$D$43,3,FALSE) -> LCV | E86: Freestate | F86: LCV | G86: Sedan | H86: Diesel | AI86: 21 | AJ86: 4 | AK86: 7
A87: =VLOOKUP(C87,NAAMSAdefs!$B$2:$C$43,2,FALSE)&E87&H87 -> LCVFreestateDiesel | B87: =VLOOKUP(C87,NAAMSAdefs!$B$2:$C$43,2,FALSE)&H87 -> LCVDiesel | C87: LCVSingle Cab Pick-Up | D87: =VLOOKUP(C87,NAAMSAdefs!$B$2:$D$43,3,FALSE) -> LCV | E87: Freestate | F87: LCV | G87: Single Cab Pick-Up | H87: Diesel | I87: 4 | J87: 15 | K87: 13 | L87: 28 | M87: 55 | N87: 102 | O87: 311 | P87: 564 | Q87: 623 | R87: 716 | S87: 572 | T87: 570 | U87: 1138 | V87: 1462 | W87: 1931 | X87: 2412 | Y87: 2238 | Z87: 1699 | AA87: 1480 | AB87: 1490 | AC87: 1781 | AD87: 1760 | AE87: 1542 | AF87: 1465 | AG87: 1583 | AH87: 2008 | AI87: 2050 | AJ87: 1516 | AK87: 1139 | AL87: 1485
A88: =VLOOKUP(C88,NAAMSAdefs!$B$2:$C$43,2,FALSE)&E88&H88 -> LCVFreestatePetrol | B88: =VLOOKUP(C88,NAAMSAdefs!$B$2:$C$43,2,FALSE)&H88 -> LCVPetrol | C88: LCVSingle Cab Pick-Up | D88: =VLOOKUP(C88,NAAMSAdefs!$B$2:$D$43,3,FALSE) -> LCV | E88: Freestate | F88: LCV | G88: Single Cab Pick-Up | H88: Petrol | I88: 20 | J88: 40 | K88: 74 | L88: 96 | M88: 65 | N88: 147 | O88: 470 | P88: 1071 | Q88: 1307 | R88: 1535 | S88: 1420 | T88: 1599 | U88: 1504 | V88: 1759 | W88: 2093 | X88: 1933 | Y88: 1843 | Z88: 1538 | AA88: 1542 | AB88: 1438 | AC88: 1246 | AD88: 1225 | AE88: 1311 | AF88: 1600 | AG88: 2241 | AH88: 2670 | AI88: 2833 | AJ88: 2243 | AK88: 1352 | AL88: 1454
A89: =VLOOKUP(C89,NAAMSAdefs!$B$2:$C$43,2,FALSE)&E89&H89 -> BUSFreestateDiesel | B89: =VLOOKUP(C89,NAAMSAdefs!$B$2:$C$43,2,FALSE)&H89 -> BUSDiesel | C89: MCVBus | D89: =VLOOKUP(C89,NAAMSAdefs!$B$2:$D$43,3,FALSE) -> BUS | E89: Freestate | F89: MCV | G89: Bus | H89: Diesel | M89: 1 | R89: 4 | S89: 1 | V89: 2 | X89: 1 | AB89: 2 | AE89: 1 | AF89: 3 | AG89: 22 | AH89: 61 | AI89: 138 | AJ89: 10 | AK89: 20 | AL89: 10
A90: =VLOOKUP(C90,NAAMSAdefs!$B$2:$C$43,2,FALSE)&E90&H90 -> MCVFreestateDiesel | B90: =VLOOKUP(C90,NAAMSAdefs!$B$2:$C$43,2,FALSE)&H90 -> MCVDiesel | C90: MCVFreight Carrier | D90: =VLOOKUP(C90,NAAMSAdefs!$B$2:$D$43,3,FALSE) -> Truck | E90: Freestate | F90: MCV | G90: Freight Carrier | H90: Diesel | K90: 1 | L90: 10 | M90: 4 | N90: 6 | O90: 20 | P90: 49 | Q90: 35 | R90: 75 | S90: 53 | T90: 51 | U90: 74 | V90: 109 | W90: 138 | X90: 153 | Y90: 124 | Z90: 110 | AA90: 150 | AB90: 121 | AC90: 87 | AD90: 108 | AE90: 124 | AF90: 179 | AG90: 285 | AH90: 277 | AI90: 299 | AJ90: 202 | AK90: 97 | AL90: 111
A91: =VLOOKUP(C91,NAAMSAdefs!$B$2:$C$43,2,FALSE)&E91&H91 -> MCVFreestatePetrol | B91: =VLOOKUP(C91,NAAMSAdefs!$B$2:$C$43,2,FALSE)&H91 -> MCVPetrol | C91: MCVFreight Carrier | D91: =VLOOKUP(C91,NAAMSAdefs!$B$2:$D$43,3,FALSE) -> Truck | E91: Freestate | F91: MCV | G91: Freight Carrier | H91: Petrol | M91: 1 | N91: 1 | O91: 2 | P91: 13 | Q91: 7 | R91: 17 | S91: 9 | T91: 8 | U91: 5 | V91: 5 | W91: 4 | X91: 2 | Y91: 3 | Z91: 2 | AA91: 1
A92: =VLOOKUP(C92,NAAMSAdefs!$B$2:$C$43,2,FALSE)&E92&H92 -> MCVFreestateDiesel | B92: =VLOOKUP(C92,NAAMSAdefs!$B$2:$C$43,2,FALSE)&H92 -> MCVDiesel | C92: MCVPanel Van | D92: =VLOOKUP(C92,NAAMSAdefs!$B$2:$D$43,3,FALSE) -> Truck | E92: Freestate | F92: MCV | G92: Panel Van | H92: Diesel | X92: 20 | Y92: 58 | Z92: 71 | AA92: 27 | AB92: 46 | AC92: 61 | AD92: 40 | AE92: 42 | AF92: 78 | AG92: 68 | AH92: 104 | AI92: 124 | AJ92: 151 | AK92: 70 | AL92: 71
A93: =VLOOKUP(C93,NAAMSAdefs!$B$2:$C$43,2,FALSE)&E93&H93 -> MCVFreestateDiesel | B93: =VLOOKUP(C93,NAAMSAdefs!$B$2:$C$43,2,FALSE)&H93 -> MCVDiesel | C93: MCVTipper | D93: =VLOOKUP(C93,NAAMSAdefs!$B$2:$D$43,3,FALSE) -> Truck | E93: Freestate | F93: MCV | G93: Tipper | H93: Diesel | AI93: 4 | AJ93: 9 | AK93: 3 | AL93: 2
A94: =VLOOKUP(C94,NAAMSAdefs!$B$2:$C$43,2,FALSE)&E94&H94 -> CARFreestateDiesel | B94: =VLOOKUP(C94,NAAMSAdefs!$B$2:$C$43,2,FALSE)&H94 -> CARDiesel | C94: PASCabriolet | D94: =VLOOKUP(C94,NAAMSAdefs!$B$2:$D$43,3,FALSE) -> CAR | E94: Freestate | F94: PAS | G94: Cabriolet | H94: Diesel | AG94: 7 | AL94: 2
A95: =VLOOKUP(C95,NAAMSAdefs!$B$2:$C$43,2,FALSE)&E95&H95 -> CARFreestatePetrol | B95: =VLOOKUP(C95,NAAMSAdefs!$B$2:$C$43,2,FALSE)&H95 -> CARPetrol | C95: PASCabriolet | D95: =VLOOKUP(C95,NAAMSAdefs!$B$2:$D$43,3,FALSE) -> CAR | E95: Freestate | F95: PAS | G95: Cabriolet | H95: Petrol | P95: 1 | Q95: 1 | R95: 6 | S95: 3 | T95: 1 | V95: 10 | W95: 53 | X95: 17 | Y95: 27 | Z95: 24 | AA95: 25 | AB95: 30 | AC95: 55 | AD95: 59 | AE95: 42 | AF95: 42 | AG95: 90 | AH95: 94 | AI95: 97 | AJ95: 58 | AK95: 55 | AL95: 54
A96: =VLOOKUP(C96,NAAMSAdefs!$B$2:$C$43,2,FALSE)&E96&H96 -> CARFreestateDiesel | B96: =VLOOKUP(C96,NAAMSAdefs!$B$2:$C$43,2,FALSE)&H96 -> CARDiesel | C96: PASCoupe | D96: =VLOOKUP(C96,NAAMSAdefs!$B$2:$D$43,3,FALSE) -> CAR | E96: Freestate | F96: PAS | G96: Coupe | H96: Diesel | AG96: 5 | AH96: 2 | AJ96: 7 | AK96: 4 | AL96: 11
A97: =VLOOKUP(C97,NAAMSAdefs!$B$2:$C$43,2,FALSE)&E97&H97 -> CARFreestatePetrol | B97: =VLOOKUP(C97,NAAMSAdefs!$B$2:$C$43,2,FALSE)&H97 -> CARPetrol | C97: PASCoupe | D97: =VLOOKUP(C97,NAAMSAdefs!$B$2:$D$43,3,FALSE) -> CAR | E97: Freestate | F97: PAS | G97: Coupe | H97: Petrol | K97: 2 | L97: 16 | M97: 12 | N97: 17 | O97: 55 | P97: 85 | Q97: 96 | R97: 97 | S97: 100 | T97: 49 | U97: 51 | V97: 59 | W97: 49 | X97: 19 | Y97: 5 | Z97: 9 | AA97: 4 | AB97: 39 | AC97: 64 | AD97: 75 | AE97: 59 | AF97: 68 | AG97: 60 | AH97: 37 | AI97: 72 | AJ97: 63 | AK97: 60 | AL97: 80
A98: =VLOOKUP(C98,NAAMSAdefs!$B$2:$C$43,2,FALSE)&E98&H98 -> SUVFreestatePetrol | B98: =VLOOKUP(C98,NAAMSAdefs!$B$2:$C$43,2,FALSE)&H98 -> SUVPetrol | C98: PASDouble Cab Pick-Up | D98: =VLOOKUP(C98,NAAMSAdefs!$B$2:$D$43,3,FALSE) -> CAR | E98: Freestate | F98: PAS | G98: Double Cab Pick-Up | H98: Petrol | AK98: 3
A99: =VLOOKUP(C99,NAAMSAdefs!$B$2:$C$43,2,FALSE)&E99&H99 -> CARFreestateDiesel | B99: =VLOOKUP(C99,NAAMSAdefs!$B$2:$C$43,2,FALSE)&H99 -> CARDiesel | C99: PASEstate | D99: =VLOOKUP(C99,NAAMSAdefs!$B$2:$D$43,3,FALSE) -> CAR | E99: Freestate | F99: PAS | G99: Estate | H99: Diesel | AD99: 8 | AE99: 6 | AF99: 13 | AG99: 18 | AH99: 15 | AI99: 22 | AJ99: 8 | AK99: 7 | AL99: 14
A100: =VLOOKUP(C100,NAAMSAdefs!$B$2:$C$43,2,FALSE)&E100&H100 -> CARFreestatePetrol | B100: =VLOOKUP(C100,NAAMSAdefs!$B$2:$C$43,2,FALSE)&H100 -> CARPetrol | C100: PASEstate | D100: =VLOOKUP(C100,NAAMSAdefs!$B$2:$D$43,3,FALSE) -> CAR | E100: Freestate | F100: PAS | G100: Estate | H100: Petrol | J100: 2 | K100: 3 | L100: 6 | M100: 7 | N100: 6 | O100: 20 | P100: 54 | Q100: 31 | R100: 56 | S100: 43 | T100: 36 | U100: 5 | V100: 24 | W100: 109 | X100: 85 | Y100: 64 | Z100: 50 | AA100: 43 | AB100: 47 | AC100: 66 | AD100: 69 | AE100: 62 | AF100: 44 | AG100: 58 | AH100: 52 | AI100: 27 | AJ100: 19 | AK100: 113 | AL100: 95
A101: =VLOOKUP(C101,NAAMSAdefs!$B$2:$C$43,2,FALSE)&E101&H101 -> SUVFreestateDiesel | B101: =VLOOKUP(C101,NAAMSAdefs!$B$2:$C$43,2,FALSE)&H101 -> SUVDiesel | C101: PASExtended Cab Pick-Up | D101: =VLOOKUP(C101,NAAMSAdefs!$B$2:$D$43,3,FALSE) -> CAR | E101: Freestate | F101: PAS | G101: Extended Cab Pick-Up | H101: Diesel | AL101: 1
A102: =VLOOKUP(C102,NAAMSAdefs!$B$2:$C$43,2,FALSE)&E102&H102 -> CARFreestateDiesel | B102: =VLOOKUP(C102,NAAMSAdefs!$B$2:$C$43,2,FALSE)&H102 -> CARDiesel | C102: PASHatch (3-dr) | D102: =VLOOKUP(C102,NAAMSAdefs!$B$2:$D$43,3,FALSE) -> CAR | E102: Freestate | F102: PAS | G102: Hatch (3-dr) | H102: Diesel | AE102: 12 | AF102: 68 | AG102: 52 | AH102: 67 | AI102: 37 | AJ102: 10 | AK102: 4 | AL102: 17
A103: =VLOOKUP(C103,NAAMSAdefs!$B$2:$C$43,2,FALSE)&E103&H103 -> CARFreestateHybrid Petrol | B103: =VLOOKUP(C103,NAAMSAdefs!$B$2:$C$43,2,FALSE)&H103 -> CARHybrid Petrol | C103: PASHatch (3-dr) | D103: =VLOOKUP(C103,NAAMSAdefs!$B$2:$D$43,3,FALSE) -> CAR | E103: Freestate | F103: PAS | G103: Hatch (3-dr) | H103: Hybrid Petrol | AL103: 2
A104: =VLOOKUP(C104,NAAMSAdefs!$B$2:$C$43,2,FALSE)&E104&H104 -> CARFreestatePetrol | B104: =VLOOKUP(C104,NAAMSAdefs!$B$2:$C$43,2,FALSE)&H104 -> CARPetrol | C104: PASHatch (3-dr) | D104: =VLOOKUP(C104,NAAMSAdefs!$B$2:$D$43,3,FALSE) -> CAR | E104: Freestate | F104: PAS | G104: Hatch (3-dr) | H104: Petrol | I104: 3 | J104: 14 | K104: 6 | L104: 2 | M104: 4 | N104: 2 | O104: 9 | P104: 6 | Q104: 41 | R104: 46 | S104: 88 | T104: 79 | U104: 126 | V104: 140 | W104: 174 | X104: 411 | Y104: 790 | Z104: 559 | AA104: 456 | AB104: 459 | AC104: 452 | AD104: 341 | AE104: 312 | AF104: 414 | AG104: 571 | AH104: 883 | AI104: 657 | AJ104: 385 | AK104: 187 | AL104: 169
A105: =VLOOKUP(C105,NAAMSAdefs!$B$2:$C$43,2,FALSE)&E105&H105 -> CARFreestateDiesel | B105: =VLOOKUP(C105,NAAMSAdefs!$B$2:$C$43,2,FALSE)&H105 -> CARDiesel | C105: PASHatch (5-dr) | D105: =VLOOKUP(C105,NAAMSAdefs!$B$2:$D$43,3,FALSE) -> CAR | E105: Freestate | F105: PAS | G105: Hatch (5-dr) | H105: Diesel | AB105: 25 | AC105: 40 | AD105: 64 | AE105: 89 | AF105: 131 | AG105: 245 | AH105: 264 | AI105: 232 | AJ105: 190 | AK105: 88 | AL105: 136
A106: =VLOOKUP(C106,NAAMSAdefs!$B$2:$C$43,2,FALSE)&E106&H106 -> CARFreestateHybrid Petrol | B106: =VLOOKUP(C106,NAAMSAdefs!$B$2:$C$43,2,FALSE)&H106 -> CARHybrid Petrol | C106: PASHatch (5-dr) | D106: =VLOOKUP(C106,NAAMSAdefs!$B$2:$D$43,3,FALSE) -> CAR | E106: Freestate | F106: PAS | G106: Hatch (5-dr) | H106: Hybrid Petrol | AK106: 1 | AL106: 1
A107: =VLOOKUP(C107,NAAMSAdefs!$B$2:$C$43,2,FALSE)&E107&H107 -> CARFreestatePetrol | B107: =VLOOKUP(C107,NAAMSAdefs!$B$2:$C$43,2,FALSE)&H107 -> CARPetrol | C107: PASHatch (5-dr) | D107: =VLOOKUP(C107,NAAMSAdefs!$B$2:$D$43,3,FALSE) -> CAR | E107: Freestate | F107: PAS | G107: Hatch (5-dr) | H107: Petrol | I107: 21 | J107: 36 | K107: 52 | L107: 71 | M107: 74 | N107: 178 | O107: 431 | P107: 807 | Q107: 942 | R107: 1384 | S107: 1345 | T107: 1193 | U107: 1299 | V107: 1326 | W107: 2150 | X107: 2687 | Y107: 2174 | Z107: 1852 | AA107: 1642 | AB107: 1790 | AC107: 1841 | AD107: 1558 | AE107: 1937 | AF107: 2787 | AG107: 4298 | AH107: 4940 | AI107: 3827 | AJ107: 2815 | AK107: 1829 | AL107: 2729
A108: =VLOOKUP(C108,NAAMSAdefs!$B$2:$C$43,2,FALSE)&E108&H108 -> SUVFreestateDiesel | B108: =VLOOKUP(C108,NAAMSAdefs!$B$2:$C$43,2,FALSE)&H108 -> SUVDiesel | C108: PASLeisure | D108: =VLOOKUP(C108,NAAMSAdefs!$B$2:$D$43,3,FALSE) -> CAR | E108: Freestate | F108: PAS | G108: Leisure | H108: Diesel | S108: 3 | T108: 1 | U108: 6 | V108: 4 | W108: 26 | X108: 70 | Y108: 94 | Z108: 224 | AA108: 157 | AB108: 239 | AC108: 174 | AD108: 184 | AE108: 136 | AF108: 170 | AG108: 248 | AH108: 429 | AI108: 584 | AJ108: 579 | AK108: 386 | AL108: 255
A109: =VLOOKUP(C109,NAAMSAdefs!$B$2:$C$43,2,FALSE)&E109&H109 -> SUVFreestatePetrol | B109: =VLOOKUP(C109,NAAMSAdefs!$B$2:$C$43,2,FALSE)&H109 -> SUVPetrol | C109: PASLeisure | D109: =VLOOKUP(C109,NAAMSAdefs!$B$2:$D$43,3,FALSE) -> CAR | E109: Freestate | F109: PAS | G109: Leisure | H109: Petrol | P109: 4 | Q109: 4 | R109: 1 | S109: 1 | T109: 36 | U109: 55 | V109: 42 | W109: 94 | X109: 114 | Y109: 126 | Z109: 212 | AA109: 180 | AB109: 106 | AC109: 134 | AD109: 93 | AE109: 122 | AF109: 256 | AG109: 358 | AH109: 394 | AI109: 526 | AJ109: 496 | AK109: 258 | AL109: 178
A110: =VLOOKUP(C110,NAAMSAdefs!$B$2:$C$43,2,FALSE)&E110&H110 -> MBTFreestateDiesel | B110: =VLOOKUP(C110,NAAMSAdefs!$B$2:$C$43,2,FALSE)&H110 -> MBTDiesel | C110: PASMinibus | D110: =VLOOKUP(C110,NAAMSAdefs!$B$2:$D$43,3,FALSE) -> MBT | E110: Freestate | F110: PAS | G110: Minibus | H110: Diesel | AH110: 4
A111: =VLOOKUP(C111,NAAMSAdefs!$B$2:$C$43,2,FALSE)&E111&H111 -> MBTFreestatePetrol | B111: =VLOOKUP(C111,NAAMSAdefs!$B$2:$C$43,2,FALSE)&H111 -> MBTPetrol | C111: PASMinibus | D111: =VLOOKUP(C111,NAAMSAdefs!$B$2:$D$43,3,FALSE) -> MBT | E111: Freestate | F111: PAS | G111: Minibus | H111: Petrol | X111: 1 | Y111: 4 | Z111: 2
A112: =VLOOKUP(C112,NAAMSAdefs!$B$2:$C$43,2,FALSE)&E112&H112 -> SUVFreestateDiesel | B112: =VLOOKUP(C112,NAAMSAdefs!$B$2:$C$43,2,FALSE)&H112 -> SUVDiesel | C112: PASMPV | D112: =VLOOKUP(C112,NAAMSAdefs!$B$2:$D$43,3,FALSE) -> CAR | E112: Freestate | F112: PAS | G112: MPV | H112: Diesel | AA112: 2 | AB112: 42 | AC112: 30 | AD112: 46 | AE112: 78 | AF112: 165 | AG112: 215 | AH112: 199 | AI112: 173 | AJ112: 107 | AK112: 84 | AL112: 99
A113: =VLOOKUP(C113,NAAMSAdefs!$B$2:$C$43,2,FALSE)&E113&H113 -> SUVFreestatePetrol | B113: =VLOOKUP(C113,NAAMSAdefs!$B$2:$C$43,2,FALSE)&H113 -> SUVPetrol | C113: PASMPV | D113: =VLOOKUP(C113,NAAMSAdefs!$B$2:$D$43,3,FALSE) -> CAR | E113: Freestate | F113: PAS | G113: MPV | H113: Petrol | V113: 1 | W113: 14 | X113: 4 | Y113: 10 | Z113: 22 | AA113: 18 | AB113: 272 | AC113: 366 | AD113: 286 | AE113: 244 | AF113: 404 | AG113: 394 | AH113: 408 | AI113: 571 | AJ113: 354 | AK113: 185 | AL113: 185
A114: =VLOOKUP(C114,NAAMSAdefs!$B$2:$C$43,2,FALSE)&E114&H114 -> SUVFreestatePetrol | B114: =VLOOKUP(C114,NAAMSAdefs!$B$2:$C$43,2,FALSE)&H114 -> SUVPetrol | C114: PASPanel Van | D114: =VLOOKUP(C114,NAAMSAdefs!$B$2:$D$43,3,FALSE) -> CAR | E114: Freestate | F114: PAS | G114: Panel Van | H114: Petrol | L114: 3 | P114: 1
A115: =VLOOKUP(C115,NAAMSAdefs!$B$2:$C$43,2,FALSE)&E115&H115 -> CARFreestateDiesel | B115: =VLOOKUP(C115,NAAMSAdefs!$B$2:$C$43,2,FALSE)&H115 -> CARDiesel | C115: PASSedan | D115: =VLOOKUP(C115,NAAMSAdefs!$B$2:$D$43,3,FALSE) -> CAR | E115: Freestate | F115: PAS | G115: Sedan | H115: Diesel | W115: 40 | X115: 85 | Y115: 84 | Z115: 39 | AA115: 13 | AB115: 88 | AC115: 273 | AD115: 355 | AE115: 471 | AF115: 453 | AG115: 442 | AH115: 500 | AI115: 520 | AJ115: 426 | AK115: 255 | AL115: 228
A116: =VLOOKUP(C116,NAAMSAdefs!$B$2:$C$43,2,FALSE)&E116&H116 -> CARFreestateHybrid Petrol | B116: =VLOOKUP(C116,NAAMSAdefs!$B$2:$C$43,2,FALSE)&H116 -> CARHybrid Petrol | C116: PASSedan | D116: =VLOOKUP(C116,NAAMSAdefs!$B$2:$D$43,3,FALSE) -> CAR | E116: Freestate | F116: PAS | G116: Sedan | H116: Hybrid Petrol | AH116: 3 | AI116: 5 | AJ116: 2 | AK116: 2
A117: =VLOOKUP(C117,NAAMSAdefs!$B$2:$C$43,2,FALSE)&E117&H117 -> CARFreestatePetrol | B117: =VLOOKUP(C117,NAAMSAdefs!$B$2:$C$43,2,FALSE)&H117 -> CARPetrol | C117: PASSedan | D117: =VLOOKUP(C117,NAAMSAdefs!$B$2:$D$43,3,FALSE) -> CAR | E117: Freestate | F117: PAS | G117: Sedan | H117: Petrol | I117: 21 | J117: 86 | K117: 165 | L117: 241 | M117: 231 | N117: 464 | O117: 1329 | P117: 2374 | Q117: 2453 | R117: 3190 | S117: 2926 | T117: 3177 | U117: 4143 | V117: 4319 | W117: 4809 | X117: 4650 | Y117: 4565 | Z117: 3647 | AA117: 2878 | AB117: 3206 | AC117: 2801 | AD117: 2105 | AE117: 2194 | AF117: 2626 | AG117: 2783 | AH117: 3187 | AI117: 2635 | AJ117: 2011 | AK117: 1308 | AL117: 1700
A118: =VLOOKUP(C118,NAAMSAdefs!$B$2:$C$43,2,FALSE)&E118&H118 -> SUVFreestatePetrol | B118: =VLOOKUP(C118,NAAMSAdefs!$B$2:$C$43,2,FALSE)&H118 -> SUVPetrol | C118: PASSingle Cab Pick-Up | D118: =VLOOKUP(C118,NAAMSAdefs!$B$2:$D$43,3,FALSE) -> CAR | E118: Freestate | F118: PAS | G118: Single Cab Pick-Up | H118: Petrol | AJ118: 4
A119: =VLOOKUP(C119,NAAMSAdefs!$B$2:$C$43,2,FALSE)&E119&H119 -> SUVFreestateDiesel | B119: =VLOOKUP(C119,NAAMSAdefs!$B$2:$C$43,2,FALSE)&H119 -> SUVDiesel | C119: PASSUV | D119: =VLOOKUP(C119,NAAMSAdefs!$B$2:$D$43,3,FALSE) -> CAR | E119: Freestate | F119: PAS | G119: SUV | H119: Diesel | AA119: 28 | AB119: 27 | AC119: 78 | AD119: 111 | AE119: 152 | AF119: 91 | AG119: 89 | AH119: 109 | AI119: 213 | AJ119: 162 | AK119: 365 | AL119: 794
A120: =VLOOKUP(C120,NAAMSAdefs!$B$2:$C$43,2,FALSE)&E120&H120 -> SUVFreestateHybrid Petrol | B120: =VLOOKUP(C120,NAAMSAdefs!$B$2:$C$43,2,FALSE)&H120 -> SUVHybrid Petrol | C120: PASSUV | D120: =VLOOKUP(C120,NAAMSAdefs!$B$2:$D$43,3,FALSE) -> CAR | E120: Freestate | F120: PAS | G120: SUV | H120: Hybrid Petrol | AJ120: 1 | AL120: 1
A121: =VLOOKUP(C121,NAAMSAdefs!$B$2:$C$43,2,FALSE)&E121&H121 -> SUVFreestatePetrol | B121: =VLOOKUP(C121,NAAMSAdefs!$B$2:$C$43,2,FALSE)&H121 -> SUVPetrol | C121: PASSUV | D121: =VLOOKUP(C121,NAAMSAdefs!$B$2:$D$43,3,FALSE) -> CAR | E121: Freestate | F121: PAS | G121: SUV | H121: Petrol | Z121: 31 | AA121: 26 | AB121: 36 | AC121: 59 | AD121: 67 | AE121: 80 | AF121: 61 | AG121: 113 | AH121: 149 | AI121: 109 | AJ121: 47 | AK121: 134 | AL121: 308
A122: =VLOOKUP(C122,NAAMSAdefs!$B$2:$C$43,2,FALSE)&E122&H122 -> HCVFreestateDiesel | B122: =VLOOKUP(C122,NAAMSAdefs!$B$2:$C$43,2,FALSE)&H122 -> HCVDiesel | C122: XHVFreight Carrier | D122: =VLOOKUP(C122,NAAMSAdefs!$B$2:$D$43,3,FALSE) -> Other | E122: Freestate | F122: XHV | G122: Freight Carrier | H122: Diesel | O122: 1 | P122: 9 | Q122: 8 | R122: 5 | S122: 5 | T122: 13 | U122: 10 | V122: 5 | W122: 10 | X122: 10 | Y122: 9 | Z122: 17 | AA122: 9 | AB122: 17 | AC122: 20 | AD122: 27 | AE122: 48 | AF122: 63 | AG122: 71 | AH122: 75 | AI122: 113 | AJ122: 138 | AK122: 85 | AL122: 99
A123: =VLOOKUP(C123,NAAMSAdefs!$B$2:$C$43,2,FALSE)&E123&H123 -> HCVFreestateDiesel | B123: =VLOOKUP(C123,NAAMSAdefs!$B$2:$C$43,2,FALSE)&H123 -> HCVDiesel | C123: XHVMixer | D123: =VLOOKUP(C123,NAAMSAdefs!$B$2:$D$43,3,FALSE) -> Other | E123: Freestate | F123: XHV | G123: Mixer | H123: Diesel | O123: 1 | P123: 2 | Q123: 2 | R123: 1 | S123: 1 | X123: 2 | AB123: 2 | AC123: 2 | AE123: 3 | AF123: 12 | AG123: 15 | AH123: 15 | AI123: 19 | AJ123: 21 | AK123: 24 | AL123: 2
A124: =VLOOKUP(C124,NAAMSAdefs!$B$2:$C$43,2,FALSE)&E124&H124 -> HCVFreestateDiesel | B124: =VLOOKUP(C124,NAAMSAdefs!$B$2:$C$43,2,FALSE)&H124 -> HCVDiesel | C124: XHVTipper | D124: =VLOOKUP(C124,NAAMSAdefs!$B$2:$D$43,3,FALSE) -> Truck | E124: Freestate | F124: XHV | G124: Tipper | H124: Diesel | P124: 3 | Q124: 6 | R124: 3 | S124: 4 | T124: 2 | U124: 7 | V124: 2 | W124: 5 | X124: 4 | Y124: 2 | Z124: 3 | AB124: 1 | AC124: 1 | AD124: 6 | AE124: 11 | AF124: 4 | AG124: 3 | AH124: 23 | AI124: 69 | AJ124: 53 | AK124: 3 | AL124: 19
A125: =VLOOKUP(C125,NAAMSAdefs!$B$2:$C$43,2,FALSE)&E125&H125 -> HCVFreestateDiesel | B125: =VLOOKUP(C125,NAAMSAdefs!$B$2:$C$43,2,FALSE)&H125 -> HCVDiesel | C125: XHVTruck-Tractor | D125: =VLOOKUP(C125,NAAMSAdefs!$B$2:$D$43,3,FALSE) -> Other | E125: Freestate | F125: XHV | G125: Truck-Tractor | H125: Diesel | J125: 1 | L125: 1 | N125: 2 | O125: 3 | P125: 18 | Q125: 50 | R125: 55 | S125: 39 | T125: 61 | U125: 39 | V125: 73 | W125: 139 | X125: 173 | Y125: 117 | Z125: 138 | AA125: 107 | AB125: 140 | AC125: 107 | AD125: 126 | AE125: 339 | AF125: 366 | AG125: 405 | AH125: 382 | AI125: 606 | AJ125: 770 | AK125: 307 | AL125: 567
A126: =VLOOKUP(C126,NAAMSAdefs!$B$2:$C$43,2,FALSE)&E126&H126 -> BUSGautengDiesel | B126: =VLOOKUP(C126,NAAMSAdefs!$B$2:$C$43,2,FALSE)&H126 -> BUSDiesel | C126: BUSBus | D126: =VLOOKUP(C126,NAAMSAdefs!$B$2:$D$43,3,FALSE) -> BUS | E126: Gauteng | F126: BUS | G126: Bus | H126: Diesel | I126: 4 | J126: 15 | K126: 14 | L126: 14 | M126: 11 | N126: 14 | O126: 29 | P126: 53 | Q126: 50 | R126: 39 | S126: 51 | T126: 107 | U126: 68 | V126: 103 | W126: 78 | X126: 165 | Y126: 84 | Z126: 65 | AA126: 58 | AB126: 189 | AC126: 141 | AD126: 392 | AE126: 246 | AF126: 237 | AG126: 266 | AH126: 503 | AI126: 326 | AJ126: 628 | AK126: 805 | AL126: 512
A127: =VLOOKUP(C127,NAAMSAdefs!$B$2:$C$43,2,FALSE)&E127&H127 -> HCVGautengDiesel | B127: =VLOOKUP(C127,NAAMSAdefs!$B$2:$C$43,2,FALSE)&H127 -> HCVDiesel | C127: BUSTruck-Tractor | D127: =VLOOKUP(C127,NAAMSAdefs!$B$2:$D$43,3,FALSE) -> Other | E127: Gauteng | F127: BUS | G127: Truck-Tractor | H127: Diesel | P127: 2 | Q127: 1 | R127: 3
A128: =VLOOKUP(C128,NAAMSAdefs!$B$2:$C$43,2,FALSE)&E128&H128 -> BUSGautengDiesel | B128: =VLOOKUP(C128,NAAMSAdefs!$B$2:$C$43,2,FALSE)&H128 -> BUSDiesel | C128: HCVBus | D128: =VLOOKUP(C128,NAAMSAdefs!$B$2:$D$43,3,FALSE) -> BUS | E128: Gauteng | F128: HCV | G128: Bus | H128: Diesel | I128: 3 | J128: 4 | K128: 2 | M128: 1 | O128: 1
A129: =VLOOKUP(C129,NAAMSAdefs!$B$2:$C$43,2,FALSE)&E129&H129 -> HCVGautengDiesel | B129: =VLOOKUP(C129,NAAMSAdefs!$B$2:$C$43,2,FALSE)&H129 -> HCVDiesel | C129: HCVFreight Carrier | D129: =VLOOKUP(C129,NAAMSAdefs!$B$2:$D$43,3,FALSE) -> Truck | E129: Gauteng | F129: HCV | G129: Freight Carrier | H129: Diesel | I129: 14 | J129: 17 | K129: 19 | L129: 39 | M129: 23 | N129: 49 | O129: 153 | P129: 465 | Q129: 591 | R129: 595 | S129: 507 | T129: 544 | U129: 444 | V129: 762 | W129: 1067 | X129: 976 | Y129: 873 | Z129: 783 | AA129: 555 | AB129: 773 | AC129: 957 | AD129: 803 | AE129: 984 | AF129: 1327 | AG129: 1795 | AH129: 2417 | AI129: 2694 | AJ129: 2140 | AK129: 1138 | AL129: 1397
A130: =VLOOKUP(C130,NAAMSAdefs!$B$2:$C$43,2,FALSE)&E130&H130 -> HCVGautengDiesel | B130: =VLOOKUP(C130,NAAMSAdefs!$B$2:$C$43,2,FALSE)&H130 -> HCVDiesel | C130: HCVOther | D130: =VLOOKUP(C130,NAAMSAdefs!$B$2:$D$43,3,FALSE) -> Other | E130: Gauteng | F130: HCV | G130: Other | H130: Diesel | X130: 2 | AB130: 3
A131: =VLOOKUP(C131,NAAMSAdefs!$B$2:$C$43,2,FALSE)&E131&H131 -> HCVGautengDiesel | B131: =VLOOKUP(C131,NAAMSAdefs!$B$2:$C$43,2,FALSE)&H131 -> HCVDiesel | C131: HCVTipper | D131: =VLOOKUP(C131,NAAMSAdefs!$B$2:$D$43,3,FALSE) -> Truck | E131: Gauteng | F131: HCV | G131: Tipper | H131: Diesel | I131: 1 | J131: 5 | K131: 3 | L131: 8 | M131: 4 | N131: 7 | O131: 33 | P131: 135 | Q131: 132 | R131: 127 | S131: 98 | T131: 79 | U131: 51 | V131: 85 | W131: 87 | X131: 78 | Y131: 67 | Z131: 42 | AA131: 35 | AB131: 64 | AC131: 63 | AD131: 73 | AE131: 57 | AF131: 75 | AG131: 166 | AH131: 181 | AI131: 331 | AJ131: 270 | AK131: 104 | AL131: 121
A132: =VLOOKUP(C132,NAAMSAdefs!$B$2:$C$43,2,FALSE)&E132&H132 -> HCVGautengDiesel | B132: =VLOOKUP(C132,NAAMSAdefs!$B$2:$C$43,2,FALSE)&H132 -> HCVDiesel | C132: HCVTruck-Tractor | D132: =VLOOKUP(C132,NAAMSAdefs!$B$2:$D$43,3,FALSE) -> Other | E132: Gauteng | F132: HCV | G132: Truck-Tractor | H132: Diesel | J132: 1 | K132: 2 | L132: 2 | M132: 2 | N132: 2 | O132: 22 | P132: 38 | Q132: 47 | R132: 64 | S132: 47 | T132: 51 | U132: 24 | V132: 54 | W132: 43 | X132: 82 | Y132: 68 | Z132: 69 | AA132: 44 | AB132: 33 | AC132: 9 | AD132: 12 | AF132: 1 | AG132: 6 | AH132: 6 | AI132: 24 | AJ132: 16 | AK132: 14 | AL132: 12
A133: =VLOOKUP(C133,NAAMSAdefs!$B$2:$C$43,2,FALSE)&E133&H133 -> LCVGautengDiesel | B133: =VLOOKUP(C133,NAAMSAdefs!$B$2:$C$43,2,FALSE)&H133 -> LCVDiesel | C133: LCVATLV | D133: =VLOOKUP(C133,NAAMSAdefs!$B$2:$D$43,3,FALSE) -> LCV | E133: Gauteng | F133: LCV | G133: ATLV | H133: Diesel | I133: 1 | M133: 2 | N133: 2
A134: =VLOOKUP(C134,NAAMSAdefs!$B$2:$C$43,2,FALSE)&E134&H134 -> LCVGautengPetrol | B134: =VLOOKUP(C134,NAAMSAdefs!$B$2:$C$43,2,FALSE)&H134 -> LCVPetrol | C134: LCVATLV | D134: =VLOOKUP(C134,NAAMSAdefs!$B$2:$D$43,3,FALSE) -> LCV | E134: Gauteng | F134: LCV | G134: ATLV | H134: Petrol | K134: 1 | P134: 1 | Q134: 7 | R134: 1
A135: =VLOOKUP(C135,NAAMSAdefs!$B$2:$C$43,2,FALSE)&E135&H135 -> SUVGautengDiesel | B135: =VLOOKUP(C135,NAAMSAdefs!$B$2:$C$43,2,FALSE)&H135 -> SUVDiesel | C135: LCVCabriolet | D135: =VLOOKUP(C135,NAAMSAdefs!$B$2:$D$43,3,FALSE) -> LCV | E135: Gauteng | F135: LCV | G135: Cabriolet | H135: Diesel | AL135: 23
A136: =VLOOKUP(C136,NAAMSAdefs!$B$2:$C$43,2,FALSE)&E136&H136 -> LCVGautengDiesel | B136: =VLOOKUP(C136,NAAMSAdefs!$B$2:$C$43,2,FALSE)&H136 -> LCVDiesel | C136: LCVDouble Cab Pick-Up | D136: =VLOOKUP(C136,NAAMSAdefs!$B$2:$D$43,3,FALSE) -> LCV | E136: Gauteng | F136: LCV | G136: Double Cab Pick-Up | H136: Diesel | U136: 33 | V136: 320 | W136: 1033 | X136: 1696 | Y136: 2375 | Z136: 2827 | AA136: 3386 | AB136: 4763 | AC136: 4925 | AD136: 4796 | AE136: 4510 | AF136: 5107 | AG136: 7047 | AH136: 8123 | AI136: 8349 | AJ136: 6113 | AK136: 5552 | AL136: 7259
A137: =VLOOKUP(C137,NAAMSAdefs!$B$2:$C$43,2,FALSE)&E137&H137 -> LCVGautengPetrol | B137: =VLOOKUP(C137,NAAMSAdefs!$B$2:$C$43,2,FALSE)&H137 -> LCVPetrol | C137: LCVDouble Cab Pick-Up | D137: =VLOOKUP(C137,NAAMSAdefs!$B$2:$D$43,3,FALSE) -> LCV | E137: Gauteng | F137: LCV | G137: Double Cab Pick-Up | H137: Petrol | I137: 1 | J137: 1 | L137: 2 | M137: 4 | N137: 19 | O137: 59 | P137: 146 | Q137: 187 | R137: 255 | S137: 248 | T137: 299 | U137: 937 | V137: 1316 | W137: 1889 | X137: 2352 | Y137: 2219 | Z137: 2758 | AA137: 3118 | AB137: 3673 | AC137: 2584 | AD137: 1948 | AE137: 2372 | AF137: 3790 | AG137: 4202 | AH137: 4219 | AI137: 3489 | AJ137: 2482 | AK137: 1260 | AL137: 1735
A138: =VLOOKUP(C138,NAAMSAdefs!$B$2:$C$43,2,FALSE)&E138&H138 -> LCVGautengDiesel | B138: =VLOOKUP(C138,NAAMSAdefs!$B$2:$C$43,2,FALSE)&H138 -> LCVDiesel | C138: LCVExtended Cab Pick-Up | D138: =VLOOKUP(C138,NAAMSAdefs!$B$2:$D$43,3,FALSE) -> LCV | E138: Gauteng | F138: LCV | G138: Extended Cab Pick-Up | H138: Diesel | AC138: 239 | AD138: 720 | AE138: 724 | AF138: 1373 | AG138: 1863 | AH138: 2000 | AI138: 1964 | AJ138: 2052 | AK138: 1450 | AL138: 1983
A139: =VLOOKUP(C139,NAAMSAdefs!$B$2:$C$43,2,FALSE)&E139&H139 -> LCVGautengPetrol | B139: =VLOOKUP(C139,NAAMSAdefs!$B$2:$C$43,2,FALSE)&H139 -> LCVPetrol | C139: LCVExtended Cab Pick-Up | D139: =VLOOKUP(C139,NAAMSAdefs!$B$2:$D$43,3,FALSE) -> LCV | E139: Gauteng | F139: LCV | G139: Extended Cab Pick-Up | H139: Petrol | AC139: 144 | AD139: 152 | AE139: 131 | AF139: 446 | AG139: 582 | AH139: 484 | AI139: 721 | AJ139: 557 | AK139: 101 | AL139: 98
A140: =VLOOKUP(C140,NAAMSAdefs!$B$2:$C$43,2,FALSE)&E140&H140 -> LCVGautengPetrol | B140: =VLOOKUP(C140,NAAMSAdefs!$B$2:$C$43,2,FALSE)&H140 -> LCVPetrol | C140: LCVFreight Carrier | D140: =VLOOKUP(C140,NAAMSAdefs!$B$2:$D$43,3,FALSE) -> LCV | E140: Gauteng | F140: LCV | G140: Freight Carrier | H140: Petrol | O140: 2
A141: =VLOOKUP(C141,NAAMSAdefs!$B$2:$C$43,2,FALSE)&E141&H141 -> SUVGautengPetrol | B141: =VLOOKUP(C141,NAAMSAdefs!$B$2:$C$43,2,FALSE)&H141 -> SUVPetrol | C141: LCVLeisure | D141: =VLOOKUP(C141,NAAMSAdefs!$B$2:$D$43,3,FALSE) -> LCV | E141: Gauteng | F141: LCV | G141: Leisure | H141: Petrol | K141: 4 | L141: 23 | M141: 5
A142: =VLOOKUP(C142,NAAMSAdefs!$B$2:$C$43,2,FALSE)&E142&H142 -> MBTGautengDiesel | B142: =VLOOKUP(C142,NAAMSAdefs!$B$2:$C$43,2,FALSE)&H142 -> MBTDiesel | C142: =F142&G142 -> LCVMinibus | D142: =VLOOKUP(C142,NAAMSAdefs!$B$2:$D$43,3,FALSE) -> MBT | E142: Gauteng | F142: LCV | G142: Minibus | H142: Diesel | W142: 16 | X142: 203 | Y142: 102 | Z142: 56 | AA142: 23 | AB142: 9 | AG142: 246 | AH142: 508 | AI142: 701 | AJ142: 703 | AK142: 368 | AL142: 511
A143: =VLOOKUP(C143,NAAMSAdefs!$B$2:$C$43,2,FALSE)&E143&H143 -> MBTGautengPetrol | B143: =VLOOKUP(C143,NAAMSAdefs!$B$2:$C$43,2,FALSE)&H143 -> MBTPetrol | C143: LCVMinibus | D143: =VLOOKUP(C143,NAAMSAdefs!$B$2:$D$43,3,FALSE) -> MBT | E143: Gauteng | F143: LCV | G143: Minibus | H143: Petrol | I143: 35 | J143: 98 | K143: 148 | L143: 245 | M143: 219 | N143: 496 | O143: 1338 | P143: 2710 | Q143: 3370 | R143: 4065 | S143: 4202 | T143: 3678 | U143: 3331 | V143: 4132 | W143: 4900 | X143: 3712 | Y143: 2295 | Z143: 1865 | AA143: 1420 | AB143: 1006 | AC143: 1503 | AD143: 1948 | AE143: 1573 | AF143: 2808 | AG143: 4652 | AH143: 5425 | AI143: 6520 | AJ143: 7178 | AK143: 4081 | AL143: 3777
A144: =VLOOKUP(C144,NAAMSAdefs!$B$2:$C$43,2,FALSE)&E144&H144 -> LCVGautengDiesel | B144: =VLOOKUP(C144,NAAMSAdefs!$B$2:$C$43,2,FALSE)&H144 -> LCVDiesel | C144: LCVMPV | D144: =VLOOKUP(C144,NAAMSAdefs!$B$2:$D$43,3,FALSE) -> LCV | E144: Gauteng | F144: LCV | G144: MPV | H144: Diesel | AI144: 118 | AJ144: 83 | AK144: 4 | AL144: 36
A145: =VLOOKUP(C145,NAAMSAdefs!$B$2:$C$43,2,FALSE)&E145&H145 -> LCVGautengDiesel | B145: =VLOOKUP(C145,NAAMSAdefs!$B$2:$C$43,2,FALSE)&H145 -> LCVDiesel | C145: LCVPanel Van | D145: =VLOOKUP(C145,NAAMSAdefs!$B$2:$D$43,3,FALSE) -> LCV | E145: Gauteng | F145: LCV | G145: Panel Van | H145: Diesel | I145: 2 | J145: 5 | K145: 3 | L145: 7 | M145: 7 | N145: 10 | O145: 22 | P145: 26 | W145: 56 | AD145: 119 | AE145: 332 | AF145: 742 | AG145: 1208 | AH145: 1550 | AI145: 1350 | AJ145: 938 | AK145: 548 | AL145: 582
A146: =VLOOKUP(C146,NAAMSAdefs!$B$2:$C$43,2,FALSE)&E146&H146 -> LCVGautengPetrol | B146: =VLOOKUP(C146,NAAMSAdefs!$B$2:$C$43,2,FALSE)&H146 -> LCVPetrol | C146: LCVPanel Van | D146: =VLOOKUP(C146,NAAMSAdefs!$B$2:$D$43,3,FALSE) -> LCV | E146: Gauteng | F146: LCV | G146: Panel Van | H146: Petrol | I146: 44 | J146: 80 | K146: 124 | L146: 172 | M146: 126 | N146: 265 | O146: 682 | P146: 1009 | Q146: 1246 | R146: 1067 | S146: 786 | T146: 366 | U146: 901 | V146: 1151 | W146: 1562 | X146: 1596 | Y146: 1041 | Z146: 897 | AA146: 1104 | AB146: 1078 | AC146: 1775 | AD146: 1586 | AE146: 1335 | AF146: 1323 | AG146: 1520 | AH146: 1345 | AI146: 1589 | AJ146: 1606 | AK146: 767 | AL146: 796
A147: =VLOOKUP(C147,NAAMSAdefs!$B$2:$C$43,2,FALSE)&E147&H147 -> LCVGautengDiesel | B147: =VLOOKUP(C147,NAAMSAdefs!$B$2:$C$43,2,FALSE)&H147 -> LCVDiesel | C147: LCVSedan | D147: =VLOOKUP(C147,NAAMSAdefs!$B$2:$D$43,3,FALSE) -> LCV | E147: Gauteng | F147: LCV | G147: Sedan | H147: Diesel | AI147: 178 | AJ147: 61 | AK147: 163
A148: =VLOOKUP(C148,NAAMSAdefs!$B$2:$C$43,2,FALSE)&E148&H148 -> LCVGautengDiesel | B148: =VLOOKUP(C148,NAAMSAdefs!$B$2:$C$43,2,FALSE)&H148 -> LCVDiesel | C148: LCVSingle Cab Pick-Up | D148: =VLOOKUP(C148,NAAMSAdefs!$B$2:$D$43,3,FALSE) -> LCV | E148: Gauteng | F148: LCV | G148: Single Cab Pick-Up | H148: Diesel | I148: 19 | J148: 41 | K148: 44 | L148: 53 | M148: 83 | N148: 155 | O148: 411 | P148: 708 | Q148: 1049 | R148: 1318 | S148: 1447 | T148: 1414 | U148: 2048 | V148: 3548 | W148: 5856 | X148: 6746 | Y148: 6223 | Z148: 5149 | AA148: 4854 | AB148: 5524 | AC148: 6211 | AD148: 6036 | AE148: 5664 | AF148: 6506 | AG148: 7798 | AH148: 10793 | AI148: 10616 | AJ148: 8200 | AK148: 6047 | AL148: 7553
A149: =VLOOKUP(C149,NAAMSAdefs!$B$2:$C$43,2,FALSE)&E149&H149 -> LCVGautengPetrol | B149: =VLOOKUP(C149,NAAMSAdefs!$B$2:$C$43,2,FALSE)&H149 -> LCVPetrol | C149: LCVSingle Cab Pick-Up | D149: =VLOOKUP(C149,NAAMSAdefs!$B$2:$D$43,3,FALSE) -> LCV | E149: Gauteng | F149: LCV | G149: Single Cab Pick-Up | H149: Petrol | I149: 149 | J149: 344 | K149: 526 | L149: 747 | M149: 568 | N149: 1111 | O149: 3162 | P149: 6302 | Q149: 9147 | R149: 10956 | S149: 11549 | T149: 11722 | U149: 11368 | V149: 13805 | W149: 17120 | X149: 16703 | Y149: 14071 | Z149: 12285 | AA149: 12863 | AB149: 14156 | AC149: 12902 | AD149: 13050 | AE149: 13976 | AF149: 16934 | AG149: 22702 | AH149: 27342 | AI149: 27512 | AJ149: 20008 | AK149: 12513 | AL149: 14769
A150: =VLOOKUP(C150,NAAMSAdefs!$B$2:$C$43,2,FALSE)&E150&H150 -> BUSGautengDiesel | B150: =VLOOKUP(C150,NAAMSAdefs!$B$2:$C$43,2,FALSE)&H150 -> BUSDiesel | C150: MCVBus | D150: =VLOOKUP(C150,NAAMSAdefs!$B$2:$D$43,3,FALSE) -> BUS | E150: Gauteng | F150: MCV | G150: Bus | H150: Diesel | L150: 1 | N150: 1 | R150: 11 | S150: 10 | T150: 7 | U150: 11 | V150: 28 | W150: 32 | X150: 22 | Y150: 2 | Z150: 1 | AA150: 13 | AB150: 35 | AC150: 42 | AD150: 70 | AE150: 36 | AF150: 22 | AG150: 126 | AH150: 257 | AI150: 216 | AJ150: 125 | AK150: 63 | AL150: 57
A151: =VLOOKUP(C151,NAAMSAdefs!$B$2:$C$43,2,FALSE)&E151&H151 -> BUSGautengPetrol | B151: =VLOOKUP(C151,NAAMSAdefs!$B$2:$C$43,2,FALSE)&H151 -> BUSPetrol | C151: MCVBus | D151: =VLOOKUP(C151,NAAMSAdefs!$B$2:$D$43,3,FALSE) -> BUS | E151: Gauteng | F151: MCV | G151: Bus | H151: Petrol | U151: 2
A152: =VLOOKUP(C152,NAAMSAdefs!$B$2:$C$43,2,FALSE)&E152&H152 -> MCVGautengDiesel | B152: =VLOOKUP(C152,NAAMSAdefs!$B$2:$C$43,2,FALSE)&H152 -> MCVDiesel | C152: MCVFreight Carrier | D152: =VLOOKUP(C152,NAAMSAdefs!$B$2:$D$43,3,FALSE) -> Truck | E152: Gauteng | F152: MCV | G152: Freight Carrier | H152: Diesel | I152: 10 | J152: 26 | K152: 29 | L152: 75 | M152: 44 | N152: 83 | O152: 241 | P152: 539 | Q152: 586 | R152: 736 | S152: 665 | T152: 588 | U152: 534 | V152: 820 | W152: 1281 | X152: 1355 | Y152: 1354 | Z152: 1242 | AA152: 1183 | AB152: 1493 | AC152: 1595 | AD152: 1800 | AE152: 1965 | AF152: 2799 | AG152: 3864 | AH152: 4418 | AI152: 4130 | AJ152: 2894 | AK152: 1606 | AL152: 1998
A153: =VLOOKUP(C153,NAAMSAdefs!$B$2:$C$43,2,FALSE)&E153&H153 -> MCVGautengPetrol | B153: =VLOOKUP(C153,NAAMSAdefs!$B$2:$C$43,2,FALSE)&H153 -> MCVPetrol | C153: MCVFreight Carrier | D153: =VLOOKUP(C153,NAAMSAdefs!$B$2:$D$43,3,FALSE) -> Truck | E153: Gauteng | F153: MCV | G153: Freight Carrier | H153: Petrol | K153: 2 | L153: 17 | M153: 12 | N153: 44 | O153: 86 | P153: 178 | Q153: 146 | R153: 263 | S153: 227 | T153: 155 | U153: 132 | V153: 150 | W153: 142 | X153: 125 | Y153: 108 | Z153: 38 | AA153: 79 | AB153: 28 | AC153: 25 | AD153: 7 | AE153: 13
A154: =VLOOKUP(C154,NAAMSAdefs!$B$2:$C$43,2,FALSE)&E154&H154 -> MCVGautengDiesel | B154: =VLOOKUP(C154,NAAMSAdefs!$B$2:$C$43,2,FALSE)&H154 -> MCVDiesel | C154: MCVPanel Van | D154: =VLOOKUP(C154,NAAMSAdefs!$B$2:$D$43,3,FALSE) -> Truck | E154: Gauteng | F154: MCV | G154: Panel Van | H154: Diesel | W154: 8 | X154: 408 | Y154: 640 | Z154: 602 | AA154: 527 | AB154: 457 | AC154: 598 | AD154: 556 | AE154: 583 | AF154: 834 | AG154: 940 | AH154: 1210 | AI154: 1860 | AJ154: 1506 | AK154: 812 | AL154: 893
A155: =VLOOKUP(C155,NAAMSAdefs!$B$2:$C$43,2,FALSE)&E155&H155 -> MCVGautengDiesel | B155: =VLOOKUP(C155,NAAMSAdefs!$B$2:$C$43,2,FALSE)&H155 -> MCVDiesel | C155: MCVTipper | D155: =VLOOKUP(C155,NAAMSAdefs!$B$2:$D$43,3,FALSE) -> Truck | E155: Gauteng | F155: MCV | G155: Tipper | H155: Diesel | AI155: 47 | AJ155: 39 | AK155: 10 | AL155: 8
A156: =VLOOKUP(C156,NAAMSAdefs!$B$2:$C$43,2,FALSE)&E156&H156 -> CARGautengDiesel | B156: =VLOOKUP(C156,NAAMSAdefs!$B$2:$C$43,2,FALSE)&H156 -> CARDiesel | C156: PASCabriolet | D156: =VLOOKUP(C156,NAAMSAdefs!$B$2:$D$43,3,FALSE) -> CAR | E156: Gauteng | F156: PAS | G156: Cabriolet | H156: Diesel | AG156: 103 | AH156: 55 | AI156: 21 | AJ156: 7 | AK156: 10 | AL156: 59
A157: =VLOOKUP(C157,NAAMSAdefs!$B$2:$C$43,2,FALSE)&E157&H157 -> CARGautengPetrol | B157: =VLOOKUP(C157,NAAMSAdefs!$B$2:$C$43,2,FALSE)&H157 -> CARPetrol | C157: PASCabriolet | D157: =VLOOKUP(C157,NAAMSAdefs!$B$2:$D$43,3,FALSE) -> CAR | E157: Gauteng | F157: PAS | G157: Cabriolet | H157: Petrol | J157: 3 | K157: 1 | P157: 22 | Q157: 50 | R157: 85 | S157: 52 | T157: 17 | U157: 4 | V157: 173 | W157: 963 | X157: 574 | Y157: 722 | Z157: 749 | AA157: 610 | AB157: 796 | AC157: 1456 | AD157: 1201 | AE157: 1511 | AF157: 2093 | AG157: 3065 | AH157: 2899 | AI157: 2481 | AJ157: 1529 | AK157: 1460 | AL157: 1673
A158: =VLOOKUP(C158,NAAMSAdefs!$B$2:$C$43,2,FALSE)&E158&H158 -> CARGautengDiesel | B158: =VLOOKUP(C158,NAAMSAdefs!$B$2:$C$43,2,FALSE)&H158 -> CARDiesel | C158: PASCoupe | D158: =VLOOKUP(C158,NAAMSAdefs!$B$2:$D$43,3,FALSE) -> CAR | E158: Gauteng | F158: PAS | G158: Coupe | H158: Diesel | AG158: 127 | AH158: 104 | AI158: 31 | AJ158: 165 | AK158: 167 | AL158: 255
A159: =VLOOKUP(C159,NAAMSAdefs!$B$2:$C$43,2,FALSE)&E159&H159 -> CARGautengHybrid Petrol | B159: =VLOOKUP(C159,NAAMSAdefs!$B$2:$C$43,2,FALSE)&H159 -> CARHybrid Petrol | C159: PASCoupe | D159: =VLOOKUP(C159,NAAMSAdefs!$B$2:$D$43,3,FALSE) -> CAR | E159: Gauteng | F159: PAS | G159: Coupe | H159: Hybrid Petrol | AL159: 23
A160: =VLOOKUP(C160,NAAMSAdefs!$B$2:$C$43,2,FALSE)&E160&H160 -> CARGautengPetrol | B160: =VLOOKUP(C160,NAAMSAdefs!$B$2:$C$43,2,FALSE)&H160 -> CARPetrol | C160: PASCoupe | D160: =VLOOKUP(C160,NAAMSAdefs!$B$2:$D$43,3,FALSE) -> CAR | E160: Gauteng | F160: PAS | G160: Coupe | H160: Petrol | I160: 10 | J160: 8 | K160: 27 | L160: 151 | M160: 144 | N160: 233 | O160: 620 | P160: 1180 | Q160: 1358 | R160: 1455 | S160: 1910 | T160: 798 | U160: 815 | V160: 1030 | W160: 894 | X160: 425 | Y160: 207 | Z160: 202 | AA160: 195 | AB160: 930 | AC160: 1315 | AD160: 1960 | AE160: 1681 | AF160: 1783 | AG160: 1370 | AH160: 1413 | AI160: 2069 | AJ160: 1887 | AK160: 1801 | AL160: 2108
A161: =VLOOKUP(C161,NAAMSAdefs!$B$2:$C$43,2,FALSE)&E161&H161 -> SUVGautengPetrol | B161: =VLOOKUP(C161,NAAMSAdefs!$B$2:$C$43,2,FALSE)&H161 -> SUVPetrol | C161: PASDouble Cab Pick-Up | D161: =VLOOKUP(C161,NAAMSAdefs!$B$2:$D$43,3,FALSE) -> CAR | E161: Gauteng | F161: PAS | G161: Double Cab Pick-Up | H161: Petrol | AJ161: 15 | AK161: 26 | AL161: 2
A162: =VLOOKUP(C162,NAAMSAdefs!$B$2:$C$43,2,FALSE)&E162&H162 -> CARGautengDiesel | B162: =VLOOKUP(C162,NAAMSAdefs!$B$2:$C$43,2,FALSE)&H162 -> CARDiesel | C162: PASEstate | D162: =VLOOKUP(C162,NAAMSAdefs!$B$2:$D$43,3,FALSE) -> CAR | E162: Gauteng | F162: PAS | G162: Estate | H162: Diesel | Z162: 1 | AC162: 1 | AD162: 157 | AE162: 290 | AF162: 239 | AG162: 261 | AH162: 288 | AI162: 230 | AJ162: 168 | AK162: 133 | AL162: 157
A163: =VLOOKUP(C163,NAAMSAdefs!$B$2:$C$43,2,FALSE)&E163&H163 -> CARGautengPetrol | B163: =VLOOKUP(C163,NAAMSAdefs!$B$2:$C$43,2,FALSE)&H163 -> CARPetrol | C163: PASEstate | D163: =VLOOKUP(C163,NAAMSAdefs!$B$2:$D$43,3,FALSE) -> CAR | E163: Gauteng | F163: PAS | G163: Estate | H163: Petrol | I163: 35 | J163: 78 | K163: 93 | L163: 121 | M163: 73 | N163: 125 | O163: 423 | P163: 704 | Q163: 448 | R163: 572 | S163: 508 | T163: 453 | U163: 131 | V163: 205 | W163: 1253 | X163: 1155 | Y163: 1201 | Z163: 1129 | AA163: 850 | AB163: 1131 | AC163: 1887 | AD163: 1459 | AE163: 1290 | AF163: 1126 | AG163: 1320 | AH163: 1058 | AI163: 663 | AJ163: 306 | AK163: 1178 | AL163: 1293
A164: =VLOOKUP(C164,NAAMSAdefs!$B$2:$C$43,2,FALSE)&E164&H164 -> SUVGautengDiesel | B164: =VLOOKUP(C164,NAAMSAdefs!$B$2:$C$43,2,FALSE)&H164 -> SUVDiesel | C164: PASExtended Cab Pick-Up | D164: =VLOOKUP(C164,NAAMSAdefs!$B$2:$D$43,3,FALSE) -> CAR | E164: Gauteng | F164: PAS | G164: Extended Cab Pick-Up | H164: Diesel | AL164: 4
A165: =VLOOKUP(C165,NAAMSAdefs!$B$2:$C$43,2,FALSE)&E165&H165 -> CARGautengDiesel | B165: =VLOOKUP(C165,NAAMSAdefs!$B$2:$C$43,2,FALSE)&H165 -> CARDiesel | C165: PASHatch (3-dr) | D165: =VLOOKUP(C165,NAAMSAdefs!$B$2:$D$43,3,FALSE) -> CAR | E165: Gauteng | F165: PAS | G165: Hatch (3-dr) | H165: Diesel | AE165: 236 | AF165: 1729 | AG165: 1312 | AH165: 1891 | AI165: 955 | AJ165: 245 | AK165: 95 | AL165: 114
A166: =VLOOKUP(C166,NAAMSAdefs!$B$2:$C$43,2,FALSE)&E166&H166 -> CARGautengHybrid Petrol | B166: =VLOOKUP(C166,NAAMSAdefs!$B$2:$C$43,2,FALSE)&H166 -> CARHybrid Petrol | C166: PASHatch (3-dr) | D166: =VLOOKUP(C166,NAAMSAdefs!$B$2:$D$43,3,FALSE) -> CAR | E166: Gauteng | F166: PAS | G166: Hatch (3-dr) | H166: Hybrid Petrol | AL166: 28
A167: =VLOOKUP(C167,NAAMSAdefs!$B$2:$C$43,2,FALSE)&E167&H167 -> CARGautengPetrol | B167: =VLOOKUP(C167,NAAMSAdefs!$B$2:$C$43,2,FALSE)&H167 -> CARPetrol | C167: PASHatch (3-dr) | D167: =VLOOKUP(C167,NAAMSAdefs!$B$2:$D$43,3,FALSE) -> CAR | E167: Gauteng | F167: PAS | G167: Hatch (3-dr) | H167: Petrol | I167: 58 | J167: 140 | K167: 126 | L167: 83 | M167: 42 | N167: 34 | O167: 68 | P167: 72 | Q167: 329 | R167: 522 | S167: 1271 | T167: 1424 | U167: 1828 | V167: 1979 | W167: 3101 | X167: 4115 | Y167: 8686 | Z167: 7275 | AA167: 7515 | AB167: 8579 | AC167: 8002 | AD167: 7918 | AE167: 6471 | AF167: 8935 | AG167: 10762 | AH167: 12842 | AI167: 12241 | AJ167: 7081 | AK167: 4312 | AL167: 4368
A168: =VLOOKUP(C168,NAAMSAdefs!$B$2:$C$43,2,FALSE)&E168&H168 -> CARGautengDiesel | B168: =VLOOKUP(C168,NAAMSAdefs!$B$2:$C$43,2,FALSE)&H168 -> CARDiesel | C168: PASHatch (5-dr) | D168: =VLOOKUP(C168,NAAMSAdefs!$B$2:$D$43,3,FALSE) -> CAR | E168: Gauteng | F168: PAS | G168: Hatch (5-dr) | H168: Diesel | I168: 2 | J168: 3 | K168: 1 | AA168: 29 | AB168: 347 | AC168: 646 | AD168: 859 | AE168: 1398 | AF168: 2304 | AG168: 3912 | AH168: 4637 | AI168: 3476 | AJ168: 2183 | AK168: 1427 | AL168: 1784
A169: =VLOOKUP(C169,NAAMSAdefs!$B$2:$C$43,2,FALSE)&E169&H169 -> CARGautengHybrid Petrol | B169: =VLOOKUP(C169,NAAMSAdefs!$B$2:$C$43,2,FALSE)&H169 -> CARHybrid Petrol | C169: PASHatch (5-dr) | D169: =VLOOKUP(C169,NAAMSAdefs!$B$2:$D$43,3,FALSE) -> CAR | E169: Gauteng | F169: PAS | G169: Hatch (5-dr) | H169: Hybrid Petrol | AG169: 45 | AH169: 17 | AK169: 31 | AL169: 54
A170: =VLOOKUP(C170,NAAMSAdefs!$B$2:$C$43,2,FALSE)&E170&H170 -> CARGautengPetrol | B170: =VLOOKUP(C170,NAAMSAdefs!$B$2:$C$43,2,FALSE)&H170 -> CARPetrol | C170: PASHatch (5-dr) | D170: =VLOOKUP(C170,NAAMSAdefs!$B$2:$D$43,3,FALSE) -> CAR | E170: Gauteng | F170: PAS | G170: Hatch (5-dr) | H170: Petrol | I170: 310 | J170: 467 | K170: 588 | L170: 786 | M170: 921 | N170: 1756 | O170: 4071 | P170: 7727 | Q170: 10979 | R170: 13662 | S170: 15894 | T170: 14954 | U170: 16102 | V170: 18567 | W170: 27958 | X170: 30919 | Y170: 24021 | Z170: 21097 | AA170: 21887 | AB170: 24647 | AC170: 27724 | AD170: 23838 | AE170: 30135 | AF170: 41800 | AG170: 59401 | AH170: 65477 | AI170: 48077 | AJ170: 36559 | AK170: 26012 | AL170: 37837
A171: =VLOOKUP(C171,NAAMSAdefs!$B$2:$C$43,2,FALSE)&E171&H171 -> SUVGautengDiesel | B171: =VLOOKUP(C171,NAAMSAdefs!$B$2:$C$43,2,FALSE)&H171 -> SUVDiesel | C171: PASLeisure | D171: =VLOOKUP(C171,NAAMSAdefs!$B$2:$D$43,3,FALSE) -> CAR | E171: Gauteng | F171: PAS | G171: Leisure | H171: Diesel | S171: 17 | T171: 14 | U171: 17 | V171: 65 | W171: 282 | X171: 671 | Y171: 771 | Z171: 1842 | AA171: 1612 | AB171: 2420 | AC171: 1704 | AD171: 1845 | AE171: 1535 | AF171: 2524 | AG171: 4018 | AH171: 5177 | AI171: 5669 | AJ171: 5585 | AK171: 3915 | AL171: 2775
A172: =VLOOKUP(C172,NAAMSAdefs!$B$2:$C$43,2,FALSE)&E172&H172 -> SUVGautengPetrol | B172: =VLOOKUP(C172,NAAMSAdefs!$B$2:$C$43,2,FALSE)&H172 -> SUVPetrol | C172: PASLeisure | D172: =VLOOKUP(C172,NAAMSAdefs!$B$2:$D$43,3,FALSE) -> CAR | E172: Gauteng | F172: PAS | G172: Leisure | H172: Petrol | I172: 1 | J172: 1 | K172: 2 | L172: 4 | N172: 1 | O172: 11 | P172: 66 | Q172: 48 | R172: 24 | S172: 22 | T172: 283 | U172: 409 | V172: 633 | W172: 1419 | X172: 1918 | Y172: 2314 | Z172: 3089 | AA172: 3317 | AB172: 2479 | AC172: 2195 | AD172: 1969 | AE172: 1983 | AF172: 4464 | AG172: 6531 | AH172: 6905 | AI172: 7567 | AJ172: 7169 | AK172: 4731 | AL172: 2786
A173: =VLOOKUP(C173,NAAMSAdefs!$B$2:$C$43,2,FALSE)&E173&H173 -> MBTGautengDiesel | B173: =VLOOKUP(C173,NAAMSAdefs!$B$2:$C$43,2,FALSE)&H173 -> MBTDiesel | C173: PASMinibus | D173: =VLOOKUP(C173,NAAMSAdefs!$B$2:$D$43,3,FALSE) -> MBT | E173: Gauteng | F173: PAS | G173: Minibus | H173: Diesel | AH173: 35
A174: =VLOOKUP(C174,NAAMSAdefs!$B$2:$C$43,2,FALSE)&E174&H174 -> MBTGautengPetrol | B174: =VLOOKUP(C174,NAAMSAdefs!$B$2:$C$43,2,FALSE)&H174 -> MBTPetrol | C174: PASMinibus | D174: =VLOOKUP(C174,NAAMSAdefs!$B$2:$D$43,3,FALSE) -> MBT | E174: Gauteng | F174: PAS | G174: Minibus | H174: Petrol | X174: 23 | Y174: 44 | Z174: 18 | AA174: 1
A175: =VLOOKUP(C175,NAAMSAdefs!$B$2:$C$43,2,FALSE)&E175&H175 -> SUVGautengDiesel | B175: =VLOOKUP(C175,NAAMSAdefs!$B$2:$C$43,2,FALSE)&H175 -> SUVDiesel | C175: PASMPV | D175: =VLOOKUP(C175,NAAMSAdefs!$B$2:$D$43,3,FALSE) -> CAR | E175: Gauteng | F175: PAS | G175: MPV | H175: Diesel | AA175: 4 | AB175: 257 | AC175: 248 | AD175: 287 | AE175: 673 | AF175: 1817 | AG175: 2978 | AH175: 2876 | AI175: 2181 | AJ175: 1300 | AK175: 948 | AL175: 1235
A176: =VLOOKUP(C176,NAAMSAdefs!$B$2:$C$43,2,FALSE)&E176&H176 -> SUVGautengPetrol | B176: =VLOOKUP(C176,NAAMSAdefs!$B$2:$C$43,2,FALSE)&H176 -> SUVPetrol | C176: PASMPV | D176: =VLOOKUP(C176,NAAMSAdefs!$B$2:$D$43,3,FALSE) -> CAR | E176: Gauteng | F176: PAS | G176: MPV | H176: Petrol | U176: 1 | V176: 9 | W176: 118 | X176: 50 | Y176: 341 | Z176: 448 | AA176: 522 | AB176: 3779 | AC176: 5710 | AD176: 3840 | AE176: 3467 | AF176: 5260 | AG176: 5882 | AH176: 5927 | AI176: 7862 | AJ176: 5517 | AK176: 3205 | AL176: 3097
A177: =VLOOKUP(C177,NAAMSAdefs!$B$2:$C$43,2,FALSE)&E177&H177 -> SUVGautengPetrol | B177: =VLOOKUP(C177,NAAMSAdefs!$B$2:$C$43,2,FALSE)&H177 -> SUVPetrol | C177: PASPanel Van | D177: =VLOOKUP(C177,NAAMSAdefs!$B$2:$D$43,3,FALSE) -> CAR | E177: Gauteng | F177: PAS | G177: Panel Van | H177: Petrol | K177: 2 | L177: 12 | M177: 6 | N177: 1 | O177: 4 | P177: 7
A178: =VLOOKUP(C178,NAAMSAdefs!$B$2:$C$43,2,FALSE)&E178&H178 -> CARGautengDiesel | B178: =VLOOKUP(C178,NAAMSAdefs!$B$2:$C$43,2,FALSE)&H178 -> CARDiesel | C178: PASSedan | D178: =VLOOKUP(C178,NAAMSAdefs!$B$2:$D$43,3,FALSE) -> CAR | E178: Gauteng | F178: PAS | G178: Sedan | H178: Diesel | I178: 6 | J178: 5 | K178: 5 | L178: 4 | O178: 8 | P178: 6 | W178: 232 | X178: 435 | Y178: 469 | Z178: 375 | AA178: 149 | AB178: 978 | AC178: 3342 | AD178: 4555 | AE178: 5248 | AF178: 4969 | AG178: 5932 | AH178: 6671 | AI178: 6033 | AJ178: 4989 | AK178: 3829 | AL178: 3069
A179: =VLOOKUP(C179,NAAMSAdefs!$B$2:$C$43,2,FALSE)&E179&H179 -> CARGautengHybrid Petrol | B179: =VLOOKUP(C179,NAAMSAdefs!$B$2:$C$43,2,FALSE)&H179 -> CARHybrid Petrol | C179: PASSedan | D179: =VLOOKUP(C179,NAAMSAdefs!$B$2:$D$43,3,FALSE) -> CAR | E179: Gauteng | F179: PAS | G179: Sedan | H179: Hybrid Petrol | AH179: 78 | AI179: 72 | AJ179: 102 | AK179: 49 | AL179: 7
A180: =VLOOKUP(C180,NAAMSAdefs!$B$2:$C$43,2,FALSE)&E180&H180 -> CARGautengPetrol | B180: =VLOOKUP(C180,NAAMSAdefs!$B$2:$C$43,2,FALSE)&H180 -> CARPetrol | C180: PASSedan | D180: =VLOOKUP(C180,NAAMSAdefs!$B$2:$D$43,3,FALSE) -> CAR | E180: Gauteng | F180: PAS | G180: Sedan | H180: Petrol | I180: 475 | J180: 1177 | K180: 1978 | L180: 2802 | M180: 2365 | N180: 4208 | O180: 11492 | P180: 21570 | Q180: 26188 | R180: 28628 | S180: 28361 | T180: 32692 | U180: 40840 | V180: 43802 | W180: 51439 | X180: 43675 | Y180: 40458 | Z180: 33244 | AA180: 28809 | AB180: 34483 | AC180: 34439 | AD180: 29188 | AE180: 28318 | AF180: 32940 | AG180: 34962 | AH180: 37987 | AI180: 31753 | AJ180: 25047 | AK180: 17715 | AL180: 23878
A181: =VLOOKUP(C181,NAAMSAdefs!$B$2:$C$43,2,FALSE)&E181&H181 -> SUVGautengPetrol | B181: =VLOOKUP(C181,NAAMSAdefs!$B$2:$C$43,2,FALSE)&H181 -> SUVPetrol | C181: PASSingle Cab Pick-Up | D181: =VLOOKUP(C181,NAAMSAdefs!$B$2:$D$43,3,FALSE) -> CAR | E181: Gauteng | F181: PAS | G181: Single Cab Pick-Up | H181: Petrol | AI181: 18 | AJ181: 31 | AK181: 4 | AL181: 2
A182: =VLOOKUP(C182,NAAMSAdefs!$B$2:$C$43,2,FALSE)&E182&H182 -> SUVGautengDiesel | B182: =VLOOKUP(C182,NAAMSAdefs!$B$2:$C$43,2,FALSE)&H182 -> SUVDiesel | C182: PASSUV | D182: =VLOOKUP(C182,NAAMSAdefs!$B$2:$D$43,3,FALSE) -> CAR | E182: Gauteng | F182: PAS | G182: SUV | H182: Diesel | Z182: 9 | AA182: 256 | AB182: 268 | AC182: 686 | AD182: 1391 | AE182: 1834 | AF182: 1062 | AG182: 1224 | AH182: 1835 | AI182: 3157 | AJ182: 2228 | AK182: 3724 | AL182: 7741
A183: =VLOOKUP(C183,NAAMSAdefs!$B$2:$C$43,2,FALSE)&E183&H183 -> SUVGautengHybrid Petrol | B183: =VLOOKUP(C183,NAAMSAdefs!$B$2:$C$43,2,FALSE)&H183 -> SUVHybrid Petrol | C183: PASSUV | D183: =VLOOKUP(C183,NAAMSAdefs!$B$2:$D$43,3,FALSE) -> CAR | E183: Gauteng | F183: PAS | G183: SUV | H183: Hybrid Petrol | AJ183: 40 | AK183: 69 | AL183: 78
A184: =VLOOKUP(C184,NAAMSAdefs!$B$2:$C$43,2,FALSE)&E184&H184 -> SUVGautengPetrol | B184: =VLOOKUP(C184,NAAMSAdefs!$B$2:$C$43,2,FALSE)&H184 -> SUVPetrol | C184: PASSUV | D184: =VLOOKUP(C184,NAAMSAdefs!$B$2:$D$43,3,FALSE) -> CAR | E184: Gauteng | F184: PAS | G184: SUV | H184: Petrol | Y184: 39 | Z184: 397 | AA184: 505 | AB184: 787 | AC184: 1186 | AD184: 1524 | AE184: 1776 | AF184: 1584 | AG184: 2089 | AH184: 3118 | AI184: 2017 | AJ184: 1188 | AK184: 2754 | AL184: 5460
A185: =VLOOKUP(C185,NAAMSAdefs!$B$2:$C$43,2,FALSE)&E185&H185 -> HCVGautengDiesel | B185: =VLOOKUP(C185,NAAMSAdefs!$B$2:$C$43,2,FALSE)&H185 -> HCVDiesel | C185: XHVFreight Carrier | D185: =VLOOKUP(C185,NAAMSAdefs!$B$2:$D$43,3,FALSE) -> Other | E185: Gauteng | F185: XHV | G185: Freight Carrier | H185: Diesel | J185: 1 | K185: 1 | L185: 2 | M185: 2 | N185: 6 | O185: 22 | P185: 33 | Q185: 54 | R185: 61 | S185: 51 | T185: 46 | U185: 50 | V185: 57 | W185: 72 | X185: 107 | Y185: 132 | Z185: 86 | AA185: 104 | AB185: 87 | AC185: 184 | AD185: 203 | AE185: 305 | AF185: 375 | AG185: 504 | AH185: 712 | AI185: 761 | AJ185: 879 | AK185: 354 | AL185: 439
A186: =VLOOKUP(C186,NAAMSAdefs!$B$2:$C$43,2,FALSE)&E186&H186 -> HCVGautengDiesel | B186: =VLOOKUP(C186,NAAMSAdefs!$B$2:$C$43,2,FALSE)&H186 -> HCVDiesel | C186: XHVMixer | D186: =VLOOKUP(C186,NAAMSAdefs!$B$2:$D$43,3,FALSE) -> Other | E186: Gauteng | F186: XHV | G186: Mixer | H186: Diesel | I186: 1 | J186: 1 | K186: 1 | L186: 1 | M186: 1 | O186: 5 | P186: 17 | Q186: 18 | R186: 12 | S186: 12 | T186: 15 | U186: 19 | V186: 20 | W186: 47 | X186: 37 | Y186: 35 | Z186: 19 | AA186: 7 | AB186: 44 | AC186: 59 | AD186: 61 | AE186: 120 | AF186: 160 | AG186: 290 | AH186: 361 | AI186: 450 | AJ186: 428 | AK186: 185 | AL186: 95
A187: =VLOOKUP(C187,NAAMSAdefs!$B$2:$C$43,2,FALSE)&E187&H187 -> HCVGautengDiesel | B187: =VLOOKUP(C187,NAAMSAdefs!$B$2:$C$43,2,FALSE)&H187 -> HCVDiesel | C187: XHVOther | D187: =VLOOKUP(C187,NAAMSAdefs!$B$2:$D$43,3,FALSE) -> Other | E187: Gauteng | F187: XHV | G187: Other | H187: Diesel | X187: 1 | AA187: 4 | AI187: 6 | AJ187: 7
A188: =VLOOKUP(C188,NAAMSAdefs!$B$2:$C$43,2,FALSE)&E188&H188 -> HCVGautengDiesel | B188: =VLOOKUP(C188,NAAMSAdefs!$B$2:$C$43,2,FALSE)&H188 -> HCVDiesel | C188: XHVTipper | D188: =VLOOKUP(C188,NAAMSAdefs!$B$2:$D$43,3,FALSE) -> Truck | E188: Gauteng | F188: XHV | G188: Tipper | H188: Diesel | K188: 2 | L188: 3 | M188: 7 | N188: 5 | O188: 19 | P188: 37 | Q188: 48 | R188: 52 | S188: 17 | T188: 17 | U188: 37 | V188: 55 | W188: 47 | X188: 38 | Y188: 15 | Z188: 42 | AA188: 28 | AB188: 54 | AC188: 93 | AD188: 102 | AE188: 84 | AF188: 187 | AG188: 318 | AH188: 531 | AI188: 635 | AJ188: 544 | AK188: 139 | AL188: 224
A189: =VLOOKUP(C189,NAAMSAdefs!$B$2:$C$43,2,FALSE)&E189&H189 -> HCVGautengDiesel | B189: =VLOOKUP(C189,NAAMSAdefs!$B$2:$C$43,2,FALSE)&H189 -> HCVDiesel | C189: XHVTruck-Tractor | D189: =VLOOKUP(C189,NAAMSAdefs!$B$2:$D$43,3,FALSE) -> Other | E189: Gauteng | F189: XHV | G189: Truck-Tractor | H189: Diesel | J189: 3 | K189: 5 | L189: 11 | M189: 7 | N189: 20 | O189: 77 | P189: 285 | Q189: 343 | R189: 371 | S189: 223 | T189: 272 | U189: 304 | V189: 598 | W189: 1092 | X189: 1157 | Y189: 899 | Z189: 781 | AA189: 704 | AB189: 883 | AC189: 1040 | AD189: 1382 | AE189: 1873 | AF189: 2151 | AG189: 2417 | AH189: 2904 | AI189: 3364 | AJ189: 3443 | AK189: 1459 | AL189: 2128
A190: =VLOOKUP(C190,NAAMSAdefs!$B$2:$C$43,2,FALSE)&E190&H190 -> BUSGovernment UnitsDiesel | B190: =VLOOKUP(C190,NAAMSAdefs!$B$2:$C$43,2,FALSE)&H190 -> BUSDiesel | C190: BUSBus | D190: =VLOOKUP(C190,NAAMSAdefs!$B$2:$D$43,3,FALSE) -> BUS | E190: Government Units | F190: BUS | G190: Bus | H190: Diesel | I190: 1 | J190: 2 | K190: 1 | L190: 6 | M190: 6 | N190: 10 | O190: 6 | P190: 8 | Q190: 32 | R190: 42 | S190: 61 | T190: 37 | U190: 8 | V190: 16 | W190: 21 | X190: 33 | Y190: 20 | AA190: 23 | AB190: 16 | AC190: 46 | AD190: 53 | AH190: 1 | AI190: 2 | AJ190: 42 | AK190: 39 | AL190: 70
A191: =VLOOKUP(C191,NAAMSAdefs!$B$2:$C$43,2,FALSE)&E191&H191 -> HCVGovernment UnitsDiesel | B191: =VLOOKUP(C191,NAAMSAdefs!$B$2:$C$43,2,FALSE)&H191 -> HCVDiesel | C191: BUSTruck-Tractor | D191: =VLOOKUP(C191,NAAMSAdefs!$B$2:$D$43,3,FALSE) -> Other | E191: Government Units | F191: BUS | G191: Truck-Tractor | H191: Diesel | P191: 1
A192: =VLOOKUP(C192,NAAMSAdefs!$B$2:$C$43,2,FALSE)&E192&H192 -> BUSGovernment UnitsDiesel | B192: =VLOOKUP(C192,NAAMSAdefs!$B$2:$C$43,2,FALSE)&H192 -> BUSDiesel | C192: HCVBus | D192: =VLOOKUP(C192,NAAMSAdefs!$B$2:$D$43,3,FALSE) -> BUS | E192: Government Units | F192: HCV | G192: Bus | H192: Diesel | O192: 1
A193: =VLOOKUP(C193,NAAMSAdefs!$B$2:$C$43,2,FALSE)&E193&H193 -> HCVGovernment UnitsDiesel | B193: =VLOOKUP(C193,NAAMSAdefs!$B$2:$C$43,2,FALSE)&H193 -> HCVDiesel | C193: HCVFreight Carrier | D193: =VLOOKUP(C193,NAAMSAdefs!$B$2:$D$43,3,FALSE) -> Truck | E193: Government Units | F193: HCV | G193: Freight Carrier | H193: Diesel | I193: 31 | J193: 37 | K193: 57 | L193: 63 | M193: 66 | N193: 65 | O193: 168 | P193: 264 | Q193: 303 | R193: 458 | S193: 497 | T193: 627 | U193: 545 | V193: 362 | W193: 478 | X193: 324 | Y193: 476 | Z193: 273 | AA193: 432 | AB193: 360 | AC193: 285 | AD193: 250 | AE193: 173 | AF193: 208 | AG193: 284 | AH193: 201 | AI193: 288 | AJ193: 376 | AK193: 298 | AL193: 213
A194: =VLOOKUP(C194,NAAMSAdefs!$B$2:$C$43,2,FALSE)&E194&H194 -> HCVGovernment UnitsDiesel | B194: =VLOOKUP(C194,NAAMSAdefs!$B$2:$C$43,2,FALSE)&H194 -> HCVDiesel | C194: HCVOther | D194: =VLOOKUP(C194,NAAMSAdefs!$B$2:$D$43,3,FALSE) -> Other | E194: Government Units | F194: HCV | G194: Other | H194: Diesel | R194: 1 | S194: 5 | T194: 8 | U194: 1 | X194: 3 | Y194: 3 | Z194: 3
A195: =VLOOKUP(C195,NAAMSAdefs!$B$2:$C$43,2,FALSE)&E195&H195 -> HCVGovernment UnitsDiesel | B195: =VLOOKUP(C195,NAAMSAdefs!$B$2:$C$43,2,FALSE)&H195 -> HCVDiesel | C195: HCVTipper | D195: =VLOOKUP(C195,NAAMSAdefs!$B$2:$D$43,3,FALSE) -> Truck | E195: Government Units | F195: HCV | G195: Tipper | H195: Diesel | I195: 4 | J195: 10 | K195: 11 | L195: 9 | M195: 21 | N195: 29 | O195: 24 | P195: 27 | Q195: 78 | R195: 64 | S195: 78 | T195: 15 | U195: 50 | V195: 7 | W195: 26 | X195: 5 | Y195: 31 | Z195: 18 | AA195: 43 | AB195: 39 | AC195: 43 | AD195: 38 | AE195: 103 | AF195: 20 | AG195: 2 | AH195: 29 | AI195: 60 | AJ195: 52 | AK195: 55 | AL195: 16
A196: =VLOOKUP(C196,NAAMSAdefs!$B$2:$C$43,2,FALSE)&E196&H196 -> HCVGovernment UnitsDiesel | B196: =VLOOKUP(C196,NAAMSAdefs!$B$2:$C$43,2,FALSE)&H196 -> HCVDiesel | C196: HCVTruck-Tractor | D196: =VLOOKUP(C196,NAAMSAdefs!$B$2:$D$43,3,FALSE) -> Other | E196: Government Units | F196: HCV | G196: Truck-Tractor | H196: Diesel | I196: 2 | J196: 5 | K196: 6 | L196: 2 | M196: 21 | N196: 7 | O196: 3 | P196: 5 | Q196: 42 | R196: 58 | S196: 9 | T196: 6 | U196: 27 | V196: 3 | W196: 16 | X196: 10 | Y196: 60 | Z196: 2 | AC196: 4 | AF196: 1 | AG196: 1 | AI196: 1 | AL196: 1
A197: =VLOOKUP(C197,NAAMSAdefs!$B$2:$C$43,2,FALSE)&E197&H197 -> LCVGovernment UnitsDiesel | B197: =VLOOKUP(C197,NAAMSAdefs!$B$2:$C$43,2,FALSE)&H197 -> LCVDiesel | C197: LCVATLV | D197: =VLOOKUP(C197,NAAMSAdefs!$B$2:$D$43,3,FALSE) -> LCV | E197: Government Units | F197: LCV | G197: ATLV | H197: Diesel | K197: 1
A198: =VLOOKUP(C198,NAAMSAdefs!$B$2:$C$43,2,FALSE)&E198&H198 -> LCVGovernment UnitsPetrol | B198: =VLOOKUP(C198,NAAMSAdefs!$B$2:$C$43,2,FALSE)&H198 -> LCVPetrol | C198: LCVATLV | D198: =VLOOKUP(C198,NAAMSAdefs!$B$2:$D$43,3,FALSE) -> LCV | E198: Government Units | F198: LCV | G198: ATLV | H198: Petrol | I198: 8 | J198: 14 | K198: 10 | L198: 13 | M198: 3 | N198: 4 | O198: 1 | P198: 2 | Q198: 18
A199: =VLOOKUP(C199,NAAMSAdefs!$B$2:$C$43,2,FALSE)&E199&H199 -> LCVGovernment UnitsDiesel | B199: =VLOOKUP(C199,NAAMSAdefs!$B$2:$C$43,2,FALSE)&H199 -> LCVDiesel | C199: LCVDouble Cab Pick-Up | D199: =VLOOKUP(C199,NAAMSAdefs!$B$2:$D$43,3,FALSE) -> LCV | E199: Government Units | F199: LCV | G199: Double Cab Pick-Up | H199: Diesel | U199: 1 | V199: 41 | W199: 60 | X199: 171 | Y199: 435 | Z199: 275 | AA199: 337 | AB199: 782 | AC199: 582 | AD199: 865 | AE199: 1162 | AF199: 1459 | AG199: 2122 | AH199: 2040 | AI199: 1991 | AJ199: 1843 | AK199: 1476 | AL199: 1551
A200: =VLOOKUP(C200,NAAMSAdefs!$B$2:$C$43,2,FALSE)&E200&H200 -> LCVGovernment UnitsPetrol | B200: =VLOOKUP(C200,NAAMSAdefs!$B$2:$C$43,2,FALSE)&H200 -> LCVPetrol | C200: LCVDouble Cab Pick-Up | D200: =VLOOKUP(C200,NAAMSAdefs!$B$2:$D$43,3,FALSE) -> LCV | E200: Government Units | F200: LCV | G200: Double Cab Pick-Up | H200: Petrol | J200: 1 | L200: 1 | M200: 3 | N200: 19 | O200: 78 | P200: 85 | Q200: 52 | R200: 66 | S200: 92 | T200: 128 | U200: 237 | V200: 350 | W200: 400 | X200: 423 | Y200: 347 | Z200: 354 | AA200: 332 | AB200: 523 | AC200: 810 | AD200: 858 | AE200: 1174 | AF200: 1414 | AG200: 1497 | AH200: 2071 | AI200: 2297 | AJ200: 2065 | AK200: 1334 | AL200: 1337
A201: =VLOOKUP(C201,NAAMSAdefs!$B$2:$C$43,2,FALSE)&E201&H201 -> LCVGovernment UnitsDiesel | B201: =VLOOKUP(C201,NAAMSAdefs!$B$2:$C$43,2,FALSE)&H201 -> LCVDiesel | C201: LCVExtended Cab Pick-Up | D201: =VLOOKUP(C201,NAAMSAdefs!$B$2:$D$43,3,FALSE) -> LCV | E201: Government Units | F201: LCV | G201: Extended Cab Pick-Up | H201: Diesel | AD201: 1 | AE201: 3 | AF201: 16 | AG201: 323 | AH201: 452 | AI201: 251 | AJ201: 99 | AK201: 49 | AL201: 196
A202: =VLOOKUP(C202,NAAMSAdefs!$B$2:$C$43,2,FALSE)&E202&H202 -> LCVGovernment UnitsPetrol | B202: =VLOOKUP(C202,NAAMSAdefs!$B$2:$C$43,2,FALSE)&H202 -> LCVPetrol | C202: LCVExtended Cab Pick-Up | D202: =VLOOKUP(C202,NAAMSAdefs!$B$2:$D$43,3,FALSE) -> LCV | E202: Government Units | F202: LCV | G202: Extended Cab Pick-Up | H202: Petrol | AF202: 1 | AG202: 62 | AH202: 64 | AI202: 5
A203: =VLOOKUP(C203,NAAMSAdefs!$B$2:$C$43,2,FALSE)&E203&H203 -> LCVGovernment UnitsPetrol | B203: =VLOOKUP(C203,NAAMSAdefs!$B$2:$C$43,2,FALSE)&H203 -> LCVPetrol | C203: LCVFreight Carrier | D203: =VLOOKUP(C203,NAAMSAdefs!$B$2:$D$43,3,FALSE) -> LCV | E203: Government Units | F203: LCV | G203: Freight Carrier | H203: Petrol | N203: 1
... 534 more rows

Sheet NAAMSAProvincial95
F1: Description
F2: Query Criteria
F3: Market(s): Passenger, Light CV
F4: 3501kg, Medium CV 3501-8500kg, Heavy CV 8501-16500kg, Extra Heavy CV > 16500kg, Bus > 8500kg
F5: Output by: Province, Market, Bodyshape, Fuel Type
F6: Periods: 1995 Year, 1996 Year, 1997 Year, 1998 Year, 1999 Year, 2000 Year, 2001 Year, 2002 Year, 2003 Year, 2004 Year, 2005 Year, 2006 Year, 2007 Year, 2008 Year, 2009 Year, 2010 Year, 2011 YTD
F7: Channel(s):
F8: Main Channel: Dealer, Government, Rental, Single Units, Fleet
A10: eps | B10: 1e-08
F12: Query Result
E13: ENATIS check | F13: Province | G13: Market | H13: Bodyshape | I13: Fuel Type | J13: 1974 Year | K13: 1975 Year | L13: 1976 Year | M13: 1977 Year | N13: 1978 Year | O13: 1979 Year | P13: 1980 Year | Q13: 1981 Year | R13: 1982 Year | S13: 1983 Year | T13: 1984 Year | U13: 1985 Year | V13: 1986 Year | W13: 1987 Year | X13: 1988 Year | Y13: 1989 Year | Z13: 1990 Year | AA13: 1991 Year | AB13: 1992 Year | AC13: 1993 Year | AD13: 1994 Year | AE13: 1995 Year | AF13: 1996 Year | AG13: 1997 Year | AH13: 1998 Year | AI13: 1999 Year | AJ13: 2000 Year | AK13: 2001 Year | AL13: 2002 Year | AM13: 2003 Year | AN13: 2004 Year | AO13: 2005 Year | AP13: 2006 Year | AQ13: 2007 Year | AR13: 2008 Year | AS13: 2009 Year | AT13: 2010 Year | AU13: 2011 YTD May
A14: =VLOOKUP(D14,NAAMSAdefs!$B$2:$C$43,2,FALSE)&I14&F14 -> BUSDieselEastern Cape | B14: =VLOOKUP(D14,NAAMSAdefs!$B$2:$C$43,2,FALSE)&I14 -> BUSDiesel | C14: =H14&I14 -> BusDiesel | D14: =G14&H14 -> BUSBus | E14: =VLOOKUP(D14,NAAMSAdefs!$B$2:$D$43,3,FALSE) -> BUS | F14: Eastern Cape | G14: BUS | H14: Bus | I14: Diesel | AE14: 7 | AF14: 28 | AG14: 70 | AH14: 7 | AI14: 3 | AJ14: 6 | AK14: 25 | AL14: 53 | AM14: 17 | AN14: 28 | AO14: 5 | AP14: 54 | AQ14: 59 | AR14: 84 | AS14: 24 | AT14: 69 | AU14: 17
A15: =VLOOKUP(D15,NAAMSAdefs!$B$2:$C$43,2,FALSE)&I15&F15 -> HCVDieselEastern Cape | B15: =VLOOKUP(D15,NAAMSAdefs!$B$2:$C$43,2,FALSE)&I15 -> HCVDiesel | C15: =H15&I15 -> Freight CarrierDiesel | D15: HCVFreight Carrier | E15: =VLOOKUP(D15,NAAMSAdefs!$B$2:$D$43,3,FALSE) -> Truck | F15: Eastern Cape | G15: HCV | H15: Freight Carrier | I15: Diesel | AE15: 224 | AF15: 158 | AG15: 175 | AH15: 108 | AI15: 134 | AJ15: 93 | AK15: 75 | AL15: 89 | AM15: 155 | AN15: 217 | AO15: 263 | AP15: 292 | AQ15: 388 | AR15: 366 | AS15: 155 | AT15: 271 | AU15: 99
A16: =VLOOKUP(D16,NAAMSAdefs!$B$2:$C$43,2,FALSE)&I16&F16 -> HCVDieselEastern Cape | B16: =VLOOKUP(D16,NAAMSAdefs!$B$2:$C$43,2,FALSE)&I16 -> HCVDiesel | C16: TipperDiesel | D16: HCVTipper | E16: =VLOOKUP(D16,NAAMSAdefs!$B$2:$D$43,3,FALSE) -> Truck | F16: Eastern Cape | G16: HCV | H16: Tipper | I16: Diesel | AE16: 6 | AF16: 5 | AG16: 6 | AH16: 5 | AI16: 6 | AJ16: 1 | AK16: 2 | AL16: 16 | AM16: 18 | AN16: 25 | AO16: 31 | AP16: 53 | AQ16: 62 | AR16: 60 | AS16: 18 | AT16: 38 | AU16: 4
A17: =VLOOKUP(D17,NAAMSAdefs!$B$2:$C$43,2,FALSE)&I17&F17 -> HCVDieselEastern Cape | B17: =VLOOKUP(D17,NAAMSAdefs!$B$2:$C$43,2,FALSE)&I17 -> HCVDiesel | C17: Truck-TractorDiesel | D17: HCVTruck-Tractor | E17: =VLOOKUP(D17,NAAMSAdefs!$B$2:$D$43,3,FALSE) -> Other | F17: Eastern Cape | G17: HCV | H17: Truck-Tractor | I17: Diesel | AE17: 2 | AF17: 6 | AG17: 3 | AH17: 6 | AI17: 1 | AJ17: 2 | AL17: 4 | AM17: 1 | AO17: 3 | AP17: 4 | AQ17: 5 | AR17: 7 | AS17: 2 | AT17: 1 | AU17: 1
A18: =VLOOKUP(D18,NAAMSAdefs!$B$2:$C$43,2,FALSE)&I18&F18 -> LCVDieselEastern Cape | B18: =VLOOKUP(D18,NAAMSAdefs!$B$2:$C$43,2,FALSE)&I18 -> LCVDiesel | C18: Double Cab Pick-UpDiesel | D18: LCVDouble Cab Pick-Up | E18: =VLOOKUP(D18,NAAMSAdefs!$B$2:$D$43,3,FALSE) -> LCV | F18: Eastern Cape | G18: LCV | H18: Double Cab Pick-Up | I18: Diesel | AE18: 331 | AF18: 442 | AG18: 538 | AH18: 607 | AI18: 658 | AJ18: 855 | AK18: 866 | AL18: 682 | AM18: 772 | AN18: 809 | AO18: 1169 | AP18: 1135 | AQ18: 1264 | AR18: 905 | AS18: 763 | AT18: 980 | AU18: 533
A19: =VLOOKUP(D19,NAAMSAdefs!$B$2:$C$43,2,FALSE)&I19&F19 -> LCVPetrolEastern Cape | B19: =VLOOKUP(D19,NAAMSAdefs!$B$2:$C$43,2,FALSE)&I19 -> LCVPetrol | C19: Double Cab Pick-UpPetrol | D19: LCVDouble Cab Pick-Up | E19: =VLOOKUP(D19,NAAMSAdefs!$B$2:$D$43,3,FALSE) -> LCV | F19: Eastern Cape | G19: LCV | H19: Double Cab Pick-Up | I19: Petrol | AE19: 327 | AF19: 336 | AG19: 293 | AH19: 375 | AI19: 381 | AJ19: 410 | AK19: 236 | AL19: 216 | AM19: 270 | AN19: 421 | AO19: 536 | AP19: 492 | AQ19: 400 | AR19: 293 | AS19: 129 | AT19: 195 | AU19: 83
A20: =VLOOKUP(D20,NAAMSAdefs!$B$2:$C$43,2,FALSE)&I20&F20 -> LCVDieselEastern Cape | B20: =VLOOKUP(D20,NAAMSAdefs!$B$2:$C$43,2,FALSE)&I20 -> LCVDiesel | C20: Extended Cab Pick-UpDiesel | D20: LCVExtended Cab Pick-Up | E20: =VLOOKUP(D20,NAAMSAdefs!$B$2:$D$43,3,FALSE) -> LCV | F20: Eastern Cape | G20: LCV | H20: Extended Cab Pick-Up | I20: Diesel | AK20: 73 | AL20: 143 | AM20: 190 | AN20: 385 | AO20: 474 | AP20: 486 | AQ20: 426 | AR20: 494 | AS20: 398 | AT20: 357 | AU20: 208
A21: =VLOOKUP(D21,NAAMSAdefs!$B$2:$C$43,2,FALSE)&I21&F21 -> LCVPetrolEastern Cape | B21: =VLOOKUP(D21,NAAMSAdefs!$B$2:$C$43,2,FALSE)&I21 -> LCVPetrol | C21: Extended Cab Pick-UpPetrol | D21: LCVExtended Cab Pick-Up | E21: =VLOOKUP(D21,NAAMSAdefs!$B$2:$D$43,3,FALSE) -> LCV | F21: Eastern Cape | G21: LCV | H21: Extended Cab Pick-Up | I21: Petrol | AK21: 28 | AL21: 35 | AM21: 33 | AN21: 69 | AO21: 98 | AP21: 63 | AQ21: 102 | AR21: 66 | AS21: 20 | AT21: 12
A22: =VLOOKUP(D22,NAAMSAdefs!$B$2:$C$43,2,FALSE)&I22&F22 -> MBTDieselEastern Cape | B22: =VLOOKUP(D22,NAAMSAdefs!$B$2:$C$43,2,FALSE)&I22 -> MBTDiesel | C22: MinibusDiesel | D22: LCVMinibus | E22: =VLOOKUP(D22,NAAMSAdefs!$B$2:$D$43,3,FALSE) -> MBT | F22: Eastern Cape | G22: LCV | H22: Minibus | I22: Diesel | AE22: 4 | AF22: 73 | AG22: 18 | AH22: 10 | AI22: 9 | AJ22: 1 | AO22: 71 | AP22: 180 | AQ22: 216 | AR22: 162 | AS22: 85 | AT22: 114 | AU22: 70
A23: =VLOOKUP(D23,NAAMSAdefs!$B$2:$C$43,2,FALSE)&I23&F23 -> MBTPetrolEastern Cape | B23: =VLOOKUP(D23,NAAMSAdefs!$B$2:$C$43,2,FALSE)&I23 -> MBTPetrol | C23: MinibusPetrol | D23: LCVMinibus | E23: =VLOOKUP(D23,NAAMSAdefs!$B$2:$D$43,3,FALSE) -> MBT | F23: Eastern Cape | G23: LCV | H23: Minibus | I23: Petrol | AE23: 980 | AF23: 636 | AG23: 557 | AH23: 437 | AI23: 317 | AJ23: 202 | AK23: 192 | AL23: 269 | AM23: 278 | AN23: 365 | AO23: 429 | AP23: 421 | AQ23: 480 | AR23: 854 | AS23: 420 | AT23: 412 | AU23: 208
A24: =VLOOKUP(D24,NAAMSAdefs!$B$2:$C$43,2,FALSE)&I24&F24 -> LCVDieselEastern Cape | B24: =VLOOKUP(D24,NAAMSAdefs!$B$2:$C$43,2,FALSE)&I24 -> LCVDiesel | C24: Panel VanDiesel | D24: LCVPanel Van | E24: =VLOOKUP(D24,NAAMSAdefs!$B$2:$D$43,3,FALSE) -> LCV | F24: Eastern Cape | G24: LCV | H24: Panel Van | I24: Diesel | AE24: 3 | AL24: 36 | AM24: 34 | AN24: 77 | AO24: 126 | AP24: 183 | AQ24: 192 | AR24: 123 | AS24: 52 | AT24: 70 | AU24: 38
A25: =VLOOKUP(D25,NAAMSAdefs!$B$2:$C$43,2,FALSE)&I25&F25 -> LCVPetrolEastern Cape | B25: =VLOOKUP(D25,NAAMSAdefs!$B$2:$C$43,2,FALSE)&I25 -> LCVPetrol | C25: Panel VanPetrol | D25: LCVPanel Van | E25: =VLOOKUP(D25,NAAMSAdefs!$B$2:$D$43,3,FALSE) -> LCV | F25: Eastern Cape | G25: LCV | H25: Panel Van | I25: Petrol | AE25: 229 | AF25: 205 | AG25: 89 | AH25: 100 | AI25: 104 | AJ25: 66 | AK25: 97 | AL25: 95 | AM25: 119 | AN25: 105 | AO25: 182 | AP25: 224 | AQ25: 200 | AR25: 152 | AS25: 67 | AT25: 80 | AU25: 149
A26: =VLOOKUP(D26,NAAMSAdefs!$B$2:$C$43,2,FALSE)&I26&F26 -> LCVDieselEastern Cape | B26: =VLOOKUP(D26,NAAMSAdefs!$B$2:$C$43,2,FALSE)&I26 -> LCVDiesel | C26: Single Cab Pick-UpDiesel | D26: LCVSingle Cab Pick-Up | E26: =VLOOKUP(D26,NAAMSAdefs!$B$2:$D$43,3,FALSE) -> LCV | F26: Eastern Cape | G26: LCV | H26: Single Cab Pick-Up | I26: Diesel | AE26: 2264 | AF26: 2304 | AG26: 2161 | AH26: 1559 | AI26: 1558 | AJ26: 1534 | AK26: 1551 | AL26: 1505 | AM26: 1836 | AN26: 1928 | AO26: 1995 | AP26: 2532 | AQ26: 2530 | AR26: 1560 | AS26: 1039 | AT26: 1559 | AU26: 794
A27: =VLOOKUP(D27,NAAMSAdefs!$B$2:$C$43,2,FALSE)&I27&F27 -> LCVPetrolEastern Cape | B27: =VLOOKUP(D27,NAAMSAdefs!$B$2:$C$43,2,FALSE)&I27 -> LCVPetrol | C27: Single Cab Pick-UpPetrol | D27: LCVSingle Cab Pick-Up | E27: =VLOOKUP(D27,NAAMSAdefs!$B$2:$D$43,3,FALSE) -> LCV | F27: Eastern Cape | G27: LCV | H27: Single Cab Pick-Up | I27: Petrol | AE27: 3574 | AF27: 3039 | AG27: 2729 | AH27: 1949 | AI27: 1841 | AJ27: 1778 | AK27: 1796 | AL27: 1778 | AM27: 2053 | AN27: 2801 | AO27: 3646 | AP27: 4387 | AQ27: 4212 | AR27: 2914 | AS27: 2081 | AT27: 2391 | AU27: 1028
A28: =VLOOKUP(D28,NAAMSAdefs!$B$2:$C$43,2,FALSE)&I28&F28 -> BUSDieselEastern Cape | B28: =VLOOKUP(D28,NAAMSAdefs!$B$2:$C$43,2,FALSE)&I28 -> BUSDiesel | C28: BusDiesel | D28: MCVBus | E28: =VLOOKUP(D28,NAAMSAdefs!$B$2:$D$43,3,FALSE) -> BUS | F28: Eastern Cape | G28: MCV | H28: Bus | I28: Diesel | AE28: 1 | AF28: 6 | AK28: 4 | AL28: 6 | AM28: 13 | AN28: 17 | AO28: 12 | AP28: 27 | AQ28: 39 | AR28: 25 | AS28: 8 | AT28: 1 | AU28: 1
A29: =VLOOKUP(D29,NAAMSAdefs!$B$2:$C$43,2,FALSE)&I29&F29 -> MCVDieselEastern Cape | B29: =VLOOKUP(D29,NAAMSAdefs!$B$2:$C$43,2,FALSE)&I29 -> MCVDiesel | C29: Freight CarrierDiesel | D29: MCVFreight Carrier | E29: =VLOOKUP(D29,NAAMSAdefs!$B$2:$D$43,3,FALSE) -> Truck | F29: Eastern Cape | G29: MCV | H29: Freight Carrier | I29: Diesel | AE29: 218 | AF29: 253 | AG29: 219 | AH29: 171 | AI29: 144 | AJ29: 140 | AK29: 135 | AL29: 148 | AM29: 143 | AN29: 403 | AO29: 338 | AP29: 440 | AQ29: 460 | AR29: 318 | AS29: 149 | AT29: 202 | AU29: 103
A30: =VLOOKUP(D30,NAAMSAdefs!$B$2:$C$43,2,FALSE)&I30&F30 -> MCVPetrolEastern Cape | B30: =VLOOKUP(D30,NAAMSAdefs!$B$2:$C$43,2,FALSE)&I30 -> MCVPetrol | C30: Freight CarrierPetrol | D30: MCVFreight Carrier | E30: =VLOOKUP(D30,NAAMSAdefs!$B$2:$D$43,3,FALSE) -> Truck | F30: Eastern Cape | G30: MCV | H30: Freight Carrier | I30: Petrol | AE30: 18 | AF30: 6 | AG30: 4 | AH30: 2 | AI30: 1 | AL30: 1
A31: =VLOOKUP(D31,NAAMSAdefs!$B$2:$C$43,2,FALSE)&I31&F31 -> MCVDieselEastern Cape | B31: =VLOOKUP(D31,NAAMSAdefs!$B$2:$C$43,2,FALSE)&I31 -> MCVDiesel | C31: Panel VanDiesel | D31: MCVPanel Van | E31: =VLOOKUP(D31,NAAMSAdefs!$B$2:$D$43,3,FALSE) -> Truck | F31: Eastern Cape | G31: MCV | H31: Panel Van | I31: Diesel | AF31: 77 | AG31: 90 | AH31: 105 | AI31: 74 | AJ31: 74 | AK31: 50 | AL31: 59 | AM31: 75 | AN31: 77 | AO31: 92 | AP31: 106 | AQ31: 158 | AR31: 195 | AS31: 79 | AT31: 96 | AU31: 46
A32: =VLOOKUP(D32,NAAMSAdefs!$B$2:$C$43,2,FALSE)&I32&F32 -> MCVPetrolEastern Cape | B32: =VLOOKUP(D32,NAAMSAdefs!$B$2:$C$43,2,FALSE)&I32 -> MCVPetrol | C32: Panel VanPetrol | D32: MCVPanel Van | E32: =VLOOKUP(D32,NAAMSAdefs!$B$2:$D$43,3,FALSE) -> Truck | F32: Eastern Cape | G32: MCV | H32: Panel Van | I32: Petrol | AG32: 1
A33: =VLOOKUP(D33,NAAMSAdefs!$B$2:$C$43,2,FALSE)&I33&F33 -> MCVDieselEastern Cape | B33: =VLOOKUP(D33,NAAMSAdefs!$B$2:$C$43,2,FALSE)&I33 -> MCVDiesel | C33: TipperDiesel | D33: MCVTipper | E33: =VLOOKUP(D33,NAAMSAdefs!$B$2:$D$43,3,FALSE) -> Truck | F33: Eastern Cape | G33: MCV | H33: Tipper | I33: Diesel | AQ33: 2 | AR33: 13 | AS33: 2 | AT33: 1
A34: =VLOOKUP(D34,NAAMSAdefs!$B$2:$C$43,2,FALSE)&I34&F34 -> CARDieselEastern Cape | B34: =VLOOKUP(D34,NAAMSAdefs!$B$2:$C$43,2,FALSE)&I34 -> CARDiesel | C34: CabrioletDiesel | D34: PASCabriolet | E34: =VLOOKUP(D34,NAAMSAdefs!$B$2:$D$43,3,FALSE) -> CAR | F34: Eastern Cape | G34: PAS | H34: Cabriolet | I34: Diesel | AO34: 5 | AQ34: 1
A35: =VLOOKUP(D35,NAAMSAdefs!$B$2:$C$43,2,FALSE)&I35&F35 -> CARPetrolEastern Cape | B35: =VLOOKUP(D35,NAAMSAdefs!$B$2:$C$43,2,FALSE)&I35 -> CARPetrol | C35: CabrioletPetrol | D35: PASCabriolet | E35: =VLOOKUP(D35,NAAMSAdefs!$B$2:$D$43,3,FALSE) -> CAR | F35: Eastern Cape | G35: PAS | H35: Cabriolet | I35: Petrol | AE35: 60 | AF35: 39 | AG35: 57 | AH35: 27 | AI35: 20 | AJ35: 21 | AK35: 63 | AL35: 56 | AM35: 68 | AN35: 79 | AO35: 160 | AP35: 144 | AQ35: 129 | AR35: 78 | AS35: 72 | AT35: 92 | AU35: 35
A36: =VLOOKUP(D36,NAAMSAdefs!$B$2:$C$43,2,FALSE)&I36&F36 -> CARDieselEastern Cape | B36: =VLOOKUP(D36,NAAMSAdefs!$B$2:$C$43,2,FALSE)&I36 -> CARDiesel | C36: CoupeDiesel | D36: PASCoupe | E36: =VLOOKUP(D36,NAAMSAdefs!$B$2:$D$43,3,FALSE) -> CAR | F36: Eastern Cape | G36: PAS | H36: Coupe | I36: Diesel | AO36: 3 | AP36: 10 | AQ36: 1 | AR36: 3 | AS36: 4 | AT36: 5 | AU36: 1
A37: =VLOOKUP(D37,NAAMSAdefs!$B$2:$C$43,2,FALSE)&I37&F37 -> CARPetrolEastern Cape | B37: =VLOOKUP(D37,NAAMSAdefs!$B$2:$C$43,2,FALSE)&I37 -> CARPetrol | C37: CoupePetrol | D37: PASCoupe | E37: =VLOOKUP(D37,NAAMSAdefs!$B$2:$D$43,3,FALSE) -> CAR | F37: Eastern Cape | G37: PAS | H37: Coupe | I37: Petrol | AE37: 57 | AF37: 31 | AG37: 8 | AH37: 9 | AI37: 8 | AJ37: 40 | AK37: 48 | AL37: 122 | AM37: 81 | AN37: 91 | AO37: 73 | AP37: 65 | AQ37: 92 | AR37: 93 | AS37: 93 | AT37: 110 | AU37: 46
A38: =VLOOKUP(D38,NAAMSAdefs!$B$2:$C$43,2,FALSE)&I38&F38 -> CARDieselEastern Cape | B38: =VLOOKUP(D38,NAAMSAdefs!$B$2:$C$43,2,FALSE)&I38 -> CARDiesel | C38: EstateDiesel | D38: PASEstate | E38: =VLOOKUP(D38,NAAMSAdefs!$B$2:$D$43,3,FALSE) -> CAR | F38: Eastern Cape | G38: PAS | H38: Estate | I38: Diesel | AL38: 20 | AM38: 16 | AN38: 23 | AO38: 29 | AP38: 22 | AQ38: 38 | AR38: 15 | AS38: 9 | AT38: 10 | AU38: 9
A39: =VLOOKUP(D39,NAAMSAdefs!$B$2:$C$43,2,FALSE)&I39&F39 -> CARPetrolEastern Cape | B39: =VLOOKUP(D39,NAAMSAdefs!$B$2:$C$43,2,FALSE)&I39 -> CARPetrol | C39: EstatePetrol | D39: PASEstate | E39: =VLOOKUP(D39,NAAMSAdefs!$B$2:$D$43,3,FALSE) -> CAR | F39: Eastern Cape | G39: PAS | H39: Estate | I39: Petrol | AE39: 193 | AF39: 175 | AG39: 154 | AH39: 148 | AI39: 106 | AJ39: 108 | AK39: 253 | AL39: 183 | AM39: 117 | AN39: 126 | AO39: 185 | AP39: 158 | AQ39: 77 | AR39: 39 | AS39: 29 | AT39: 57 | AU39: 19
A40: =VLOOKUP(D40,NAAMSAdefs!$B$2:$C$43,2,FALSE)&I40&F40 -> CARDieselEastern Cape | B40: =VLOOKUP(D40,NAAMSAdefs!$B$2:$C$43,2,FALSE)&I40 -> CARDiesel | C40: Hatch (3-dr)Diesel | D40: PASHatch (3-dr) | E40: =VLOOKUP(D40,NAAMSAdefs!$B$2:$D$43,3,FALSE) -> CAR | F40: Eastern Cape | G40: PAS | H40: Hatch (3-dr) | I40: Diesel | AM40: 12 | AN40: 89 | AO40: 62 | AP40: 75 | AQ40: 28 | AR40: 13 | AS40: 6 | AT40: 7 | AU40: 6
A41: =VLOOKUP(D41,NAAMSAdefs!$B$2:$C$43,2,FALSE)&I41&F41 -> CARHybrid PetrolEastern Cape | B41: =VLOOKUP(D41,NAAMSAdefs!$B$2:$C$43,2,FALSE)&I41 -> CARHybrid Petrol | C41: Hatch (3-dr)Hybrid Petrol | D41: PASHatch (3-dr) | E41: =VLOOKUP(D41,NAAMSAdefs!$B$2:$D$43,3,FALSE) -> CAR | F41: Eastern Cape | G41: PAS | H41: Hatch (3-dr) | I41: Hybrid Petrol | AT41: 4
A42: =VLOOKUP(D42,NAAMSAdefs!$B$2:$C$43,2,FALSE)&I42&F42 -> CARPetrolEastern Cape | B42: =VLOOKUP(D42,NAAMSAdefs!$B$2:$C$43,2,FALSE)&I42 -> CARPetrol | C42: Hatch (3-dr)Petrol | D42: PASHatch (3-dr) | E42: =VLOOKUP(D42,NAAMSAdefs!$B$2:$D$43,3,FALSE) -> CAR | F42: Eastern Cape | G42: PAS | H42: Hatch (3-dr) | I42: Petrol | AE42: 409 | AF42: 550 | AG42: 1085 | AH42: 668 | AI42: 552 | AJ42: 598 | AK42: 531 | AL42: 447 | AM42: 522 | AN42: 637 | AO42: 897 | AP42: 1369 | AQ42: 1050 | AR42: 518 | AS42: 234 | AT42: 239 | AU42: 100
A43: =VLOOKUP(D43,NAAMSAdefs!$B$2:$C$43,2,FALSE)&I43&F43 -> CARDieselEastern Cape | B43: =VLOOKUP(D43,NAAMSAdefs!$B$2:$C$43,2,FALSE)&I43 -> CARDiesel | C43: Hatch (5-dr)Diesel | D43: PASHatch (5-dr) | E43: =VLOOKUP(D43,NAAMSAdefs!$B$2:$D$43,3,FALSE) -> CAR | F43: Eastern Cape | G43: PAS | H43: Hatch (5-dr) | I43: Diesel | AI43: 4 | AJ43: 30 | AK43: 51 | AL43: 65 | AM43: 89 | AN43: 132 | AO43: 264 | AP43: 276 | AQ43: 282 | AR43: 151 | AS43: 100 | AT43: 172 | AU43: 134
A44: =VLOOKUP(D44,NAAMSAdefs!$B$2:$C$43,2,FALSE)&I44&F44 -> CARHybrid PetrolEastern Cape | B44: =VLOOKUP(D44,NAAMSAdefs!$B$2:$C$43,2,FALSE)&I44 -> CARHybrid Petrol | C44: Hatch (5-dr)Hybrid Petrol | D44: PASHatch (5-dr) | E44: =VLOOKUP(D44,NAAMSAdefs!$B$2:$D$43,3,FALSE) -> CAR | F44: Eastern Cape | G44: PAS | H44: Hatch (5-dr) | I44: Hybrid Petrol | AP44: 8 | AQ44: 3 | AR44: 2 | AS44: 7 | AT44: 2 | AU44: 4
A45: =VLOOKUP(D45,NAAMSAdefs!$B$2:$C$43,2,FALSE)&I45&F45 -> CARPetrolEastern Cape | B45: =VLOOKUP(D45,NAAMSAdefs!$B$2:$C$43,2,FALSE)&I45 -> CARPetrol | C45: Hatch (5-dr)Petrol | D45: PASHatch (5-dr) | E45: =VLOOKUP(D45,NAAMSAdefs!$B$2:$D$43,3,FALSE) -> CAR | F45: Eastern Cape | G45: PAS | H45: Hatch (5-dr) | I45: Petrol | AE45: 4001 | AF45: 4425 | AG45: 3765 | AH45: 2803 | AI45: 2602 | AJ45: 2723 | AK45: 2696 | AL45: 2404 | AM45: 2845 | AN45: 4388 | AO45: 6931 | AP45: 7838 | AQ45: 6179 | AR45: 4747 | AS45: 3258 | AT45: 4838 | AU45: 2498
A46: =VLOOKUP(D46,NAAMSAdefs!$B$2:$C$43,2,FALSE)&I46&F46 -> MBTPetrolEastern Cape | B46: =VLOOKUP(D46,NAAMSAdefs!$B$2:$C$43,2,FALSE)&I46 -> MBTPetrol | C46: MinibusPetrol | D46: PASMinibus | E46: =VLOOKUP(D46,NAAMSAdefs!$B$2:$D$43,3,FALSE) -> MBT | F46: Eastern Cape | G46: PAS | H46: Minibus | I46: Petrol | AF46: 4 | AG46: 8 | AH46: 3
A47: =VLOOKUP(D47,NAAMSAdefs!$B$2:$C$43,2,FALSE)&I47&F47 -> SUVDieselEastern Cape | B47: =VLOOKUP(D47,NAAMSAdefs!$B$2:$C$43,2,FALSE)&I47 -> SUVDiesel | C47: MPVDiesel | D47: PASMPV | E47: =VLOOKUP(D47,NAAMSAdefs!$B$2:$D$43,3,FALSE) -> CAR | F47: Eastern Cape | G47: PAS | H47: MPV | I47: Diesel | AI47: 2 | AJ47: 43 | AK47: 54 | AL47: 61 | AM47: 122 | AN47: 213 | AO47: 292 | AP47: 248 | AQ47: 185 | AR47: 133 | AS47: 126 | AT47: 209 | AU47: 90
A48: =VLOOKUP(D48,NAAMSAdefs!$B$2:$C$43,2,FALSE)&I48&F48 -> SUVPetrolEastern Cape | B48: =VLOOKUP(D48,NAAMSAdefs!$B$2:$C$43,2,FALSE)&I48 -> SUVPetrol | C48: MPVPetrol | D48: PASMPV | E48: =VLOOKUP(D48,NAAMSAdefs!$B$2:$D$43,3,FALSE) -> CAR | F48: Eastern Cape | G48: PAS | H48: MPV | I48: Petrol | AE48: 6 | AF48: 3 | AG48: 15 | AH48: 8 | AI48: 32 | AJ48: 257 | AK48: 365 | AL48: 343 | AM48: 272 | AN48: 509 | AO48: 550 | AP48: 653 | AQ48: 1269 | AR48: 1185 | AS48: 652 | AT48: 565 | AU48: 276
A49: =VLOOKUP(D49,NAAMSAdefs!$B$2:$C$43,2,FALSE)&I49&F49 -> CARDieselEastern Cape | B49: =VLOOKUP(D49,NAAMSAdefs!$B$2:$C$43,2,FALSE)&I49 -> CARDiesel | C49: SedanDiesel | D49: PASSedan | E49: =VLOOKUP(D49,NAAMSAdefs!$B$2:$D$43,3,FALSE) -> CAR | F49: Eastern Cape | G49: PAS | H49: Sedan | I49: Diesel | AE49: 45 | AF49: 55 | AG49: 71 | AH49: 29 | AI49: 19 | AJ49: 92 | AK49: 236 | AL49: 343 | AM49: 428 | AN49: 379 | AO49: 404 | AP49: 400 | AQ49: 451 | AR49: 360 | AS49: 228 | AT49: 281 | AU49: 129
A50: =VLOOKUP(D50,NAAMSAdefs!$B$2:$C$43,2,FALSE)&I50&F50 -> CARPetrolEastern Cape | B50: =VLOOKUP(D50,NAAMSAdefs!$B$2:$C$43,2,FALSE)&I50 -> CARPetrol | C50: SedanPetrol | D50: PASSedan | E50: =VLOOKUP(D50,NAAMSAdefs!$B$2:$D$43,3,FALSE) -> CAR | F50: Eastern Cape | G50: PAS | H50: Sedan | I50: Petrol | AE50: 6617 | AF50: 5685 | AG50: 5421 | AH50: 3782 | AI50: 3157 | AJ50: 3696 | AK50: 3253 | AL50: 2747 | AM50: 2980 | AN50: 3929 | AO50: 4235 | AP50: 4599 | AQ50: 3793 | AR50: 3030 | AS50: 2078 | AT50: 3403 | AU50: 1584
A51: =VLOOKUP(D51,NAAMSAdefs!$B$2:$C$43,2,FALSE)&I51&F51 -> SUVDieselEastern Cape | B51: =VLOOKUP(D51,NAAMSAdefs!$B$2:$C$43,2,FALSE)&I51 -> SUVDiesel | C51: SUVDiesel | D51: PASSUV | E51: =VLOOKUP(D51,NAAMSAdefs!$B$2:$D$43,3,FALSE) -> CAR | F51: Eastern Cape | G51: PAS | H51: SUV | I51: Diesel | AE51: 39 | AF51: 69 | AG51: 58 | AH51: 204 | AI51: 156 | AJ51: 205 | AK51: 193 | AL51: 263 | AM51: 264 | AN51: 338 | AO51: 453 | AP51: 715 | AQ51: 996 | AR51: 804 | AS51: 764 | AT51: 1099 | AU51: 420
A52: =VLOOKUP(D52,NAAMSAdefs!$B$2:$C$43,2,FALSE)&I52&F52 -> SUVHybrid PetrolEastern Cape | B52: =VLOOKUP(D52,NAAMSAdefs!$B$2:$C$43,2,FALSE)&I52 -> SUVHybrid Petrol | C52: SUVHybrid Petrol | D52: PASSUV | E52: =VLOOKUP(D52,NAAMSAdefs!$B$2:$D$43,3,FALSE) -> CAR | F52: Eastern Cape | G52: PAS | H52: SUV | I52: Hybrid Petrol | AS52: 1 | AU52: 1
A53: =VLOOKUP(D53,NAAMSAdefs!$B$2:$C$43,2,FALSE)&I53&F53 -> SUVPetrolEastern Cape | B53: =VLOOKUP(D53,NAAMSAdefs!$B$2:$C$43,2,FALSE)&I53 -> SUVPetrol | C53: SUVPetrol | D53: PASSUV | E53: =VLOOKUP(D53,NAAMSAdefs!$B$2:$D$43,3,FALSE) -> CAR | F53: Eastern Cape | G53: PAS | H53: SUV | I53: Petrol | AE53: 159 | AF53: 126 | AG53: 149 | AH53: 268 | AI53: 272 | AJ53: 221 | AK53: 192 | AL53: 260 | AM53: 318 | AN53: 500 | AO53: 688 | AP53: 723 | AQ53: 770 | AR53: 568 | AS53: 505 | AT53: 785 | AU53: 341
A54: =VLOOKUP(D54,NAAMSAdefs!$B$2:$C$43,2,FALSE)&I54&F54 -> HCVDieselEastern Cape | B54: =VLOOKUP(D54,NAAMSAdefs!$B$2:$C$43,2,FALSE)&I54 -> HCVDiesel | C54: Freight CarrierDiesel | D54: XHVFreight Carrier | E54: =VLOOKUP(D54,NAAMSAdefs!$B$2:$D$43,3,FALSE) -> Other | F54: Eastern Cape | G54: XHV | H54: Freight Carrier | I54: Diesel | AE54: 10 | AF54: 23 | AG54: 20 | AH54: 17 | AI54: 6 | AJ54: 14 | AK54: 11 | AL54: 18 | AM54: 26 | AN54: 36 | AO54: 86 | AP54: 80 | AQ54: 141 | AR54: 110 | AS54: 67 | AT54: 91 | AU54: 51
A55: =VLOOKUP(D55,NAAMSAdefs!$B$2:$C$43,2,FALSE)&I55&F55 -> HCVDieselEastern Cape | B55: =VLOOKUP(D55,NAAMSAdefs!$B$2:$C$43,2,FALSE)&I55 -> HCVDiesel | C55: MixerDiesel | D55: XHVMixer | E55: =VLOOKUP(D55,NAAMSAdefs!$B$2:$D$43,3,FALSE) -> Other | F55: Eastern Cape | G55: XHV | H55: Mixer | I55: Diesel | AF55: 1 | AG55: 2 | AH55: 1 | AI55: 2 | AJ55: 1 | AK55: 7 | AL55: 4 | AM55: 13 | AN55: 37 | AO55: 21 | AP55: 27 | AQ55: 54 | AR55: 38 | AS55: 12 | AT55: 18 | AU55: 10
A56: =VLOOKUP(D56,NAAMSAdefs!$B$2:$C$43,2,FALSE)&I56&F56 -> HCVDieselEastern Cape | B56: =VLOOKUP(D56,NAAMSAdefs!$B$2:$C$43,2,FALSE)&I56 -> HCVDiesel | C56: TipperDiesel | D56: XHVTipper | E56: =VLOOKUP(D56,NAAMSAdefs!$B$2:$D$43,3,FALSE) -> Truck | F56: Eastern Cape | G56: XHV | H56: Tipper | I56: Diesel | AE56: 18 | AF56: 10 | AG56: 3 | AI56: 1 | AJ56: 1 | AL56: 10 | AM56: 44 | AN56: 20 | AO56: 40 | AP56: 83 | AQ56: 147 | AR56: 69 | AS56: 36 | AT56: 33 | AU56: 11
A57: =VLOOKUP(D57,NAAMSAdefs!$B$2:$C$43,2,FALSE)&I57&F57 -> HCVDieselEastern Cape | B57: =VLOOKUP(D57,NAAMSAdefs!$B$2:$C$43,2,FALSE)&I57 -> HCVDiesel | C57: Truck-TractorDiesel | D57: XHVTruck-Tractor | E57: =VLOOKUP(D57,NAAMSAdefs!$B$2:$D$43,3,FALSE) -> Other | F57: Eastern Cape | G57: XHV | H57: Truck-Tractor | I57: Diesel | AE57: 47 | AF57: 72 | AG57: 74 | AH57: 73 | AI57: 30 | AJ57: 83 | AK57: 75 | AL57: 114 | AM57: 141 | AN57: 183 | AO57: 208 | AP57: 152 | AQ57: 233 | AR57: 263 | AS57: 156 | AT57: 215 | AU57: 121
A58: =VLOOKUP(D58,NAAMSAdefs!$B$2:$C$43,2,FALSE)&I58&F58 -> BUSDieselFreestate | B58: =VLOOKUP(D58,NAAMSAdefs!$B$2:$C$43,2,FALSE)&I58 -> BUSDiesel | C58: BusDiesel | D58: BUSBus | E58: =VLOOKUP(D58,NAAMSAdefs!$B$2:$D$43,3,FALSE) -> BUS | F58: Freestate | G58: BUS | H58: Bus | I58: Diesel | AE58: 11 | AF58: 12 | AG58: 33 | AH58: 29 | AI58: 1 | AJ58: 33 | AK58: 48 | AL58: 20 | AM58: 7 | AN58: 57 | AO58: 4 | AP58: 24 | AQ58: 19 | AR58: 9 | AS58: 8 | AT58: 29 | AU58: 25
A59: =VLOOKUP(D59,NAAMSAdefs!$B$2:$C$43,2,FALSE)&I59&F59 -> HCVDieselFreestate | B59: =VLOOKUP(D59,NAAMSAdefs!$B$2:$C$43,2,FALSE)&I59 -> HCVDiesel | C59: Freight CarrierDiesel | D59: HCVFreight Carrier | E59: =VLOOKUP(D59,NAAMSAdefs!$B$2:$D$43,3,FALSE) -> Truck | F59: Freestate | G59: HCV | H59: Freight Carrier | I59: Diesel | AE59: 206 | AF59: 179 | AG59: 108 | AH59: 116 | AI59: 93 | AJ59: 82 | AK59: 65 | AL59: 82 | AM59: 109 | AN59: 130 | AO59: 196 | AP59: 207 | AQ59: 302 | AR59: 299 | AS59: 87 | AT59: 155 | AU59: 73
A60: =VLOOKUP(D60,NAAMSAdefs!$B$2:$C$43,2,FALSE)&I60&F60 -> HCVDieselFreestate | B60: =VLOOKUP(D60,NAAMSAdefs!$B$2:$C$43,2,FALSE)&I60 -> HCVDiesel | C60: TipperDiesel | D60: HCVTipper | E60: =VLOOKUP(D60,NAAMSAdefs!$B$2:$D$43,3,FALSE) -> Truck | F60: Freestate | G60: HCV | H60: Tipper | I60: Diesel | AE60: 10 | AF60: 20 | AG60: 9 | AH60: 6 | AJ60: 2 | AL60: 4 | AM60: 10 | AN60: 15 | AO60: 10 | AP60: 14 | AQ60: 21 | AR60: 44 | AS60: 29 | AT60: 23 | AU60: 2
A61: =VLOOKUP(D61,NAAMSAdefs!$B$2:$C$43,2,FALSE)&I61&F61 -> HCVDieselFreestate | B61: =VLOOKUP(D61,NAAMSAdefs!$B$2:$C$43,2,FALSE)&I61 -> HCVDiesel | C61: Truck-TractorDiesel | D61: HCVTruck-Tractor | E61: =VLOOKUP(D61,NAAMSAdefs!$B$2:$D$43,3,FALSE) -> Other | F61: Freestate | G61: HCV | H61: Truck-Tractor | I61: Diesel | AE61: 2 | AF61: 7 | AG61: 4 | AH61: 3 | AI61: 7 | AJ61: 6 | AL61: 2 | AM61: 8 | AN61: 5 | AP61: 3 | AQ61: 2 | AR61: 6 | AT61: 2
A62: =VLOOKUP(D62,NAAMSAdefs!$B$2:$C$43,2,FALSE)&I62&F62 -> LCVDieselFreestate | B62: =VLOOKUP(D62,NAAMSAdefs!$B$2:$C$43,2,FALSE)&I62 -> LCVDiesel | C62: Double Cab Pick-UpDiesel | D62: LCVDouble Cab Pick-Up | E62: =VLOOKUP(D62,NAAMSAdefs!$B$2:$D$43,3,FALSE) -> LCV | F62: Freestate | G62: LCV | H62: Double Cab Pick-Up | I62: Diesel | AE62: 333 | AF62: 535 | AG62: 541 | AH62: 529 | AI62: 553 | AJ62: 754 | AK62: 769 | AL62: 685 | AM62: 589 | AN62: 525 | AO62: 794 | AP62: 878 | AQ62: 1033 | AR62: 762 | AS62: 687 | AT62: 821 | AU62: 375
A63: =VLOOKUP(D63,NAAMSAdefs!$B$2:$C$43,2,FALSE)&I63&F63 -> LCVPetrolFreestate | B63: =VLOOKUP(D63,NAAMSAdefs!$B$2:$C$43,2,FALSE)&I63 -> LCVPetrol | C63: Double Cab Pick-UpPetrol | D63: LCVDouble Cab Pick-Up | E63: =VLOOKUP(D63,NAAMSAdefs!$B$2:$D$43,3,FALSE) -> LCV | F63: Freestate | G63: LCV | H63: Double Cab Pick-Up | I63: Petrol | AE63: 304 | AF63: 341 | AG63: 287 | AH63: 344 | AI63: 376 | AJ63: 404 | AK63: 230 | AL63: 224 | AM63: 236 | AN63: 379 | AO63: 385 | AP63: 357 | AQ63: 302 | AR63: 272 | AS63: 83 | AT63: 151 | AU63: 45
A64: =VLOOKUP(D64,NAAMSAdefs!$B$2:$C$43,2,FALSE)&I64&F64 -> LCVDieselFreestate | B64: =VLOOKUP(D64,NAAMSAdefs!$B$2:$C$43,2,FALSE)&I64 -> LCVDiesel | C64: Extended Cab Pick-UpDiesel | D64: LCVExtended Cab Pick-Up | E64: =VLOOKUP(D64,NAAMSAdefs!$B$2:$D$43,3,FALSE) -> LCV | F64: Freestate | G64: LCV | H64: Extended Cab Pick-Up | I64: Diesel | AK64: 45 | AL64: 127 | AM64: 129 | AN64: 237 | AO64: 290 | AP64: 347 | AQ64: 398 | AR64: 438 | AS64: 394 | AT64: 473 | AU64: 257
A65: =VLOOKUP(D65,NAAMSAdefs!$B$2:$C$43,2,FALSE)&I65&F65 -> LCVPetrolFreestate | B65: =VLOOKUP(D65,NAAMSAdefs!$B$2:$C$43,2,FALSE)&I65 -> LCVPetrol | C65: Extended Cab Pick-UpPetrol | D65: LCVExtended Cab Pick-Up | E65: =VLOOKUP(D65,NAAMSAdefs!$B$2:$D$43,3,FALSE) -> LCV | F65: Freestate | G65: LCV | H65: Extended Cab Pick-Up | I65: Petrol | AK65: 13 | AL65: 20 | AM65: 15 | AN65: 106 | AO65: 84 | AP65: 89 | AQ65: 77 | AR65: 70 | AS65: 11 | AT65: 6
A66: =VLOOKUP(D66,NAAMSAdefs!$B$2:$C$43,2,FALSE)&I66&F66 -> MBTDieselFreestate | B66: =VLOOKUP(D66,NAAMSAdefs!$B$2:$C$43,2,FALSE)&I66 -> MBTDiesel | C66: MinibusDiesel | D66: LCVMinibus | E66: =VLOOKUP(D66,NAAMSAdefs!$B$2:$D$43,3,FALSE) -> MBT | F66: Freestate | G66: LCV | H66: Minibus | I66: Diesel | AE66: 7 | AF66: 72 | AG66: 29 | AH66: 14 | AI66: 3 | AO66: 13 | AP66: 60 | AQ66: 66 | AR66: 55 | AS66: 35 | AT66: 68 | AU66: 25
A67: =VLOOKUP(D67,NAAMSAdefs!$B$2:$C$43,2,FALSE)&I67&F67 -> MBTPetrolFreestate | B67: =VLOOKUP(D67,NAAMSAdefs!$B$2:$C$43,2,FALSE)&I67 -> MBTPetrol | C67: MinibusPetrol | D67: LCVMinibus | E67: =VLOOKUP(D67,NAAMSAdefs!$B$2:$D$43,3,FALSE) -> MBT | F67: Freestate | G67: LCV | H67: Minibus | I67: Petrol | AE67: 684 | AF67: 564 | AG67: 371 | AH67: 302 | AI67: 145 | AJ67: 88 | AK67: 89 | AL67: 97 | AM67: 88 | AN67: 126 | AO67: 138 | AP67: 176 | AQ67: 280 | AR67: 473 | AS67: 256 | AT67: 353 | AU67: 109
A68: =VLOOKUP(D68,NAAMSAdefs!$B$2:$C$43,2,FALSE)&I68&F68 -> LCVDieselFreestate | B68: =VLOOKUP(D68,NAAMSAdefs!$B$2:$C$43,2,FALSE)&I68 -> LCVDiesel | C68: Panel VanDiesel | D68: LCVPanel Van | E68: =VLOOKUP(D68,NAAMSAdefs!$B$2:$D$43,3,FALSE) -> LCV | F68: Freestate | G68: LCV | H68: Panel Van | I68: Diesel | AE68: 9 | AL68: 11 | AM68: 23 | AN68: 66 | AO68: 74 | AP68: 118 | AQ68: 88 | AR68: 65 | AS68: 37 | AT68: 32 | AU68: 12
A69: =VLOOKUP(D69,NAAMSAdefs!$B$2:$C$43,2,FALSE)&I69&F69 -> LCVPetrolFreestate | B69: =VLOOKUP(D69,NAAMSAdefs!$B$2:$C$43,2,FALSE)&I69 -> LCVPetrol | C69: Panel VanPetrol | D69: LCVPanel Van | E69: =VLOOKUP(D69,NAAMSAdefs!$B$2:$D$43,3,FALSE) -> LCV | F69: Freestate | G69: LCV | H69: Panel Van | I69: Petrol | AE69: 150 | AF69: 118 | AG69: 102 | AH69: 58 | AI69: 54 | AJ69: 52 | AK69: 61 | AL69: 67 | AM69: 53 | AN69: 50 | AO69: 153 | AP69: 140 | AQ69: 138 | AR69: 119 | AS69: 28 | AT69: 43 | AU69: 13
A70: =VLOOKUP(D70,NAAMSAdefs!$B$2:$C$43,2,FALSE)&I70&F70 -> LCVDieselFreestate | B70: =VLOOKUP(D70,NAAMSAdefs!$B$2:$C$43,2,FALSE)&I70 -> LCVDiesel | C70: Single Cab Pick-UpDiesel | D70: LCVSingle Cab Pick-Up | E70: =VLOOKUP(D70,NAAMSAdefs!$B$2:$D$43,3,FALSE) -> LCV | F70: Freestate | G70: LCV | H70: Single Cab Pick-Up | I70: Diesel | AE70: 2221 | AF70: 2726 | AG70: 2435 | AH70: 1791 | AI70: 1543 | AJ70: 1520 | AK70: 1820 | AL70: 1778 | AM70: 1551 | AN70: 1470 | AO70: 1586 | AP70: 2012 | AQ70: 2059 | AR70: 1531 | AS70: 1155 | AT70: 1501 | AU70: 666
A71: =VLOOKUP(D71,NAAMSAdefs!$B$2:$C$43,2,FALSE)&I71&F71 -> LCVPetrolFreestate | B71: =VLOOKUP(D71,NAAMSAdefs!$B$2:$C$43,2,FALSE)&I71 -> LCVPetrol | C71: Single Cab Pick-UpPetrol | D71: LCVSingle Cab Pick-Up | E71: =VLOOKUP(D71,NAAMSAdefs!$B$2:$D$43,3,FALSE) -> LCV | F71: Freestate | G71: LCV | H71: Single Cab Pick-Up | I71: Petrol | AE71: 2388 | AF71: 2183 | AG71: 1996 | AH71: 1608 | AI71: 1613 | AJ71: 1485 | AK71: 1274 | AL71: 1241 | AM71: 1330 | AN71: 1617 | AO71: 2258 | AP71: 2683 | AQ71: 2843 | AR71: 2247 | AS71: 1353 | AT71: 1455 | AU71: 699
A72: =VLOOKUP(D72,NAAMSAdefs!$B$2:$C$43,2,FALSE)&I72&F72 -> BUSDieselFreestate | B72: =VLOOKUP(D72,NAAMSAdefs!$B$2:$C$43,2,FALSE)&I72 -> BUSDiesel | C72: BusDiesel | D72: MCVBus | E72: =VLOOKUP(D72,NAAMSAdefs!$B$2:$D$43,3,FALSE) -> BUS | F72: Freestate | G72: MCV | H72: Bus | I72: Diesel | AF72: 1 | AJ72: 2 | AM72: 1 | AN72: 3 | AO72: 22 | AP72: 61 | AQ72: 139 | AR72: 10 | AS72: 20 | AT72: 10 | AU72: 3
A73: =VLOOKUP(D73,NAAMSAdefs!$B$2:$C$43,2,FALSE)&I73&F73 -> MCVDieselFreestate | B73: =VLOOKUP(D73,NAAMSAdefs!$B$2:$C$43,2,FALSE)&I73 -> MCVDiesel | C73: Freight CarrierDiesel | D73: MCVFreight Carrier | E73: =VLOOKUP(D73,NAAMSAdefs!$B$2:$D$43,3,FALSE) -> Truck | F73: Freestate | G73: MCV | H73: Freight Carrier | I73: Diesel | AE73: 156 | AF73: 163 | AG73: 131 | AH73: 113 | AI73: 156 | AJ73: 121 | AK73: 87 | AL73: 108 | AM73: 124 | AN73: 179 | AO73: 285 | AP73: 277 | AQ73: 299 | AR73: 202 | AS73: 97 | AT73: 111 | AU73: 78
A74: =VLOOKUP(D74,NAAMSAdefs!$B$2:$C$43,2,FALSE)&I74&F74 -> MCVPetrolFreestate | B74: =VLOOKUP(D74,NAAMSAdefs!$B$2:$C$43,2,FALSE)&I74 -> MCVPetrol | C74: Freight CarrierPetrol | D74: MCVFreight Carrier | E74: =VLOOKUP(D74,NAAMSAdefs!$B$2:$D$43,3,FALSE) -> Truck | F74: Freestate | G74: MCV | H74: Freight Carrier | I74: Petrol | AE74: 4 | AF74: 2 | AG74: 3 | AH74: 2 | AI74: 1
A75: =VLOOKUP(D75,NAAMSAdefs!$B$2:$C$43,2,FALSE)&I75&F75 -> MCVDieselFreestate | B75: =VLOOKUP(D75,NAAMSAdefs!$B$2:$C$43,2,FALSE)&I75 -> MCVDiesel | C75: Panel VanDiesel | D75: MCVPanel Van | E75: =VLOOKUP(D75,NAAMSAdefs!$B$2:$D$43,3,FALSE) -> Truck | F75: Freestate | G75: MCV | H75: Panel Van | I75: Diesel | AF75: 22 | AG75: 61 | AH75: 73 | AI75: 27 | AJ75: 46 | AK75: 61 | AL75: 40 | AM75: 42 | AN75: 78 | AO75: 68 | AP75: 104 | AQ75: 124 | AR75: 151 | AS75: 70 | AT75: 71 | AU75: 31
A76: =VLOOKUP(D76,NAAMSAdefs!$B$2:$C$43,2,FALSE)&I76&F76 -> MCVDieselFreestate | B76: =VLOOKUP(D76,NAAMSAdefs!$B$2:$C$43,2,FALSE)&I76 -> MCVDiesel | C76: TipperDiesel | D76: MCVTipper | E76: =VLOOKUP(D76,NAAMSAdefs!$B$2:$D$43,3,FALSE) -> Truck | F76: Freestate | G76: MCV | H76: Tipper | I76: Diesel | AQ76: 4 | AR76: 9 | AS76: 3 | AT76: 2 | AU76: 1
A77: =VLOOKUP(D77,NAAMSAdefs!$B$2:$C$43,2,FALSE)&I77&F77 -> CARDieselFreestate | B77: =VLOOKUP(D77,NAAMSAdefs!$B$2:$C$43,2,FALSE)&I77 -> CARDiesel | C77: CabrioletDiesel | D77: PASCabriolet | E77: =VLOOKUP(D77,NAAMSAdefs!$B$2:$D$43,3,FALSE) -> CAR | F77: Freestate | G77: PAS | H77: Cabriolet | I77: Diesel | AO77: 7
A78: =VLOOKUP(D78,NAAMSAdefs!$B$2:$C$43,2,FALSE)&I78&F78 -> CARPetrolFreestate | B78: =VLOOKUP(D78,NAAMSAdefs!$B$2:$C$43,2,FALSE)&I78 -> CARPetrol | C78: CabrioletPetrol | D78: =G78&H78 -> PASCabriolet | E78: =VLOOKUP(D78,NAAMSAdefs!$B$2:$D$43,3,FALSE) -> CAR | F78: Freestate | G78: PAS | H78: Cabriolet | I78: Petrol | AE78: 55 | AF78: 19 | AG78: 28 | AH78: 24 | AI78: 26 | AJ78: 30 | AK78: 55 | AL78: 59 | AM78: 42 | AN78: 42 | AO78: 90 | AP78: 94 | AQ78: 97 | AR78: 60 | AS78: 56 | AT78: 55 | AU78: 23
A79: =VLOOKUP(D79,NAAMSAdefs!$B$2:$C$43,2,FALSE)&I79&F79 -> CARDieselFreestate | B79: =VLOOKUP(D79,NAAMSAdefs!$B$2:$C$43,2,FALSE)&I79 -> CARDiesel | C79: =H79&I79 -> CoupeDiesel | D79: PASCoupe | E79: =VLOOKUP(D79,NAAMSAdefs!$B$2:$D$43,3,FALSE) -> CAR | F79: Freestate | G79: PAS | H79: Coupe | I79: Diesel | AO79: 5 | AP79: 2 | AR79: 7 | AS79: 4 | AT79: 9 | AU79: 2
A80: =VLOOKUP(D80,NAAMSAdefs!$B$2:$C$43,2,FALSE)&I80&F80 -> CARPetrolFreestate | B80: =VLOOKUP(D80,NAAMSAdefs!$B$2:$C$43,2,FALSE)&I80 -> CARPetrol | C80: CoupePetrol | D80: PASCoupe | E80: =VLOOKUP(D80,NAAMSAdefs!$B$2:$D$43,3,FALSE) -> CAR | F80: Freestate | G80: PAS | H80: Coupe | I80: Petrol | AE80: 53 | AF80: 19 | AG80: 5 | AH80: 9 | AI80: 4 | AJ80: 40 | AK80: 65 | AL80: 75 | AM80: 59 | AN80: 68 | AO80: 60 | AP80: 37 | AQ80: 72 | AR80: 64 | AS80: 63 | AT80: 86 | AU80: 45
A81: =VLOOKUP(D81,NAAMSAdefs!$B$2:$C$43,2,FALSE)&I81&F81 -> CARDieselFreestate | B81: =VLOOKUP(D81,NAAMSAdefs!$B$2:$C$43,2,FALSE)&I81 -> CARDiesel | C81: EstateDiesel | D81: PASEstate | E81: =VLOOKUP(D81,NAAMSAdefs!$B$2:$D$43,3,FALSE) -> CAR | F81: Freestate | G81: PAS | H81: Estate | I81: Diesel | AL81: 8 | AM81: 6 | AN81: 13 | AO81: 18 | AP81: 15 | AQ81: 22 | AR81: 8 | AS81: 7 | AT81: 14 | AU81: 3
A82: =VLOOKUP(D82,NAAMSAdefs!$B$2:$C$43,2,FALSE)&I82&F82 -> CARPetrolFreestate | B82: =VLOOKUP(D82,NAAMSAdefs!$B$2:$C$43,2,FALSE)&I82 -> CARPetrol | C82: EstatePetrol | D82: PASEstate | E82: =VLOOKUP(D82,NAAMSAdefs!$B$2:$D$43,3,FALSE) -> CAR | F82: Freestate | G82: PAS | H82: Estate | I82: Petrol | AE82: 127 | AF82: 93 | AG82: 67 | AH82: 51 | AI82: 44 | AJ82: 65 | AK82: 123 | AL82: 109 | AM82: 81 | AN82: 55 | AO82: 61 | AP82: 52 | AQ82: 27 | AR82: 19 | AS82: 7 | AT82: 14 | AU82: 6
A83: =VLOOKUP(D83,NAAMSAdefs!$B$2:$C$43,2,FALSE)&I83&F83 -> CARDieselFreestate | B83: =VLOOKUP(D83,NAAMSAdefs!$B$2:$C$43,2,FALSE)&I83 -> CARDiesel | C83: Hatch (3-dr)Diesel | D83: PASHatch (3-dr) | E83: =VLOOKUP(D83,NAAMSAdefs!$B$2:$D$43,3,FALSE) -> CAR | F83: Freestate | G83: PAS | H83: Hatch (3-dr) | I83: Diesel | AM83: 12 | AN83: 68 | AO83: 52 | AP83: 67 | AQ83: 37 | AR83: 10 | AS83: 4 | AT83: 3 | AU83: 6
A84: =VLOOKUP(D84,NAAMSAdefs!$B$2:$C$43,2,FALSE)&I84&F84 -> CARHybrid PetrolFreestate | B84: =VLOOKUP(D84,NAAMSAdefs!$B$2:$C$43,2,FALSE)&I84 -> CARHybrid Petrol | C84: Hatch (3-dr)Hybrid Petrol | D84: PASHatch (3-dr) | E84: =VLOOKUP(D84,NAAMSAdefs!$B$2:$D$43,3,FALSE) -> CAR | F84: Freestate | G84: PAS | H84: Hatch (3-dr) | I84: Hybrid Petrol | AT84: 2 | AU84: 1
A85: =VLOOKUP(D85,NAAMSAdefs!$B$2:$C$43,2,FALSE)&I85&F85 -> CARPetrolFreestate | B85: =VLOOKUP(D85,NAAMSAdefs!$B$2:$C$43,2,FALSE)&I85 -> CARPetrol | C85: Hatch (3-dr)Petrol | D85: PASHatch (3-dr) | E85: =VLOOKUP(D85,NAAMSAdefs!$B$2:$D$43,3,FALSE) -> CAR | F85: Freestate | G85: PAS | H85: Hatch (3-dr) | I85: Petrol | AE85: 204 | AF85: 466 | AG85: 865 | AH85: 591 | AI85: 475 | AJ85: 470 | AK85: 460 | AL85: 342 | AM85: 315 | AN85: 416 | AO85: 575 | AP85: 886 | AQ85: 686 | AR85: 385 | AS85: 185 | AT85: 162 | AU85: 85
A86: =VLOOKUP(D86,NAAMSAdefs!$B$2:$C$43,2,FALSE)&I86&F86 -> CARDieselFreestate | B86: =VLOOKUP(D86,NAAMSAdefs!$B$2:$C$43,2,FALSE)&I86 -> CARDiesel | C86: Hatch (5-dr)Diesel | D86: PASHatch (5-dr) | E86: =VLOOKUP(D86,NAAMSAdefs!$B$2:$D$43,3,FALSE) -> CAR | F86: Freestate | G86: PAS | H86: Hatch (5-dr) | I86: Diesel | AJ86: 25 | AK86: 41 | AL86: 65 | AM86: 90 | AN86: 131 | AO86: 245 | AP86: 269 | AQ86: 240 | AR86: 184 | AS86: 95 | AT86: 135 | AU86: 114
A87: =VLOOKUP(D87,NAAMSAdefs!$B$2:$C$43,2,FALSE)&I87&F87 -> CARHybrid PetrolFreestate | B87: =VLOOKUP(D87,NAAMSAdefs!$B$2:$C$43,2,FALSE)&I87 -> CARHybrid Petrol | C87: Hatch (5-dr)Hybrid Petrol | D87: PASHatch (5-dr) | E87: =VLOOKUP(D87,NAAMSAdefs!$B$2:$D$43,3,FALSE) -> CAR | F87: Freestate | G87: PAS | H87: Hatch (5-dr) | I87: Hybrid Petrol | AP87: 3 | AQ87: 5 | AR87: 2 | AS87: 2 | AT87: 1
A88: =VLOOKUP(D88,NAAMSAdefs!$B$2:$C$43,2,FALSE)&I88&F88 -> CARPetrolFreestate | B88: =VLOOKUP(D88,NAAMSAdefs!$B$2:$C$43,2,FALSE)&I88 -> CARPetrol | C88: Hatch (5-dr)Petrol | D88: PASHatch (5-dr) | E88: =VLOOKUP(D88,NAAMSAdefs!$B$2:$D$43,3,FALSE) -> CAR | F88: Freestate | G88: PAS | H88: Hatch (5-dr) | I88: Petrol | AE88: 2463 | AF88: 3032 | AG88: 2389 | AH88: 1975 | AI88: 1728 | AJ88: 1863 | AK88: 1896 | AL88: 1591 | AM88: 1958 | AN88: 2818 | AO88: 4357 | AP88: 5025 | AQ88: 3890 | AR88: 2954 | AS88: 1910 | AT88: 2760 | AU88: 1421
A89: =VLOOKUP(D89,NAAMSAdefs!$B$2:$C$43,2,FALSE)&I89&F89 -> MBTPetrolFreestate | B89: =VLOOKUP(D89,NAAMSAdefs!$B$2:$C$43,2,FALSE)&I89 -> MBTPetrol | C89: MinibusPetrol | D89: PASMinibus | E89: =VLOOKUP(D89,NAAMSAdefs!$B$2:$D$43,3,FALSE) -> MBT | F89: Freestate | G89: PAS | H89: Minibus | I89: Petrol | AF89: 1 | AG89: 4 | AH89: 2
A90: =VLOOKUP(D90,NAAMSAdefs!$B$2:$C$43,2,FALSE)&I90&F90 -> SUVDieselFreestate | B90: =VLOOKUP(D90,NAAMSAdefs!$B$2:$C$43,2,FALSE)&I90 -> SUVDiesel | C90: MPVDiesel | D90: PASMPV | E90: =VLOOKUP(D90,NAAMSAdefs!$B$2:$D$43,3,FALSE) -> CAR | F90: Freestate | G90: PAS | H90: MPV | I90: Diesel | AI90: 2 | AJ90: 42 | AK90: 30 | AL90: 46 | AM90: 78 | AN90: 165 | AO90: 215 | AP90: 203 | AQ90: 173 | AR90: 107 | AS90: 85 | AT90: 101 | AU90: 44
A91: =VLOOKUP(D91,NAAMSAdefs!$B$2:$C$43,2,FALSE)&I91&F91 -> SUVPetrolFreestate | B91: =VLOOKUP(D91,NAAMSAdefs!$B$2:$C$43,2,FALSE)&I91 -> SUVPetrol | C91: MPVPetrol | D91: PASMPV | E91: =VLOOKUP(D91,NAAMSAdefs!$B$2:$D$43,3,FALSE) -> CAR | F91: Freestate | G91: PAS | H91: MPV | I91: Petrol | AE91: 15 | AF91: 4 | AG91: 10 | AH91: 22 | AI91: 18 | AJ91: 278 | AK91: 371 | AL91: 288 | AM91: 238 | AN91: 384 | AO91: 370 | AP91: 386 | AQ91: 544 | AR91: 336 | AS91: 185 | AT91: 199 | AU91: 68
A92: =VLOOKUP(D92,NAAMSAdefs!$B$2:$C$43,2,FALSE)&I92&F92 -> CARDieselFreestate | B92: =VLOOKUP(D92,NAAMSAdefs!$B$2:$C$43,2,FALSE)&I92 -> CARDiesel | C92: SedanDiesel | D92: PASSedan | E92: =VLOOKUP(D92,NAAMSAdefs!$B$2:$D$43,3,FALSE) -> CAR | F92: Freestate | G92: PAS | H92: Sedan | I92: Diesel | AE92: 42 | AF92: 92 | AG92: 90 | AH92: 40 | AI92: 13 | AJ92: 89 | AK92: 280 | AL92: 359 | AM92: 476 | AN92: 455 | AO92: 443 | AP92: 501 | AQ92: 520 | AR92: 426 | AS92: 255 | AT92: 241 | AU92: 101
A93: =VLOOKUP(D93,NAAMSAdefs!$B$2:$C$43,2,FALSE)&I93&F93 -> CARHybrid PetrolFreestate | B93: =VLOOKUP(D93,NAAMSAdefs!$B$2:$C$43,2,FALSE)&I93 -> CARHybrid Petrol | C93: SedanHybrid Petrol | D93: PASSedan | E93: =VLOOKUP(D93,NAAMSAdefs!$B$2:$D$43,3,FALSE) -> CAR | F93: Freestate | G93: PAS | H93: Sedan | I93: Hybrid Petrol | AS93: 1
A94: =VLOOKUP(D94,NAAMSAdefs!$B$2:$C$43,2,FALSE)&I94&F94 -> CARPetrolFreestate | B94: =VLOOKUP(D94,NAAMSAdefs!$B$2:$C$43,2,FALSE)&I94 -> CARPetrol | C94: SedanPetrol | D94: PASSedan | E94: =VLOOKUP(D94,NAAMSAdefs!$B$2:$D$43,3,FALSE) -> CAR | F94: Freestate | G94: PAS | H94: Sedan | I94: Petrol | AE94: 5516 | AF94: 5189 | AG94: 4946 | AH94: 3847 | AI94: 3004 | AJ94: 3299 | AK94: 2810 | AL94: 2090 | AM94: 2196 | AN94: 2632 | AO94: 2788 | AP94: 3194 | AQ94: 2639 | AR94: 2019 | AS94: 1417 | AT94: 1777 | AU94: 842
A95: =VLOOKUP(D95,NAAMSAdefs!$B$2:$C$43,2,FALSE)&I95&F95 -> SUVDieselFreestate | B95: =VLOOKUP(D95,NAAMSAdefs!$B$2:$C$43,2,FALSE)&I95 -> SUVDiesel | C95: SUVDiesel | D95: PASSUV | E95: =VLOOKUP(D95,NAAMSAdefs!$B$2:$D$43,3,FALSE) -> CAR | F95: Freestate | G95: PAS | H95: SUV | I95: Diesel | AE95: 28 | AF95: 74 | AG95: 100 | AH95: 228 | AI95: 188 | AJ95: 276 | AK95: 255 | AL95: 299 | AM95: 288 | AN95: 261 | AO95: 337 | AP95: 533 | AQ95: 791 | AR95: 747 | AS95: 743 | AT95: 1054 | AU95: 409
A96: =VLOOKUP(D96,NAAMSAdefs!$B$2:$C$43,2,FALSE)&I96&F96 -> SUVHybrid PetrolFreestate | B96: =VLOOKUP(D96,NAAMSAdefs!$B$2:$C$43,2,FALSE)&I96 -> SUVHybrid Petrol | C96: SUVHybrid Petrol | D96: PASSUV | E96: =VLOOKUP(D96,NAAMSAdefs!$B$2:$D$43,3,FALSE) -> CAR | F96: Freestate | G96: PAS | H96: SUV | I96: Hybrid Petrol | AR96: 1 | AT96: 1
A97: =VLOOKUP(D97,NAAMSAdefs!$B$2:$C$43,2,FALSE)&I97&F97 -> SUVPetrolFreestate | B97: =VLOOKUP(D97,NAAMSAdefs!$B$2:$C$43,2,FALSE)&I97 -> SUVPetrol | C97: SUVPetrol | D97: PASSUV | E97: =VLOOKUP(D97,NAAMSAdefs!$B$2:$D$43,3,FALSE) -> CAR | F97: Freestate | G97: PAS | H97: SUV | I97: Petrol | AE97: 99 | AF97: 120 | AG97: 129 | AH97: 246 | AI97: 210 | AJ97: 144 | AK97: 194 | AL97: 160 | AM97: 208 | AN97: 338 | AO97: 476 | AP97: 502 | AQ97: 581 | AR97: 421 | AS97: 310 | AT97: 445 | AU97: 224
A98: =VLOOKUP(D98,NAAMSAdefs!$B$2:$C$43,2,FALSE)&I98&F98 -> HCVDieselFreestate | B98: =VLOOKUP(D98,NAAMSAdefs!$B$2:$C$43,2,FALSE)&I98 -> HCVDiesel | C98: Freight CarrierDiesel | D98: XHVFreight Carrier | E98: =VLOOKUP(D98,NAAMSAdefs!$B$2:$D$43,3,FALSE) -> Other | F98: Freestate | G98: XHV | H98: Freight Carrier | I98: Diesel | AE98: 10 | AF98: 11 | AG98: 9 | AH98: 17 | AI98: 9 | AJ98: 17 | AK98: 20 | AL98: 27 | AM98: 48 | AN98: 63 | AO98: 71 | AP98: 75 | AQ98: 113 | AR98: 127 | AS98: 81 | AT98: 95 | AU98: 55
A99: =VLOOKUP(D99,NAAMSAdefs!$B$2:$C$43,2,FALSE)&I99&F99 -> HCVDieselFreestate | B99: =VLOOKUP(D99,NAAMSAdefs!$B$2:$C$43,2,FALSE)&I99 -> HCVDiesel | C99: MixerDiesel | D99: XHVMixer | E99: =VLOOKUP(D99,NAAMSAdefs!$B$2:$D$43,3,FALSE) -> Other | F99: Freestate | G99: XHV | H99: Mixer | I99: Diesel | AF99: 2 | AJ99: 2 | AK99: 2 | AM99: 3 | AN99: 12 | AO99: 15 | AP99: 15 | AQ99: 19 | AR99: 21 | AS99: 24 | AT99: 2 | AU99: 11
A100: =VLOOKUP(D100,NAAMSAdefs!$B$2:$C$43,2,FALSE)&I100&F100 -> HCVDieselFreestate | B100: =VLOOKUP(D100,NAAMSAdefs!$B$2:$C$43,2,FALSE)&I100 -> HCVDiesel | C100: TipperDiesel | D100: XHVTipper | E100: =VLOOKUP(D100,NAAMSAdefs!$B$2:$D$43,3,FALSE) -> Truck | F100: Freestate | G100: XHV | H100: Tipper | I100: Diesel | AE100: 6 | AF100: 4 | AG100: 2 | AH100: 3 | AJ100: 1 | AK100: 1 | AL100: 6 | AM100: 11 | AN100: 4 | AO100: 3 | AP100: 23 | AQ100: 69 | AR100: 64 | AS100: 7 | AT100: 23 | AU100: 8
A101: =VLOOKUP(D101,NAAMSAdefs!$B$2:$C$43,2,FALSE)&I101&F101 -> HCVDieselFreestate | B101: =VLOOKUP(D101,NAAMSAdefs!$B$2:$C$43,2,FALSE)&I101 -> HCVDiesel | C101: Truck-TractorDiesel | D101: XHVTruck-Tractor | E101: =VLOOKUP(D101,NAAMSAdefs!$B$2:$D$43,3,FALSE) -> Other | F101: Freestate | G101: XHV | H101: Truck-Tractor | I101: Diesel | AE101: 152 | AF101: 188 | AG101: 125 | AH101: 143 | AI101: 111 | AJ101: 143 | AK101: 108 | AL101: 126 | AM101: 340 | AN101: 368 | AO101: 405 | AP101: 382 | AQ101: 607 | AR101: 772 | AS101: 307 | AT101: 567 | AU101: 247
A102: =VLOOKUP(D102,NAAMSAdefs!$B$2:$C$43,2,FALSE)&I102&F102 -> BUSDieselGauteng | B102: =VLOOKUP(D102,NAAMSAdefs!$B$2:$C$43,2,FALSE)&I102 -> BUSDiesel | C102: BusDiesel | D102: BUSBus | E102: =VLOOKUP(D102,NAAMSAdefs!$B$2:$D$43,3,FALSE) -> BUS | F102: Gauteng | G102: BUS | H102: Bus | I102: Diesel | AE102: 92 | AF102: 187 | AG102: 90 | AH102: 68 | AI102: 59 | AJ102: 198 | AK102: 146 | AL102: 402 | AM102: 249 | AN102: 240 | AO102: 268 | AP102: 508 | AQ102: 327 | AR102: 630 | AS102: 808 | AT102: 514 | AU102: 155
A103: =VLOOKUP(D103,NAAMSAdefs!$B$2:$C$43,2,FALSE)&I103&F103 -> HCVDieselGauteng | B103: =VLOOKUP(D103,NAAMSAdefs!$B$2:$C$43,2,FALSE)&I103 -> HCVDiesel | C103: Freight CarrierDiesel | D103: HCVFreight Carrier | E103: =VLOOKUP(D103,NAAMSAdefs!$B$2:$D$43,3,FALSE) -> Truck | F103: Gauteng | G103: HCV | H103: Freight Carrier | I103: Diesel | AE103: 1232 | AF103: 1099 | AG103: 948 | AH103: 823 | AI103: 571 | AJ103: 789 | AK103: 977 | AL103: 815 | AM103: 992 | AN103: 1337 | AO103: 1808 | AP103: 2429 | AQ103: 2705 | AR103: 2143 | AS103: 1138 | AT103: 1397 | AU103: 633
A104: =VLOOKUP(D104,NAAMSAdefs!$B$2:$C$43,2,FALSE)&I104&F104 -> HCVDieselGauteng | B104: =VLOOKUP(D104,NAAMSAdefs!$B$2:$C$43,2,FALSE)&I104 -> HCVDiesel | C104: OtherDiesel | D104: HCVOther | E104: =VLOOKUP(D104,NAAMSAdefs!$B$2:$D$43,3,FALSE) -> Other | F104: Gauteng | G104: HCV | H104: Other | I104: Diesel | AF104: 2 | AJ104: 6
A105: =VLOOKUP(D105,NAAMSAdefs!$B$2:$C$43,2,FALSE)&I105&F105 -> HCVDieselGauteng | B105: =VLOOKUP(D105,NAAMSAdefs!$B$2:$C$43,2,FALSE)&I105 -> HCVDiesel | C105: TipperDiesel | D105: HCVTipper | E105: =VLOOKUP(D105,NAAMSAdefs!$B$2:$D$43,3,FALSE) -> Truck | F105: Gauteng | G105: HCV | H105: Tipper | I105: Diesel | AE105: 96 | AF105: 87 | AG105: 69 | AH105: 42 | AI105: 36 | AJ105: 65 | AK105: 64 | AL105: 73 | AM105: 57 | AN105: 75 | AO105: 166 | AP105: 182 | AQ105: 332 | AR105: 270 | AS105: 104 | AT105: 121 | AU105: 27
A106: =VLOOKUP(D106,NAAMSAdefs!$B$2:$C$43,2,FALSE)&I106&F106 -> HCVDieselGauteng | B106: =VLOOKUP(D106,NAAMSAdefs!$B$2:$C$43,2,FALSE)&I106 -> HCVDiesel | C106: Truck-TractorDiesel | D106: HCVTruck-Tractor | E106: =VLOOKUP(D106,NAAMSAdefs!$B$2:$D$43,3,FALSE) -> Other | F106: Gauteng | G106: HCV | H106: Truck-Tractor | I106: Diesel | AE106: 49 | AF106: 87 | AG106: 71 | AH106: 72 | AI106: 44 | AJ106: 34 | AK106: 9 | AL106: 12 | AN106: 1 | AO106: 6 | AP106: 6 | AQ106: 24 | AR106: 16 | AS106: 14 | AT106: 12 | AU106: 1
A107: =VLOOKUP(D107,NAAMSAdefs!$B$2:$C$43,2,FALSE)&I107&F107 -> LCVDieselGauteng | B107: =VLOOKUP(D107,NAAMSAdefs!$B$2:$C$43,2,FALSE)&I107 -> LCVDiesel | C107: Double Cab Pick-UpDiesel | D107: LCVDouble Cab Pick-Up | E107: =VLOOKUP(D107,NAAMSAdefs!$B$2:$D$43,3,FALSE) -> LCV | F107: Gauteng | G107: LCV | H107: Double Cab Pick-Up | I107: Diesel | AE107: 1220 | AF107: 1932 | AG107: 2627 | AH107: 3039 | AI107: 3596 | AJ107: 4975 | AK107: 5106 | AL107: 4924 | AM107: 4595 | AN107: 5175 | AO107: 7115 | AP107: 8187 | AQ107: 8476 | AR107: 6070 | AS107: 5636 | AT107: 7136 | AU107: 3293
A108: =VLOOKUP(D108,NAAMSAdefs!$B$2:$C$43,2,FALSE)&I108&F108 -> LCVPetrolGauteng | B108: =VLOOKUP(D108,NAAMSAdefs!$B$2:$C$43,2,FALSE)&I108 -> LCVPetrol | C108: Double Cab Pick-UpPetrol | D108: LCVDouble Cab Pick-Up | E108: =VLOOKUP(D108,NAAMSAdefs!$B$2:$D$43,3,FALSE) -> LCV | F108: Gauteng | G108: LCV | H108: Double Cab Pick-Up | I108: Petrol | AE108: 2205 | AF108: 2677 | AG108: 2435 | AH108: 2950 | AI108: 3303 | AJ108: 3845 | AK108: 2667 | AL108: 1985 | AM108: 2416 | AN108: 3843 | AO108: 4238 | AP108: 4244 | AQ108: 3505 | AR108: 2487 | AS108: 1262 | AT108: 1735 | AU108: 651
A109: =VLOOKUP(D109,NAAMSAdefs!$B$2:$C$43,2,FALSE)&I109&F109 -> LCVDieselGauteng | B109: =VLOOKUP(D109,NAAMSAdefs!$B$2:$C$43,2,FALSE)&I109 -> LCVDiesel | C109: Extended Cab Pick-UpDiesel | D109: LCVExtended Cab Pick-Up | E109: =VLOOKUP(D109,NAAMSAdefs!$B$2:$D$43,3,FALSE) -> LCV | F109: Gauteng | G109: LCV | H109: Extended Cab Pick-Up | I109: Diesel | AK109: 243 | AL109: 746 | AM109: 737 | AN109: 1394 | AO109: 1886 | AP109: 2018 | AQ109: 1971 | AR109: 2055 | AS109: 1451 | AT109: 1985 | AU109: 1032
A110: =VLOOKUP(D110,NAAMSAdefs!$B$2:$C$43,2,FALSE)&I110&F110 -> LCVPetrolGauteng | B110: =VLOOKUP(D110,NAAMSAdefs!$B$2:$C$43,2,FALSE)&I110 -> LCVPetrol | C110: Extended Cab Pick-UpPetrol | D110: LCVExtended Cab Pick-Up | E110: =VLOOKUP(D110,NAAMSAdefs!$B$2:$D$43,3,FALSE) -> LCV | F110: Gauteng | G110: LCV | H110: Extended Cab Pick-Up | I110: Petrol | AK110: 147 | AL110: 154 | AM110: 132 | AN110: 450 | AO110: 586 | AP110: 487 | AQ110: 722 | AR110: 557 | AS110: 101 | AT110: 95
A111: =VLOOKUP(D111,NAAMSAdefs!$B$2:$C$43,2,FALSE)&I111&F111 -> MBTDieselGauteng | B111: =VLOOKUP(D111,NAAMSAdefs!$B$2:$C$43,2,FALSE)&I111 -> MBTDiesel | C111: MinibusDiesel | D111: LCVMinibus | E111: =VLOOKUP(D111,NAAMSAdefs!$B$2:$D$43,3,FALSE) -> MBT | F111: Gauteng | G111: LCV | H111: Minibus | I111: Diesel | AE111: 17 | AF111: 233 | AG111: 111 | AH111: 58 | AI111: 24 | AJ111: 9 | AO111: 248 | AP111: 510 | AQ111: 822 | AR111: 788 | AS111: 372 | AT111: 552 | AU111: 326
A112: =VLOOKUP(D112,NAAMSAdefs!$B$2:$C$43,2,FALSE)&I112&F112 -> MBTPetrolGauteng | B112: =VLOOKUP(D112,NAAMSAdefs!$B$2:$C$43,2,FALSE)&I112 -> MBTPetrol | C112: MinibusPetrol | D112: LCVMinibus | E112: =VLOOKUP(D112,NAAMSAdefs!$B$2:$D$43,3,FALSE) -> MBT | F112: Gauteng | G112: LCV | H112: Minibus | I112: Petrol | AE112: 5788 | AF112: 4245 | AG112: 2546 | AH112: 2007 | AI112: 1488 | AJ112: 1045 | AK112: 1551 | AL112: 2003 | AM112: 1611 | AN112: 2865 | AO112: 4727 | AP112: 5488 | AQ112: 6582 | AR112: 7231 | AS112: 4101 | AT112: 3792 | AU112: 1354
A113: =VLOOKUP(D113,NAAMSAdefs!$B$2:$C$43,2,FALSE)&I113&F113 -> LCVDieselGauteng | B113: =VLOOKUP(D113,NAAMSAdefs!$B$2:$C$43,2,FALSE)&I113 -> LCVDiesel | C113: Panel VanDiesel | D113: LCVPanel Van | E113: =VLOOKUP(D113,NAAMSAdefs!$B$2:$D$43,3,FALSE) -> LCV | F113: Gauteng | G113: LCV | H113: Panel Van | I113: Diesel | AE113: 66 | AL113: 121 | AM113: 335 | AN113: 750 | AO113: 1216 | AP113: 1555 | AQ113: 1352 | AR113: 938 | AS113: 548 | AT113: 582 | AU113: 303
A114: =VLOOKUP(D114,NAAMSAdefs!$B$2:$C$43,2,FALSE)&I114&F114 -> LCVPetrolGauteng | B114: =VLOOKUP(D114,NAAMSAdefs!$B$2:$C$43,2,FALSE)&I114 -> LCVPetrol | C114: Panel VanPetrol | D114: LCVPanel Van | E114: =VLOOKUP(D114,NAAMSAdefs!$B$2:$D$43,3,FALSE) -> LCV | F114: Gauteng | G114: LCV | H114: Panel Van | I114: Petrol | AE114: 1846 | AF114: 1821 | AG114: 1156 | AH114: 970 | AI114: 1174 | AJ114: 1131 | AK114: 1842 | AL114: 1633 | AM114: 1356 | AN114: 1346 | AO114: 1536 | AP114: 1351 | AQ114: 1595 | AR114: 1610 | AS114: 768 | AT114: 797 | AU114: 422
A115: =VLOOKUP(D115,NAAMSAdefs!$B$2:$C$43,2,FALSE)&I115&F115 -> LCVDieselGauteng | B115: =VLOOKUP(D115,NAAMSAdefs!$B$2:$C$43,2,FALSE)&I115 -> LCVDiesel | C115: Single Cab Pick-UpDiesel | D115: LCVSingle Cab Pick-Up | E115: =VLOOKUP(D115,NAAMSAdefs!$B$2:$D$43,3,FALSE) -> LCV | F115: Gauteng | G115: LCV | H115: Single Cab Pick-Up | I115: Diesel | AE115: 6902 | AF115: 7732 | AG115: 6894 | AH115: 5513 | AI115: 5142 | AJ115: 5748 | AK115: 6426 | AL115: 6175 | AM115: 5754 | AN115: 6580 | AO115: 7862 | AP115: 10873 | AQ115: 10760 | AR115: 8344 | AS115: 6140 | AT115: 7704 | AU115: 3529
A116: =VLOOKUP(D116,NAAMSAdefs!$B$2:$C$43,2,FALSE)&I116&F116 -> LCVPetrolGauteng | B116: =VLOOKUP(D116,NAAMSAdefs!$B$2:$C$43,2,FALSE)&I116 -> LCVPetrol | C116: Single Cab Pick-UpPetrol | D116: LCVSingle Cab Pick-Up | E116: =VLOOKUP(D116,NAAMSAdefs!$B$2:$D$43,3,FALSE) -> LCV | F116: Gauteng | G116: LCV | H116: Single Cab Pick-Up | I116: Petrol | AE116: 20281 | AF116: 19093 | AG116: 15580 | AH116: 13245 | AI116: 13669 | AJ116: 14831 | AK116: 13376 | AL116: 13398 | AM116: 14280 | AN116: 17235 | AO116: 23017 | AP116: 27619 | AQ116: 27746 | AR116: 20119 | AS116: 12549 | AT116: 14805 | AU116: 7313
A117: =VLOOKUP(D117,NAAMSAdefs!$B$2:$C$43,2,FALSE)&I117&F117 -> BUSDieselGauteng | B117: =VLOOKUP(D117,NAAMSAdefs!$B$2:$C$43,2,FALSE)&I117 -> BUSDiesel | C117: BusDiesel | D117: MCVBus | E117: =VLOOKUP(D117,NAAMSAdefs!$B$2:$D$43,3,FALSE) -> BUS | F117: Gauteng | G117: MCV | H117: Bus | I117: Diesel | AE117: 35 | AF117: 24 | AG117: 2 | AH117: 1 | AI117: 14 | AJ117: 36 | AK117: 43 | AL117: 72 | AM117: 37 | AN117: 22 | AO117: 126 | AP117: 258 | AQ117: 217 | AR117: 125 | AS117: 63 | AT117: 57 | AU117: 7
A118: =VLOOKUP(D118,NAAMSAdefs!$B$2:$C$43,2,FALSE)&I118&F118 -> MCVDieselGauteng | B118: =VLOOKUP(D118,NAAMSAdefs!$B$2:$C$43,2,FALSE)&I118 -> MCVDiesel | C118: Freight CarrierDiesel | D118: MCVFreight Carrier | E118: =VLOOKUP(D118,NAAMSAdefs!$B$2:$D$43,3,FALSE) -> Truck | F118: Gauteng | G118: MCV | H118: Freight Carrier | I118: Diesel | AE118: 1489 | AF118: 1540 | AG118: 1483 | AH118: 1319 | AI118: 1240 | AJ118: 1553 | AK118: 1635 | AL118: 1841 | AM118: 1991 | AN118: 2833 | AO118: 3898 | AP118: 4445 | AQ118: 4145 | AR118: 2895 | AS118: 1606 | AT118: 1999 | AU118: 889
A119: =VLOOKUP(D119,NAAMSAdefs!$B$2:$C$43,2,FALSE)&I119&F119 -> MCVPetrolGauteng | B119: =VLOOKUP(D119,NAAMSAdefs!$B$2:$C$43,2,FALSE)&I119 -> MCVPetrol | C119: Freight CarrierPetrol | D119: MCVFreight Carrier | E119: =VLOOKUP(D119,NAAMSAdefs!$B$2:$D$43,3,FALSE) -> Truck | F119: Gauteng | G119: MCV | H119: Freight Carrier | I119: Petrol | AE119: 162 | AF119: 139 | AG119: 120 | AH119: 40 | AI119: 83 | AJ119: 28 | AK119: 25 | AL119: 7 | AM119: 13
A120: =VLOOKUP(D120,NAAMSAdefs!$B$2:$C$43,2,FALSE)&I120&F120 -> MCVDieselGauteng | B120: =VLOOKUP(D120,NAAMSAdefs!$B$2:$C$43,2,FALSE)&I120 -> MCVDiesel | C120: Panel VanDiesel | D120: MCVPanel Van | E120: =VLOOKUP(D120,NAAMSAdefs!$B$2:$D$43,3,FALSE) -> Truck | F120: Gauteng | G120: MCV | H120: Panel Van | I120: Diesel | AE120: 9 | AF120: 462 | AG120: 706 | AH120: 643 | AI120: 555 | AJ120: 471 | AK120: 611 | AL120: 565 | AM120: 590 | AN120: 843 | AO120: 950 | AP120: 1216 | AQ120: 1868 | AR120: 1511 | AS120: 813 | AT120: 894 | AU120: 329
A121: =VLOOKUP(D121,NAAMSAdefs!$B$2:$C$43,2,FALSE)&I121&F121 -> MCVDieselGauteng | B121: =VLOOKUP(D121,NAAMSAdefs!$B$2:$C$43,2,FALSE)&I121 -> MCVDiesel | C121: TipperDiesel | D121: MCVTipper | E121: =VLOOKUP(D121,NAAMSAdefs!$B$2:$D$43,3,FALSE) -> Truck | F121: Gauteng | G121: MCV | H121: Tipper | I121: Diesel | AQ121: 47 | AR121: 39 | AS121: 10 | AT121: 8 | AU121: 3
A122: =VLOOKUP(D122,NAAMSAdefs!$B$2:$C$43,2,FALSE)&I122&F122 -> CARDieselGauteng | B122: =VLOOKUP(D122,NAAMSAdefs!$B$2:$C$43,2,FALSE)&I122 -> CARDiesel | C122: CabrioletDiesel | D122: PASCabriolet | E122: =VLOOKUP(D122,NAAMSAdefs!$B$2:$D$43,3,FALSE) -> CAR | F122: Gauteng | G122: PAS | H122: Cabriolet | I122: Diesel | AO122: 103 | AP122: 55 | AQ122: 21 | AR122: 5 | AS122: 10 | AT122: 14 | AU122: 3
A123: =VLOOKUP(D123,NAAMSAdefs!$B$2:$C$43,2,FALSE)&I123&F123 -> CARPetrolGauteng | B123: =VLOOKUP(D123,NAAMSAdefs!$B$2:$C$43,2,FALSE)&I123 -> CARPetrol | C123: CabrioletPetrol | D123: PASCabriolet | E123: =VLOOKUP(D123,NAAMSAdefs!$B$2:$D$43,3,FALSE) -> CAR | F123: Gauteng | G123: PAS | H123: Cabriolet | I123: Petrol | AE123: 1119 | AF123: 647 | AG123: 788 | AH123: 798 | AI123: 634 | AJ123: 811 | AK123: 1496 | AL123: 1220 | AM123: 1527 | AN123: 2114 | AO123: 3078 | AP123: 2915 | AQ123: 2495 | AR123: 1617 | AS123: 1502 | AT123: 1688 | AU123: 697
A124: =VLOOKUP(D124,NAAMSAdefs!$B$2:$C$43,2,FALSE)&I124&F124 -> CARDieselGauteng | B124: =VLOOKUP(D124,NAAMSAdefs!$B$2:$C$43,2,FALSE)&I124 -> CARDiesel | C124: CoupeDiesel | D124: PASCoupe | E124: =VLOOKUP(D124,NAAMSAdefs!$B$2:$D$43,3,FALSE) -> CAR | F124: Gauteng | G124: PAS | H124: Coupe | I124: Diesel | AO124: 127 | AP124: 104 | AQ124: 31 | AR124: 165 | AS124: 167 | AT124: 181 | AU124: 76
A125: =VLOOKUP(D125,NAAMSAdefs!$B$2:$C$43,2,FALSE)&I125&F125 -> CARPetrolGauteng | B125: =VLOOKUP(D125,NAAMSAdefs!$B$2:$C$43,2,FALSE)&I125 -> CARPetrol | C125: CoupePetrol | D125: PASCoupe | E125: =VLOOKUP(D125,NAAMSAdefs!$B$2:$D$43,3,FALSE) -> CAR | F125: Gauteng | G125: PAS | H125: Coupe | I125: Petrol | AE125: 1052 | AF125: 476 | AG125: 223 | AH125: 208 | AI125: 200 | AJ125: 960 | AK125: 1348 | AL125: 2004 | AM125: 1706 | AN125: 1798 | AO125: 1381 | AP125: 1468 | AQ125: 2129 | AR125: 1959 | AS125: 1968 | AT125: 2517 | AU125: 990
A126: =VLOOKUP(D126,NAAMSAdefs!$B$2:$C$43,2,FALSE)&I126&F126 -> CARDieselGauteng | B126: =VLOOKUP(D126,NAAMSAdefs!$B$2:$C$43,2,FALSE)&I126 -> CARDiesel | C126: EstateDiesel | D126: PASEstate | E126: =VLOOKUP(D126,NAAMSAdefs!$B$2:$D$43,3,FALSE) -> CAR | F126: Gauteng | G126: PAS | H126: Estate | I126: Diesel | AH126: 1 | AK126: 1 | AL126: 159 | AM126: 295 | AN126: 242 | AO126: 261 | AP126: 288 | AQ126: 230 | AR126: 168 | AS126: 133 | AT126: 157 | AU126: 33
A127: =VLOOKUP(D127,NAAMSAdefs!$B$2:$C$43,2,FALSE)&I127&F127 -> CARPetrolGauteng | B127: =VLOOKUP(D127,NAAMSAdefs!$B$2:$C$43,2,FALSE)&I127 -> CARPetrol | C127: EstatePetrol | D127: PASEstate | E127: =VLOOKUP(D127,NAAMSAdefs!$B$2:$D$43,3,FALSE) -> CAR | F127: Gauteng | G127: PAS | H127: Estate | I127: Petrol | AE127: 1487 | AF127: 1317 | AG127: 1326 | AH127: 1193 | AI127: 887 | AJ127: 1430 | AK127: 2586 | AL127: 1959 | AM127: 1633 | AN127: 1345 | AO127: 1375 | AP127: 1059 | AQ127: 664 | AR127: 306 | AS127: 243 | AT127: 323 | AU127: 144
A128: =VLOOKUP(D128,NAAMSAdefs!$B$2:$C$43,2,FALSE)&I128&F128 -> CARDieselGauteng | B128: =VLOOKUP(D128,NAAMSAdefs!$B$2:$C$43,2,FALSE)&I128 -> CARDiesel | C128: Hatch (3-dr)Diesel | D128: PASHatch (3-dr) | E128: =VLOOKUP(D128,NAAMSAdefs!$B$2:$D$43,3,FALSE) -> CAR | F128: Gauteng | G128: PAS | H128: Hatch (3-dr) | I128: Diesel | AM128: 239 | AN128: 1763 | AO128: 1322 | AP128: 1898 | AQ128: 958 | AR128: 245 | AS128: 95 | AT128: 47 | AU128: 144
A129: =VLOOKUP(D129,NAAMSAdefs!$B$2:$C$43,2,FALSE)&I129&F129 -> CARHybrid PetrolGauteng | B129: =VLOOKUP(D129,NAAMSAdefs!$B$2:$C$43,2,FALSE)&I129 -> CARHybrid Petrol | C129: Hatch (3-dr)Hybrid Petrol | D129: PASHatch (3-dr) | E129: =VLOOKUP(D129,NAAMSAdefs!$B$2:$D$43,3,FALSE) -> CAR | F129: Gauteng | G129: PAS | H129: Hatch (3-dr) | I129: Hybrid Petrol | AT129: 28 | AU129: 21
A130: =VLOOKUP(D130,NAAMSAdefs!$B$2:$C$43,2,FALSE)&I130&F130 -> CARPetrolGauteng | B130: =VLOOKUP(D130,NAAMSAdefs!$B$2:$C$43,2,FALSE)&I130 -> CARPetrol | C130: Hatch (3-dr)Petrol | D130: PASHatch (3-dr) | E130: =VLOOKUP(D130,NAAMSAdefs!$B$2:$D$43,3,FALSE) -> CAR | F130: Gauteng | G130: PAS | H130: Hatch (3-dr) | I130: Petrol | AE130: 3690 | AF130: 4707 | AG130: 9667 | AH130: 7885 | AI130: 8008 | AJ130: 8978 | AK130: 8280 | AL130: 8120 | AM130: 6610 | AN130: 9080 | AO130: 10909 | AP130: 12948 | AQ130: 12559 | AR130: 7081 | AS130: 4131 | AT130: 4044 | AU130: 1836
A131: =VLOOKUP(D131,NAAMSAdefs!$B$2:$C$43,2,FALSE)&I131&F131 -> CARDieselGauteng | B131: =VLOOKUP(D131,NAAMSAdefs!$B$2:$C$43,2,FALSE)&I131 -> CARDiesel | C131: Hatch (5-dr)Diesel | D131: PASHatch (5-dr) | E131: =VLOOKUP(D131,NAAMSAdefs!$B$2:$D$43,3,FALSE) -> CAR | F131: Gauteng | G131: PAS | H131: Hatch (5-dr) | I131: Diesel | AI131: 29 | AJ131: 364 | AK131: 673 | AL131: 885 | AM131: 1426 | AN131: 2330 | AO131: 3944 | AP131: 4708 | AQ131: 3583 | AR131: 2201 | AS131: 1463 | AT131: 1766 | AU131: 1236
A132: =VLOOKUP(D132,NAAMSAdefs!$B$2:$C$43,2,FALSE)&I132&F132 -> CARHybrid PetrolGauteng | B132: =VLOOKUP(D132,NAAMSAdefs!$B$2:$C$43,2,FALSE)&I132 -> CARHybrid Petrol | C132: Hatch (5-dr)Hybrid Petrol | D132: PASHatch (5-dr) | E132: =VLOOKUP(D132,NAAMSAdefs!$B$2:$D$43,3,FALSE) -> CAR | F132: Gauteng | G132: PAS | H132: Hatch (5-dr) | I132: Hybrid Petrol | AO132: 45 | AP132: 95 | AQ132: 72 | AR132: 87 | AS132: 59 | AT132: 54 | AU132: 39
A133: =VLOOKUP(D133,NAAMSAdefs!$B$2:$C$43,2,FALSE)&I133&F133 -> CARPetrolGauteng | B133: =VLOOKUP(D133,NAAMSAdefs!$B$2:$C$43,2,FALSE)&I133 -> CARPetrol | C133: Hatch (5-dr)Petrol | D133: PASHatch (5-dr) | E133: =VLOOKUP(D133,NAAMSAdefs!$B$2:$D$43,3,FALSE) -> CAR | F133: Gauteng | G133: PAS | H133: Hatch (5-dr) | I133: Petrol | AE133: 33175 | AF133: 35392 | AG133: 26704 | AH133: 22859 | AI133: 23314 | AJ133: 25917 | AK133: 28825 | AL133: 24522 | AM133: 30796 | AN133: 42532 | AO133: 60510 | AP133: 67025 | AQ133: 49450 | AR133: 38567 | AS133: 27605 | AT133: 38258 | AU133: 21414
A134: =VLOOKUP(D134,NAAMSAdefs!$B$2:$C$43,2,FALSE)&I134&F134 -> MBTPetrolGauteng | B134: =VLOOKUP(D134,NAAMSAdefs!$B$2:$C$43,2,FALSE)&I134 -> MBTPetrol | C134: MinibusPetrol | D134: PASMinibus | E134: =VLOOKUP(D134,NAAMSAdefs!$B$2:$D$43,3,FALSE) -> MBT | F134: Gauteng | G134: PAS | H134: Minibus | I134: Petrol | AF134: 27 | AG134: 47 | AH134: 19 | AI134: 1
A135: =VLOOKUP(D135,NAAMSAdefs!$B$2:$C$43,2,FALSE)&I135&F135 -> SUVDieselGauteng | B135: =VLOOKUP(D135,NAAMSAdefs!$B$2:$C$43,2,FALSE)&I135 -> SUVDiesel | C135: MPVDiesel | D135: PASMPV | E135: =VLOOKUP(D135,NAAMSAdefs!$B$2:$D$43,3,FALSE) -> CAR | F135: Gauteng | G135: PAS | H135: MPV | I135: Diesel | AI135: 4 | AJ135: 263 | AK135: 251 | AL135: 290 | AM135: 679 | AN135: 1831 | AO135: 2999 | AP135: 2921 | AQ135: 2186 | AR135: 1307 | AS135: 961 | AT135: 1287 | AU135: 538
A136: =VLOOKUP(D136,NAAMSAdefs!$B$2:$C$43,2,FALSE)&I136&F136 -> SUVPetrolGauteng | B136: =VLOOKUP(D136,NAAMSAdefs!$B$2:$C$43,2,FALSE)&I136 -> SUVPetrol | C136: MPVPetrol | D136: PASMPV | E136: =VLOOKUP(D136,NAAMSAdefs!$B$2:$D$43,3,FALSE) -> CAR | F136: Gauteng | G136: PAS | H136: MPV | I136: Petrol | AE136: 136 | AF136: 54 | AG136: 373 | AH136: 475 | AI136: 541 | AJ136: 3955 | AK136: 5905 | AL136: 3922 | AM136: 3450 | AN136: 5125 | AO136: 5612 | AP136: 5594 | AQ136: 7412 | AR136: 5311 | AS136: 3219 | AT136: 3264 | AU136: 1392
A137: =VLOOKUP(D137,NAAMSAdefs!$B$2:$C$43,2,FALSE)&I137&F137 -> CARDieselGauteng | B137: =VLOOKUP(D137,NAAMSAdefs!$B$2:$C$43,2,FALSE)&I137 -> CARDiesel | C137: SedanDiesel | D137: PASSedan | E137: =VLOOKUP(D137,NAAMSAdefs!$B$2:$D$43,3,FALSE) -> CAR | F137: Gauteng | G137: PAS | H137: Sedan | I137: Diesel | AE137: 272 | AF137: 496 | AG137: 517 | AH137: 394 | AI137: 154 | AJ137: 1026 | AK137: 3470 | AL137: 4688 | AM137: 5349 | AN137: 5039 | AO137: 5987 | AP137: 6714 | AQ137: 6052 | AR137: 5002 | AS137: 3834 | AT137: 3125 | AU137: 1377
A138: =VLOOKUP(D138,NAAMSAdefs!$B$2:$C$43,2,FALSE)&I138&F138 -> CARHybrid PetrolGauteng | B138: =VLOOKUP(D138,NAAMSAdefs!$B$2:$C$43,2,FALSE)&I138 -> CARHybrid Petrol | C138: SedanHybrid Petrol | D138: PASSedan | E138: =VLOOKUP(D138,NAAMSAdefs!$B$2:$D$43,3,FALSE) -> CAR | F138: Gauteng | G138: PAS | H138: Sedan | I138: Hybrid Petrol | AR138: 15 | AS138: 21 | AT138: 7 | AU138: 1
A139: =VLOOKUP(D139,NAAMSAdefs!$B$2:$C$43,2,FALSE)&I139&F139 -> CARPetrolGauteng | B139: =VLOOKUP(D139,NAAMSAdefs!$B$2:$C$43,2,FALSE)&I139 -> CARPetrol | C139: SedanPetrol | D139: PASSedan | E139: =VLOOKUP(D139,NAAMSAdefs!$B$2:$D$43,3,FALSE) -> CAR | F139: Gauteng | G139: PAS | H139: Sedan | I139: Petrol | AE139: 60871 | AF139: 49887 | AG139: 44832 | AH139: 35862 | AI139: 30519 | AJ139: 35819 | AK139: 34971 | AL139: 29414 | AM139: 28533 | AN139: 33187 | AO139: 35271 | AP139: 38261 | AQ139: 31889 | AR139: 25253 | AS139: 18751 | AT139: 25011 | AU139: 11698
A140: =VLOOKUP(D140,NAAMSAdefs!$B$2:$C$43,2,FALSE)&I140&F140 -> SUVDieselGauteng | B140: =VLOOKUP(D140,NAAMSAdefs!$B$2:$C$43,2,FALSE)&I140 -> SUVDiesel | C140: SUVDiesel | D140: PASSUV | E140: =VLOOKUP(D140,NAAMSAdefs!$B$2:$D$43,3,FALSE) -> CAR | F140: Gauteng | G140: PAS | H140: SUV | I140: Diesel | AE140: 328 | AF140: 760 | AG140: 841 | AH140: 1970 | AI140: 1956 | AJ140: 2797 | AK140: 2447 | AL140: 3303 | AM140: 3412 | AN140: 3616 | AO140: 5282 | AP140: 7017 | AQ140: 8762 | AR140: 7808 | AS140: 7596 | AT140: 10629 | AU140: 4768
A141: =VLOOKUP(D141,NAAMSAdefs!$B$2:$C$43,2,FALSE)&I141&F141 -> SUVHybrid PetrolGauteng | B141: =VLOOKUP(D141,NAAMSAdefs!$B$2:$C$43,2,FALSE)&I141 -> SUVHybrid Petrol | C141: SUVHybrid Petrol | D141: PASSUV | E141: =VLOOKUP(D141,NAAMSAdefs!$B$2:$D$43,3,FALSE) -> CAR | F141: Gauteng | G141: PAS | H141: SUV | I141: Hybrid Petrol | AR141: 40 | AS141: 69 | AT141: 101 | AU141: 25
A142: =VLOOKUP(D142,NAAMSAdefs!$B$2:$C$43,2,FALSE)&I142&F142 -> SUVPetrolGauteng | B142: =VLOOKUP(D142,NAAMSAdefs!$B$2:$C$43,2,FALSE)&I142 -> SUVPetrol | C142: SUVPetrol | D142: =G142&H142 -> PASSUV | E142: =VLOOKUP(D142,NAAMSAdefs!$B$2:$D$43,3,FALSE) -> CAR | F142: Gauteng | G142: PAS | H142: SUV | I142: Petrol | AE142: 1651 | AF142: 2178 | AG142: 2580 | AH142: 3726 | AI142: 4025 | AJ142: 3381 | AK142: 3471 | AL142: 3553 | AM142: 3871 | AN142: 6296 | AO142: 8694 | AP142: 9469 | AQ142: 8792 | AR142: 6519 | AS142: 5885 | AT142: 7525 | AU142: 3533
A143: =VLOOKUP(D143,NAAMSAdefs!$B$2:$C$43,2,FALSE)&I143&F143 -> HCVDieselGauteng | B143: =VLOOKUP(D143,NAAMSAdefs!$B$2:$C$43,2,FALSE)&I143 -> HCVDiesel | C143: =H143&I143 -> Freight CarrierDiesel | D143: XHVFreight Carrier | E143: =VLOOKUP(D143,NAAMSAdefs!$B$2:$D$43,3,FALSE) -> Other | F143: Gauteng | G143: XHV | H143: Freight Carrier | I143: Diesel | AE143: 76 | AF143: 119 | AG143: 140 | AH143: 89 | AI143: 106 | AJ143: 87 | AK143: 187 | AL143: 203 | AM143: 308 | AN143: 377 | AO143: 505 | AP143: 713 | AQ143: 761 | AR143: 848 | AS143: 338 | AT143: 434 | AU143: 192
A144: =VLOOKUP(D144,NAAMSAdefs!$B$2:$C$43,2,FALSE)&I144&F144 -> HCVDieselGauteng | B144: =VLOOKUP(D144,NAAMSAdefs!$B$2:$C$43,2,FALSE)&I144 -> HCVDiesel | C144: MixerDiesel | D144: XHVMixer | E144: =VLOOKUP(D144,NAAMSAdefs!$B$2:$D$43,3,FALSE) -> Other | F144: Gauteng | G144: XHV | H144: Mixer | I144: Diesel | AE144: 55 | AF144: 43 | AG144: 38 | AH144: 19 | AI144: 7 | AJ144: 45 | AK144: 59 | AL144: 61 | AM144: 122 | AN144: 162 | AO144: 292 | AP144: 363 | AQ144: 451 | AR144: 430 | AS144: 185 | AT144: 95 | AU144: 49
A145: =VLOOKUP(D145,NAAMSAdefs!$B$2:$C$43,2,FALSE)&I145&F145 -> HCVDieselGauteng | B145: =VLOOKUP(D145,NAAMSAdefs!$B$2:$C$43,2,FALSE)&I145 -> HCVDiesel | C145: OtherDiesel | D145: XHVOther | E145: =VLOOKUP(D145,NAAMSAdefs!$B$2:$D$43,3,FALSE) -> Other | F145: Gauteng | G145: XHV | H145: Other | I145: Diesel | AF145: 1 | AI145: 4 | AQ145: 6 | AR145: 13 | AS145: 8 | AT145: 2
A146: =VLOOKUP(D146,NAAMSAdefs!$B$2:$C$43,2,FALSE)&I146&F146 -> HCVDieselGauteng | B146: =VLOOKUP(D146,NAAMSAdefs!$B$2:$C$43,2,FALSE)&I146 -> HCVDiesel | C146: TipperDiesel | D146: XHVTipper | E146: =VLOOKUP(D146,NAAMSAdefs!$B$2:$D$43,3,FALSE) -> Truck | F146: Gauteng | G146: XHV | H146: Tipper | I146: Diesel | AE146: 53 | AF146: 43 | AG146: 15 | AH146: 44 | AI146: 29 | AJ146: 55 | AK146: 94 | AL146: 103 | AM146: 84 | AN146: 187 | AO146: 319 | AP146: 534 | AQ146: 637 | AR146: 570 | AS146: 147 | AT146: 227 | AU146: 128
A147: =VLOOKUP(D147,NAAMSAdefs!$B$2:$C$43,2,FALSE)&I147&F147 -> HCVDieselGauteng | B147: =VLOOKUP(D147,NAAMSAdefs!$B$2:$C$43,2,FALSE)&I147 -> HCVDiesel | C147: Truck-TractorDiesel | D147: XHVTruck-Tractor | E147: =VLOOKUP(D147,NAAMSAdefs!$B$2:$D$43,3,FALSE) -> Other | F147: Gauteng | G147: XHV | H147: Truck-Tractor | I147: Diesel | AE147: 1271 | AF147: 1310 | AG147: 981 | AH147: 832 | AI147: 737 | AJ147: 918 | AK147: 1062 | AL147: 1406 | AM147: 1896 | AN147: 2168 | AO147: 2434 | AP147: 2916 | AQ147: 3374 | AR147: 3449 | AS147: 1461 | AT147: 2129 | AU147: 1070
A148: =VLOOKUP(D148,NAAMSAdefs!$B$2:$C$43,2,FALSE)&I148&F148 -> BUSDieselGovernment Units | B148: =VLOOKUP(D148,NAAMSAdefs!$B$2:$C$43,2,FALSE)&I148 -> BUSDiesel | C148: BusDiesel | D148: BUSBus | E148: =VLOOKUP(D148,NAAMSAdefs!$B$2:$D$43,3,FALSE) -> BUS | F148: Government Units | G148: BUS | H148: Bus | I148: Diesel | AE148: 25 | AF148: 38 | AG148: 21 | AI148: 24 | AJ148: 17 | AK148: 47 | AL148: 55 | AP148: 1 | AQ148: 2 | AR148: 42 | AS148: 39 | AT148: 70 | AU148: 7
A149: =VLOOKUP(D149,NAAMSAdefs!$B$2:$C$43,2,FALSE)&I149&F149 -> HCVDieselGovernment Units | B149: =VLOOKUP(D149,NAAMSAdefs!$B$2:$C$43,2,FALSE)&I149 -> HCVDiesel | C149: Freight CarrierDiesel | D149: HCVFreight Carrier | E149: =VLOOKUP(D149,NAAMSAdefs!$B$2:$D$43,3,FALSE) -> Truck | F149: Government Units | G149: HCV | H149: Freight Carrier | I149: Diesel | AE149: 568 | AF149: 371 | AG149: 529 | AH149: 297 | AI149: 460 | AJ149: 380 | AK149: 296 | AL149: 258 | AM149: 178 | AN149: 212 | AO149: 288 | AP149: 202 | AQ149: 291 | AR149: 378 | AS149: 299 | AT149: 213 | AU149: 167
A150: =VLOOKUP(D150,NAAMSAdefs!$B$2:$C$43,2,FALSE)&I150&F150 -> HCVDieselGovernment Units | B150: =VLOOKUP(D150,NAAMSAdefs!$B$2:$C$43,2,FALSE)&I150 -> HCVDiesel | C150: OtherDiesel | D150: HCVOther | E150: =VLOOKUP(D150,NAAMSAdefs!$B$2:$D$43,3,FALSE) -> Other | F150: Government Units | G150: HCV | H150: Other | I150: Diesel | AF150: 4 | AG150: 3 | AH150: 3
A151: =VLOOKUP(D151,NAAMSAdefs!$B$2:$C$43,2,FALSE)&I151&F151 -> HCVDieselGovernment Units | B151: =VLOOKUP(D151,NAAMSAdefs!$B$2:$C$43,2,FALSE)&I151 -> HCVDiesel | C151: TipperDiesel | D151: HCVTipper | E151: =VLOOKUP(D151,NAAMSAdefs!$B$2:$D$43,3,FALSE) -> Truck | F151: Government Units | G151: HCV | H151: Tipper | I151: Diesel | AE151: 29 | AF151: 6 | AG151: 34 | AH151: 19 | AI151: 46 | AJ151: 40 | AK151: 44 | AL151: 39 | AM151: 105 | AN151: 20 | AO151: 2 | AP151: 29 | AQ151: 61 | AR151: 52 | AS151: 55 | AT151: 16 | AU151: 43
A152: =VLOOKUP(D152,NAAMSAdefs!$B$2:$C$43,2,FALSE)&I152&F152 -> HCVDieselGovernment Units | B152: =VLOOKUP(D152,NAAMSAdefs!$B$2:$C$43,2,FALSE)&I152 -> HCVDiesel | C152: Truck-TractorDiesel | D152: HCVTruck-Tractor | E152: =VLOOKUP(D152,NAAMSAdefs!$B$2:$D$43,3,FALSE) -> Other | F152: Government Units | G152: HCV | H152: Truck-Tractor | I152: Diesel | AE152: 19 | AF152: 12 | AG152: 67 | AH152: 2 | AK152: 4 | AN152: 1 | AO152: 1 | AQ152: 1 | AT152: 1
A153: =VLOOKUP(D153,NAAMSAdefs!$B$2:$C$43,2,FALSE)&I153&F153 -> LCVDieselGovernment Units | B153: =VLOOKUP(D153,NAAMSAdefs!$B$2:$C$43,2,FALSE)&I153 -> LCVDiesel | C153: Double Cab Pick-UpDiesel | D153: LCVDouble Cab Pick-Up | E153: =VLOOKUP(D153,NAAMSAdefs!$B$2:$D$43,3,FALSE) -> LCV | F153: Government Units | G153: LCV | H153: Double Cab Pick-Up | I153: Diesel | AE153: 71 | AF153: 196 | AG153: 486 | AH153: 299 | AI153: 361 | AJ153: 821 | AK153: 605 | AL153: 893 | AM153: 1191 | AN153: 1490 | AO153: 2155 | AP153: 2065 | AQ153: 2010 | AR153: 1858 | AS153: 1469 | AT153: 1547 | AU153: 804
A154: =VLOOKUP(D154,NAAMSAdefs!$B$2:$C$43,2,FALSE)&I154&F154 -> LCVPetrolGovernment Units | B154: =VLOOKUP(D154,NAAMSAdefs!$B$2:$C$43,2,FALSE)&I154 -> LCVPetrol | C154: Double Cab Pick-UpPetrol | D154: LCVDouble Cab Pick-Up | E154: =VLOOKUP(D154,NAAMSAdefs!$B$2:$D$43,3,FALSE) -> LCV | F154: Government Units | G154: LCV | H154: Double Cab Pick-Up | I154: Petrol | AE154: 475 | AF154: 484 | AG154: 388 | AH154: 384 | AI154: 354 | AJ154: 551 | AK154: 843 | AL154: 885 | AM154: 1205 | AN154: 1445 | AO154: 1522 | AP154: 2097 | AQ154: 2319 | AR154: 2081 | AS154: 1341 | AT154: 1342 | AU154: 447
A155: =VLOOKUP(D155,NAAMSAdefs!$B$2:$C$43,2,FALSE)&I155&F155 -> LCVDieselGovernment Units | B155: =VLOOKUP(D155,NAAMSAdefs!$B$2:$C$43,2,FALSE)&I155 -> LCVDiesel | C155: Extended Cab Pick-UpDiesel | D155: LCVExtended Cab Pick-Up | E155: =VLOOKUP(D155,NAAMSAdefs!$B$2:$D$43,3,FALSE) -> LCV | F155: Government Units | G155: LCV | H155: Extended Cab Pick-Up | I155: Diesel | AL155: 1 | AM155: 3 | AN155: 16 | AO155: 329 | AP155: 458 | AQ155: 253 | AR155: 100 | AS155: 49 | AT155: 197 | AU155: 267
A156: =VLOOKUP(D156,NAAMSAdefs!$B$2:$C$43,2,FALSE)&I156&F156 -> LCVPetrolGovernment Units | B156: =VLOOKUP(D156,NAAMSAdefs!$B$2:$C$43,2,FALSE)&I156 -> LCVPetrol | C156: Extended Cab Pick-UpPetrol | D156: LCVExtended Cab Pick-Up | E156: =VLOOKUP(D156,NAAMSAdefs!$B$2:$D$43,3,FALSE) -> LCV | F156: Government Units | G156: LCV | H156: Extended Cab Pick-Up | I156: Petrol | AN156: 1 | AO156: 63 | AP156: 65 | AQ156: 5
A157: =VLOOKUP(D157,NAAMSAdefs!$B$2:$C$43,2,FALSE)&I157&F157 -> MBTDieselGovernment Units | B157: =VLOOKUP(D157,NAAMSAdefs!$B$2:$C$43,2,FALSE)&I157 -> MBTDiesel | C157: MinibusDiesel | D157: LCVMinibus | E157: =VLOOKUP(D157,NAAMSAdefs!$B$2:$D$43,3,FALSE) -> MBT | F157: Government Units | G157: LCV | H157: Minibus | I157: Diesel | AE157: 1 | AF157: 12 | AG157: 9 | AH157: 15 | AI157: 14 | AO157: 8 | AP157: 51 | AQ157: 124 | AR157: 486 | AS157: 220 | AT157: 293 | AU157: 99
A158: =VLOOKUP(D158,NAAMSAdefs!$B$2:$C$43,2,FALSE)&I158&F158 -> MBTPetrolGovernment Units | B158: =VLOOKUP(D158,NAAMSAdefs!$B$2:$C$43,2,FALSE)&I158 -> MBTPetrol | C158: MinibusPetrol | D158: LCVMinibus | E158: =VLOOKUP(D158,NAAMSAdefs!$B$2:$D$43,3,FALSE) -> MBT | F158: Government Units | G158: LCV | H158: Minibus | I158: Petrol | AE158: 2090 | AF158: 2517 | AG158: 1265 | AH158: 910 | AI158: 1096 | AJ158: 701 | AK158: 549 | AL158: 799 | AM158: 607 | AN158: 534 | AO158: 783 | AP158: 970 | AQ158: 751 | AR158: 441 | AS158: 455 | AT158: 397 | AU158: 120
A159: =VLOOKUP(D159,NAAMSAdefs!$B$2:$C$43,2,FALSE)&I159&F159 -> LCVDieselGovernment Units | B159: =VLOOKUP(D159,NAAMSAdefs!$B$2:$C$43,2,FALSE)&I159 -> LCVDiesel | C159: Panel VanDiesel | D159: LCVPanel Van | E159: =VLOOKUP(D159,NAAMSAdefs!$B$2:$D$43,3,FALSE) -> LCV | F159: Government Units | G159: LCV | H159: Panel Van | I159: Diesel | AM159: 17 | AN159: 3 | AO159: 10 | AP159: 102 | AQ159: 85 | AR159: 160 | AS159: 141 | AT159: 161 | AU159: 89
A160: =VLOOKUP(D160,NAAMSAdefs!$B$2:$C$43,2,FALSE)&I160&F160 -> LCVPetrolGovernment Units | B160: =VLOOKUP(D160,NAAMSAdefs!$B$2:$C$43,2,FALSE)&I160 -> LCVPetrol | C160: Panel VanPetrol | D160: LCVPanel Van | E160: =VLOOKUP(D160,NAAMSAdefs!$B$2:$D$43,3,FALSE) -> LCV | F160: Government Units | G160: LCV | H160: Panel Van | I160: Petrol | AE160: 980 | AF160: 736 | AG160: 1000 | AH160: 1509 | AI160: 308 | AJ160: 243 | AK160: 305 | AL160: 238 | AM160: 238 | AN160: 158 | AO160: 106 | AP160: 135 | AQ160: 99 | AR160: 268 | AS160: 167 | AT160: 252 | AU160: 23
A161: =VLOOKUP(D161,NAAMSAdefs!$B$2:$C$43,2,FALSE)&I161&F161 -> LCVDieselGovernment Units | B161: =VLOOKUP(D161,NAAMSAdefs!$B$2:$C$43,2,FALSE)&I161 -> LCVDiesel | C161: Single Cab Pick-UpDiesel | D161: LCVSingle Cab Pick-Up | E161: =VLOOKUP(D161,NAAMSAdefs!$B$2:$D$43,3,FALSE) -> LCV | F161: Government Units | G161: LCV | H161: Single Cab Pick-Up | I161: Diesel | AE161: 832 | AF161: 843 | AG161: 1041 | AH161: 564 | AI161: 862 | AJ161: 1329 | AK161: 1406 | AL161: 1613 | AM161: 1412 | AN161: 1302 | AO161: 1499 | AP161: 1322 | AQ161: 1181 | AR161: 905 | AS161: 1033 | AT161: 1187 | AU161: 708
A162: =VLOOKUP(D162,NAAMSAdefs!$B$2:$C$43,2,FALSE)&I162&F162 -> LCVPetrolGovernment Units | B162: =VLOOKUP(D162,NAAMSAdefs!$B$2:$C$43,2,FALSE)&I162 -> LCVPetrol | C162: Single Cab Pick-UpPetrol | D162: LCVSingle Cab Pick-Up | E162: =VLOOKUP(D162,NAAMSAdefs!$B$2:$D$43,3,FALSE) -> LCV | F162: Government Units | G162: LCV | H162: Single Cab Pick-Up | I162: Petrol | AE162: 9119 | AF162: 9110 | AG162: 8978 | AH162: 6709 | AI162: 4671 | AJ162: 7346 | AK162: 17743 | AL162: 7417 | AM162: 7454 | AN162: 9196 | AO162: 5896 | AP162: 5833 | AQ162: 5800 | AR162: 6038 | AS162: 4065 | AT162: 3642 | AU162: 1902
A163: =VLOOKUP(D163,NAAMSAdefs!$B$2:$C$43,2,FALSE)&I163&F163 -> BUSDieselGovernment Units | B163: =VLOOKUP(D163,NAAMSAdefs!$B$2:$C$43,2,FALSE)&I163 -> BUSDiesel | C163: BusDiesel | D163: MCVBus | E163: =VLOOKUP(D163,NAAMSAdefs!$B$2:$D$43,3,FALSE) -> BUS | F163: Government Units | G163: MCV | H163: Bus | I163: Diesel | AE163: 2 | AM163: 1 | AN163: 6 | AP163: 29 | AQ163: 28 | AR163: 15 | AS163: 19 | AT163: 33 | AU163: 36
A164: =VLOOKUP(D164,NAAMSAdefs!$B$2:$C$43,2,FALSE)&I164&F164 -> MCVDieselGovernment Units | B164: =VLOOKUP(D164,NAAMSAdefs!$B$2:$C$43,2,FALSE)&I164 -> MCVDiesel | C164: Freight CarrierDiesel | D164: MCVFreight Carrier | E164: =VLOOKUP(D164,NAAMSAdefs!$B$2:$D$43,3,FALSE) -> Truck | F164: Government Units | G164: MCV | H164: Freight Carrier | I164: Diesel | AE164: 314 | AF164: 265 | AG164: 334 | AH164: 322 | AI164: 251 | AJ164: 310 | AK164: 237 | AL164: 200 | AM164: 286 | AN164: 208 | AO164: 296 | AP164: 252 | AQ164: 344 | AR164: 322 | AS164: 270 | AT164: 261 | AU164: 152
A165: =VLOOKUP(D165,NAAMSAdefs!$B$2:$C$43,2,FALSE)&I165&F165 -> MCVPetrolGovernment Units | B165: =VLOOKUP(D165,NAAMSAdefs!$B$2:$C$43,2,FALSE)&I165 -> MCVPetrol | C165: Freight CarrierPetrol | D165: MCVFreight Carrier | E165: =VLOOKUP(D165,NAAMSAdefs!$B$2:$D$43,3,FALSE) -> Truck | F165: Government Units | G165: MCV | H165: Freight Carrier | I165: Petrol | AE165: 85 | AF165: 201 | AG165: 108 | AH165: 11 | AI165: 1 | AJ165: 25 | AK165: 5
A166: =VLOOKUP(D166,NAAMSAdefs!$B$2:$C$43,2,FALSE)&I166&F166 -> MCVDieselGovernment Units | B166: =VLOOKUP(D166,NAAMSAdefs!$B$2:$C$43,2,FALSE)&I166 -> MCVDiesel | C166: Panel VanDiesel | D166: MCVPanel Van | E166: =VLOOKUP(D166,NAAMSAdefs!$B$2:$D$43,3,FALSE) -> Truck | F166: Government Units | G166: MCV | H166: Panel Van | I166: Diesel | AF166: 1 | AG166: 105 | AH166: 40 | AI166: 55 | AJ166: 57 | AK166: 152 | AL166: 73 | AM166: 179 | AN166: 373 | AO166: 599 | AP166: 914 | AQ166: 424 | AR166: 726 | AS166: 594 | AT166: 409 | AU166: 355
A167: =VLOOKUP(D167,NAAMSAdefs!$B$2:$C$43,2,FALSE)&I167&F167 -> MCVDieselGovernment Units | B167: =VLOOKUP(D167,NAAMSAdefs!$B$2:$C$43,2,FALSE)&I167 -> MCVDiesel | C167: TipperDiesel | D167: MCVTipper | E167: =VLOOKUP(D167,NAAMSAdefs!$B$2:$D$43,3,FALSE) -> Truck | F167: Government Units | G167: MCV | H167: Tipper | I167: Diesel | AQ167: 25
A168: =VLOOKUP(D168,NAAMSAdefs!$B$2:$C$43,2,FALSE)&I168&F168 -> CARPetrolGovernment Units | B168: =VLOOKUP(D168,NAAMSAdefs!$B$2:$C$43,2,FALSE)&I168 -> CARPetrol | C168: CabrioletPetrol | D168: PASCabriolet | E168: =VLOOKUP(D168,NAAMSAdefs!$B$2:$D$43,3,FALSE) -> CAR | F168: Government Units | G168: PAS | H168: Cabriolet | I168: Petrol | AJ168: 2 | AK168: 3 | AL168: 13 | AM168: 13 | AN168: 4 | AR168: 1 | AS168: 1 | AT168: 12
A169: =VLOOKUP(D169,NAAMSAdefs!$B$2:$C$43,2,FALSE)&I169&F169 -> CARPetrolGovernment Units | B169: =VLOOKUP(D169,NAAMSAdefs!$B$2:$C$43,2,FALSE)&I169 -> CARPetrol | C169: CoupePetrol | D169: PASCoupe | E169: =VLOOKUP(D169,NAAMSAdefs!$B$2:$D$43,3,FALSE) -> CAR | F169: Government Units | G169: PAS | H169: Coupe | I169: Petrol | AE169: 1 | AJ169: 2 | AK169: 2 | AL169: 6 | AM169: 11 | AN169: 5 | AO169: 3 | AQ169: 1 | AR169: 5 | AU169: 2
A170: =VLOOKUP(D170,NAAMSAdefs!$B$2:$C$43,2,FALSE)&I170&F170 -> CARDieselGovernment Units | B170: =VLOOKUP(D170,NAAMSAdefs!$B$2:$C$43,2,FALSE)&I170 -> CARDiesel | C170: EstateDiesel | D170: PASEstate | E170: =VLOOKUP(D170,NAAMSAdefs!$B$2:$D$43,3,FALSE) -> CAR | F170: Government Units | G170: PAS | H170: Estate | I170: Diesel | AO170: 1
A171: =VLOOKUP(D171,NAAMSAdefs!$B$2:$C$43,2,FALSE)&I171&F171 -> CARPetrolGovernment Units | B171: =VLOOKUP(D171,NAAMSAdefs!$B$2:$C$43,2,FALSE)&I171 -> CARPetrol | C171: EstatePetrol | D171: PASEstate | E171: =VLOOKUP(D171,NAAMSAdefs!$B$2:$D$43,3,FALSE) -> CAR | F171: Government Units | G171: PAS | H171: Estate | I171: Petrol | AE171: 126 | AF171: 172 | AG171: 213 | AH171: 51 | AI171: 61 | AJ171: 14 | AK171: 55 | AL171: 67 | AM171: 25 | AN171: 5 | AO171: 1 | AR171: 4 | AS171: 1 | AT171: 6
A172: =VLOOKUP(D172,NAAMSAdefs!$B$2:$C$43,2,FALSE)&I172&F172 -> CARDieselGovernment Units | B172: =VLOOKUP(D172,NAAMSAdefs!$B$2:$C$43,2,FALSE)&I172 -> CARDiesel | C172: Hatch (3-dr)Diesel | D172: PASHatch (3-dr) | E172: =VLOOKUP(D172,NAAMSAdefs!$B$2:$D$43,3,FALSE) -> CAR | F172: Government Units | G172: PAS | H172: Hatch (3-dr) | I172: Diesel | AN172: 9 | AO172: 8 | AP172: 7 | AQ172: 10 | AR172: 47
A173: =VLOOKUP(D173,NAAMSAdefs!$B$2:$C$43,2,FALSE)&I173&F173 -> CARPetrolGovernment Units | B173: =VLOOKUP(D173,NAAMSAdefs!$B$2:$C$43,2,FALSE)&I173 -> CARPetrol | C173: Hatch (3-dr)Petrol | D173: PASHatch (3-dr) | E173: =VLOOKUP(D173,NAAMSAdefs!$B$2:$D$43,3,FALSE) -> CAR | F173: Government Units | G173: PAS | H173: Hatch (3-dr) | I173: Petrol | AG173: 3 | AH173: 59 | AI173: 41 | AJ173: 267 | AK173: 164 | AL173: 375 | AM173: 163 | AN173: 96 | AO173: 135 | AP173: 69 | AQ173: 102 | AR173: 93 | AS173: 13 | AT173: 24
A174: =VLOOKUP(D174,NAAMSAdefs!$B$2:$C$43,2,FALSE)&I174&F174 -> CARDieselGovernment Units | B174: =VLOOKUP(D174,NAAMSAdefs!$B$2:$C$43,2,FALSE)&I174 -> CARDiesel | C174: Hatch (5-dr)Diesel | D174: PASHatch (5-dr) | E174: =VLOOKUP(D174,NAAMSAdefs!$B$2:$D$43,3,FALSE) -> CAR | F174: Government Units | G174: PAS | H174: Hatch (5-dr) | I174: Diesel | AJ174: 2 | AK174: 2 | AL174: 5 | AM174: 5 | AN174: 11 | AO174: 68 | AP174: 128 | AQ174: 44 | AR174: 143 | AS174: 101 | AT174: 195 | AU174: 247
A175: =VLOOKUP(D175,NAAMSAdefs!$B$2:$C$43,2,FALSE)&I175&F175 -> CARHybrid PetrolGovernment Units | B175: =VLOOKUP(D175,NAAMSAdefs!$B$2:$C$43,2,FALSE)&I175 -> CARHybrid Petrol | C175: Hatch (5-dr)Hybrid Petrol | D175: PASHatch (5-dr) | E175: =VLOOKUP(D175,NAAMSAdefs!$B$2:$D$43,3,FALSE) -> CAR | F175: Government Units | G175: PAS | H175: Hatch (5-dr) | I175: Hybrid Petrol | AS175: 1
A176: =VLOOKUP(D176,NAAMSAdefs!$B$2:$C$43,2,FALSE)&I176&F176 -> CARPetrolGovernment Units | B176: =VLOOKUP(D176,NAAMSAdefs!$B$2:$C$43,2,FALSE)&I176 -> CARPetrol | C176: Hatch (5-dr)Petrol | D176: PASHatch (5-dr) | E176: =VLOOKUP(D176,NAAMSAdefs!$B$2:$D$43,3,FALSE) -> CAR | F176: Government Units | G176: PAS | H176: Hatch (5-dr) | I176: Petrol | AE176: 3280 | AF176: 3027 | AG176: 2414 | AH176: 1215 | AI176: 1739 | AJ176: 2907 | AK176: 3737 | AL176: 3013 | AM176: 3070 | AN176: 2941 | AO176: 2348 | AP176: 3516 | AQ176: 2823 | AR176: 2337 | AS176: 2096 | AT176: 1627 | AU176: 1473
A177: =VLOOKUP(D177,NAAMSAdefs!$B$2:$C$43,2,FALSE)&I177&F177 -> SUVDieselGovernment Units | B177: =VLOOKUP(D177,NAAMSAdefs!$B$2:$C$43,2,FALSE)&I177 -> SUVDiesel | C177: MPVDiesel | D177: PASMPV | E177: =VLOOKUP(D177,NAAMSAdefs!$B$2:$D$43,3,FALSE) -> CAR | F177: Government Units | G177: PAS | H177: MPV | I177: Diesel | AJ177: 34 | AK177: 103 | AL177: 53 | AM177: 32 | AN177: 61 | AO177: 119 | AP177: 151 | AQ177: 141 | AR177: 67 | AS177: 36 | AT177: 137 | AU177: 36
A178: =VLOOKUP(D178,NAAMSAdefs!$B$2:$C$43,2,FALSE)&I178&F178 -> SUVPetrolGovernment Units | B178: =VLOOKUP(D178,NAAMSAdefs!$B$2:$C$43,2,FALSE)&I178 -> SUVPetrol | C178: MPVPetrol | D178: PASMPV | E178: =VLOOKUP(D178,NAAMSAdefs!$B$2:$D$43,3,FALSE) -> CAR | F178: Government Units | G178: PAS | H178: MPV | I178: Petrol | AF178: 3 | AI178: 1 | AJ178: 332 | AK178: 778 | AL178: 707 | AM178: 945 | AN178: 993 | AO178: 232 | AP178: 87 | AQ178: 260 | AR178: 191 | AS178: 246 | AT178: 199 | AU178: 29
A179: =VLOOKUP(D179,NAAMSAdefs!$B$2:$C$43,2,FALSE)&I179&F179 -> CARDieselGovernment Units | B179: =VLOOKUP(D179,NAAMSAdefs!$B$2:$C$43,2,FALSE)&I179 -> CARDiesel | C179: SedanDiesel | D179: PASSedan | E179: =VLOOKUP(D179,NAAMSAdefs!$B$2:$D$43,3,FALSE) -> CAR | F179: Government Units | G179: PAS | H179: Sedan | I179: Diesel | AE179: 4 | AF179: 1 | AJ179: 9 | AK179: 17 | AL179: 53 | AM179: 85 | AN179: 118 | AO179: 217 | AP179: 126 | AQ179: 195 | AR179: 447 | AS179: 129 | AT179: 198 | AU179: 105
